Workbook

Sheet CAPA AP
B7: EXECUÇÃO DE SERVIÇOS DE PERFURAÇÃO E INSTALAÇÃO DE POÇOS TUBULARES NO AMAPÁ

Sheet Planilha Resumo AP
B2: OBJETO: EXECUÇÃO DE SERVIÇOS DE PERFURAÇÃO E INSTALAÇÃO DE POÇOS TUBULARES EM MUNICÍPIOS LOCALIZADOS NO ESTADO DO AMAPÁ, NA ÁREA DE ATUAÇÃO DA CODEVASF
B3: PLANILHA ORÇAMENTÁRIA ESTIMATIVA GERAL
B4: DATABASE DO ORÇAMENTO: setembro/2025 - NÃO DESONERADO
B5: PLANILHA RESUMIDA - GRUPO 1 - AMAPÁ
B6: ITEM | C6: DISCRIMINAÇÃO | D6: UND | E6: Quantidade de Poços | F6: PREÇO UNITÁRIO | G6: TOTAL
B7: 1 | C7: Perfuração e instalação de poço tubular parcialmente revestido, instalado com sistema fotovoltaico, bomba submersa, reservatório e bebedouro para animais. | D7: un | E7: ='Orçamento Sintético - AP - P'!H2 -> 40 | F7: ='Orçamento Sintético - AP - P'!L2 -> 123762.2255 | G7: =F7*E7 -> 4950489.02
B8: 2 | C8: Perfuração e instalação de poços poço tubular totalmente revestido, instalado com sistema fotovoltaico, bomba submersa, reservatório e bebedouro para animais. | D8: un | E8: ='Orçamento Sintético - AP - T'!H2 -> 60 | F8: ='Orçamento Sintético - AP - T'!L2 -> 201852.35 | G8: =F8*E8 -> 12111141
B9: TOTAL GERAL ESTIMADO GRUPO | D9: un | E9: =E7+E8 -> 100 | G9: =G7+G8 -> 17061630.02
B13: Base de Preços Consultados | E13: SBC 09/2025 SINAPI 08/2025 SICRO 04/2025 ORSE 06/2025 CPOS/CDHU 06/2025 EMBASA 06/2025 SEINFRA 028 SIURB 01/2025
B15: Encargos Sociais | E15: Não Desonerado: Horista: 115,81% Mensalista: 69,84%

Sheet BDI-FORNECIMENTO
A1: Ministério da Integração e do Desenvolvimento Regional
A2: Companhia de Desenvolvimento dos Vales do São Francisco e do Parnaíba
A3: COMPOSIÇÃO DE BDI - SERVIÇOS - NÃO DESONERADO
A4: MEMÓRIA DE CALCULO DO BDI DE FORNECIMENTO
A5: OBRA:
A6: LOCAL:
A7: DATA BASE:
A8: PRAZO:
A9: ITEM | B9: DISCRIMINAÇÃO | C9: PERC. (%)
A11: 1 | B11: Despesas Indiretas
A12: A1 | B12: Seguro e Garantia | C12: 0.008
A13: A2 | B13: Riscos e Imprevistos | C13: 0.0115
A14: A3 | B14: Despesas Financeiras | C14: 0.0105
A15: A4 | B15: Administração Central | C15: 0.022
A16: Total do Grupo A = | C16: =SUM(C12:C15) -> 0.052
A17: 2 | B17: Benefício
A18: B1 | B18: LUCRO | C18: 0.05
A19: Total do Grupo B = | C19: =C18 -> 0.05
A20: 3 | B20: Impostos
A21: C1 | B21: PIS / PASEP | C21: 0.0065
A22: C2 | B22: COFINS | C22: 0.03
A23: C3 | B23: ISS | C23: 0
A24: Total do Grupo C = | C24: =SUM(C21:C23) -> 0.0365
A25: Fórmula Para Cálculo do B.D.I
A26: BDI =(((1+A4+A1+A2)*(1+A3)*(1+B))/(1-C))-1
A28: Bonificação Sobre Despesas indiretas (B.D.I) = | C28: =(((1+C15+C12+C13)*(1+C14)*(1+C19))/(1-C24))-1 -> 0.146920122

Sheet BDI-SERVICOS
A1: Ministério da Integração e do Desenvolvimento Regional
A2: Companhia de Desenvolvimento dos Vales do São Francisco e do Parnaíba
A4: COMPOSIÇÃO DE BDI - SERVIÇOS - NÃO DESONERADO
A5: OBRA:
A6: LOCAL:
A7: DATA BASE:
A8: PRAZO:
A9: ITEM | B9: DESCRIÇÃO | C9: SIGLA | D9: % APLICADO | E9: REFERÊNCIA TCU (ACÓRDÃO Nº 2622/2013)
E10: 1º QUARTIL | F10: 2º QUARTIL | G10: 3º QUARTIL
A11: 1 | B11: ADMINISTRAÇÃO CENTRAL | C11: AC | D11: =E11 -> 0.04 | E11: 0.04 | F11: 0.0552 | G11: 0.0785
A12: 2 | B12: IMPOSTOS | C12: T | D12: =SUM(D13:D16) -> 0.0715
A13: 2.1 | B13: ISS (*) | D13: 0.035 | E13: - | F13: - | G13: -
A14: 2.2 | B14: PIS | D14: 0.0065 | E14: - | F14: - | G14: -
A15: 2.3 | B15: Cofins | D15: 0.03 | E15: - | F15: - | G15: -
A16: 2.4 | B16: Contribuição previdênciária sobre a receita bruta (CPRB) | E16: - | F16: - | G16: -
A17: 3 | B17: SEGURO, GARANTIA E RISCO | D17: =SUM(D18:D19) -> 0.0162
A18: 3.1 | B18: Seguro + Garantia | C18: S + G | D18: 0.0042 | E18: 0.0081 | F18: 0.0122 | G18: 0.0199
A19: 3.2 | B19: Risco | C19: R | D19: 0.012 | E19: 0.0146 | F19: 0.0232 | G19: 0.0316
A20: 4 | B20: DESPESAS FINANCEIRAS | C20: DF | D20: 0.0094 | E20: 0.0094 | F20: 0.0102 | G20: 0.01363
A21: 5 | B21: LUCRO | C21: L | D21: 0.078 | E21: 0.0714 | F21: 0.084 | G21: 0.1043
B22: BDI ADOTADO: | D22: =ROUND(((((1+D11+D17)*(1+D20)*(1+D21))/(1-D12))-1),4) -> 0.2378
A23: Considerações: O BDI foi calculado através da seguinte fórmula, regulamentada pelo Acórdão Nº 2622/2013 – TCU. * O percentual de ISSQN aqui utilizado refere-se ao município de Porteirinha/MG, conforme Lei Complementar 1899/2007 - Art. 1º (Item 7.02C). Conforme Art. 112, § 14, na base de cálculo do ISSQN considerou-se dedução do percentual abaixo discriminado.

Sheet Orçamento Sintético - AP - P
C1: OBJETO: EXECUÇÃO DE SERVIÇOS DE PERFURAÇÃO E INSTALAÇÃO DE POÇOS TUBULARES EM MUNICÍPIOS LOCALIZADOS NO ESTADO DO AMAPÁ, NA ÁREA DE ATUAÇÃO DA CODEVASF | H1: Quantidade de Poços | I1: BDI SERVIÇO | J1: BDI INSUMO | K1: Total | L1: Preço Unitário Por Poço | M1: DESCONTO
H2: 40 | I2: ='BDI-SERVICOS'!D22 -> 0.2378 | J2: ='BDI-FORNECIMENTO'!C28 -> 0.146920122 | K2: =K4+K8+K13+K18+K24+K27+K29+K31+K33+K41+K43+K49+K52 -> 4950489.02 | L2: =K2/H2 -> 123762.2255 | M2: 0
A3: Item | B3: Código | C3: Banco | D3: TIPO | E3: Descrição. | F3: un. | G3: Mem. calc. | H3: Quanti. | I3: Valor Unit | J3: Valor Unit com BDI | K3: Total | L3: Peso (%)
A4: 1 | E4: Serviços preliminares. | K4: =SUM(K5:K7) -> 56250.93 | L4: =K4/K2 -> 0.0113627017
A5: 1.1 | B5: COMPOSIÇÃO - 1 | C5: Próprio | D5: Serviço | E5: Administração local da obra - poço parcialmente revestido. | F5: un. | G5: 1 | H5: =G5*$H$2 -> 40 | I5: =VLOOKUP(B5,'Orçamento Analítico - AP - P'!B:J,9,0)*(1-$M$2) -> 203.7075 | J5: =ROUND(I5*(1+$I$2),2) -> 252.15 | K5: =ROUND(J5*H5,2) -> 10086 | L5: =K5/$K$2 -> 0.002037374481
A6: 1.2 | B6: COMPOSIÇÃO - 2 | C6: Próprio | D6: Serviço | E6: Serviço de locação geológica de campo com relatório hidro geológico e perfil construtivo e geológico esperado. relatório de viabilidade de implantação das estruturas e vistorias preliminares. | F6: un. | G6: 1 | H6: =G6*$H$2 -> 40 | I6: =VLOOKUP(B6,'Orçamento Analítico - AP - P'!B:J,9,0)*(1-$M$2) -> 600.95 | J6: =ROUND(I6*(1+$I$2),2) -> 743.86 | K6: =ROUND(J6*H6,2) -> 29754.4 | L6: =K6/$K$2 -> 0.00601039612
A7: 1.3 | B7: 103689 | C7: SINAPI | D7: Serviço | E7: Fornecimento e instalação de placa de obra com chapa galvanizada e estrutura de madeira. | F7: m² | G7: 0.72 | H7: 28.8 | I7: =VLOOKUP(B7,'Orçamento Analítico - AP - P'!B:J,9,0)*(1-$M$2) -> 460.34 | J7: =ROUND(I7*(1+$I$2),2) -> 569.81 | K7: 16410.53 | L7: 0.003314931097
A8: 2 | E8: Mobilizaçâo e desmobilizaçâo equipes perfuraçâo e instalação. | I8: Valor Unit | K8: =SUM(K9:K12) -> 142071.1 | L8: =K8/K2 -> 0.02869839715
A9: 2.1 | B9: COMPOSIÇÃO - 3 | C9: Próprio | D9: Serviço | E9: Transporte de comboio perfuração. | F9: km | G9: 150 | H9: =G9*$H$2 -> 6000 | I9: =VLOOKUP(B9,'Orçamento Analítico - AP - P'!B:J,9,0)*(1-$M$2) -> 4.7062834 | J9: =ROUND(I9*(1+$I$2),2) -> 5.83 | K9: =ROUND(H9*J9,2) -> 34980 | L9: =K9/$K$2 -> 0.007065968606
A10: 2.2 | B10: COMPOSIÇÃO - 4 | C10: Próprio | D10: Serviço | E10: Transporte de comboio instalação. | F10: km | G10: 150 | H10: =G10*$H$2 -> 6000 | I10: =VLOOKUP(B10,'Orçamento Analítico - AP - P'!B:J,9,0)*(1-$M$2) -> 5.9572828 | J10: =ROUND(I10*(1+$I$2),2) -> 7.37 | K10: =ROUND(H10*J10,2) -> 44220 | L10: =K10/$K$2 -> 0.008932450879
A11: 2.3 | B11: COMPOSIÇÃO - 5 | C11: Próprio | D11: Serviço | E11: Transporte de equipe teste de vazão. | F11: km | G11: 150 | H11: 6000 | I11: =VLOOKUP(B11,'Orçamento Analítico - AP - P'!B:J,9,0)*(1-$M$2) -> 2.607113 | J11: 3.23 | K11: 19380 | L11: 0.003914764768
A12: 2.4 | B12: COTAÇÃO-015 | C12: Próprio | D12: Insumo | E12: Transporte hidroviário perfuração e instalação poços - trecho ida e volta. | F12: un. | G12: 0.17 | H12: 6.8 | I12: =VLOOKUP(B12,'Orçamento Analítico - AP - P'!B:J,9,0)*(1-$M$2) -> 5576.46 | J12: =ROUND(I12*(1+$J$2),2) -> 6395.75 | K12: 43491.1 | L12: =K12/K2 -> 0.0087852129
A13: 3 | E13: Perfuração e completação de poço tubular. | I13: Valor Unit | K13: =SUM(K14:K17) -> 1218655.84 | L13: =K13/K2 -> 0.2461687795
A14: 3.1 | B14: 5048 | C14: ORSE | D14: Serviço | E14: Perfuraçao em rocha cristalina - rocha cristalina alterada / compacta dn 6" (poço até 120m). | F14: m | G14: 90 | H14: =G14*$H$2 -> 3600 | I14: =VLOOKUP(B14,'Orçamento Analítico - AP - P'!B:J,9,0)*(1-$M$2) -> 125.23 | J14: =ROUND(I14*(1+$I$2),2) -> 155.01 | K14: =ROUND(H14*J14,2) -> 558036 | L14: =K14/K2 -> 0.1127234093
A15: 3.2 | B15: 5057 | C15: ORSE | D15: Serviço | E15: Perfuração rocha sedimentar sedimento / Camadas inconsolidadas DN 12.1/2" - Poço até 150 m (Perfuração rotopneumática Ø 12 1/2" | F15: m | G15: 30 | H15: =G15*$H$2 -> 1200 | I15: =VLOOKUP(B15,'Orçamento Analítico - AP - P'!B:J,9,0)*(1-$M$2) -> 247.66 | J15: =ROUND(I15*(1+$I$2),2) -> 306.55 | K15: =ROUND(H15*J15,2) -> 367860 | L15: =K15/K2 -> 0.0743078105
A16: 3.3 | B16: COMPOSIÇÃO - 6 | C16: Próprio | D16: Serviço | E16: Serviço de lançamento cimentação anelar, incluso materiais. | F16: m³ | G16: 1.6 | H16: 64 | I16: =VLOOKUP(B16,'Orçamento Analítico - AP - P'!B:J,9,0)*(1-$M$2) -> 521.34 | J16: =ROUND(I16*(1+$I$2),2) -> 645.31 | K16: 41299.84 | L16: =K16/K2 -> 0.008342577841
A17: 3.4 | B17: 9854 | C17: SINAPI | D17: Insumo | E17: Tubo pvc de revestimento geomecanico nervurado standard, dn = 154 mm, comprimento = 2 m. | F17: m | G17: 30 | H17: 1200 | I17: =VLOOKUP(B17,'Orçamento Analítico - AP - P'!B:J,9,0)*(1-$M$2) -> 182.71 | J17: =ROUND(I17*(1+$J$2),2) -> 209.55 | K17: 251460 | L17: =K17/K2 -> 0.05079498187
A18: 4 | E18: Pós perfuração. | I18: Valor Unit | K18: =SUM(K19:K23) -> 480048.4 | L18: =K18/K2 -> 0.09696989491
A19: 4.1 | B19: 6305 | C19: ORSE | D19: Serviço | E19: Desenvolvimento com compressor 250psi / 750cfm. | F19: h | G19: 2 | H19: =G19*$H$2 -> 80 | I19: =VLOOKUP(B19,'Orçamento Analítico - AP - P'!B:J,9,0)*(1-$M$2) -> 411.16 | J19: =ROUND(I19*(1+$I$2),2) -> 508.93 | K19: =ROUND(H19*J19,2) -> 40714.4 | L19: =K19/K2 -> 0.008224318817
A20: 4.2 | B20: COMPOSIÇÃO - 7 | C20: Próprio | D20: Serviço | E20: Inspeção ótica em poço tubular câmera com rotação de 360º, visada lateral, com fonte própria de luz, entregue vídeo em cores e marcação de profundidades. | F20: m | G20: 120 | H20: =G20*$H$2 -> 4800 | I20: =VLOOKUP(B20,'Orçamento Analítico - AP - P'!B:J,9,0)*(1-$M$2) -> 9.64046 | J20: =ROUND(I20*(1+$I$2),2) -> 11.93 | K20: =ROUND(H20*J20,2) -> 57264 | L20: =K20/K2 -> 0.01156734209
A21: 4.3 | B21: COMPOSIÇÃO - 8 | C21: Próprio | D21: Serviço | E21: Serviço de coleta e análise físico-química e bacteriológica. | F21: un. | G21: 1 | H21: 40 | I21: =VLOOKUP(B21,'Orçamento Analítico - AP - P'!B:J,9,0)*(1-$M$2) -> 621.19 | J21: =ROUND(I21*(1+$I$2),2) -> 768.91 | K21: 30756.4 | L21: =K21/$K$2 -> 0.006212800367
A22: 4.4 | B22: 24.80.22 | C22: EMBASA | D22: Serviço | E22: (REVISADA) DESENVOLVIMENTO OU TESTE COM BOMBA SUBMERSA - UEB1 NO SEDIMENTO COM VAZAO < 60M3 (Ensaio de bombeamento poço tubular incluso materiais e grupo gerador) | F22: h | G22: 24 | H22: 960 | I22: =VLOOKUP(B22,'Orçamento Analítico - AP - P'!B:J,9,0)*(1-$M$2) -> 263.27 | J22: 325.88 | K22: 312844.8 | L22: =K22/$K$2 -> 0.06319472657
A23: 4.5 | B23: COMPOSIÇÃO - 9 | C23: Próprio | D23: Serviço | E23: Serviço de instalação de laje sanitária com dimensões (1,5x1,5x0,3) metros , incluso material. | F23: un. | G23: 1 | H23: 40 | I23: =VLOOKUP(B23,'Orçamento Analítico - AP - P'!B:J,9,0)*(1-$M$2) -> 776.961 | J23: 961.72 | K23: 38468.8 | L23: 0.007770707064
A24: 5 | E24: Reservação. | I24: Valor Unit | K24: =SUM(K25:K26) -> 893256.08 | L24: =K24/K2 -> 0.1804379479
A25: 5.1 | B25: COMPOSIÇÃO - 10 | C25: Próprio | D25: Serviço | E25: Fornecimento e instalação de reservatório e base elevada 10 m³. | F25: un. | G25: 0.8 | H25: =G25*$H$2 -> 32 | I25: =VLOOKUP(B25,'Orçamento Analítico - AP - P'!B:J,9,0)*(1-$M$2) -> 20417.17379 | J25: =ROUND(I25*(1+$I$2),2) -> 25272.38 | K25: =ROUND(J25*H25,2) -> 808716.16 | L25: =K25/$K$2 -> 0.1633608633
A26: 5.2 | B26: COMPOSIÇÃO - 11 | C26: Próprio | D26: Serviço | E26: Fornecimento e execução de reservatório apoiado de 5 m³. | F26: un. | G26: 0.2 | H26: =G26*$H$2 -> 8 | I26: =VLOOKUP(B26,'Orçamento Analítico - AP - P'!B:J,9,0)*(1-$M$2) -> 8537.316425 | J26: =ROUND(I26*(1+$I$2),2) -> 10567.49 | K26: =ROUND(J26*H26,2) -> 84539.92 | L26: =K26/$K$2 -> 0.01707708464
A27: 6 | E27: Bebedouro. | I27: Valor Unit | K27: =K28 -> 99154.4 | L27: =K27/K2 -> 0.02002921319
A28: 6.1 | B28: COMPOSIÇÃO - 12 | C28: Próprio | D28: Serviço | E28: Serviço de execução do bebedouro em concreto armado, incluso materiais. | F28: un. | G28: 1 | H28: =G28*$H$2 -> 40 | I28: =VLOOKUP(B28,'Orçamento Analítico - AP - P'!B:J,9,0)*(1-$M$2) -> 2002.62994 | J28: =ROUND(I28*(1+$I$2),2) -> 2478.86 | K28: =ROUND(H28*J28,2) -> 99154.4 | L28: =K28/K2 -> 0.02002921319
A29: 7 | E29: Chafariz. | I29: Valor Unit | K29: =K30 -> 51730.8 | L29: =K29/K2 -> 0.01044963433
A30: 7.1 | B30: COMPOSIÇÃO - 13 | C30: Próprio | D30: Serviço | E30: Fornecimento de material e instalação do chafariz. | F30: un. | G30: 1 | H30: =G30*$H$2 -> 40 | I30: =VLOOKUP(B30,'Orçamento Analítico - AP - P'!B:J,9,0)*(1-$M$2) -> 1044.814754 | J30: =ROUND(I30*(1+$I$2),2) -> 1293.27 | K30: =ROUND(H30*J30,2) -> 51730.8 | L30: =K30/K2 -> 0.01044963433
A31: 8 | E31: Cavalete. | I31: Valor Unit | K31: =K32 -> 115652 | L31: =K31/K2 -> 0.02336173245
A32: 8.1 | B32: COMPOSIÇÃO - 14 | C32: Próprio | D32: Serviço | E32: Fornecimento de conexões e instalação do cavalete com hidrômetro e clorador de pastilhas. | F32: un. | G32: 1 | H32: =G32*$H$2 -> 40 | I32: =VLOOKUP(B32,'Orçamento Analítico - AP - P'!B:J,9,0)*(1-$M$2) -> 2335.835 | J32: =ROUND(I32*(1+$I$2),2) -> 2891.3 | K32: =ROUND(H32*J32,2) -> 115652 | L32: =K32/K2 -> 0.02336173245
A33: 9 | E33: Instalações hidráulicas. | I33: Valor Unit | K33: =SUM(K34:K40) -> 668840.82 | L33: =K33/K2 -> 0.1351060102
A34: 9.1 | B34: COMPOSIÇÃO - 15 | C34: Próprio | D34: Serviço | E34: Instalação da rede adutora poço-reservatório-bebedouro em pn80 e dn50mm. | F34: m | G34: 400 | H34: =G34*$H$2 -> 16000 | I34: =VLOOKUP(B34,'Orçamento Analítico - AP - P'!B:J,9,0)*(1-$M$2) -> 5.8185 | J34: =ROUND(I34*(1+$I$2),2) -> 7.2 | K34: =ROUND(H34*J34,2) -> 115200 | L34: =K34/K2 -> 0.02327042834
A35: 9.2 | B35: 9875 | C35: SINAPI | D35: Insumo | E35: TUBO PVC, SOLDAVEL, DE 50 MM, AGUA FRIA (NBR-5648) | F35: m | G35: 400 | H35: =G35*H2 -> 16000 | I35: =VLOOKUP(B35,'Orçamento Analítico - AP - P'!B:J,9,0)*(1-$M$2) -> 13.57 | J35: =ROUND(I35*(1+$J$2),2) -> 15.56 | K35: =J35*H35 -> 248960 | L35: =K35/$K$2 -> 0.05028998125
A36: 9.3 | B36: COMPOSIÇÃO - 16 | C36: Próprio | D36: Serviço | E36: Montagem hidráulica do equipamento de bombeamento. | F36: un. | G36: 1 | H36: =G36*$H$2 -> 40 | I36: =VLOOKUP(B36,'Orçamento Analítico - AP - P'!B:J,9,0)*(1-$M$2) -> 140.55 | J36: =ROUND(I36*(1+$I$2),2) -> 173.97 | K36: =ROUND(H36*J36,2) -> 6958.8 | L36: =K36/K2 -> 0.001405679312
A37: 9.4 | B37: 38200 | C37: SINAPI | D37: Insumo | E37: Corda de poliamida 12 mm tipo bombeiro, para trabalho em altura. | F37: 100m | G37: 0.93 | H37: 37.2 | I37: =VLOOKUP(B37,'Orçamento Analítico - AP - P'!B:J,9,0)*(1-$M$2) -> 512.05 | J37: =ROUND(I37*(1+$J$2),2) -> 587.28 | K37: 21846.82 | L37: =K37/$K$2 -> 0.004413063015
A38: 9.5 | B38: 9860 | C38: SINAPI | D38: Insumo | E38: Tubo pvc, roscavel, 2", para agua fria predial. | F38: m | G38: 90 | H38: 3600 | I38: =VLOOKUP(B38,'Orçamento Analítico - AP - P'!B:J,9,0)*(1-$M$2) -> 59.115 | J38: =ROUND(I38*(1+$J$2),2) -> 67.8 | K38: 244080 | L38: =K38/$K$2 -> 0.04930422005
A39: 9.6 | B39: 3912 | C39: SINAPI | D39: Insumo | E39: Luva de ferro galvanizado, com rosca bsp, de 2". | F39: un. | G39: 16 | H39: 640 | I39: =VLOOKUP(B39,'Orçamento Analítico - AP - P'!B:J,9,0)*(1-$M$2) -> 36.61 | J39: 41.99 | K39: 26873.6 | L39: 0.005428473812
A40: 9.7 | B40: 5128 | C40: ORSE | D40: Insumo | E40: Tampa de poço galvanizada em 6" un. | F40: un. | G40: 1 | H40: 40 | I40: =VLOOKUP(B40,'Orçamento Analítico - AP - P'!B:J,9,0)*(1-$M$2) -> 107.28 | J40: 123.04 | K40: 4921.6 | L40: 0.0009941644109
A41: 10 | E41: Estrutura de fixação para módulos fotovoltáicos. | I41: Valor Unit | K41: =K42 -> 59663.47 | L41: =K41/K2 -> 0.01205203562
A42: 10.1 | B42: COMPOSIÇÃO - 17 | C42: Próprio | D42: Serviço | E42: Serviço de fixação de estruturas para os módulos fotovoltaicos e suportes de concreto, incluso materiais. | F42: m² | G42: 10.12 | H42: =G42*$H$2 -> 404.8 | I42: =VLOOKUP(B42,'Orçamento Analítico - AP - P'!B:J,9,0)*(1-$M$2) -> 119.076112 | J42: =ROUND(I42*(1+$I$2),2) -> 147.39 | K42: =ROUND(J42*H42,2) -> 59663.47 | L42: =K42/K2 -> 0.01205203562
A43: 11 | E43: Instalações elétricas e bóia elétrica. | I43: Valor Unit | K43: =SUM(K44:K48) -> 584094.4 | L43: =K43/K2 -> 0.1179872125
A44: 11.1 | B44: COMPOSIÇÃO - 18 | C44: Próprio | D44: Serviço | E44: Montagem e instalação elétrica do kit de bombeamento e sistema fotovoltaico inclusive sistema de aterramento. | F44: un. | G44: 1 | H44: =G44*$H$2 -> 40 | I44: =VLOOKUP(B44,'Orçamento Analítico - AP - P'!B:J,9,0)*(1-$M$2) -> 1140.4236 | J44: =ROUND(I44*(1+$I$2),2) -> 1411.62 | K44: =ROUND(J44*H44,2) -> 56464.8 | L44: =K44/K2 -> 0.01140590349
A45: 11.2 | B45: 34622 | C45: SINAPI | D45: Insumo | E45: Fornecimento de cabo flexivel pvc 750 v, 3 condutores de 6,0 mm2. | F45: m | G45: 105 | H45: =G45*$H$2 -> 4200 | I45: =VLOOKUP(B45,'Orçamento Analítico - AP - P'!B:J,9,0)*(1-$M$2) -> 25.98 | J45: =ROUND(I45*(1+$J$2),2) -> 29.8 | K45: =ROUND(J45*H45,2) -> 125160 | L45: =K45/K2 -> 0.02528235079
A46: 11.3 | B46: COMPOSIÇÃO - 19 | C46: Próprio | D46: Serviço | E46: Fornecimento e instalação de automático de bóia superior e inferior. | F46: un. | G46: 1 | H46: 40 | I46: =VLOOKUP(B46,'Orçamento Analítico - AP - P'!B:J,9,0)*(1-$M$2) -> 65.1795 | J46: =ROUND(I46*(1+$I$2),2) -> 80.68 | K46: 3227.2 | L46: =K46/K2 -> 0.000651895194
A47: 11.4 | B47: 39257 | C47: SINAPI | D47: Insumo | E47: Cabo multipolar de cobre, flexivel, classe 4 ou 5, isolacao em hepr, cobertura em pvc-st2, antichama bwf-b, 0,6/1 kv, 3 condutores de 1,5 mm2. | F47: m | G47: 200 | H47: 8000 | I47: =VLOOKUP(B47,'Orçamento Analítico - AP - P'!B:J,9,0)*(1-$M$2) -> 7.06 | J47: =ROUND(I47*(1+$J$2),2) -> 8.1 | K47: 64800 | L47: =K47/K2 -> 0.01308961594
A48: 11.5 | B48: COTAÇÃO-001 | C48: Próprio | D48: Insumo | E48: Fornecimento de kit de bombeamento fotovoltaico, incluindo uma bomba cc de 1500w com controladora de carga externa, caixa de proteção metálica, módulos fotovoltaicos compatíveis com a geração de 2200wp além de componentes elétricos necessários para interligação dos painéis, como cabos, conectores mc4 e presilhas de fixação. | F48: un. | G48: 1 | H48: 40 | I48: =VLOOKUP(B48,'Orçamento Analítico - AP - P'!B:J,9,0)*(1-$M$2) -> 7290.01 | J48: =ROUND(I48*(1+$J$2),2) -> 8361.06 | K48: 334442.4 | L48: =K48/K2 -> 0.06755744708
A49: 12 | E49: Urbanização. | I49: Valor Unit | K49: =SUM(K50:K51) -> 169049.4 | L49: =K49/K2 -> 0.03414802039
A50: 12.1 | B50: COMPOSIÇÃO - 20 | C50: Próprio | D50: Serviço | E50: Cerca com mourões de concreto de 15x15cm, espaçados de 3m e cravados a 0,5m, escoras de 10x10cm nos cantos, e 9 fios de arame de aço ovalado 15x17. | F50: m | G50: 28 | H50: =G50*$H$2 -> 1120 | I50: =VLOOKUP(B50,'Orçamento Analítico - AP - P'!B:J,9,0)*(1-$M$2) -> 87.829652 | J50: =ROUND(I50*(1+$I$2),2) -> 108.72 | K50: =ROUND(J50*H50,2) -> 121766.4 | L50: =K50/K2 -> 0.02459684276
A51: 12.2 | B51: COMPOSIÇÃO - 21 | C51: Próprio | D51: Serviço | E51: Serviço de instalação de portão de ferro com suporte e batedor conforme projeto, incluso material. | F51: m² | G51: 1.5 | H51: =G51*$H$2 -> 60 | I51: =VLOOKUP(B51,'Orçamento Analítico - AP - P'!B:J,9,0)*(1-$M$2) -> 636.65086 | J51: =ROUND(I51*(1+$I$2),2) -> 788.05 | K51: =ROUND(J51*H51,2) -> 47283 | L51: =K51/K2 -> 0.009551177633
A52: 13 | E52: Outros serviços e insumos excepcionais. | I52: Valor Unit | K52: =SUM(K53:K60) -> 412021.38 | L52: =K52/K2 -> 0.08322842013
A53: 13.1 | B53: COMPOSIÇÃO - 22 | C53: Próprio | D53: Serviço | E53: Fornecimento e instalação do pré filtro para revestimento interno. | F53: m³ | G53: 1.212 | H53: =G53*$H$2 -> 48.48 | I53: =VLOOKUP(B53,'Orçamento Analítico - AP - P'!B:J,9,0)*(1-$M$2) -> 1655.413 | J53: =ROUND(I53*(1+$I$2),2) -> 2049.07 | K53: =ROUND(J53*H53,2) -> 99338.91 | L53: =K53/$K$2 -> 0.02006648426
A54: 13.2 | B54: COMPOSIÇÃO - 23 | C54: Próprio | D54: Serviço | E54: Execução de tamponamento conforme especificação. | F54: m³ | G54: 0.24 | H54: =G54*$H$2 -> 9.6 | I54: =VLOOKUP(B54,'Orçamento Analítico - AP - P'!B:J,9,0)*(1-$M$2) -> 952.64 | J54: =ROUND(I54*(1+$I$2),2) -> 1179.18 | K54: =ROUND(J54*H54,2) -> 11320.13 | L54: =K54/$K$2 -> 0.002286669045
A55: 13.3 | B55: COMPOSIÇÃO - 24 | C55: Próprio | D55: Serviço | E55: Fornecimento e instalação do filtro para revestimento interno ø 4 1/2". | F55: m | G55: 0.6 | H55: 24 | I55: =VLOOKUP(B55,'Orçamento Analítico - AP - P'!B:J,9,0)*(1-$M$2) -> 116.334 | J55: 144 | K55: 3456 | L55: 0.0006981128503
A56: 13.4 | B56: COMPOSIÇÃO - 25 | C56: Próprio | D56: Serviço | E56: Fornecimento e instalação do revestimento interno ø 4 1/2". | F56: m | G56: 34.8 | H56: 1392 | I56: =VLOOKUP(B56,'Orçamento Analítico - AP - P'!B:J,9,0)*(1-$M$2) -> 106.914 | J56: 132.34 | K56: 184217.28 | L56: 0.03721193588
A57: 13.5 | B57: M3929 | C57: SICRO3 | D57: Insumo | E57: Tubo em aço-carbono - e = 3,00 mm e d = 150 mm (6"). | F57: m | G57: 9 | H57: 360 | I57: =VLOOKUP(B57,'Orçamento Analítico - AP - P'!B:J,9,0)*(1-$M$2) -> 148.57 | J57: =ROUND(I57*(1+$J$2),2) -> 170.4 | K57: 61344 | L57: =K57/$K$2 -> 0.01239150309
A58: 13.6 | B58: 5108 | C58: Orse | D58: Insumo | E58: Revestimento tubo liso aço sch-40 em 8" | F58: m | G58: 6 | H58: 240 | I58: =VLOOKUP(B58,'Orçamento Analítico - AP - P'!B:J,9,0)*(1-$M$2) -> 164.55 | J58: =ROUND(I58*(1+$J$2),2) -> 188.73 | K58: 45295.2 | L58: =K58/$K$2 -> 0.009149641544
A59: 13.7 | B59: M039706073 | C59: EMBASA | D59: Insumo | E59: Filtro nold em aço galvanizado dn 6". | F59: m | G59: 0.04 | H59: 1.6 | I59: =VLOOKUP(B59,'Orçamento Analítico - AP - P'!B:J,9,0)*(1-$M$2) -> 835.86 | J59: 958.66 | K59: 1533.86 | L59: 0.0003098400974
A60: 13.8 | B60: COMPOSIÇÃO - 26 | C60: Próprio | D60: Serviço | E60: Limpeza manual , remoção de cerca, capina e instalação dos equipamentos (área do poço, painéis solares, bebedouro e reservatório). | F60: m² | G60: 70 | H60: 2800 | I60: =VLOOKUP(B60,'Orçamento Analítico - AP - P'!B:J,9,0)*(1-$M$2) -> 1.588 | J60: 1.97 | K60: 5516 | L60: =K60/K2 -> 0.001114233357

Sheet Orçamento Analítico - AP - P
C1: OBJETO: EXECUÇÃO DE SERVIÇOS DE PERFURAÇÃO E INSTALAÇÃO DE POÇOS TUBULARES EM MUNICÍPIOS LOCALIZADOS NO ESTADO DO AMAPÁ, NA ÁREA DE ATUAÇÃO DA CODEVASF
A4: PLANILHA ANALÍTICA - POÇO PARCIALMENTE REVESTIDO - AMAPÁ
A5: 1 | D5: SERVIÇOS PRELIMINARES | L5: =_xlfn.ISFORMULA(I5) -> FALSE
A6: 1.1 | B6: Código | C6: Banco | D6: Descrição | E6: Tipo | G6: Und | H6: Quant. | I6: =IF(C6="SINAPI", IF( IF(A6="Insumo", VLOOKUP(B6,'SINAPI INSUMOS'!B:F,5,0), VLOOKUP(B6,'SINAPI COMP'!B:F,4,0))=0,VLOOKUP(B6,'OUTRAS BASES'!C:D,2,0),IF(A6="Insumo", VLOOKUP(B6,'SINAPI INSUMOS'!B:F,5,0),VLOOKUP(B6,'SINAPI COMP'!B:F,4,0))), VLOOKUP(B6,'OUTRAS BASES'!C:D,2,0)) -> VALOR | J6: Total | L6: TRUE
A7: Composição | B7: COMPOSIÇÃO - 1 | C7: Próprio | D7: Administração Local da Obra - Poço Parcialmente Revestido | E7: CANT - CANTEIRO DE OBRAS | G7: un | H7: 1 | I7: =SUM(J8:J9) -> 203.7075 | J7: =H7*I7 -> 203.7075 | L7: TRUE
A8: Composição Auxiliar | B8: 12710 | C8: SBC | D8: DESPESAS GERAIS DE MANUTENCAO CANTEIRO DE OBRAS | E8: INSTALACOES PROVISORIAS | G8: MES | H8: 0.03 | I8: =IF(C8="SINAPI", IF( IF(A8="Insumo", VLOOKUP(B8,'SINAPI INSUMOS'!B:F,5,0), VLOOKUP(B8,'SINAPI COMP'!B:F,4,0))=0,VLOOKUP(B8,'OUTRAS BASES'!C:D,2,0),IF(A8="Insumo", VLOOKUP(B8,'SINAPI INSUMOS'!B:F,5,0),VLOOKUP(B8,'SINAPI COMP'!B:F,4,0))), VLOOKUP(B8,'OUTRAS BASES'!C:D,2,0)) -> 910.61 | J8: =H8*I8 -> 27.3183 | L8: TRUE
A9: Composição Auxiliar | B9: 100321 | C9: SINAPI | D9: TÉCNICO EM SEGURANÇA DO TRABALHO COM ENCARGOS COMPLEMENTARES | E9: Livro SINAPI: Cálculos e Parâmetros | G9: MES | H9: 0.03 | I9: =IF(C9="SINAPI", IF( IF(A9="Insumo", VLOOKUP(B9,'SINAPI INSUMOS'!B:F,5,0), VLOOKUP(B9,'SINAPI COMP'!B:F,4,0))=0,VLOOKUP(B9,'OUTRAS BASES'!C:D,2,0),IF(A9="Insumo", VLOOKUP(B9,'SINAPI INSUMOS'!B:F,5,0),VLOOKUP(B9,'SINAPI COMP'!B:F,4,0))), VLOOKUP(B9,'OUTRAS BASES'!C:D,2,0)) -> 5879.64 | J9: =H9*I9 -> 176.3892 | L9: TRUE
L10: FALSE
L11: FALSE
L12: FALSE
L13: FALSE
A14: 1.2 | B14: Código | C14: Banco | D14: Descrição | E14: Tipo | G14: Und | H14: Quant. | I14: Valor Unit | J14: Total | L14: FALSE
A15: Composição | B15: COMPOSIÇÃO - 2 | C15: Próprio | D15: Serviço de locação Geológica de campo com relatório hidro geológico e perfil construtivo e geológico esperado. Relatório de Viabilidade de implantação das estruturas e vistorias preliminares | E15: SERT - SERVIÇOS TÉCNICOS | G15: un | H15: 1 | I15: =SUM(J16:J18) -> 600.95 | J15: =H15*I15 -> 600.95 | L15: TRUE
A16: Composição Auxiliar | B16: 30.01.45 | C16: EMBASA | D16: GEOLOGO SENIOR | E16: 3001 | G16: hora | H16: 5 | I16: =IF(C16="SINAPI", IF( IF(A16="Insumo", VLOOKUP(B16,'SINAPI INSUMOS'!B:F,5,0), VLOOKUP(B16,'SINAPI COMP'!B:F,4,0))=0,VLOOKUP(B16,'OUTRAS BASES'!C:D,2,0),IF(A16="Insumo", VLOOKUP(B16,'SINAPI INSUMOS'!B:F,5,0),VLOOKUP(B16,'SINAPI COMP'!B:F,4,0))), VLOOKUP(B16,'OUTRAS BASES'!C:D,2,0)) -> 99.88 | J16: =H16*I16 -> 499.4 | L16: TRUE
A17: Insumo | B17: 5896 | C17: ORSE | D17: Veículo tipo sedan ou pick-up capacidade 0,6 ton h | E17: Equipamento | G17: h | H17: 5 | I17: =IF(C17="SINAPI", IF( IF(A17="Insumo", VLOOKUP(B17,'SINAPI INSUMOS'!B:F,5,0), VLOOKUP(B17,'SINAPI COMP'!B:F,4,0))=0,VLOOKUP(B17,'OUTRAS BASES'!C:D,2,0),IF(A17="Insumo", VLOOKUP(B17,'SINAPI INSUMOS'!B:F,5,0),VLOOKUP(B17,'SINAPI COMP'!B:F,4,0))), VLOOKUP(B17,'OUTRAS BASES'!C:D,2,0)) -> 8.33 | J17: =H17*I17 -> 41.65 | L17: TRUE
A18: Insumo | B18: 4222 | C18: SINAPI | D18: GASOLINA COMUM | E18: Material | G18: L | H18: 10 | I18: =IF(C18="SINAPI", IF( IF(A18="Insumo", VLOOKUP(B18,'SINAPI INSUMOS'!B:F,5,0), VLOOKUP(B18,'SINAPI COMP'!B:F,4,0))=0,VLOOKUP(B18,'OUTRAS BASES'!C:D,2,0),IF(A18="Insumo", VLOOKUP(B18,'SINAPI INSUMOS'!B:F,5,0),VLOOKUP(B18,'SINAPI COMP'!B:F,4,0))), VLOOKUP(B18,'OUTRAS BASES'!C:D,2,0)) -> 5.99 | J18: =H18*I18 -> 59.9 | L18: TRUE
L19: FALSE
L20: FALSE
L21: FALSE
L22: FALSE
A23: 1.3 | B23: Código | C23: Banco | D23: Descrição | E23: Tipo | G23: Und | H23: Quant. | I23: Valor Unit | J23: Total | L23: FALSE
A24: Composição | B24: 103689 | C24: SINAPI | D24: FORNECIMENTO E INSTALAÇÃO DE PLACA DE OBRA COM CHAPA GALVANIZADA E ESTRUTURA DE MADEIRA. AF_03/2022_PS | E24: Sinalização Vertical Viária | G24: m² | H24: 1 | I24: =IF(C24="SINAPI", IF( IF(A24="Insumo", VLOOKUP(B24,'SINAPI INSUMOS'!B:F,5,0), VLOOKUP(B24,'SINAPI COMP'!B:F,4,0))=0,VLOOKUP(B24,'OUTRAS BASES'!C:D,2,0),IF(A24="Insumo", VLOOKUP(B24,'SINAPI INSUMOS'!B:F,5,0),VLOOKUP(B24,'SINAPI COMP'!B:F,4,0))), VLOOKUP(B24,'OUTRAS BASES'!C:D,2,0)) -> 460.34 | J24: =H24*I24 -> 460.34 | K24: Utilizado o código da Composição 103689 | L24: TRUE
A25: Composição Auxiliar | B25: 102234 | C25: SINAPI | D25: PINTURA IMUNIZANTE PARA MADEIRA, 2 DEMÃOS. AF_01/2021 | E25: Pintura em Madeira | G25: m² | H25: 0.5 | I25: =IF(C25="SINAPI", IF( IF(A25="Insumo", VLOOKUP(B25,'SINAPI INSUMOS'!B:F,5,0), VLOOKUP(B25,'SINAPI COMP'!B:F,4,0))=0,VLOOKUP(B25,'OUTRAS BASES'!C:D,2,0),IF(A25="Insumo", VLOOKUP(B25,'SINAPI INSUMOS'!B:F,5,0),VLOOKUP(B25,'SINAPI COMP'!B:F,4,0))), VLOOKUP(B25,'OUTRAS BASES'!C:D,2,0)) -> 25.65 | J25: =H25*I25 -> 12.825 | L25: TRUE
A26: Composição Auxiliar | B26: 88262 | C26: SINAPI | D26: CARPINTEIRO DE FORMAS COM ENCARGOS COMPLEMENTARES | E26: Livro SINAPI: Cálculos e Parâmetros | G26: H | H26: 0.3729 | I26: =IF(C26="SINAPI", IF( IF(A26="Insumo", VLOOKUP(B26,'SINAPI INSUMOS'!B:F,5,0), VLOOKUP(B26,'SINAPI COMP'!B:F,4,0))=0,VLOOKUP(B26,'OUTRAS BASES'!C:D,2,0),IF(A26="Insumo", VLOOKUP(B26,'SINAPI INSUMOS'!B:F,5,0),VLOOKUP(B26,'SINAPI COMP'!B:F,4,0))), VLOOKUP(B26,'OUTRAS BASES'!C:D,2,0)) -> 25.79 | J26: =H26*I26 -> 9.617091 | L26: TRUE
A27: Composição Auxiliar | B27: 88316 | C27: SINAPI | D27: SERVENTE COM ENCARGOS COMPLEMENTARES | E27: Livro SINAPI: Cálculos e Parâmetros | G27: H | H27: 1.1186 | I27: =IF(C27="SINAPI", IF( IF(A27="Insumo", VLOOKUP(B27,'SINAPI INSUMOS'!B:F,5,0), VLOOKUP(B27,'SINAPI COMP'!B:F,4,0))=0,VLOOKUP(B27,'OUTRAS BASES'!C:D,2,0),IF(A27="Insumo", VLOOKUP(B27,'SINAPI INSUMOS'!B:F,5,0),VLOOKUP(B27,'SINAPI COMP'!B:F,4,0))), VLOOKUP(B27,'OUTRAS BASES'!C:D,2,0)) -> 19.85 | J27: 22.20421 | L27: TRUE
A28: Insumo | B28: 4509 | C28: SINAPI | D28: SARRAFO *2,5 X 10* CM EM PINUS, MISTA OU EQUIVALENTE DA REGIAO - BRUTA | E28: Material | G28: M | H28: 3.2083 | I28: =IF(C28="SINAPI", IF( IF(A28="Insumo", VLOOKUP(B28,'SINAPI INSUMOS'!B:F,5,0), VLOOKUP(B28,'SINAPI COMP'!B:F,4,0))=0,VLOOKUP(B28,'OUTRAS BASES'!C:D,2,0),IF(A28="Insumo", VLOOKUP(B28,'SINAPI INSUMOS'!B:F,5,0),VLOOKUP(B28,'SINAPI COMP'!B:F,4,0))), VLOOKUP(B28,'OUTRAS BASES'!C:D,2,0)) -> 4.72 | J28: =H28*I28 -> 15.143176 | L28: TRUE
A29: Insumo | B29: 4813 | C29: SINAPI | D29: PLACA DE OBRA (PARA CONSTRUCAO CIVIL) EM CHAPA GALVANIZADA *N. 22*, ADESIVADA, DE *2,4 X 1,2* M (SEM POSTES PARA FIXACAO) | E29: Material | G29: m² | H29: 1 | I29: =IF(C29="SINAPI", IF( IF(A29="Insumo", VLOOKUP(B29,'SINAPI INSUMOS'!B:F,5,0), VLOOKUP(B29,'SINAPI COMP'!B:F,4,0))=0,VLOOKUP(B29,'OUTRAS BASES'!C:D,2,0),IF(A29="Insumo", VLOOKUP(B29,'SINAPI INSUMOS'!B:F,5,0),VLOOKUP(B29,'SINAPI COMP'!B:F,4,0))), VLOOKUP(B29,'OUTRAS BASES'!C:D,2,0)) -> 400 | J29: =H29*I29 -> 400 | K29: Preço AS digitado (Atribuído São Paulo) | L29: TRUE
A30: Insumo | B30: 5065 | C30: SINAPI | D30: PREGO DE ACO POLIDO COM CABECA 10 X 10 (7/8 X 17) | E30: Material | G30: KG | H30: 0.0113 | I30: =IF(C30="SINAPI", IF( IF(A30="Insumo", VLOOKUP(B30,'SINAPI INSUMOS'!B:F,5,0), VLOOKUP(B30,'SINAPI COMP'!B:F,4,0))=0,VLOOKUP(B30,'OUTRAS BASES'!C:D,2,0),IF(A30="Insumo", VLOOKUP(B30,'SINAPI INSUMOS'!B:F,5,0),VLOOKUP(B30,'SINAPI COMP'!B:F,4,0))), VLOOKUP(B30,'OUTRAS BASES'!C:D,2,0)) -> 31.5 | J30: 0.35595 | L30: TRUE
A31: Insumo | B31: 5069 | C31: SINAPI | D31: PREGO DE ACO POLIDO COM CABECA 17 X 27 (2 1/2 X 11) | E31: Material | G31: KG | H31: 0.0132 | I31: =IF(C31="SINAPI", IF( IF(A31="Insumo", VLOOKUP(B31,'SINAPI INSUMOS'!B:F,5,0), VLOOKUP(B31,'SINAPI COMP'!B:F,4,0))=0,VLOOKUP(B31,'OUTRAS BASES'!C:D,2,0),IF(A31="Insumo", VLOOKUP(B31,'SINAPI INSUMOS'!B:F,5,0),VLOOKUP(B31,'SINAPI COMP'!B:F,4,0))), VLOOKUP(B31,'OUTRAS BASES'!C:D,2,0)) -> 16.88 | J31: 0.222816 | L31: TRUE
L32: FALSE
L33: FALSE
L34: FALSE
L35: FALSE
A36: 2 | D36: MOBILIZAÇÂO E DESMOBILIZAÇÂO EQUIPES PERFURAÇÂO E INSTALAÇÃO | J36: 4554.88 | L36: FALSE
A37: 2.1 | B37: Código | C37: Banco | D37: Descrição | E37: Tipo | G37: Und | H37: Quant. | I37: Valor Unit | J37: Total | L37: FALSE
A38: Composição | B38: COMPOSIÇÃO - 3 | C38: Próprio | D38: Transporte de Comboio Perfuração | E38: TRAN - TRANSPORTES, CARGAS E DESCARGAS | G38: km | H38: 1 | I38: =SUM(J39:J40) -> 4.7062834 | J38: =H38*I38 -> 4.7062834 | L38: TRUE
A39: Composição Auxiliar | B39: 5824 | C39: SINAPI | D39: CAMINHÃO TOCO, PBT 16.000 KG, CARGA ÚTIL MÁX. 10.685 KG, DIST. ENTRE EIXOS 4,8 M, POTÊNCIA 189 CV, INCLUSIVE CARROCERIA FIXA ABERTA DE MADEIRA P/ TRANSPORTE GERAL DE CARGA SECA, DIMEN. APROX. 2,5 X 7,00 X 0,50 M - CHP DIURNO. AF_06/2014 | E39: Custos Horários Produtivo e Improdutivo dos Equipamentos | G39: CHP | H39: 0.01666 | I39: =IF(C39="SINAPI", IF( IF(A39="Insumo", VLOOKUP(B39,'SINAPI INSUMOS'!B:F,5,0), VLOOKUP(B39,'SINAPI COMP'!B:F,4,0))=0,VLOOKUP(B39,'OUTRAS BASES'!C:D,2,0),IF(A39="Insumo", VLOOKUP(B39,'SINAPI INSUMOS'!B:F,5,0),VLOOKUP(B39,'SINAPI COMP'!B:F,4,0))), VLOOKUP(B39,'OUTRAS BASES'!C:D,2,0)) -> 222.93 | J39: =H39*I39 -> 3.7140138 | L39: TRUE
A40: Composição Auxiliar | B40: 5826 | C40: SINAPI | D40: CAMINHÃO TOCO, PBT 16.000 KG, CARGA ÚTIL MÁX. 10.685 KG, DIST. ENTRE EIXOS 4,8 M, POTÊNCIA 189 CV, INCLUSIVE CARROCERIA FIXA ABERTA DE MADEIRA P/ TRANSPORTE GERAL DE CARGA SECA, DIMEN. APROX. 2,5 X 7,00 X 0,50 M - CHI DIURNO. AF_06/2014 | E40: Custos Horários Produtivo e Improdutivo dos Equipamentos | G40: CHI | H40: 0.01666 | I40: =IF(C40="SINAPI", IF( IF(A40="Insumo", VLOOKUP(B40,'SINAPI INSUMOS'!B:F,5,0), VLOOKUP(B40,'SINAPI COMP'!B:F,4,0))=0,VLOOKUP(B40,'OUTRAS BASES'!C:D,2,0),IF(A40="Insumo", VLOOKUP(B40,'SINAPI INSUMOS'!B:F,5,0),VLOOKUP(B40,'SINAPI COMP'!B:F,4,0))), VLOOKUP(B40,'OUTRAS BASES'!C:D,2,0)) -> 59.56 | J40: =H40*I40 -> 0.9922696 | L40: TRUE
L41: FALSE
L42: FALSE
L43: FALSE
L44: FALSE
A45: 2.2 | B45: Código | C45: Banco | D45: Descrição | E45: Tipo | G45: Und | H45: Quant. | I45: Valor Unit | J45: Total | L45: FALSE
A46: Composição | B46: COMPOSIÇÃO - 4 | C46: Próprio | D46: Transporte de Comboio Instalação | E46: TRAN - TRANSPORTES, CARGAS E DESCARGAS | G46: km | H46: 1 | I46: =SUM(J47:J48) -> 5.9572828 | J46: =H46*I46 -> 5.9572828 | L46: TRUE
A47: Composição Auxiliar | B47: 5928 | C47: SINAPI | D47: GUINDAUTO HIDRÁULICO, CAPACIDADE MÁXIMA DE CARGA 6200 KG, MOMENTO MÁXIMO DE CARGA 11,7 TM, ALCANCE MÁXIMO HORIZONTAL 9,70 M, INCLUSIVE CAMINHÃO TOCO PBT 16.000 KG, POTÊNCIA DE 189 CV - CHP DIURNO. AF_06/2014 | E47: Custos Horários Produtivo e Improdutivo dos Equipamentos | G47: CHP | H47: 0.01666 | I47: =IF(C47="SINAPI", IF( IF(A47="Insumo", VLOOKUP(B47,'SINAPI INSUMOS'!B:F,5,0), VLOOKUP(B47,'SINAPI COMP'!B:F,4,0))=0,VLOOKUP(B47,'OUTRAS BASES'!C:D,2,0),IF(A47="Insumo", VLOOKUP(B47,'SINAPI INSUMOS'!B:F,5,0),VLOOKUP(B47,'SINAPI COMP'!B:F,4,0))), VLOOKUP(B47,'OUTRAS BASES'!C:D,2,0)) -> 286.55 | J47: =H47*I47 -> 4.773923 | L47: TRUE
A48: Composição Auxiliar | B48: 5930 | C48: SINAPI | D48: GUINDAUTO HIDRÁULICO, CAPACIDADE MÁXIMA DE CARGA 6200 KG, MOMENTO MÁXIMO DE CARGA 11,7 TM, ALCANCE MÁXIMO HORIZONTAL 9,70 M, INCLUSIVE CAMINHÃO TOCO PBT 16.000 KG, POTÊNCIA DE 189 CV - CHI DIURNO. AF_06/2014 | E48: Custos Horários Produtivo e Improdutivo dos Equipamentos | G48: CHI | H48: 0.01666 | I48: =IF(C48="SINAPI", IF( IF(A48="Insumo", VLOOKUP(B48,'SINAPI INSUMOS'!B:F,5,0), VLOOKUP(B48,'SINAPI COMP'!B:F,4,0))=0,VLOOKUP(B48,'OUTRAS BASES'!C:D,2,0),IF(A48="Insumo", VLOOKUP(B48,'SINAPI INSUMOS'!B:F,5,0),VLOOKUP(B48,'SINAPI COMP'!B:F,4,0))), VLOOKUP(B48,'OUTRAS BASES'!C:D,2,0)) -> 71.03 | J48: =H48*I48 -> 1.1833598 | L48: TRUE
L49: FALSE
L50: FALSE
L51: FALSE
L52: FALSE
A53: 2.3 | B53: Código | C53: Banco | D53: Descrição | E53: Tipo | G53: Und | H53: Quant. | I53: Valor Unit | J53: Total | L53: FALSE
A54: Composição | B54: COMPOSIÇÃO - 5 | C54: Próprio | D54: Transporte de Equipe Teste de Vazão | E54: TRAN - TRANSPORTES, CARGAS E DESCARGAS | G54: km | H54: 1 | I54: =SUM(J55:J56) -> 2.607113 | J54: =H54*I54 -> 2.607113 | L54: TRUE
A55: Composição Auxiliar | B55: 73467 | C55: SINAPI | D55: CAMINHÃO TOCO, PBT 14.300 KG, CARGA ÚTIL MÁX. 9.710 KG, DIST. ENTRE EIXOS 3,56 M, POTÊNCIA 185 CV, INCLUSIVE CARROCERIA FIXA ABERTA DE MADEIRA P/ TRANSPORTE GERAL DE CARGA SECA, DIMEN. APROX. 2,50 X 6,50 X 0,50 M - CHP DIURNO. AF_06/2014 | E55: Custos Horários Produtivo e Improdutivo dos Equipamentos | G55: CHP | H55: 0.0083 | I55: =IF(C55="SINAPI", IF( IF(A55="Insumo", VLOOKUP(B55,'SINAPI INSUMOS'!B:F,5,0), VLOOKUP(B55,'SINAPI COMP'!B:F,4,0))=0,VLOOKUP(B55,'OUTRAS BASES'!C:D,2,0),IF(A55="Insumo", VLOOKUP(B55,'SINAPI INSUMOS'!B:F,5,0),VLOOKUP(B55,'SINAPI COMP'!B:F,4,0))), VLOOKUP(B55,'OUTRAS BASES'!C:D,2,0)) -> 257.47 | J55: =H55*I55 -> 2.137001 | L55: TRUE
A56: Composição Auxiliar | B56: 91395 | C56: SINAPI | D56: CAMINHÃO TOCO, PBT 14.300 KG, CARGA ÚTIL MÁX. 9.710 KG, DIST. ENTRE EIXOS 3,56 M, POTÊNCIA 185 CV, INCLUSIVE CARROCERIA FIXA ABERTA DE MADEIRA P/ TRANSPORTE GERAL DE CARGA SECA, DIMEN. APROX. 2,50 X 6,50 X 0,50 M - CHI DIURNO. AF_06/2014 | E56: Custos Horários Produtivo e Improdutivo dos Equipamentos | G56: CHI | H56: 0.0083 | I56: =IF(C56="SINAPI", IF( IF(A56="Insumo", VLOOKUP(B56,'SINAPI INSUMOS'!B:F,5,0), VLOOKUP(B56,'SINAPI COMP'!B:F,4,0))=0,VLOOKUP(B56,'OUTRAS BASES'!C:D,2,0),IF(A56="Insumo", VLOOKUP(B56,'SINAPI INSUMOS'!B:F,5,0),VLOOKUP(B56,'SINAPI COMP'!B:F,4,0))), VLOOKUP(B56,'OUTRAS BASES'!C:D,2,0)) -> 56.64 | J56: =H56*I56 -> 0.470112 | L56: TRUE
L57: FALSE
L58: FALSE
L59: FALSE
L60: FALSE
A61: 2.4 | B61: Código | C61: Banco | D61: Descrição | E61: Tipo | G61: Und | H61: Quant. | I61: Valor Unit | J61: Total | L61: FALSE
A62: Insumo | B62: COTAÇÃO-015 | C62: Próprio | D62: Transporte hidroviário perfuração e instalação poços - trecho ida e volta | E62: Transporte | G62: un. | H62: 1 | I62: 5576.46 | J62: =H62*I62 -> 5576.46 | L62: FALSE
L63: FALSE
L64: FALSE
L65: FALSE
L66: FALSE
A67: 3 | D67: PERFURAÇÃO E COMPLETAÇÃO DE POÇO TUBULAR | J67: 32678.51 | L67: FALSE
A68: 3.1 | B68: Código | C68: Banco | D68: Descrição | E68: Tipo | G68: Und | H68: Quant. | I68: Valor Unit | J68: Total | L68: FALSE
A69: Insumo | B69: 5048 | C69: ORSE | D69: Perfuraçao em rocha cristalina - rocha cristalina alterada / compacta dn 6" (poço até 120m) | E69: Serviços | G69: m | H69: 1 | I69: =IF(C69="SINAPI", IF( IF(A69="Insumo", VLOOKUP(B69,'SINAPI INSUMOS'!B:F,5,0), VLOOKUP(B69,'SINAPI COMP'!B:F,4,0))=0,VLOOKUP(B69,'OUTRAS BASES'!C:D,2,0),IF(A69="Insumo", VLOOKUP(B69,'SINAPI INSUMOS'!B:F,5,0),VLOOKUP(B69,'SINAPI COMP'!B:F,4,0))), VLOOKUP(B69,'OUTRAS BASES'!C:D,2,0)) -> 125.23 | J69: =H69*I69 -> 125.23 | L69: =_xlfn.ISFORMULA(I69) -> TRUE
L70: FALSE
L71: FALSE
L72: FALSE
L73: FALSE
A74: 3.2 | B74: Código | C74: Banco | D74: Descrição | E74: Tipo | G74: Und | H74: Quant. | I74: Valor Unit | J74: Total | L74: FALSE
A75: Insumo | B75: 5057 | C75: ORSE | D75: Perfuração rocha sedimentar sedimento / Camadas inconsolidadas DN 12.1/2" - Poço até 150 m (Perfuração rotopneumática Ø 12 1/2") | E75: Serviços | G75: m | H75: 1 | I75: =IF(C75="SINAPI", IF( IF(A75="Insumo", VLOOKUP(B75,'SINAPI INSUMOS'!B:F,5,0), VLOOKUP(B75,'SINAPI COMP'!B:F,4,0))=0,VLOOKUP(B75,'OUTRAS BASES'!C:D,2,0),IF(A75="Insumo", VLOOKUP(B75,'SINAPI INSUMOS'!B:F,5,0),VLOOKUP(B75,'SINAPI COMP'!B:F,4,0))), VLOOKUP(B75,'OUTRAS BASES'!C:D,2,0)) -> 247.66 | J75: =H75*I75 -> 247.66 | L75: TRUE
L76: FALSE
L77: FALSE
L78: FALSE
L79: FALSE
A80: 3.3 | B80: Código | C80: Banco | D80: Descrição | E80: Tipo | G80: Und | H80: Quant. | I80: Valor Unit | J80: Total | L80: FALSE
A81: Composição | B81: COMPOSIÇÃO - 6 | C81: Próprio | D81: Serviço de lançamento cimentação anelar, incluso materiais. | E81: SEDI - SERVIÇOS DIVERSOS | G81: m³ | H81: 1 | I81: =J82 -> 521.34 | J81: =H81*I81 -> 521.34 | L81: TRUE
A82: Composição Auxiliar | B82: 1903 | C82: ORSE | D82: Argamassa cimento e areia traço t-1 (1:3) - 1 saco cimento 50kg / 3 padiolas areia dim. 0.35 x 0.45 x 0.23 m - Confecção mecânica e transporte | E82: Argamassas | G82: m³ | H82: 1 | I82: =IF(C82="SINAPI", IF( IF(A82="Insumo", VLOOKUP(B82,'SINAPI INSUMOS'!B:F,5,0), VLOOKUP(B82,'SINAPI COMP'!B:F,4,0))=0,VLOOKUP(B82,'OUTRAS BASES'!C:D,2,0),IF(A82="Insumo", VLOOKUP(B82,'SINAPI INSUMOS'!B:F,5,0),VLOOKUP(B82,'SINAPI COMP'!B:F,4,0))), VLOOKUP(B82,'OUTRAS BASES'!C:D,2,0)) -> 521.34 | J82: =H82*I82 -> 521.34 | L82: TRUE
L83: FALSE
L84: FALSE
L85: FALSE
L86: FALSE
A87: 3.4 | B87: Código | C87: Banco | D87: Descrição | E87: Tipo | G87: Und | H87: Quant. | I87: Valor Unit | J87: Total | L87: FALSE
A88: Insumo | B88: 9854 | C88: SINAPI | D88: TUBO PVC DE REVESTIMENTO GEOMECANICO NERVURADO STANDARD, DN = 154 MM, COMPRIMENTO = 2 M | E88: Material | G88: M | H88: 1 | I88: =IF(C88="SINAPI", IF( IF(A88="Insumo", VLOOKUP(B88,'SINAPI INSUMOS'!B:F,5,0), VLOOKUP(B88,'SINAPI COMP'!B:F,4,0))=0,VLOOKUP(B88,'OUTRAS BASES'!C:D,2,0),IF(A88="Insumo", VLOOKUP(B88,'SINAPI INSUMOS'!B:F,5,0),VLOOKUP(B88,'SINAPI COMP'!B:F,4,0))), VLOOKUP(B88,'OUTRAS BASES'!C:D,2,0)) -> 182.71 | J88: =H88*I88 -> 182.71 | K88: Preço AS digitado (Atribuído São Paulo) | L88: TRUE
L89: FALSE
L90: FALSE
L91: FALSE
L92: FALSE
A93: 4 | D93: PÓS PERFURAÇÃO | J93: 11969.64 | L93: FALSE
A94: 4.1 | B94: Código | C94: Banco | D94: Descrição | E94: Tipo | G94: Und | H94: Quant. | I94: Valor Unit | J94: Total | L94: FALSE
A95: Composição | B95: 6305 | C95: ORSE | D95: Desenvolvimento com Compressor 250psi / 750cfm | E95: Conversão InfoWOrca | G95: h | H95: 1 | I95: =IF(C95="SINAPI", IF( IF(A95="Insumo", VLOOKUP(B95,'SINAPI INSUMOS'!B:F,5,0), VLOOKUP(B95,'SINAPI COMP'!B:F,4,0))=0,VLOOKUP(B95,'OUTRAS BASES'!C:D,2,0),IF(A95="Insumo", VLOOKUP(B95,'SINAPI INSUMOS'!B:F,5,0),VLOOKUP(B95,'SINAPI COMP'!B:F,4,0))), VLOOKUP(B95,'OUTRAS BASES'!C:D,2,0)) -> 411.16 | J95: =H95*I95 -> 411.16 | L95: TRUE
A96: Insumo | B96: 5030 | C96: ORSE | D96: Desenvolvimento com compressor 250psi - 750cfm h | E96: Serviços | G96: h | H96: 1 | I96: =IF(C96="SINAPI", IF( IF(A96="Insumo", VLOOKUP(B96,'SINAPI INSUMOS'!B:F,5,0), VLOOKUP(B96,'SINAPI COMP'!B:F,4,0))=0,VLOOKUP(B96,'OUTRAS BASES'!C:D,2,0),IF(A96="Insumo", VLOOKUP(B96,'SINAPI INSUMOS'!B:F,5,0),VLOOKUP(B96,'SINAPI COMP'!B:F,4,0))), VLOOKUP(B96,'OUTRAS BASES'!C:D,2,0)) -> 411.16 | J96: =H96*I96 -> 411.16 | L96: TRUE
L97: FALSE
L98: FALSE
L99: FALSE
L100: FALSE
A101: 4.2 | B101: Código | C101: Banco | D101: Descrição | E101: Tipo | G101: Und | H101: Quant. | I101: Valor Unit | J101: Total | L101: FALSE
A102: Composição | B102: COMPOSIÇÃO - 7 | C102: Próprio | D102: Inspeção ótica em poço tubular câmera com rotação de 360º, visada lateral, com fonte própria de luz, entregue vídeo em cores e marcação de profundidades. | E102: SEES - SERVIÇOS ESPECIAIS | G102: m | H102: 1 | I102: =SUM(J103:J104) -> 9.64046 | J102: =H102*I102 -> 9.64046 | L102: TRUE
A103: Insumo | B103: H020050004 | C103: EMBASA | D103: APARELHO DE PERFILAGEM OPTICA | E103: Material | G103: M | H103: 1 | I103: =IF(C103="SINAPI", IF( IF(A103="Insumo", VLOOKUP(B103,'SINAPI INSUMOS'!B:F,5,0), VLOOKUP(B103,'SINAPI COMP'!B:F,4,0))=0,VLOOKUP(B103,'OUTRAS BASES'!C:D,2,0),IF(A103="Insumo", VLOOKUP(B103,'SINAPI INSUMOS'!B:F,5,0),VLOOKUP(B103,'SINAPI COMP'!B:F,4,0))), VLOOKUP(B103,'OUTRAS BASES'!C:D,2,0)) -> 4.4 | J103: =H103*I103 -> 4.4 | L103: TRUE
A104: Insumo | B104: B590000022 | C104: EMBASA | D104: TECNICO MEDIO | E104: Mão de Obra | G104: H | H104: 0.0835 | I104: =IF(C104="SINAPI", IF( IF(A104="Insumo", VLOOKUP(B104,'SINAPI INSUMOS'!B:F,5,0), VLOOKUP(B104,'SINAPI COMP'!B:F,4,0))=0,VLOOKUP(B104,'OUTRAS BASES'!C:D,2,0),IF(A104="Insumo", VLOOKUP(B104,'SINAPI INSUMOS'!B:F,5,0),VLOOKUP(B104,'SINAPI COMP'!B:F,4,0))), VLOOKUP(B104,'OUTRAS BASES'!C:D,2,0)) -> 62.76 | J104: =H104*I104 -> 5.24046 | L104: TRUE
L105: FALSE
L106: FALSE
L107: FALSE
L108: FALSE
A109: 4.3 | B109: Código | C109: Banco | D109: Descrição | E109: Tipo | G109: Und | H109: Quant. | I109: Valor Unit | J109: Total | L109: FALSE
A110: Composição | B110: COMPOSIÇÃO - 8 | C110: Próprio | D110: Serviço de coleta e Análise Físico-Química e Bacteriológica | E110: SEDI - SERVIÇOS DIVERSOS | G110: un | H110: 1 | I110: =SUM(J111:J112) -> 621.19 | J110: =H110*I110 -> 621.19 | L110: TRUE
A111: Composição Auxiliar | B111: 6312 | C111: ORSE | D111: Análise Físico-química da Água | E111: Conversão InfoWOrca | G111: un | H111: 1 | I111: =IF(C111="SINAPI", IF( IF(A111="Insumo", VLOOKUP(B111,'SINAPI INSUMOS'!B:F,5,0), VLOOKUP(B111,'SINAPI COMP'!B:F,4,0))=0,VLOOKUP(B111,'OUTRAS BASES'!C:D,2,0),IF(A111="Insumo", VLOOKUP(B111,'SINAPI INSUMOS'!B:F,5,0),VLOOKUP(B111,'SINAPI COMP'!B:F,4,0))), VLOOKUP(B111,'OUTRAS BASES'!C:D,2,0)) -> 565.21 | J111: =H111*I111 -> 565.21 | L111: TRUE
A112: Composição Auxiliar | B112: 6313 | C112: ORSE | D112: Análise Bacteriológica da Água | E112: Conversão InfoWOrca | G112: un | H112: 1 | I112: =IF(C112="SINAPI", IF( IF(A112="Insumo", VLOOKUP(B112,'SINAPI INSUMOS'!B:F,5,0), VLOOKUP(B112,'SINAPI COMP'!B:F,4,0))=0,VLOOKUP(B112,'OUTRAS BASES'!C:D,2,0),IF(A112="Insumo", VLOOKUP(B112,'SINAPI INSUMOS'!B:F,5,0),VLOOKUP(B112,'SINAPI COMP'!B:F,4,0))), VLOOKUP(B112,'OUTRAS BASES'!C:D,2,0)) -> 55.98 | J112: =H112*I112 -> 55.98 | L112: TRUE
L113: FALSE
L114: FALSE
L115: FALSE
L116: FALSE
A117: 4.4 | B117: Código | C117: Banco | D117: Descrição | E117: Tipo | G117: Und | H117: Quant. | I117: Valor Unit | J117: Total | L117: FALSE
A118: Composição | B118: 24.80.22 | C118: EMBASA | D118: REVISADA) DESENVOLVIMENTO OU TESTE COM BOMBA SUBMERSA - UEB1 NO SEDIMENTO COM VAZAO < 60M3 (Ensaio de bombeamento poço tubular incluso materiais e grupo gerador) | E118: 2480 | G118: H | H118: 1 | I118: =IF(C118="SINAPI", IF( IF(A118="Insumo", VLOOKUP(B118,'SINAPI INSUMOS'!B:F,5,0), VLOOKUP(B118,'SINAPI COMP'!B:F,4,0))=0,VLOOKUP(B118,'OUTRAS BASES'!C:D,2,0),IF(A118="Insumo", VLOOKUP(B118,'SINAPI INSUMOS'!B:F,5,0),VLOOKUP(B118,'SINAPI COMP'!B:F,4,0))), VLOOKUP(B118,'OUTRAS BASES'!C:D,2,0)) -> 263.27 | J118: =H118*I118 -> 263.27 | L118: TRUE
A119: Composição Auxiliar | B119: 24.00.15 | C119: EMBASA | D119: EQUIPE (3 PROFISSIONAIS CAMPO) - BOMBEIO | E119: 2400 | G119: H | H119: 1 | I119: =IF(C119="SINAPI", IF( IF(A119="Insumo", VLOOKUP(B119,'SINAPI INSUMOS'!B:F,5,0), VLOOKUP(B119,'SINAPI COMP'!B:F,4,0))=0,VLOOKUP(B119,'OUTRAS BASES'!C:D,2,0),IF(A119="Insumo", VLOOKUP(B119,'SINAPI INSUMOS'!B:F,5,0),VLOOKUP(B119,'SINAPI COMP'!B:F,4,0))), VLOOKUP(B119,'OUTRAS BASES'!C:D,2,0)) -> 198.35 | J119: =H119*I119 -> 198.35 | L119: TRUE
A120: Insumo | B120: H020050001 | C120: EMBASA | D120: UNIDADE DE ENSAIO E BOMBEAMENTO - UEB1 ATE 150M3 NO SEDIMENTO | E120: Material | G120: H | H120: 1 | I120: =IF(C120="SINAPI", IF( IF(A120="Insumo", VLOOKUP(B120,'SINAPI INSUMOS'!B:F,5,0), VLOOKUP(B120,'SINAPI COMP'!B:F,4,0))=0,VLOOKUP(B120,'OUTRAS BASES'!C:D,2,0),IF(A120="Insumo", VLOOKUP(B120,'SINAPI INSUMOS'!B:F,5,0),VLOOKUP(B120,'SINAPI COMP'!B:F,4,0))), VLOOKUP(B120,'OUTRAS BASES'!C:D,2,0)) -> 64.92 | J120: =H120*I120 -> 64.92 | L120: TRUE
L121: FALSE
L122: FALSE
L123: FALSE
L124: FALSE
A125: 4.5 | B125: Código | C125: Banco | D125: Descrição | E125: Tipo | G125: Und | H125: Quant. | I125: Valor Unit | J125: Total | L125: FALSE
A126: Composição | B126: COMPOSIÇÃO - 9 | C126: Próprio | D126: Serviço de instalação de laje sanitária com dimensões (1,5x1,5x0,3) metros , incluso material. | E126: SEDI - SERVIÇOS DIVERSOS | G126: un | H126: 1 | I126: =SUM(J127:J130) -> 776.961 | J126: =H126*I126 -> 776.961 | L126: TRUE
A127: Composição Auxiliar | B127: 92522 | C127: SINAPI | D127: MONTAGEM E DESMONTAGEM DE FÔRMA DE LAJE MACIÇA, PÉ-DIREITO SIMPLES, EM CHAPA DE MADEIRA COMPENSADA RESINADA, 8 UTILIZAÇÕES. AF_09/2020 | E127: Fôrmas para Estruturas de Concreto Armado | G127: m² | H127: 1.8 | I127: =IF(C127="SINAPI", IF( IF(A127="Insumo", VLOOKUP(B127,'SINAPI INSUMOS'!B:F,5,0), VLOOKUP(B127,'SINAPI COMP'!B:F,4,0))=0,VLOOKUP(B127,'OUTRAS BASES'!C:D,2,0),IF(A127="Insumo", VLOOKUP(B127,'SINAPI INSUMOS'!B:F,5,0),VLOOKUP(B127,'SINAPI COMP'!B:F,4,0))), VLOOKUP(B127,'OUTRAS BASES'!C:D,2,0)) -> 44.25 | J127: =H127*I127 -> 79.65 | L127: TRUE
A128: Composição Auxiliar | B128: 93358 | C128: SINAPI | D128: ESCAVAÇÃO MANUAL DE VALA COM PROFUNDIDADE MENOR OU IGUAL A 1,30 M. AF_02/2021 | E128: Escavação de Valas | G128: m³ | H128: 0.225 | I128: =IF(C128="SINAPI", IF( IF(A128="Insumo", VLOOKUP(B128,'SINAPI INSUMOS'!B:F,5,0), VLOOKUP(B128,'SINAPI COMP'!B:F,4,0))=0,VLOOKUP(B128,'OUTRAS BASES'!C:D,2,0),IF(A128="Insumo", VLOOKUP(B128,'SINAPI INSUMOS'!B:F,5,0),VLOOKUP(B128,'SINAPI COMP'!B:F,4,0))), VLOOKUP(B128,'OUTRAS BASES'!C:D,2,0)) -> 78.52 | J128: =H128*I128 -> 17.667 | L128: TRUE
A129: Composição Auxiliar | B129: 94975 | C129: SINAPI | D129: CONCRETO FCK = 15MPA, TRAÇO 1:3,4:3,5 (EM MASSA SECA DE CIMENTO/ AREIA MÉDIA/ BRITA 1) - PREPARO MANUAL. AF_05/2021 | E129: Produção de Concreto | G129: m³ | H129: 0.675 | I129: =IF(C129="SINAPI", IF( IF(A129="Insumo", VLOOKUP(B129,'SINAPI INSUMOS'!B:F,5,0), VLOOKUP(B129,'SINAPI COMP'!B:F,4,0))=0,VLOOKUP(B129,'OUTRAS BASES'!C:D,2,0),IF(A129="Insumo", VLOOKUP(B129,'SINAPI INSUMOS'!B:F,5,0),VLOOKUP(B129,'SINAPI COMP'!B:F,4,0))), VLOOKUP(B129,'OUTRAS BASES'!C:D,2,0)) -> 730.29 | J129: 492.94575 | L129: TRUE
A130: Composição Auxiliar | B130: 103670 | C130: SINAPI | D130: LANÇAMENTO COM USO DE BALDES, ADENSAMENTO E ACABAMENTO DE CONCRETO EM ESTRUTURAS. AF_02/2022 | E130: Concretagem para Estruturas de Concreto Armado | G130: m³ | H130: 0.675 | I130: =IF(C130="SINAPI", IF( IF(A130="Insumo", VLOOKUP(B130,'SINAPI INSUMOS'!B:F,5,0), VLOOKUP(B130,'SINAPI COMP'!B:F,4,0))=0,VLOOKUP(B130,'OUTRAS BASES'!C:D,2,0),IF(A130="Insumo", VLOOKUP(B130,'SINAPI INSUMOS'!B:F,5,0),VLOOKUP(B130,'SINAPI COMP'!B:F,4,0))), VLOOKUP(B130,'OUTRAS BASES'!C:D,2,0)) -> 276.59 | J130: 186.69825 | L130: TRUE
L131: FALSE
L132: FALSE
L133: =_xlfn.ISFORMULA(I133) -> FALSE
L134: FALSE
A135: 5 | D135: RESERVAÇÃO | J135: 28765.69 | L135: FALSE
A136: 5.1 | B136: Código | C136: Banco | D136: Descrição | E136: Tipo | G136: Und | H136: Quant. | I136: Valor Unit | J136: Total | L136: FALSE
A137: Composição | B137: COMPOSIÇÃO - 10 | C137: Próprio | D137: Fornecimento e instalação de reservatório e base elevada 10 m³ | E137: ASTU - ASSENTAMENTO DE TUBOS E PECAS | G137: un | H137: 1 | I137: =SUM(J138:J159) -> 20417.17379 | J137: =H137*I137 -> 20417.17379 | L137: TRUE
A138: Composição Auxiliar | B138: 92759 | C138: SINAPI | D138: ARMAÇÃO DE PILAR OU VIGA DE ESTRUTURA CONVENCIONAL DE CONCRETO ARMADO UTILIZANDO AÇO CA-60 DE 5,0 MM - MONTAGEM. AF_06/2022 | E138: Armação para Estruturas de Concreto Armado | G138: KG | H138: 17.2 | I138: =IF(C138="SINAPI", IF( IF(A138="Insumo", VLOOKUP(B138,'SINAPI INSUMOS'!B:F,5,0), VLOOKUP(B138,'SINAPI COMP'!B:F,4,0))=0,VLOOKUP(B138,'OUTRAS BASES'!C:D,2,0),IF(A138="Insumo", VLOOKUP(B138,'SINAPI INSUMOS'!B:F,5,0),VLOOKUP(B138,'SINAPI COMP'!B:F,4,0))), VLOOKUP(B138,'OUTRAS BASES'!C:D,2,0)) -> 15.79 | J138: =H138*I138 -> 271.588 | L138: TRUE
A139: Composição Auxiliar | B139: 92761 | C139: SINAPI | D139: ARMAÇÃO DE PILAR OU VIGA DE ESTRUTURA CONVENCIONAL DE CONCRETO ARMADO UTILIZANDO AÇO CA-50 DE 8,0 MM - MONTAGEM. AF_06/2022 | E139: Armação para Estruturas de Concreto Armado | G139: KG | H139: 30.4 | I139: =IF(C139="SINAPI", IF( IF(A139="Insumo", VLOOKUP(B139,'SINAPI INSUMOS'!B:F,5,0), VLOOKUP(B139,'SINAPI COMP'!B:F,4,0))=0,VLOOKUP(B139,'OUTRAS BASES'!C:D,2,0),IF(A139="Insumo", VLOOKUP(B139,'SINAPI INSUMOS'!B:F,5,0),VLOOKUP(B139,'SINAPI COMP'!B:F,4,0))), VLOOKUP(B139,'OUTRAS BASES'!C:D,2,0)) -> 14.58 | J139: =H139*I139 -> 443.232 | L139: TRUE
A140: Composição Auxiliar | B140: 92768 | C140: SINAPI | D140: ARMAÇÃO DE LAJE DE ESTRUTURA CONVENCIONAL DE CONCRETO ARMADO UTILIZANDO AÇO CA-60 DE 5,0 MM - MONTAGEM. AF_06/2022 | E140: Armação para Estruturas de Concreto Armado | G140: KG | H140: 11.9 | I140: =IF(C140="SINAPI", IF( IF(A140="Insumo", VLOOKUP(B140,'SINAPI INSUMOS'!B:F,5,0), VLOOKUP(B140,'SINAPI COMP'!B:F,4,0))=0,VLOOKUP(B140,'OUTRAS BASES'!C:D,2,0),IF(A140="Insumo", VLOOKUP(B140,'SINAPI INSUMOS'!B:F,5,0),VLOOKUP(B140,'SINAPI COMP'!B:F,4,0))), VLOOKUP(B140,'OUTRAS BASES'!C:D,2,0)) -> 15.29 | J140: 181.951 | L140: TRUE
A141: Composição Auxiliar | B141: 92770 | C141: SINAPI | D141: ARMAÇÃO DE LAJE DE ESTRUTURA CONVENCIONAL DE CONCRETO ARMADO UTILIZANDO AÇO CA-50 DE 8,0 MM - MONTAGEM. AF_06/2022 | E141: Armação para Estruturas de Concreto Armado | G141: KG | H141: 48 | I141: =IF(C141="SINAPI", IF( IF(A141="Insumo", VLOOKUP(B141,'SINAPI INSUMOS'!B:F,5,0), VLOOKUP(B141,'SINAPI COMP'!B:F,4,0))=0,VLOOKUP(B141,'OUTRAS BASES'!C:D,2,0),IF(A141="Insumo", VLOOKUP(B141,'SINAPI INSUMOS'!B:F,5,0),VLOOKUP(B141,'SINAPI COMP'!B:F,4,0))), VLOOKUP(B141,'OUTRAS BASES'!C:D,2,0)) -> 14.11 | J141: 677.28 | L141: TRUE
A142: Composição Auxiliar | B142: 93358 | C142: SINAPI | D142: ESCAVAÇÃO MANUAL DE VALA COM PROFUNDIDADE MENOR OU IGUAL A 1,30 M. AF_02/2021 | E142: Escavação de Valas | G142: m³ | H142: 5.2 | I142: =IF(C142="SINAPI", IF( IF(A142="Insumo", VLOOKUP(B142,'SINAPI INSUMOS'!B:F,5,0), VLOOKUP(B142,'SINAPI COMP'!B:F,4,0))=0,VLOOKUP(B142,'OUTRAS BASES'!C:D,2,0),IF(A142="Insumo", VLOOKUP(B142,'SINAPI INSUMOS'!B:F,5,0),VLOOKUP(B142,'SINAPI COMP'!B:F,4,0))), VLOOKUP(B142,'OUTRAS BASES'!C:D,2,0)) -> 78.52 | J142: 408.304 | L142: TRUE
A143: Composição Auxiliar | B143: 92763 | C143: SINAPI | D143: ARMAÇÃO DE PILAR OU VIGA DE ESTRUTURA CONVENCIONAL DE CONCRETO ARMADO UTILIZANDO AÇO CA-50 DE 12,5 MM - MONTAGEM. AF_06/2022 | E143: Armação para Estruturas de Concreto Armado | G143: KG | H143: 118.4 | I143: =IF(C143="SINAPI", IF( IF(A143="Insumo", VLOOKUP(B143,'SINAPI INSUMOS'!B:F,5,0), VLOOKUP(B143,'SINAPI COMP'!B:F,4,0))=0,VLOOKUP(B143,'OUTRAS BASES'!C:D,2,0),IF(A143="Insumo", VLOOKUP(B143,'SINAPI INSUMOS'!B:F,5,0),VLOOKUP(B143,'SINAPI COMP'!B:F,4,0))), VLOOKUP(B143,'OUTRAS BASES'!C:D,2,0)) -> 11.12 | J143: 1316.608 | L143: TRUE
A144: Composição Auxiliar | B144: 94970 | C144: SINAPI | D144: CONCRETO FCK = 20MPA, TRAÇO 1:2,7:3 (EM MASSA SECA DE CIMENTO/ AREIA MÉDIA/ BRITA 1) - PREPARO MECÂNICO COM BETONEIRA 600 L. AF_05/2021 | E144: Produção de Concreto | G144: m³ | H144: 4.89 | I144: =IF(C144="SINAPI", IF( IF(A144="Insumo", VLOOKUP(B144,'SINAPI INSUMOS'!B:F,5,0), VLOOKUP(B144,'SINAPI COMP'!B:F,4,0))=0,VLOOKUP(B144,'OUTRAS BASES'!C:D,2,0),IF(A144="Insumo", VLOOKUP(B144,'SINAPI INSUMOS'!B:F,5,0),VLOOKUP(B144,'SINAPI COMP'!B:F,4,0))), VLOOKUP(B144,'OUTRAS BASES'!C:D,2,0)) -> 722.71 | J144: 3534.0519 | K144: Composição teve seus insumos atualizados, presente na aba "Composições" | L144: TRUE
A145: Composição Auxiliar | B145: 103670 | C145: SINAPI | D145: LANÇAMENTO COM USO DE BALDES, ADENSAMENTO E ACABAMENTO DE CONCRETO EM ESTRUTURAS. AF_02/2022 | E145: Concretagem para Estruturas de Concreto Armado | G145: m³ | H145: 6.85 | I145: =IF(C145="SINAPI", IF( IF(A145="Insumo", VLOOKUP(B145,'SINAPI INSUMOS'!B:F,5,0), VLOOKUP(B145,'SINAPI COMP'!B:F,4,0))=0,VLOOKUP(B145,'OUTRAS BASES'!C:D,2,0),IF(A145="Insumo", VLOOKUP(B145,'SINAPI INSUMOS'!B:F,5,0),VLOOKUP(B145,'SINAPI COMP'!B:F,4,0))), VLOOKUP(B145,'OUTRAS BASES'!C:D,2,0)) -> 276.59 | J145: 1894.6415 | L145: TRUE
A146: Composição Auxiliar | B146: 84651 | C146: SINAPI | D146: PINTURA COM TINTA IMPERMEAVEL MINERAL EM PO, DUAS DEMAOS | E146: PINT - PINTURAS | G146: m² | H146: 28.27 | I146: =IF(C146="SINAPI", IF( IF(A146="Insumo", VLOOKUP(B146,'SINAPI INSUMOS'!B:F,5,0), VLOOKUP(B146,'SINAPI COMP'!B:F,4,0))=0,VLOOKUP(B146,'OUTRAS BASES'!C:D,2,0),IF(A146="Insumo", VLOOKUP(B146,'SINAPI INSUMOS'!B:F,5,0),VLOOKUP(B146,'SINAPI COMP'!B:F,4,0))), VLOOKUP(B146,'OUTRAS BASES'!C:D,2,0)) -> 13.0385 | J146: 368.598395 | L146: TRUE
A147: Composição Auxiliar | B147: 90776 | C147: SINAPI | D147: ENCARREGADO GERAL COM ENCARGOS COMPLEMENTARES | E147: Livro SINAPI: Cálculos e Parâmetros | G147: H | H147: 1 | I147: =IF(C147="SINAPI", IF( IF(A147="Insumo", VLOOKUP(B147,'SINAPI INSUMOS'!B:F,5,0), VLOOKUP(B147,'SINAPI COMP'!B:F,4,0))=0,VLOOKUP(B147,'OUTRAS BASES'!C:D,2,0),IF(A147="Insumo", VLOOKUP(B147,'SINAPI INSUMOS'!B:F,5,0),VLOOKUP(B147,'SINAPI COMP'!B:F,4,0))), VLOOKUP(B147,'OUTRAS BASES'!C:D,2,0)) -> 27.91 | J147: 27.91 | L147: TRUE
A148: Composição Auxiliar | B148: 102482 | C148: SINAPI | D148: CONCRETO FCK = 25MPA, TRAÇO 1:2,2:2,5 (EM MASSA SECA DE CIMENTO/ AREIA MÉDIA/ SEIXO ROLADO) - PREPARO MECÂNICO COM BETONEIRA 600 L. AF_05/2021 | E148: Produção de Concreto | G148: m³ | H148: 1.96 | I148: =IF(C148="SINAPI", IF( IF(A148="Insumo", VLOOKUP(B148,'SINAPI INSUMOS'!B:F,5,0), VLOOKUP(B148,'SINAPI COMP'!B:F,4,0))=0,VLOOKUP(B148,'OUTRAS BASES'!C:D,2,0),IF(A148="Insumo", VLOOKUP(B148,'SINAPI INSUMOS'!B:F,5,0),VLOOKUP(B148,'SINAPI COMP'!B:F,4,0))), VLOOKUP(B148,'OUTRAS BASES'!C:D,2,0)) -> 738.33 | J148: 1447.1268 | L148: TRUE
A149: Composição Auxiliar | B149: 92263 | C149: SINAPI | D149: FABRICAÇÃO DE FÔRMA PARA PILARES E ESTRUTURAS SIMILARES, EM CHAPA DE MADEIRA COMPENSADA RESINADA, E = 17 MM. AF_09/2020 | E149: Fôrmas para Estruturas de Concreto Armado | G149: m² | H149: 25.19 | I149: =IF(C149="SINAPI", IF( IF(A149="Insumo", VLOOKUP(B149,'SINAPI INSUMOS'!B:F,5,0), VLOOKUP(B149,'SINAPI COMP'!B:F,4,0))=0,VLOOKUP(B149,'OUTRAS BASES'!C:D,2,0),IF(A149="Insumo", VLOOKUP(B149,'SINAPI INSUMOS'!B:F,5,0),VLOOKUP(B149,'SINAPI COMP'!B:F,4,0))), VLOOKUP(B149,'OUTRAS BASES'!C:D,2,0)) -> 186 | J149: 4685.34 | L149: TRUE
A150: Composição Auxiliar | B150: 88267 | C150: SINAPI | D150: ENCANADOR OU BOMBEIRO HIDRÁULICO COM ENCARGOS COMPLEMENTARES | E150: Livro SINAPI: Cálculos e Parâmetros | G150: H | H150: 4 | I150: =IF(C150="SINAPI", IF( IF(A150="Insumo", VLOOKUP(B150,'SINAPI INSUMOS'!B:F,5,0), VLOOKUP(B150,'SINAPI COMP'!B:F,4,0))=0,VLOOKUP(B150,'OUTRAS BASES'!C:D,2,0),IF(A150="Insumo", VLOOKUP(B150,'SINAPI INSUMOS'!B:F,5,0),VLOOKUP(B150,'SINAPI COMP'!B:F,4,0))), VLOOKUP(B150,'OUTRAS BASES'!C:D,2,0)) -> 25.5 | J150: 102 | L150: TRUE
A151: Composição Auxiliar | B151: 88248 | C151: SINAPI | D151: AUXILIAR DE ENCANADOR OU BOMBEIRO HIDRÁULICO COM ENCARGOS COMPLEMENTARES | E151: Livro SINAPI: Cálculos e Parâmetros | G151: H | H151: 4 | I151: =IF(C151="SINAPI", IF( IF(A151="Insumo", VLOOKUP(B151,'SINAPI INSUMOS'!B:F,5,0), VLOOKUP(B151,'SINAPI COMP'!B:F,4,0))=0,VLOOKUP(B151,'OUTRAS BASES'!C:D,2,0),IF(A151="Insumo", VLOOKUP(B151,'SINAPI INSUMOS'!B:F,5,0),VLOOKUP(B151,'SINAPI COMP'!B:F,4,0))), VLOOKUP(B151,'OUTRAS BASES'!C:D,2,0)) -> 21.35 | J151: 85.4 | L151: TRUE
A152: Insumo | B152: 3146 | C152: SINAPI | D152: FITA VEDA ROSCA EM ROLOS DE 18 MM X 10 M (L X C) | E152: Material | G152: UN | H152: 0.18 | I152: =IF(C152="SINAPI", IF( IF(A152="Insumo", VLOOKUP(B152,'SINAPI INSUMOS'!B:F,5,0), VLOOKUP(B152,'SINAPI COMP'!B:F,4,0))=0,VLOOKUP(B152,'OUTRAS BASES'!C:D,2,0),IF(A152="Insumo", VLOOKUP(B152,'SINAPI INSUMOS'!B:F,5,0),VLOOKUP(B152,'SINAPI COMP'!B:F,4,0))), VLOOKUP(B152,'OUTRAS BASES'!C:D,2,0)) -> 4.49 | J152: =H152*I152 -> 0.8082 | L152: TRUE
A153: Insumo | B153: 37106 | C153: SINAPI | D153: CAIXA D'AGUA / RESERVATORIO EM POLIESTER REFORCADO COM FIBRA DE VIDRO, 10000 LITROS, COM TAMPA | E153: Material | G153: UN | H153: 1 | I153: =IF(C153="SINAPI", IF( IF(A153="Insumo", VLOOKUP(B153,'SINAPI INSUMOS'!B:F,5,0), VLOOKUP(B153,'SINAPI COMP'!B:F,4,0))=0,VLOOKUP(B153,'OUTRAS BASES'!C:D,2,0),IF(A153="Insumo", VLOOKUP(B153,'SINAPI INSUMOS'!B:F,5,0),VLOOKUP(B153,'SINAPI COMP'!B:F,4,0))), VLOOKUP(B153,'OUTRAS BASES'!C:D,2,0)) -> 4724.2 | J153: =H153*I153 -> 4724.2 | L153: TRUE
A154: Insumo | B154: 14073 | C154: ORSE | D154: CURVA 90º PVC D=50MM, LINHA IRRIGA-LF, TIGRE OU SIMILAR | E154: Material | G154: UM | H154: 3 | I154: =IF(C154="SINAPI", IF( IF(A154="Insumo", VLOOKUP(B154,'SINAPI INSUMOS'!B:F,5,0), VLOOKUP(B154,'SINAPI COMP'!B:F,4,0))=0,VLOOKUP(B154,'OUTRAS BASES'!C:D,2,0),IF(A154="Insumo", VLOOKUP(B154,'SINAPI INSUMOS'!B:F,5,0),VLOOKUP(B154,'SINAPI COMP'!B:F,4,0))), VLOOKUP(B154,'OUTRAS BASES'!C:D,2,0)) -> 8.1 | J154: 24.3 | L154: TRUE
A155: Insumo | B155: 14068 | C155: ORSE | D155: Tubo PVC para irrigação LF PN 80 Ø 50mm, linha Irriga-LF, Tigre ou similar | E155: Material | G155: UN | H155: 15.2 | I155: =IF(C155="SINAPI", IF( IF(A155="Insumo", VLOOKUP(B155,'SINAPI INSUMOS'!B:F,5,0), VLOOKUP(B155,'SINAPI COMP'!B:F,4,0))=0,VLOOKUP(B155,'OUTRAS BASES'!C:D,2,0),IF(A155="Insumo", VLOOKUP(B155,'SINAPI INSUMOS'!B:F,5,0),VLOOKUP(B155,'SINAPI COMP'!B:F,4,0))), VLOOKUP(B155,'OUTRAS BASES'!C:D,2,0)) -> 9.27 | J155: 140.904 | L155: TRUE
A156: Insumo | B156: 1434 | C156: ORSE | D156: Luva pvc rigido roscavel d=2 " | E156: Material | G156: UN | H156: 1 | I156: =IF(C156="SINAPI", IF( IF(A156="Insumo", VLOOKUP(B156,'SINAPI INSUMOS'!B:F,5,0), VLOOKUP(B156,'SINAPI COMP'!B:F,4,0))=0,VLOOKUP(B156,'OUTRAS BASES'!C:D,2,0),IF(A156="Insumo", VLOOKUP(B156,'SINAPI INSUMOS'!B:F,5,0),VLOOKUP(B156,'SINAPI COMP'!B:F,4,0))), VLOOKUP(B156,'OUTRAS BASES'!C:D,2,0)) -> 28.58 | J156: 28.58 | L156: TRUE
A157: Insumo | B157: 90 | C157: ORSE | D157: Adaptador curto, pvc rigido soldavel, c/ bolsa e rosca p/ registro, d= 50mm x 1 1/2” | E157: Material | G157: UN | H157: 1 | I157: =IF(C157="SINAPI", IF( IF(A157="Insumo", VLOOKUP(B157,'SINAPI INSUMOS'!B:F,5,0), VLOOKUP(B157,'SINAPI COMP'!B:F,4,0))=0,VLOOKUP(B157,'OUTRAS BASES'!C:D,2,0),IF(A157="Insumo", VLOOKUP(B157,'SINAPI INSUMOS'!B:F,5,0),VLOOKUP(B157,'SINAPI COMP'!B:F,4,0))), VLOOKUP(B157,'OUTRAS BASES'!C:D,2,0)) -> 4.2 | J157: 4.2 | L157: TRUE
A158: Insumo | B158: 99 | C158: SINAPI | D158: ADAPTADOR PVC SOLDAVEL, COM FLANGE E ANEL DE VEDACAO, 50 MM X 1 1/2", PARA CAIXA D'AGUA | E158: Material | G158: UN | H158: 2 | I158: =IF(C158="SINAPI", IF( IF(A158="Insumo", VLOOKUP(B158,'SINAPI INSUMOS'!B:F,5,0), VLOOKUP(B158,'SINAPI COMP'!B:F,4,0))=0,VLOOKUP(B158,'OUTRAS BASES'!C:D,2,0),IF(A158="Insumo", VLOOKUP(B158,'SINAPI INSUMOS'!B:F,5,0),VLOOKUP(B158,'SINAPI COMP'!B:F,4,0))), VLOOKUP(B158,'OUTRAS BASES'!C:D,2,0)) -> 23.05 | J158: 46.1 | L158: TRUE
A159: Insumo | B159: 119 | C159: SINAPI | D159: ADESIVO PLASTICO PARA PVC, BISNAGA COM 75 GR | E159: Material | G159: UN | H159: 0.45 | I159: =IF(C159="SINAPI", IF( IF(A159="Insumo", VLOOKUP(B159,'SINAPI INSUMOS'!B:F,5,0), VLOOKUP(B159,'SINAPI COMP'!B:F,4,0))=0,VLOOKUP(B159,'OUTRAS BASES'!C:D,2,0),IF(A159="Insumo", VLOOKUP(B159,'SINAPI INSUMOS'!B:F,5,0),VLOOKUP(B159,'SINAPI COMP'!B:F,4,0))), VLOOKUP(B159,'OUTRAS BASES'!C:D,2,0)) -> 9 | J159: 4.05 | L159: TRUE
L160: FALSE
L161: FALSE
L162: FALSE
L163: FALSE
A164: 5.2 | B164: Código | C164: Banco | D164: Descrição | E164: Tipo | G164: Und | H164: Quant. | I164: Valor Unit | J164: Total | L164: FALSE
A165: Composição | B165: COMPOSIÇÃO - 11 | C165: Próprio | D165: Fornecimento e execução de reservatório apoiado de 5 m³ | E165: SEDI - SERVIÇOS DIVERSOS | G165: un | H165: 1 | I165: =SUM(J166:J175) -> 8537.316425 | J165: =H165*I165 -> 8537.316425 | L165: TRUE
A166: Composição Auxiliar | B166: 88309 | C166: SINAPI | D166: PEDREIRO COM ENCARGOS COMPLEMENTARES | E166: Livro SINAPI: Cálculos e Parâmetros | G166: H | H166: 3 | I166: =IF(C166="SINAPI", IF( IF(A166="Insumo", VLOOKUP(B166,'SINAPI INSUMOS'!B:F,5,0), VLOOKUP(B166,'SINAPI COMP'!B:F,4,0))=0,VLOOKUP(B166,'OUTRAS BASES'!C:D,2,0),IF(A166="Insumo", VLOOKUP(B166,'SINAPI INSUMOS'!B:F,5,0),VLOOKUP(B166,'SINAPI COMP'!B:F,4,0))), VLOOKUP(B166,'OUTRAS BASES'!C:D,2,0)) -> 26.21 | J166: =H166*I166 -> 78.63 | L166: TRUE
A167: Composição Auxiliar | B167: 88316 | C167: SINAPI | D167: SERVENTE COM ENCARGOS COMPLEMENTARES | E167: Livro SINAPI: Cálculos e Parâmetros | G167: H | H167: 3 | I167: =IF(C167="SINAPI", IF( IF(A167="Insumo", VLOOKUP(B167,'SINAPI INSUMOS'!B:F,5,0), VLOOKUP(B167,'SINAPI COMP'!B:F,4,0))=0,VLOOKUP(B167,'OUTRAS BASES'!C:D,2,0),IF(A167="Insumo", VLOOKUP(B167,'SINAPI INSUMOS'!B:F,5,0),VLOOKUP(B167,'SINAPI COMP'!B:F,4,0))), VLOOKUP(B167,'OUTRAS BASES'!C:D,2,0)) -> 19.85 | J167: =H167*I167 -> 59.55 | L167: TRUE
A168: Composição Auxiliar | B168: 102617 | C168: SINAPI | D168: CAIXA D´ÁGUA EM POLIÉSTER REFORÇADO COM FIBRA DE VIDRO, 5000 LITROS - FORNECIMENTO E INSTALAÇÃO. AF_06/2021 | E168: Caixas de Água para Edificações | G168: UN | H168: 1 | I168: =IF(C168="SINAPI", IF( IF(A168="Insumo", VLOOKUP(B168,'SINAPI INSUMOS'!B:F,5,0), VLOOKUP(B168,'SINAPI COMP'!B:F,4,0))=0,VLOOKUP(B168,'OUTRAS BASES'!C:D,2,0),IF(A168="Insumo", VLOOKUP(B168,'SINAPI INSUMOS'!B:F,5,0),VLOOKUP(B168,'SINAPI COMP'!B:F,4,0))), VLOOKUP(B168,'OUTRAS BASES'!C:D,2,0)) -> 3289.53 | J168: 3289.53 | L168: TRUE
A169: Composição Auxiliar | B169: 92767 | C169: SINAPI | D169: ARMAÇÃO DE LAJE DE UMA ESTRUTURA CONVENCIONAL DE CONCRETO ARMADO UTILIZANDO AÇO CA-60 DE 4,2 MM - MONTAGEM. AF_12/2015 | E169: FUES - FUNDAÇÕES E ESTRUTURAS | G169: KG | H169: 3.04 | I169: =IF(C169="SINAPI", IF( IF(A169="Insumo", VLOOKUP(B169,'SINAPI INSUMOS'!B:F,5,0), VLOOKUP(B169,'SINAPI COMP'!B:F,4,0))=0,VLOOKUP(B169,'OUTRAS BASES'!C:D,2,0),IF(A169="Insumo", VLOOKUP(B169,'SINAPI INSUMOS'!B:F,5,0),VLOOKUP(B169,'SINAPI COMP'!B:F,4,0))), VLOOKUP(B169,'OUTRAS BASES'!C:D,2,0)) -> 17.13 | J169: 52.0752 | L169: TRUE
A170: Composição Auxiliar | B170: 104917 | C170: SINAPI | D170: ARMAÇAO DE SAPATA ISOLADA, VIGA BALDRAME E SAPATA CORRIDA UTILIZANDO AÇO CA-50 DE 6,3 MM - MONTAGEM AD_01/2024 | E170: FUES - FUNDAÇÕES E ESTRUTURAS | G170: KG | H170: 9.3 | I170: =IF(C170="SINAPI", IF( IF(A170="Insumo", VLOOKUP(B170,'SINAPI INSUMOS'!B:F,5,0), VLOOKUP(B170,'SINAPI COMP'!B:F,4,0))=0,VLOOKUP(B170,'OUTRAS BASES'!C:D,2,0),IF(A170="Insumo", VLOOKUP(B170,'SINAPI INSUMOS'!B:F,5,0),VLOOKUP(B170,'SINAPI COMP'!B:F,4,0))), VLOOKUP(B170,'OUTRAS BASES'!C:D,2,0)) -> 17.36 | J170: 161.448 | L170: TRUE
A171: Composição Auxiliar | B171: 92760 | C171: SINAPI | D171: ARMAÇÃO DE PILAR OU VIGA DE ESTRTURA CONVENCIONAL DE CONCRETO ARMADO UTILIZANDO AÇO CA-50 DE 6,3 MM - MONTAGEM. AF_12/2015 | E171: FUES - FUNDAÇÕES E ESTRUTURAS | G171: KG | H171: 16.3 | I171: =IF(C171="SINAPI", IF( IF(A171="Insumo", VLOOKUP(B171,'SINAPI INSUMOS'!B:F,5,0), VLOOKUP(B171,'SINAPI COMP'!B:F,4,0))=0,VLOOKUP(B171,'OUTRAS BASES'!C:D,2,0),IF(A171="Insumo", VLOOKUP(B171,'SINAPI INSUMOS'!B:F,5,0),VLOOKUP(B171,'SINAPI COMP'!B:F,4,0))), VLOOKUP(B171,'OUTRAS BASES'!C:D,2,0)) -> 15.27 | J171: 248.901 | K171: Composição teve seus insumos atualizados, presente na aba "Composições" | L171: TRUE
A172: Composição Auxiliar | B172: 94964 | C172: SINAPI | D172: CONCRETO FCK = 20MPA, TRAÇO 1:2,7:3 (EM MASSA SECA DE CIMENTO/ AREIA MÉDIA/ BRITA 1) - PREPARO MECÂNICO COM BETONEIRA 400 L. AF_05/2021 | E172: Produção de Concreto | G172: m³ | H172: 1.56 | I172: =IF(C172="SINAPI", IF( IF(A172="Insumo", VLOOKUP(B172,'SINAPI INSUMOS'!B:F,5,0), VLOOKUP(B172,'SINAPI COMP'!B:F,4,0))=0,VLOOKUP(B172,'OUTRAS BASES'!C:D,2,0),IF(A172="Insumo", VLOOKUP(B172,'SINAPI INSUMOS'!B:F,5,0),VLOOKUP(B172,'SINAPI COMP'!B:F,4,0))), VLOOKUP(B172,'OUTRAS BASES'!C:D,2,0)) -> 732.05 | J172: 1141.998 | L172: TRUE
A173: Composição Auxiliar | B173: 84651 | C173: SINAPI | D173: PINTURA COM TINTA IMPERMEAVEL MINERAL EM PO, DUAS DEMAOS | E173: PINT - PINTURAS | G173: m² | H173: 7.85 | I173: =IF(C173="SINAPI", IF( IF(A173="Insumo", VLOOKUP(B173,'SINAPI INSUMOS'!B:F,5,0), VLOOKUP(B173,'SINAPI COMP'!B:F,4,0))=0,VLOOKUP(B173,'OUTRAS BASES'!C:D,2,0),IF(A173="Insumo", VLOOKUP(B173,'SINAPI INSUMOS'!B:F,5,0),VLOOKUP(B173,'SINAPI COMP'!B:F,4,0))), VLOOKUP(B173,'OUTRAS BASES'!C:D,2,0)) -> 13.0385 | J173: 102.352225 | L173: TRUE
A174: Composição Auxiliar | B174: 92263 | C174: SINAPI | D174: FABRICAÇÃO DE FÔRMA PARA PILARES E ESTRUTURAS SIMILARES, EM CHAPA DE MADEIRA COMPENSADA RESINADA, E = 17 MM. AF_09/2020 | E174: FUES - FUNDAÇÕES E ESTRUTURAS | G174: KG | H174: 16.99 | I174: =IF(C174="SINAPI", IF( IF(A174="Insumo", VLOOKUP(B174,'SINAPI INSUMOS'!B:F,5,0), VLOOKUP(B174,'SINAPI COMP'!B:F,4,0))=0,VLOOKUP(B174,'OUTRAS BASES'!C:D,2,0),IF(A174="Insumo", VLOOKUP(B174,'SINAPI INSUMOS'!B:F,5,0),VLOOKUP(B174,'SINAPI COMP'!B:F,4,0))), VLOOKUP(B174,'OUTRAS BASES'!C:D,2,0)) -> 186 | J174: 3160.14 | K174: Composição teve seus insumos atualizados, presente na aba "Composições" | L174: TRUE
A175: Composição Auxiliar | B175: 92770 | C175: SINAPI | D175: ARMAÇÃO DE LAJE DE UMA ESTRUTURA CONVENCIONAL DE CONCRETO ARMADO UTILIZANDO AÇO CA-50 DE 8,0 MM - MONTAGEM. AF_06/2022 | E175: FUES - FUNDAÇÕES E ESTRUTURAS | G175: KG | H175: 17.2 | I175: =IF(C175="SINAPI", IF( IF(A175="Insumo", VLOOKUP(B175,'SINAPI INSUMOS'!B:F,5,0), VLOOKUP(B175,'SINAPI COMP'!B:F,4,0))=0,VLOOKUP(B175,'OUTRAS BASES'!C:D,2,0),IF(A175="Insumo", VLOOKUP(B175,'SINAPI INSUMOS'!B:F,5,0),VLOOKUP(B175,'SINAPI COMP'!B:F,4,0))), VLOOKUP(B175,'OUTRAS BASES'!C:D,2,0)) -> 14.11 | J175: 242.692 | K175: Composição teve seus insumos atualizados, presente na aba "Composições" | L175: TRUE
L176: FALSE
L177: FALSE
L178: FALSE
L179: FALSE
A180: 6 | D180: BEBEDOURO | J180: 2273.8 | L180: FALSE
A181: 6.1 | B181: Código | C181: Banco | D181: Descrição | E181: Tipo | G181: Und | H181: Quant. | I181: Valor Unit | J181: Total | L181: FALSE
A182: Composição | B182: COMPOSIÇÃO - 12 | C182: Próprio | D182: Serviço de execução do bebedouro em concreto armado, incluso materiais. | E182: SEDI - SERVIÇOS DIVERSOS | G182: un | H182: 1 | I182: =SUM(J183:J188) -> 2002.62994 | J182: =H182*I182 -> 2002.62994 | L182: TRUE
A183: Composição Auxiliar | B183: 92916 | C183: SINAPI | D183: ARMAÇÃODE ESTRUTURAS DIVERSAS DE CONCRETO ARMADO, EXCETO VIGA, PILARES, LAJES E FUNDAÇÕES, UTILIZANDO AÇO CA-50 DE 6,3 MM - MONTAGEM. AF_06/2022 | E183: Armação para Estruturas de Concreto Armado | G183: KG | H183: 6 | I183: =IF(C183="SINAPI", IF( IF(A183="Insumo", VLOOKUP(B183,'SINAPI INSUMOS'!B:F,5,0), VLOOKUP(B183,'SINAPI COMP'!B:F,4,0))=0,VLOOKUP(B183,'OUTRAS BASES'!C:D,2,0),IF(A183="Insumo", VLOOKUP(B183,'SINAPI INSUMOS'!B:F,5,0),VLOOKUP(B183,'SINAPI COMP'!B:F,4,0))), VLOOKUP(B183,'OUTRAS BASES'!C:D,2,0)) -> 17.16 | J183: =H183*I183 -> 102.96 | L183: TRUE
A184: Composição Auxiliar | B184: 92915 | C184: SINAPI | D184: ARMAÇÃODE ESTRUTURAS DIVERSAS DE CONCRETO ARMADO, EXCETO VIGA, PILARES, LAJES E FUNDAÇÕES, UTILIZANDO AÇO CA-60 DE 5,0 MM - MONTAGEM. AF_06/2022 | E184: Armação para Estruturas de Concreto Armado | G184: KG | H184: 13 | I184: =IF(C184="SINAPI", IF( IF(A184="Insumo", VLOOKUP(B184,'SINAPI INSUMOS'!B:F,5,0), VLOOKUP(B184,'SINAPI COMP'!B:F,4,0))=0,VLOOKUP(B184,'OUTRAS BASES'!C:D,2,0),IF(A184="Insumo", VLOOKUP(B184,'SINAPI INSUMOS'!B:F,5,0),VLOOKUP(B184,'SINAPI COMP'!B:F,4,0))), VLOOKUP(B184,'OUTRAS BASES'!C:D,2,0)) -> 18.34 | J184: =H184*I184 -> 238.42 | L184: TRUE
A185: Composição Auxiliar | B185: 92921 | C185: SINAPI | D185: ARMAÇÃODE ESTRUTURAS DIVERSAS DE CONCRETO ARMADO, EXCETO VIGA, PILARES, LAJES E FUNDAÇÕES, UTILIZANDO AÇO CA-50 DE 12,5 MM - MONTAGEM. AF_06/2022 | E185: Armação para Estruturas de Concreto Armado | G185: KG | H185: 12 | I185: =IF(C185="SINAPI", IF( IF(A185="Insumo", VLOOKUP(B185,'SINAPI INSUMOS'!B:F,5,0), VLOOKUP(B185,'SINAPI COMP'!B:F,4,0))=0,VLOOKUP(B185,'OUTRAS BASES'!C:D,2,0),IF(A185="Insumo", VLOOKUP(B185,'SINAPI INSUMOS'!B:F,5,0),VLOOKUP(B185,'SINAPI COMP'!B:F,4,0))), VLOOKUP(B185,'OUTRAS BASES'!C:D,2,0)) -> 11.73 | J185: 140.76 | L185: TRUE
A186: Composição Auxiliar | B186: 94971 | C186: SINAPI | D186: CONCRETO FCK = 25MPA, TRAÇO 1:2,3:2:2,7(EM MASSA SECA DE CIMENTO, AREIA MÉDIA, BRITA 1) - PREPARO MECÂNICO COM BETONEIRA 600l. AF_05/2021 | E186: Produção de concreto | G186: m³ | H186: 0.374 | I186: =IF(C186="SINAPI", IF( IF(A186="Insumo", VLOOKUP(B186,'SINAPI INSUMOS'!B:F,5,0), VLOOKUP(B186,'SINAPI COMP'!B:F,4,0))=0,VLOOKUP(B186,'OUTRAS BASES'!C:D,2,0),IF(A186="Insumo", VLOOKUP(B186,'SINAPI INSUMOS'!B:F,5,0),VLOOKUP(B186,'SINAPI COMP'!B:F,4,0))), VLOOKUP(B186,'OUTRAS BASES'!C:D,2,0)) -> 762.06 | J186: 285.01044 | L186: TRUE
A187: Composição Auxiliar | B187: 92263 | C187: SINAPI | D187: FABRICAÇÃO DE FÔRMA PARA PILARES E ESTRUTURAS SIMILARES, EM CHAPA DE MADEIRA COMPENSADA RESINADA, E = 17 MM. AF_09/2020 | E187: FUES - FUNDAÇÕES E ESTRUTURAS | G187: m² | H187: 6.21 | I187: =IF(C187="SINAPI", IF( IF(A187="Insumo", VLOOKUP(B187,'SINAPI INSUMOS'!B:F,5,0), VLOOKUP(B187,'SINAPI COMP'!B:F,4,0))=0,VLOOKUP(B187,'OUTRAS BASES'!C:D,2,0),IF(A187="Insumo", VLOOKUP(B187,'SINAPI INSUMOS'!B:F,5,0),VLOOKUP(B187,'SINAPI COMP'!B:F,4,0))), VLOOKUP(B187,'OUTRAS BASES'!C:D,2,0)) -> 186 | J187: 1155.06 | L187: TRUE
A188: Composição Auxiliar | B188: 15.07.09 | C188: EMBASA | D188: PINTURA LÁTEX ACRÍLICA, APLICAÇÃO MANUAL EM DUAS DEMÃOS | E188: EDIFICAÇÕES | G188: m² | H188: 6.21 | I188: =IF(C188="SINAPI", IF( IF(A188="Insumo", VLOOKUP(B188,'SINAPI INSUMOS'!B:F,5,0), VLOOKUP(B188,'SINAPI COMP'!B:F,4,0))=0,VLOOKUP(B188,'OUTRAS BASES'!C:D,2,0),IF(A188="Insumo", VLOOKUP(B188,'SINAPI INSUMOS'!B:F,5,0),VLOOKUP(B188,'SINAPI COMP'!B:F,4,0))), VLOOKUP(B188,'OUTRAS BASES'!C:D,2,0)) -> 12.95 | J188: 80.4195 | L188: TRUE
L189: FALSE
L190: FALSE
L191: FALSE
L192: FALSE
A193: 7 | D193: CHAFARIZ | J193: 1506.71 | L193: FALSE
A194: 7.1 | B194: Código | C194: Banco | D194: Descrição | E194: Tipo | G194: Und | H194: Quant. | I194: Valor Unit | J194: Total | L194: FALSE
A195: Composição | B195: COMPOSIÇÃO - 13 | C195: Próprio | D195: Fornecimento de material e instalação do chafariz | E195: ASTU - ASSENTAMENTO DE TUBOS E PECAS | G195: un | H195: 1 | I195: =SUM(J196:J214) -> 1044.814754 | J195: =H195*I195 -> 1044.814754 | L195: TRUE
A196: Composição Auxiliar | B196: 88267 | C196: SINAPI | D196: ENCANADOR OU BOMBEIRO HIDRÁULICO COM ENCARGOS COMPLEMENTARES | E196: Livro SINAPI: Cálculos e Parâmetros | G196: H | H196: 2 | I196: =IF(C196="SINAPI", IF( IF(A196="Insumo", VLOOKUP(B196,'SINAPI INSUMOS'!B:F,5,0), VLOOKUP(B196,'SINAPI COMP'!B:F,4,0))=0,VLOOKUP(B196,'OUTRAS BASES'!C:D,2,0),IF(A196="Insumo", VLOOKUP(B196,'SINAPI INSUMOS'!B:F,5,0),VLOOKUP(B196,'SINAPI COMP'!B:F,4,0))), VLOOKUP(B196,'OUTRAS BASES'!C:D,2,0)) -> 25.5 | J196: =H196*I196 -> 51 | L196: TRUE
A197: Composição Auxiliar | B197: 88248 | C197: SINAPI | D197: AUXILIAR DE ENCANADOR OU BOMBEIRO HIDRÁULICO COM ENCARGOS COMPLEMENTARES | E197: Livro SINAPI: Cálculos e Parâmetros | G197: H | H197: 2 | I197: =IF(C197="SINAPI", IF( IF(A197="Insumo", VLOOKUP(B197,'SINAPI INSUMOS'!B:F,5,0), VLOOKUP(B197,'SINAPI COMP'!B:F,4,0))=0,VLOOKUP(B197,'OUTRAS BASES'!C:D,2,0),IF(A197="Insumo", VLOOKUP(B197,'SINAPI INSUMOS'!B:F,5,0),VLOOKUP(B197,'SINAPI COMP'!B:F,4,0))), VLOOKUP(B197,'OUTRAS BASES'!C:D,2,0)) -> 21.35 | J197: =H197*I197 -> 42.7 | L197: =_xlfn.ISFORMULA(I197) -> TRUE
A198: Composição Auxiliar | B198: 93358 | C198: SINAPI | D198: ESCAVAÇÃO MANUAL DE VALA COM PROFUNDIDADE MENOR OU IGUAL A 1,30 M. AF_02/2021 | E198: Escavação de Valas | G198: m³ | H198: 0.0785398 | I198: =IF(C198="SINAPI", IF( IF(A198="Insumo", VLOOKUP(B198,'SINAPI INSUMOS'!B:F,5,0), VLOOKUP(B198,'SINAPI COMP'!B:F,4,0))=0,VLOOKUP(B198,'OUTRAS BASES'!C:D,2,0),IF(A198="Insumo", VLOOKUP(B198,'SINAPI INSUMOS'!B:F,5,0),VLOOKUP(B198,'SINAPI COMP'!B:F,4,0))), VLOOKUP(B198,'OUTRAS BASES'!C:D,2,0)) -> 78.52 | J198: 6.166945096 | L198: TRUE
A199: Composição Auxiliar | B199: 96533 | C199: SINAPI | D199: FABRICAÇÃO, MONTAGEM E DESMONTAGEM DE FÔRMA PARA VIGA BALDRAME, EM MADEIRA SERRADA, E=25 MM, 4 UTILIZAÇÕES. AF_01/2024 | E199: FUES - FUNDAÇÕES E ESTRUTURAS | G199: m² | H199: 0.628 | I199: =IF(C199="SINAPI", IF( IF(A199="Insumo", VLOOKUP(B199,'SINAPI INSUMOS'!B:F,5,0), VLOOKUP(B199,'SINAPI COMP'!B:F,4,0))=0,VLOOKUP(B199,'OUTRAS BASES'!C:D,2,0),IF(A199="Insumo", VLOOKUP(B199,'SINAPI INSUMOS'!B:F,5,0),VLOOKUP(B199,'SINAPI COMP'!B:F,4,0))), VLOOKUP(B199,'OUTRAS BASES'!C:D,2,0)) -> 96.2 | J199: 60.4136 | L199: TRUE
A200: Composição Auxiliar | B200: 94963 | C200: SINAPI | D200: CONCRETO FCK = 15MPA, TRAÇO 1:3,4:3,5 (EM MASSA SECA DE CIMENTO/ AREIA MÉDIA/ BRITA 1) - PREPARO MANUAL. AF_05/2021 | E200: Produção de Concreto | G200: m³ | H200: 0.157 | I200: =IF(C200="SINAPI", IF( IF(A200="Insumo", VLOOKUP(B200,'SINAPI INSUMOS'!B:F,5,0), VLOOKUP(B200,'SINAPI COMP'!B:F,4,0))=0,VLOOKUP(B200,'OUTRAS BASES'!C:D,2,0),IF(A200="Insumo", VLOOKUP(B200,'SINAPI INSUMOS'!B:F,5,0),VLOOKUP(B200,'SINAPI COMP'!B:F,4,0))), VLOOKUP(B200,'OUTRAS BASES'!C:D,2,0)) -> 674.58 | J200: 105.90906 | L200: TRUE
A201: Composição Auxiliar | B201: 87904 | C201: SINAPI | D201: CHAPISCO APLICADO EM ALVENARIA (COM PRESENÇA DE VÃOS) E ESTRUTURAS DE CONCRETO DE FACHADA, COM COLHER DE PEDREIRO. ARGAMASSA TRAÇO 1:3 COM PREPARO MANUAL. AF_10/2022 | E201: Chapisco | G201: m² | H201: 0.314 | I201: =IF(C201="SINAPI", IF( IF(A201="Insumo", VLOOKUP(B201,'SINAPI INSUMOS'!B:F,5,0), VLOOKUP(B201,'SINAPI COMP'!B:F,4,0))=0,VLOOKUP(B201,'OUTRAS BASES'!C:D,2,0),IF(A201="Insumo", VLOOKUP(B201,'SINAPI INSUMOS'!B:F,5,0),VLOOKUP(B201,'SINAPI COMP'!B:F,4,0))), VLOOKUP(B201,'OUTRAS BASES'!C:D,2,0)) -> 8.72 | J201: 2.73808 | L201: TRUE
A202: Composição Auxiliar | B202: 87529 | C202: SINAPI | D202: MASSA ÚNICA, EM ARGAMASSA TRAÇO 1:2:8, PREPARO MECÂNICO, APLICADA MANUALMENTE EM PAREDES INTERNAS DE AMBIENTES COM ÁREA ENTRE 5M² E 10M², E = 17,5MM, COM TALISCAS. AF_03/2024 | E202: Massa Única Interna | G202: m² | H202: 0.314 | I202: =IF(C202="SINAPI", IF( IF(A202="Insumo", VLOOKUP(B202,'SINAPI INSUMOS'!B:F,5,0), VLOOKUP(B202,'SINAPI COMP'!B:F,4,0))=0,VLOOKUP(B202,'OUTRAS BASES'!C:D,2,0),IF(A202="Insumo", VLOOKUP(B202,'SINAPI INSUMOS'!B:F,5,0),VLOOKUP(B202,'SINAPI COMP'!B:F,4,0))), VLOOKUP(B202,'OUTRAS BASES'!C:D,2,0)) -> 38.57 | J202: 12.11098 | L202: TRUE
... 221 more rows

Sheet Crono. - AP - P
A1: OBJETO: EXECUÇÃO DE SERVIÇOS DE PERFURAÇÃO E INSTALAÇÃO DE POÇOS TUBULARES EM MUNICÍPIOS LOCALIZADOS NO ESTADO DO PARÁ, NA ÁREA DE ATUAÇÃO DA CODEVASF
A8: CRONOGRAMA FÍSICO-FINANCEIRO POÇO PARCIALMENTE REVESTIDO
A10: ITEM | B10: ESPECIFICAÇÃO DOS SERVIÇOS | C10: VALOR TOTAL (R$) | D10: Mês 01 | E10: Mês 02 | F10: Mês 03 | G10: Mês 04 | H10: Mês 05 | I10: Mês 06 | J10: Mês 07 | K10: Mês 08 | L10: Mês 09 | M10: Mês 10 | N10: Mês 11 | O10: Mês 12
A11: 1 | B11: Serviços preliminares. | C11: ='Orçamento Sintético - AP - P'!K4 -> 56250.93 | D11: =$C$11/12 -> 4687.5775 | E11: =$C$11/12 -> 4687.5775 | F11: 4687.5775 | G11: 4687.5775 | H11: 4687.5775 | I11: 4687.5775 | J11: 4687.5775 | K11: 4687.5775 | L11: 4687.5775 | M11: 4687.5775 | N11: 4687.5775 | O11: 4687.5775
A12: 2 | B12: Mobilizaçâo e desmobilizaçâo equipes perfuraçâo e instalação. | C12: ='Orçamento Sintético - AP - P'!K8 -> 142071.1 | D12: =$C12/12 -> 11839.25833 | E12: =$C12/12 -> 11839.25833 | F12: 11839.25833 | G12: 11839.25833 | H12: 11839.25833 | I12: 11839.25833 | J12: 11839.25833 | K12: 11839.25833 | L12: 11839.25833 | M12: 11839.25833 | N12: 11839.25833 | O12: 11839.25833
A13: 3 | B13: Perfuração e completação de poço tubular. | C13: ='Orçamento Sintético - AP - P'!K13 -> 1218655.84 | D13: =$C13/12 -> 101554.6533 | E13: 101554.6533 | F13: 101554.6533 | G13: 101554.6533 | H13: 101554.6533 | I13: 101554.6533 | J13: 101554.6533 | K13: 101554.6533 | L13: 101554.6533 | M13: 101554.6533 | N13: 101554.6533 | O13: 101554.6533
A14: 4 | B14: Pós perfuração. | C14: ='Orçamento Sintético - AP - P'!K18 -> 480048.4 | D14: 40004.03333 | E14: 40004.03333 | F14: 40004.03333 | G14: 40004.03333 | H14: 40004.03333 | I14: 40004.03333 | J14: 40004.03333 | K14: 40004.03333 | L14: 40004.03333 | M14: 40004.03333 | N14: 40004.03333 | O14: 40004.03333
A15: 5 | B15: Reservação. | C15: ='Orçamento Sintético - AP - P'!K24 -> 893256.08 | D15: 74438.00667 | E15: 74438.00667 | F15: 74438.00667 | G15: 74438.00667 | H15: 74438.00667 | I15: 74438.00667 | J15: 74438.00667 | K15: 74438.00667 | L15: 74438.00667 | M15: 74438.00667 | N15: 74438.00667 | O15: 74438.00667
A16: 6 | B16: Bebedouro. | C16: ='Orçamento Sintético - AP - P'!K27 -> 99154.4 | D16: 8262.866667 | E16: 8262.866667 | F16: 8262.866667 | G16: 8262.866667 | H16: 8262.866667 | I16: 8262.866667 | J16: 8262.866667 | K16: 8262.866667 | L16: 8262.866667 | M16: 8262.866667 | N16: 8262.866667 | O16: 8262.866667
A17: 7 | B17: Chafariz. | C17: ='Orçamento Sintético - AP - P'!K29 -> 51730.8 | D17: 4310.9 | E17: 4310.9 | F17: 4310.9 | G17: 4310.9 | H17: 4310.9 | I17: 4310.9 | J17: 4310.9 | K17: 4310.9 | L17: 4310.9 | M17: 4310.9 | N17: 4310.9 | O17: 4310.9
A18: 8 | B18: Cavalete. | C18: ='Orçamento Sintético - AP - P'!K31 -> 115652 | D18: 9637.666667 | E18: 9637.666667 | F18: 9637.666667 | G18: 9637.666667 | H18: 9637.666667 | I18: 9637.666667 | J18: 9637.666667 | K18: 9637.666667 | L18: 9637.666667 | M18: 9637.666667 | N18: 9637.666667 | O18: 9637.666667
A19: 9 | B19: Instalações hidráulicas. | C19: ='Orçamento Sintético - AP - P'!K33 -> 668840.82 | D19: 55736.735 | E19: 55736.735 | F19: 55736.735 | G19: 55736.735 | H19: 55736.735 | I19: 55736.735 | J19: 55736.735 | K19: 55736.735 | L19: 55736.735 | M19: 55736.735 | N19: 55736.735 | O19: 55736.735
A20: 10 | B20: Estrutura de fixação para módulos fotovoltáicos. | C20: ='Orçamento Sintético - AP - P'!K41 -> 59663.47 | D20: 4971.955833 | E20: 4971.955833 | F20: 4971.955833 | G20: 4971.955833 | H20: 4971.955833 | I20: 4971.955833 | J20: 4971.955833 | K20: 4971.955833 | L20: 4971.955833 | M20: 4971.955833 | N20: 4971.955833 | O20: 4971.955833
A21: 11 | B21: Instalações elétricas e bóia elétrica. | C21: ='Orçamento Sintético - AP - P'!K43 -> 584094.4 | D21: 48674.53333 | E21: 48674.53333 | F21: 48674.53333 | G21: 48674.53333 | H21: 48674.53333 | I21: 48674.53333 | J21: 48674.53333 | K21: 48674.53333 | L21: 48674.53333 | M21: 48674.53333 | N21: 48674.53333 | O21: 48674.53333
A22: 12 | B22: Urbanização. | C22: ='Orçamento Sintético - AP - P'!K49 -> 169049.4 | D22: 14087.45 | E22: 14087.45 | F22: 14087.45 | G22: 14087.45 | H22: 14087.45 | I22: 14087.45 | J22: 14087.45 | K22: 14087.45 | L22: 14087.45 | M22: 14087.45 | N22: 14087.45 | O22: 14087.45
A23: 13 | B23: Outros serviços e insumos excepcionais. | C23: ='Orçamento Sintético - AP - P'!K52 -> 412021.38 | D23: 34335.115 | E23: 34335.115 | F23: 34335.115 | G23: 34335.115 | H23: 34335.115 | I23: 34335.115 | J23: 34335.115 | K23: 34335.115 | L23: 34335.115 | M23: 34335.115 | N23: 34335.115 | O23: 34335.115
A24: TOTAL | C24: ='Orçamento Sintético - AP - P'!K2 -> 4950489.02 | D24: =SUM(D11:D23) -> 412540.7517 | E24: =SUM(E11:E23) -> 412540.7517 | F24: 412540.7517 | G24: 412540.7517 | H24: 412540.7517 | I24: 412540.7517 | J24: 412540.7517 | K24: 412540.7517 | L24: 412540.7517 | M24: 412540.7517 | N24: 412540.7517 | O24: 412540.7517
A25: PERCENTUAL | D25: 0.08333333333 | E25: 0.08333333333 | F25: 0.08333333333 | G25: 0.08333333333 | H25: 0.08333333333 | I25: 0.08333333333 | J25: 0.08333333333 | K25: 0.08333333333 | L25: 0.08333333333 | M25: 0.08333333333 | N25: 0.08333333333 | O25: 0.08333333333
A26: CUSTO ACUMULADO | D26: =D24 -> 412540.7517 | E26: =D26+E24 -> 825081.5033 | F26: =E26+F24 -> 1237622.255 | G26: 1650163.007 | H26: 2062703.758 | I26: 2475244.51 | J26: 2887785.262 | K26: 3300326.013 | L26: 3712866.765 | M26: 4125407.517 | N26: 4537948.268 | O26: 4950489.02
A27: PERCENTUAL ACUMULADO | D27: 0.08333333333 | E27: =D27+E25 -> 0.1666666667 | F27: =E27+F25 -> 0.25 | G27: 0.3333333333 | H27: 0.4166666667 | I27: 0.5 | J27: 0.5833333333 | K27: 0.6666666667 | L27: 0.75 | M27: 0.8333333333 | N27: 0.9166666667 | O27: 1

Sheet Orçamento Sintético - AP - T
C1: OBJETO: EXECUÇÃO DE SERVIÇOS DE PERFURAÇÃO E INSTALAÇÃO DE POÇOS TUBULARES EM MUNICÍPIOS LOCALIZADOS NO ESTADO DO AMAPÁ, NA ÁREA DE ATUAÇÃO DA CODEVASF | H1: Quantidade de Poços | I1: BDI SERVIÇO | J1: BDI INSUMO | K1: Total | L1: Preço Unitário Por Poço | M1: DESCONTO
H2: 60 | I2: ='BDI-SERVICOS'!D22 -> 0.2378 | J2: ='BDI-FORNECIMENTO'!C28 -> 0.146920122 | K2: =SUM(K4,K13,K8,K20,K26,K29,K31,K33,K35,K43,K45,K51,K54) -> 12111140.79 | L2: =ROUND(K2/H2,2) -> 201852.35 | M2: 0
A3: Item | B3: Código | C3: Banco | D3: TIPO | E3: Descrição. | F3: un. | G3: Mem. calc. | H3: Quanti. | I3: Valor Unit | J3: Valor Unit com BDI | K3: Total | L3: Peso (%)
A4: 1 | E4: Serviços preliminares. | K4: =SUM(K5:K7) -> 136318.99 | L4: =K4/$K$2 -> 0.01125566884
A5: 1.1 | B5: COMPOSIÇÃO - 1 | C5: Próprio | D5: Serviço | E5: Administração local da obra - poço totalmente revestido. | F5: un. | G5: 1 | H5: =ROUND(G5*$H$2,2) -> 60 | I5: =VLOOKUP(B5,'Orçamento Analítico - AP - T'!B:J,9,0)*(1-$M$2) -> 903.10325 | J5: =ROUND(I5*(1+$I$2),2) -> 1117.86 | K5: =ROUND(H5*J5,2) -> 67071.6 | L5: =K5/$K$2 -> 0.005538008447 | N5: =_xlfn.ISFORMULA(K5) -> TRUE
A6: 1.2 | B6: COMPOSIÇÃO - 2 | C6: Próprio | D6: Serviço | E6: Serviço de locação geológica de campo com relatório hidro geológico e perfil construtivo e geológico esperado. relatório de viabilidade de implantação das estruturas e vistorias preliminares. | F6: un. | G6: 1 | H6: =ROUND(G6*$H$2,2) -> 60 | I6: =VLOOKUP(B6,'Orçamento Analítico - AP - T'!B:J,9,0)*(1-$M$2) -> 600.95 | J6: =ROUND(I6*(1+$I$2),2) -> 743.86 | K6: =ROUND(H6*J6,2) -> 44631.6 | L6: 0.003685168951 | N6: TRUE
A7: 1.3 | B7: 103689 | C7: SINAPI | D7: Serviço | E7: Fornecimento e instalação de placa de obra com chapa galvanizada e estrutura de madeira. . | F7: m² | G7: 0.72 | H7: 43.2 | I7: =VLOOKUP(B7,'Orçamento Analítico - AP - T'!B:J,9,0)*(1-$M$2) -> 460.34 | J7: =ROUND(I7*(1+$I$2),2) -> 569.81 | K7: =ROUND(H7*J7,2) -> 24615.79 | L7: 0.002032491441 | N7: TRUE
A8: 2 | E8: Mobilizaçâo e desmobilizaçâo equipe campo. | K8: =SUM(K9:K12) -> 213106.65 | L8: 0.01759591881 | N8: TRUE
A9: 2.1 | B9: COMPOSIÇÃO - 3 | C9: Próprio | D9: Serviço | E9: Transporte de comboio perfuração. | F9: km | G9: 150 | H9: =ROUND(G9*$H$2,2) -> 9000 | I9: =VLOOKUP(B9,'Orçamento Analítico - AP - T'!B:J,9,0)*(1-$M$2) -> 4.7062834 | J9: 5.83 | K9: =ROUND(H9*J9,2) -> 52470 | L9: 0.004332374704 | N9: TRUE
A10: 2.2 | B10: COMPOSIÇÃO - 4 | C10: Próprio | D10: Serviço | E10: Transporte de comboio instalação. | F10: km | G10: 150 | H10: 9000 | I10: =VLOOKUP(B10,'Orçamento Analítico - AP - T'!B:J,9,0)*(1-$M$2) -> 5.9572828 | J10: 7.37 | K10: 66330 | L10: 0.00547677557 | N10: TRUE
A11: 2.3 | B11: COMPOSIÇÃO - 5 | C11: Próprio | D11: Serviço | E11: Transporte de equipe teste de vazão. | F11: km | G11: 150 | H11: 9000 | I11: =VLOOKUP(B11,'Orçamento Analítico - AP - T'!B:J,9,0)*(1-$M$2) -> 2.607113 | J11: 3.23 | K11: 29070 | L11: 0.002400269347 | N11: TRUE
A12: 2.4 | B12: COTAÇÃO-015 | C12: Próprio | D12: INSUMO | E12: Transporte hidroviário perfuração e instalação poços - trecho ida e volta. | F12: un. | G12: 0.17 | H12: 10.2 | I12: =VLOOKUP(B12,'Orçamento Analítico - AP - T'!B:J,9,0)*(1-$M$2) -> 5576.46 | J12: =ROUND(I12*(1+$J$2),2) -> 6395.75 | K12: 65236.65 | L12: 0.005386499185 | N12: TRUE
A13: 3 | E13: Perfuração e completação de poço tubular. | K13: =SUM(K14:K19) -> 6307167.14 | L13: 0.5207739923 | N13: TRUE
A14: 3.1 | B14: COMPOSIÇÃO - 6 | C14: Próprio | D14: Serviço | E14: Perfuração diâmetro de ø 12 1/2" em rocha - incluso mão de obra para instalação do revestimento e completação anelar. | F14: m | G14: 150 | H14: =ROUND(G14*$H$2,2) -> 9000 | I14: =VLOOKUP(B14,'Orçamento Analítico - AP - T'!B:J,9,0)*(1-$M$2) -> 255.86 | J14: =ROUND(I14*(1+$I$2),2) -> 316.7 | K14: =ROUND(H14*J14,2) -> 2850300 | L14: 0.2353452948 | N14: TRUE
A15: 3.2 | B15: 5073 | C15: ORSE | D15: Insumo | E15: Fornecimento de pré-filtro comum m3. | F15: m³ | G15: 7.5139 | H15: 450.83 | I15: =VLOOKUP(B15,'Orçamento Analítico - AP - T'!B:J,9,0)*(1-$M$2) -> 1619.38 | J15: =ROUND(I15*(1+$J$2),2) -> 1857.3 | K15: 837326.56 | L15: 0.06913688599 | N15: TRUE
A16: 3.3 | B16: 5091 | C16: ORSE | D16: Insumo | E16: Revestimento filtro pvc geomecânico reforçado dn 150mm. | F16: m | G16: 15 | H16: 900 | I16: =VLOOKUP(B16,'Orçamento Analítico - AP - T'!B:J,9,0)*(1-$M$2) -> 221.38 | J16: 253.91 | K16: 228519 | L16: 0.01886849505 | N16: TRUE
A17: 3.4 | B17: 5024 | C17: ORSE | D17: Insumo | E17: Centralizador em 6". | F17: un. | G17: 10 | H17: 600 | I17: =VLOOKUP(B17,'Orçamento Analítico - AP - T'!B:J,9,0)*(1-$M$2) -> 267.02 | J17: 306.25 | K17: 183750 | L17: 0.01517198117 | N17: TRUE
A18: 3.5 | B18: 9850 | C18: SINAPI | D18: Insumo | E18: Tubo pvc de revestimento geomecanico nervurado reforcado, dn = 150 mm, comprimento = 2 m. | F18: m | G18: 134 | H18: 8040 | I18: =VLOOKUP(B18,'Orçamento Analítico - AP - T'!B:J,9,0)*(1-$M$2) -> 234.5 | J18: 268.95 | K18: 2162358 | L18: 0.1785428836 | N18: TRUE
A19: 3.6 | B19: COMPOSIÇÃO - 7 | C19: Próprio | D19: Serviço | E19: Serviço de lançamento cimentação anelar, incluso materiais. | F19: m³ | G19: 1.16 | H19: 69.6 | I19: =VLOOKUP(B19,'Orçamento Analítico - AP - T'!B:J,9,0)*(1-$M$2) -> 521.34 | J19: =ROUND(I19*(1+$I$2),2) -> 645.31 | K19: 44913.58 | L19: 0.003708451646 | N19: TRUE
A20: 4 | E20: Pós perfuração. | K20: =SUM(K21:K25) -> 741546.6 | L20: 0.06122846831 | N20: TRUE
A21: 4.1 | B21: 6305 | C21: ORSE | D21: Serviço | E21: Desenvolvimento com compressor 250psi / 750cfm. | F21: h | G21: 2 | H21: =ROUND(G21*$H$2,2) -> 120 | I21: =VLOOKUP(B21,'Orçamento Analítico - AP - T'!B:J,9,0)*(1-$M$2) -> 411.16 | J21: =ROUND(I21*(1+$I$2),2) -> 508.93 | K21: =ROUND(H21*J21,2) -> 61071.6 | L21: 0.005042596817 | N21: TRUE
A22: 4.2 | B22: COMPOSIÇÃO - 8 | C22: Próprio | D22: Serviço | E22: Inspeção ótica em poço tubular câmera com rotação de 360º, visada lateral, com fonte própria de luz, entregue vídeo em cores e marcação de profundidades. | F22: m | G22: 150 | H22: 9000 | I22: =VLOOKUP(B22,'Orçamento Analítico - AP - T'!B:J,9,0)*(1-$M$2) -> 9.64046 | J22: =ROUND(I22*(1+$I$2),2) -> 11.93 | K22: 107370 | L22: 0.008865391119 | N22: TRUE
A23: 4.3 | B23: COMPOSIÇÃO - 9 | C23: Próprio | D23: Serviço | E23: Serviço de coleta e análise físico-química e bacteriológica. | F23: un. | G23: 1 | H23: 60 | I23: =VLOOKUP(B23,'Orçamento Analítico - AP - T'!B:J,9,0)*(1-$M$2) -> 621.19 | J23: 768.91 | K23: 46134.6 | L23: 0.003809269564 | N23: TRUE
A24: 4.4 | B24: COMPOSIÇÃO - 10 | C24: Próprio | D24: Serviço | E24: Serviço de instalação de laje sanitária com dimensões (1,5x1,5x0,3) , incluso material. | F24: un. | G24: 1 | H24: 60 | I24: =VLOOKUP(B24,'Orçamento Analítico - AP - T'!B:J,9,0)*(1-$M$2) -> 776.961 | J24: 961.72 | K24: 57703.2 | L24: 0.004764472728 | N24: TRUE
A25: 4.5 | B25: 24.80.22 | C25: EMBASA | D25: Serviço | E25: (REVISADA) DESENVOLVIMENTO OU TESTE COM BOMBA SUBMERSA - UEB1 NO SEDIMENTO COM VAZAO < 60M3 (Ensaio de bombeamento poço tubular incluso materiais e grupo gerador) | F25: h | G25: 24 | H25: 1440 | I25: =VLOOKUP(B25,'Orçamento Analítico - AP - T'!B:J,9,0)*(1-$M$2) -> 263.27 | J25: 325.88 | K25: 469267.2 | L25: 0.03874673808 | N25: TRUE
A26: 5 | E26: Reservação. | K26: =SUM(K27:K28) -> 1339884.12 | L26: 0.1106323627 | N26: TRUE
A27: 5.1 | B27: COMPOSIÇÃO - 11 | C27: Próprio | D27: Serviço | E27: Fornecimento e instalação de reservatório e base elevada 10 m³. | F27: un. | G27: 0.8 | H27: =ROUND(G27*$H$2,2) -> 48 | I27: =VLOOKUP(B27,'Orçamento Analítico - AP - T'!B:J,9,0)*(1-$M$2) -> 20417.17379 | J27: =ROUND(I27*(1+$I$2),2) -> 25272.38 | K27: =ROUND(H27*J27,2) -> 1213074.24 | L27: 0.1001618478 | N27: TRUE
A28: 5.2 | B28: COMPOSIÇÃO - 12 | C28: Próprio | D28: Serviço | E28: Fornecimento e execução de reservatório apoiado de 5 m³. | F28: un. | G28: 0.2 | H28: 12 | I28: =VLOOKUP(B28,'Orçamento Analítico - AP - T'!B:J,9,0)*(1-$M$2) -> 8537.316425 | J28: 10567.49 | K28: 126809.88 | L28: 0.01047051489 | N28: TRUE
A29: 6 | E29: Bebedouro. | K29: =K30 -> 148731.6 | L29: 0.01228056073 | N29: TRUE
A30: 6.1 | B30: COMPOSIÇÃO - 13 | C30: Próprio | D30: Serviço | E30: Serviço de execução do bebedouro em concreto armado, incluso materiais. | F30: un. | G30: 1 | H30: =ROUND(G30*$H$2,2) -> 60 | I30: =VLOOKUP(B30,'Orçamento Analítico - AP - T'!B:J,9,0)*(1-$M$2) -> 2002.62994 | J30: =ROUND(I30*(1+$I$2),2) -> 2478.86 | K30: =ROUND(H30*J30,2) -> 148731.6 | L30: 0.01228056073 | N30: TRUE
A31: 7 | E31: Chafariz. | K31: =K32 -> 77596.2 | L31: 0.006407009987 | N31: TRUE
A32: 7.1 | B32: COMPOSIÇÃO - 14 | C32: Próprio | D32: Serviço | E32: Fornecimento de material e instalação do chafariz. | F32: un. | G32: 1 | H32: =ROUND(G32*$H$2,2) -> 60 | I32: =VLOOKUP(B32,'Orçamento Analítico - AP - T'!B:J,9,0)*(1-$M$2) -> 1044.814754 | J32: =ROUND(I32*(1+$I$2),2) -> 1293.27 | K32: =ROUND(H32*J32,2) -> 77596.2 | L32: 0.006407009987 | N32: TRUE
A33: 8 | E33: Cavalete. | K33: =K34 -> 173478 | L33: 0.01432383646 | N33: TRUE
A34: 8.1 | B34: COMPOSIÇÃO - 15 | C34: Próprio | D34: Serviço | E34: Fornecimento de conexões e instalação do cavalete com hidrômetro e clorador de pastilhas. | F34: un. | G34: 1 | H34: =ROUND(G34*$H$2,2) -> 60 | I34: =VLOOKUP(B34,'Orçamento Analítico - AP - T'!B:J,9,0)*(1-$M$2) -> 2335.835 | J34: =ROUND(I34*(1+$I$2),2) -> 2891.3 | K34: =ROUND(H34*J34,2) -> 173478 | L34: 0.01432383646 | N34: TRUE
A35: 9 | E35: Instalações hidráulicas poço e adutora. | K35: =SUM(K36:K42) -> 1003261.22 | L35: 0.08283787939 | N35: TRUE
A36: 9.1 | B36: COMPOSIÇÃO - 16 | C36: Próprio | D36: Serviço | E36: Instalação da rede adutora poço-reservatório-bebedouro em pn80 e dn50mm. | F36: m | G36: 400 | H36: =ROUND(G36*$H$2,2) -> 24000 | I36: =VLOOKUP(B36,'Orçamento Analítico - AP - T'!B:J,9,0)*(1-$M$2) -> 5.8185 | J36: =ROUND(I36*(1+$I$2),2) -> 7.2 | K36: =ROUND(H36*J36,2) -> 172800 | L36: 0.01426785494 | N36: TRUE
A37: 9.2 | B37: 9875 | C37: SINAPI | D37: Insumo | E37: TUBO PVC, SOLDAVEL, DE 50 MM, AGUA FRIA (NBR-5648) | F37: un. | G37: 400 | H37: 24000 | I37: =VLOOKUP(B37,'Orçamento Analítico - AP - T'!B:J,9,0)*(1-$M$2) -> 13.57 | J37: =ROUND(I37*(1+$J$2),2) -> 15.56 | K37: =ROUND(J37*H37,2) -> 373440 | L37: 0.03083441985 | N37: TRUE
A38: 9.3 | B38: COMPOSIÇÃO - 17 | C38: Próprio | D38: Serviço | E38: Montagem hidráulica do equipamento de bombeamento. | F38: un. | G38: 1 | H38: 60 | I38: =VLOOKUP(B38,'Orçamento Analítico - AP - T'!B:J,9,0)*(1-$M$2) -> 140.55 | J38: 173.97 | K38: 10438.2 | L38: 0.0008618676127 | N38: TRUE
A39: 9.4 | B39: 38200 | C39: SINAPI | D39: Insumo | E39: Corda de poliamida 12 mm tipo bombeiro, para trabalho em altura. | F39: 100m | G39: 0.93 | H39: 55.8 | I39: =VLOOKUP(B39,'Orçamento Analítico - AP - T'!B:J,9,0)*(1-$M$2) -> 512.05 | J39: =ROUND(I39*(1+$J$2),2) -> 587.28 | K39: 32770.22 | L39: 0.002705791351 | N39: TRUE
A40: 9.5 | B40: 9860 | C40: SINAPI | D40: Insumo | E40: Tubo pvc, roscavel, 2", para agua fria predial. | F40: m | G40: 90 | H40: 5400 | I40: =VLOOKUP(B40,'Orçamento Analítico - AP - T'!B:J,9,0)*(1-$M$2) -> 59.115 | J40: 67.8 | K40: 366120 | L40: 0.03023001766 | N40: TRUE
A41: 9.6 | B41: 3912 | C41: SINAPI | D41: Insumo | E41: Luva de ferro galvanizado, com rosca bsp, de 2". | F41: un. | G41: 16 | H41: 960 | I41: =VLOOKUP(B41,'Orçamento Analítico - AP - T'!B:J,9,0)*(1-$M$2) -> 36.61 | J41: 41.99 | K41: 40310.4 | L41: 0.003328373495 | N41: TRUE
A42: 9.7 | B42: 5128 | C42: ORSE | D42: Insumo | E42: Tampa de poço galvanizada em 6" un. | F42: un. | G42: 1 | H42: 60 | I42: =VLOOKUP(B42,'Orçamento Analítico - AP - T'!B:J,9,0)*(1-$M$2) -> 107.28 | J42: 123.04 | K42: 7382.4 | L42: 0.0006095544696 | N42: TRUE
A43: 10 | E43: Estrutura de fixação para módulos fotovoltáicos. | K43: =K44 -> 134242.81 | L43: 0.01108424155 | N43: TRUE
A44: 10.1 | B44: COMPOSIÇÃO - 18 | C44: Próprio | D44: Serviço | E44: Serviço de fixação de estruturas para os módulos fotovoltaicos e suportes de concreto, incluso materiais. | F44: m² | G44: 15.18 | H44: =ROUND(G44*$H$2,2) -> 910.8 | I44: =VLOOKUP(B44,'Orçamento Analítico - AP - T'!B:J,9,0)*(1-$M$2) -> 119.076112 | J44: =ROUND(I44*(1+$I$2),2) -> 147.39 | K44: =ROUND(H44*J44,2) -> 134242.81 | L44: 0.01108424155 | N44: TRUE
A45: 11 | E45: Instalações elétricas. | K45: =SUM(K46:K50) -> 1026489 | L45: 0.08475576478 | N45: TRUE
A46: 11.1 | B46: COMPOSIÇÃO - 19 | C46: Próprio | D46: Serviço | E46: Montagem e instalação elétrica do kit de bombeamento e sistema fotovoltaico inclusive sistema de aterramento. | F46: un. | G46: 1 | H46: =ROUND(G46*$H$2,2) -> 60 | I46: =VLOOKUP(B46,'Orçamento Analítico - AP - T'!B:J,9,0)*(1-$M$2) -> 1140.4236 | J46: =ROUND(I46*(1+$I$2),2) -> 1411.62 | K46: =ROUND(H46*J46,2) -> 84697.2 | L46: 0.006993329651 | N46: TRUE
A47: 11.2 | B47: 34622 | C47: SINAPI | D47: Insumo | E47: Fornecimento de cabo flexivel pvc 750 v, 3 condutores de 6,0 mm2. | F47: m | G47: 105 | H47: =ROUND(G47*$H$2,2) -> 6300 | I47: =VLOOKUP(B47,'Orçamento Analítico - AP - T'!B:J,9,0)*(1-$M$2) -> 25.98 | J47: =ROUND(I47*(1+$J$2),2) -> 29.8 | K47: 187740 | L47: 0.0155014299 | N47: TRUE
A48: 11.3 | B48: COMPOSIÇÃO - 20 | C48: Próprio | D48: Serviço | E48: Fornecimento e instalação de automático de bóia superior e inferior. | F48: un. | G48: 1 | H48: 60 | I48: =VLOOKUP(B48,'Orçamento Analítico - AP - T'!B:J,9,0)*(1-$M$2) -> 65.1795 | J48: =ROUND(I48*(1+$I$2),2) -> 80.68 | K48: 4840.8 | L48: 0.0003996981031 | N48: TRUE
A49: 11.4 | B49: 39257 | C49: SINAPI | D49: Insumo | E49: Cabo multipolar de cobre, flexivel, classe 4 ou 5, isolacao em hepr, cobertura em pvc-st2, antichama bwf-b, 0,6/1 kv, 3 condutores de 1,5 mm2. | F49: m | G49: 200 | H49: 12000 | I49: =VLOOKUP(B49,'Orçamento Analítico - AP - T'!B:J,9,0)*(1-$M$2) -> 7.06 | J49: =ROUND(I49*(1+$J$2),2) -> 8.1 | K49: 97200 | L49: 0.008025668406 | N49: TRUE
A50: 11.5 | B50: COTAÇÃO-002 | C50: Próprio | D50: Insumo | E50: Fornecimento de kit de bombeamento fotovoltaico, incluindo uma bomba cc de 2200w com controladora de carga externa, caixa de proteção metálica, módulos fotovoltaicos compatíveis com a geração de 3300wp além de componentes elétricos necessários para interligação dos painéis, como cabos, conectores mc4 e presilhas de fixação. | F50: un. | G50: 1 | H50: 60 | I50: =VLOOKUP(B50,'Orçamento Analítico - AP - T'!B:J,9,0)*(1-$M$2) -> 9474.81 | J50: =ROUND(I50*(1+$J$2),2) -> 10866.85 | K50: 652011 | L50: 0.05383563872 | N50: TRUE
A51: 12 | E51: Urbanização. | K51: =SUM(K52:K53) -> 253574.1 | L51: 0.0209372597 | N51: TRUE
A52: 12.1 | B52: COMPOSIÇÃO - 21 | C52: Próprio | D52: Serviço | E52: Cerca com mourões de concreto de 15x15cm, espaçados de 3m e cravados a 0,5m, escoras de 10x10cm nos cantos, e 9 fios de arame de aço ovalado 15x17. | F52: m | G52: 28 | H52: =ROUND(G52*$H$2,2) -> 1680 | I52: =VLOOKUP(B52,'Orçamento Analítico - AP - T'!B:J,9,0)*(1-$M$2) -> 87.829652 | J52: =ROUND(I52*(1+$I$2),2) -> 108.72 | K52: =ROUND(H52*J52,2) -> 182649.6 | L52: 0.01508112268 | N52: TRUE
A53: 12.2 | B53: COMPOSIÇÃO - 22 | C53: Próprio | D53: Serviço | E53: Serviço de instalação de portão de ferro com suporte e batedor conforme projeto, incluso material. | F53: m² | G53: 1.5 | H53: 90 | I53: =VLOOKUP(B53,'Orçamento Analítico - AP - T'!B:J,9,0)*(1-$M$2) -> 636.65086 | J53: =ROUND(I53*(1+$I$2),2) -> 788.05 | K53: 70924.5 | L53: 0.005856137025 | N53: TRUE
A54: 13 | E54: Outros serviços e insumos excepcionais. | K54: =SUM(K55:K61) -> 555744.36 | L54: 0.04588703654 | N54: TRUE
A55: 13.1 | B55: COMPOSIÇÃO - 23 | C55: Próprio | D55: Serviço | E55: Execução de tamponamento conforme especificação. | F55: m³ | G55: 0.08 | H55: =ROUND(G55*$H$2,2) -> 4.8 | I55: =VLOOKUP(B55,'Orçamento Analítico - AP - T'!B:J,9,0)*(1-$M$2) -> 952.64 | J55: =ROUND(I55*(1+$I$2),2) -> 1179.18 | K55: =ROUND(H55*J55,2) -> 5660.06 | L55: 0.0004673432584 | N55: TRUE
A56: 13.2 | B56: 13747 | C56: ORSE | D56: Insumo | E56: Revestimento tubo liso aço sch-40 em 12". | F56: m | G56: 6 | H56: 360 | I56: =VLOOKUP(B56,'Orçamento Analítico - AP - T'!B:J,9,0)*(1-$M$2) -> 921.04 | J56: =ROUND(I56*(1+$J$2),2) -> 1056.36 | K56: 380289.6 | L56: 0.03139998177 | N56: TRUE
A57: 13.3 | B57: M3929 | C57: SICRO3 | D57: Insumo | E57: Tubo em aço-carbono - e = 3,00 mm e d = 150 mm (6"). | F57: m | G57: 1.44 | H57: 86.4 | I57: =VLOOKUP(B57,'Orçamento Analítico - AP - T'!B:J,9,0)*(1-$M$2) -> 148.57 | J57: 170.4 | K57: 14722.56 | L57: =K57/$K$2 -> 0.001215621241 | N57: TRUE
A58: 13.4 | B58: M039706073 | C58: EMBASA | D58: Insumo | E58: Filtro nold em aço galvanizado dn 6". | F58: m | G58: 0.06 | H58: =ROUND(G58*$H$2,2) -> 3.6 | I58: =VLOOKUP(B58,'Orçamento Analítico - AP - T'!B:J,9,0)*(1-$M$2) -> 835.86 | J58: 958.66 | K58: 3451.18 | L58: 0.0002849591182 | N58: TRUE
A59: 13.5 | B59: COMPOSIÇÃO - 24 | C59: Próprio | D59: Serviço | E59: Limpeza manual , remoção de cerca, capina e instalação dos equipamentos (área do poço, painéis solares, bebedouro e reservatório). | F59: m² | G59: 70 | H59: 4200 | I59: =VLOOKUP(B59,'Orçamento Analítico - AP - T'!B:J,9,0)*(1-$M$2) -> 1.588 | J59: =ROUND(I59*(1+$I$2),2) -> 1.97 | K59: 8274 | L59: 0.0006831726378 | N59: TRUE
A60: 13.6 | B60: COMPOSIÇÃO - 25 | C60: Próprio | D60: Serviço | E60: Fornecimento e instalação do filtro para revestimento interno ø 4 1/2". | F60: m | G60: 0.6 | H60: =G60*$H$2 -> 36 | I60: =VLOOKUP(B60,'Orçamento Analítico - AP - T'!B:J,9,0)*(1-$M$2) -> 116.334 | J60: 144 | K60: =ROUND(J60*H60,2) -> 5184 | L60: 0.0004280356483 | N60: TRUE
A61: 13.7 | B61: COMPOSIÇÃO - 26 | C61: Próprio | D61: Serviço | E61: Fornecimento e instalação do revestimento interno ø 4 1/2". | F61: m | G61: 17.4 | H61: 1044 | I61: =VLOOKUP(B61,'Orçamento Analítico - AP - T'!B:J,9,0)*(1-$M$2) -> 106.914 | J61: 132.34 | K61: 138162.96 | L61: 0.01140792287 | N61: TRUE

Sheet Orçamento Analítico - AP - T
C1: OBJETO: EXECUÇÃO DE SERVIÇOS DE PERFURAÇÃO E INSTALAÇÃO DE POÇOS TUBULARES EM MUNICÍPIOS LOCALIZADOS NO ESTADO DO AMAPÁ, NA ÁREA DE ATUAÇÃO DA CODEVASF
A4: PLANILHA ANALÍTICA - POÇO TOTALMENTE REVESTIDO - AMAPÁ
A5: 1 | D5: SERVIÇOS PRELIMINARES | J5: 3395.26
A6: 1.1 | B6: Código | C6: Banco | D6: Descrição | E6: Tipo | G6: Und | H6: Quant. | I6: =IF(C6="SINAPI", IF( IF(A6="Insumo", VLOOKUP(B6,'SINAPI INSUMOS'!B:F,5,0), VLOOKUP(B6,'SINAPI COMP'!B:F,4,0))=0,VLOOKUP(B6,'OUTRAS BASES'!C:D,2,0),IF(A6="Insumo", VLOOKUP(B6,'SINAPI INSUMOS'!B:F,5,0),VLOOKUP(B6,'SINAPI COMP'!B:F,4,0))), VLOOKUP(B6,'OUTRAS BASES'!C:D,2,0)) -> VALOR | J6: Total
A7: Composição | B7: COMPOSIÇÃO - 1 | C7: Próprio | D7: Administração Local da Obra - Poço Totalmente Revestido | E7: CANT - CANTEIRO DE OBRAS | G7: un | H7: 1 | I7: =SUM(J8:J9) -> 903.10325 | J7: =H7*I7 -> 903.10325 | L7: =_xlfn.ISFORMULA(I7) -> TRUE
A8: Composição Auxiliar | B8: 12710 | C8: SBC | D8: DESPESAS GERAIS DE MANUTENCAO CANTEIRO DE OBRAS | E8: INSTALACOES PROVISORIAS | G8: MES | H8: 0.133 | I8: =IF(C8="SINAPI", IF( IF(A8="Insumo", VLOOKUP(B8,'SINAPI INSUMOS'!B:F,5,0), VLOOKUP(B8,'SINAPI COMP'!B:F,4,0))=0,VLOOKUP(B8,'OUTRAS BASES'!C:D,2,0),IF(A8="Insumo", VLOOKUP(B8,'SINAPI INSUMOS'!B:F,5,0),VLOOKUP(B8,'SINAPI COMP'!B:F,4,0))), VLOOKUP(B8,'OUTRAS BASES'!C:D,2,0)) -> 910.61 | J8: =H8*I8 -> 121.11113 | L8: =_xlfn.ISFORMULA(I8) -> TRUE
A9: Composição Auxiliar | B9: 100321 | C9: SINAPI | D9: TÉCNICO EM SEGURANÇA DO TRABALHO COM ENCARGOS COMPLEMENTARES | E9: Livro SINAPI: Cálculos e Parâmetros | G9: MES | H9: 0.133 | I9: =IF(C9="SINAPI", IF( IF(A9="Insumo", VLOOKUP(B9,'SINAPI INSUMOS'!B:F,5,0), VLOOKUP(B9,'SINAPI COMP'!B:F,4,0))=0,VLOOKUP(B9,'OUTRAS BASES'!C:D,2,0),IF(A9="Insumo", VLOOKUP(B9,'SINAPI INSUMOS'!B:F,5,0),VLOOKUP(B9,'SINAPI COMP'!B:F,4,0))), VLOOKUP(B9,'OUTRAS BASES'!C:D,2,0)) -> 5879.64 | J9: =H9*I9 -> 781.99212 | L9: TRUE
L10: FALSE
L11: FALSE
L12: FALSE
L13: FALSE
A14: 1.2 | B14: Código | C14: Banco | D14: Descrição | E14: Tipo | G14: Und | H14: Quant. | I14: Valor Unit | J14: Total | L14: FALSE
A15: Composição | B15: COMPOSIÇÃO - 2 | C15: Próprio | D15: Serviço de locação Geológica de campo com relatório hidro geológico e perfil construtivo e geológico esperado. Relatório de Viabilidade de implantação das estruturas e vistorias preliminares | E15: SERT - SERVIÇOS TÉCNICOS | G15: un | H15: 1 | I15: =SUM(J16:J18) -> 600.95 | J15: =H15*I15 -> 600.95 | L15: TRUE
A16: Composição Auxiliar | B16: 30.01.45 | C16: EMBASA | D16: GEOLOGO SENIOR | E16: 3001 | G16: hora | H16: 5 | I16: =IF(C16="SINAPI", IF( IF(A16="Insumo", VLOOKUP(B16,'SINAPI INSUMOS'!B:F,5,0), VLOOKUP(B16,'SINAPI COMP'!B:F,4,0))=0,VLOOKUP(B16,'OUTRAS BASES'!C:D,2,0),IF(A16="Insumo", VLOOKUP(B16,'SINAPI INSUMOS'!B:F,5,0),VLOOKUP(B16,'SINAPI COMP'!B:F,4,0))), VLOOKUP(B16,'OUTRAS BASES'!C:D,2,0)) -> 99.88 | J16: =H16*I16 -> 499.4 | L16: =_xlfn.ISFORMULA(I16) -> TRUE
A17: Insumo | B17: 5896 | C17: ORSE | D17: Veículo tipo sedan ou pick-up capacidade 0,6 ton h | E17: Equipamento | G17: h | H17: 5 | I17: =IF(C17="SINAPI", IF( IF(A17="Insumo", VLOOKUP(B17,'SINAPI INSUMOS'!B:F,5,0), VLOOKUP(B17,'SINAPI COMP'!B:F,4,0))=0,VLOOKUP(B17,'OUTRAS BASES'!C:D,2,0),IF(A17="Insumo", VLOOKUP(B17,'SINAPI INSUMOS'!B:F,5,0),VLOOKUP(B17,'SINAPI COMP'!B:F,4,0))), VLOOKUP(B17,'OUTRAS BASES'!C:D,2,0)) -> 8.33 | J17: =H17*I17 -> 41.65 | L17: TRUE
A18: Insumo | B18: 4222 | C18: SINAPI | D18: GASOLINA COMUM | E18: Material | G18: L | H18: 10 | I18: =IF(C18="SINAPI", IF( IF(A18="Insumo", VLOOKUP(B18,'SINAPI INSUMOS'!B:F,5,0), VLOOKUP(B18,'SINAPI COMP'!B:F,4,0))=0,VLOOKUP(B18,'OUTRAS BASES'!C:D,2,0),IF(A18="Insumo", VLOOKUP(B18,'SINAPI INSUMOS'!B:F,5,0),VLOOKUP(B18,'SINAPI COMP'!B:F,4,0))), VLOOKUP(B18,'OUTRAS BASES'!C:D,2,0)) -> 5.99 | J18: =H18*I18 -> 59.9 | L18: TRUE
A23: 1.3 | B23: Código | C23: Banco | D23: Descrição | E23: Tipo | G23: Und | H23: Quant. | I23: Valor Unit | J23: Total
A24: Composição | B24: 103689 | C24: SINAPI | D24: FORNECIMENTO E INSTALAÇÃO DE PLACA DE OBRA COM CHAPA GALVANIZADA E ESTRUTURA DE MADEIRA. AF_03/2022_PS | E24: Sinalização Vertical Viária | G24: m² | H24: 1 | I24: =IF(C24="SINAPI", IF( IF(A24="Insumo", VLOOKUP(B24,'SINAPI INSUMOS'!B:F,5,0), VLOOKUP(B24,'SINAPI COMP'!B:F,4,0))=0,VLOOKUP(B24,'OUTRAS BASES'!C:D,2,0),IF(A24="Insumo", VLOOKUP(B24,'SINAPI INSUMOS'!B:F,5,0),VLOOKUP(B24,'SINAPI COMP'!B:F,4,0))), VLOOKUP(B24,'OUTRAS BASES'!C:D,2,0)) -> 460.34 | J24: =H24*I24 -> 460.34 | K24: Utilizado o código da Composição 103689 | L24: =_xlfn.ISFORMULA(I24) -> TRUE
A25: Composição Auxiliar | B25: 102234 | C25: SINAPI | D25: PINTURA IMUNIZANTE PARA MADEIRA, 2 DEMÃOS. AF_01/2021 | E25: Pintura em Madeira | G25: m² | H25: 0.5 | I25: =IF(C25="SINAPI", IF( IF(A25="Insumo", VLOOKUP(B25,'SINAPI INSUMOS'!B:F,5,0), VLOOKUP(B25,'SINAPI COMP'!B:F,4,0))=0,VLOOKUP(B25,'OUTRAS BASES'!C:D,2,0),IF(A25="Insumo", VLOOKUP(B25,'SINAPI INSUMOS'!B:F,5,0),VLOOKUP(B25,'SINAPI COMP'!B:F,4,0))), VLOOKUP(B25,'OUTRAS BASES'!C:D,2,0)) -> 25.65 | J25: =H25*I25 -> 12.825 | L25: TRUE
A26: Composição Auxiliar | B26: 88262 | C26: SINAPI | D26: CARPINTEIRO DE FORMAS COM ENCARGOS COMPLEMENTARES | E26: Livro SINAPI: Cálculos e Parâmetros | G26: H | H26: 0.3729 | I26: =IF(C26="SINAPI", IF( IF(A26="Insumo", VLOOKUP(B26,'SINAPI INSUMOS'!B:F,5,0), VLOOKUP(B26,'SINAPI COMP'!B:F,4,0))=0,VLOOKUP(B26,'OUTRAS BASES'!C:D,2,0),IF(A26="Insumo", VLOOKUP(B26,'SINAPI INSUMOS'!B:F,5,0),VLOOKUP(B26,'SINAPI COMP'!B:F,4,0))), VLOOKUP(B26,'OUTRAS BASES'!C:D,2,0)) -> 25.79 | J26: =H26*I26 -> 9.617091 | L26: TRUE
A27: Composição Auxiliar | B27: 88316 | C27: SINAPI | D27: SERVENTE COM ENCARGOS COMPLEMENTARES | E27: Livro SINAPI: Cálculos e Parâmetros | G27: H | H27: 1.1186 | I27: =IF(C27="SINAPI", IF( IF(A27="Insumo", VLOOKUP(B27,'SINAPI INSUMOS'!B:F,5,0), VLOOKUP(B27,'SINAPI COMP'!B:F,4,0))=0,VLOOKUP(B27,'OUTRAS BASES'!C:D,2,0),IF(A27="Insumo", VLOOKUP(B27,'SINAPI INSUMOS'!B:F,5,0),VLOOKUP(B27,'SINAPI COMP'!B:F,4,0))), VLOOKUP(B27,'OUTRAS BASES'!C:D,2,0)) -> 19.85 | J27: 22.20421 | L27: TRUE
A28: Insumo | B28: 4509 | C28: SINAPI | D28: SARRAFO *2,5 X 10* CM EM PINUS, MISTA OU EQUIVALENTE DA REGIAO - BRUTA | E28: Material | G28: M | H28: 3.2083 | I28: =IF(C28="SINAPI", IF( IF(A28="Insumo", VLOOKUP(B28,'SINAPI INSUMOS'!B:F,5,0), VLOOKUP(B28,'SINAPI COMP'!B:F,4,0))=0,VLOOKUP(B28,'OUTRAS BASES'!C:D,2,0),IF(A28="Insumo", VLOOKUP(B28,'SINAPI INSUMOS'!B:F,5,0),VLOOKUP(B28,'SINAPI COMP'!B:F,4,0))), VLOOKUP(B28,'OUTRAS BASES'!C:D,2,0)) -> 4.72 | J28: =H28*I28 -> 15.143176 | L28: TRUE
A29: Insumo | B29: 4813 | C29: SINAPI | D29: PLACA DE OBRA (PARA CONSTRUCAO CIVIL) EM CHAPA GALVANIZADA *N. 22*, ADESIVADA, DE *2,4 X 1,2* M (SEM POSTES PARA FIXACAO) | E29: Material | G29: m² | H29: 1 | I29: =IF(C29="SINAPI", IF( IF(A29="Insumo", VLOOKUP(B29,'SINAPI INSUMOS'!B:F,5,0), VLOOKUP(B29,'SINAPI COMP'!B:F,4,0))=0,VLOOKUP(B29,'OUTRAS BASES'!C:D,2,0),IF(A29="Insumo", VLOOKUP(B29,'SINAPI INSUMOS'!B:F,5,0),VLOOKUP(B29,'SINAPI COMP'!B:F,4,0))), VLOOKUP(B29,'OUTRAS BASES'!C:D,2,0)) -> 400 | J29: =H29*I29 -> 400 | K29: Preço AS digitado (Atribuído São Paulo) | L29: TRUE
A30: Insumo | B30: 5065 | C30: SINAPI | D30: PREGO DE ACO POLIDO COM CABECA 10 X 10 (7/8 X 17) | E30: Material | G30: KG | H30: 0.0113 | I30: =IF(C30="SINAPI", IF( IF(A30="Insumo", VLOOKUP(B30,'SINAPI INSUMOS'!B:F,5,0), VLOOKUP(B30,'SINAPI COMP'!B:F,4,0))=0,VLOOKUP(B30,'OUTRAS BASES'!C:D,2,0),IF(A30="Insumo", VLOOKUP(B30,'SINAPI INSUMOS'!B:F,5,0),VLOOKUP(B30,'SINAPI COMP'!B:F,4,0))), VLOOKUP(B30,'OUTRAS BASES'!C:D,2,0)) -> 31.5 | J30: 0.35595 | L30: TRUE
A31: Insumo | B31: 5069 | C31: SINAPI | D31: PREGO DE ACO POLIDO COM CABECA 17 X 27 (2 1/2 X 11) | E31: Material | G31: KG | H31: 0.0132 | I31: =IF(C31="SINAPI", IF( IF(A31="Insumo", VLOOKUP(B31,'SINAPI INSUMOS'!B:F,5,0), VLOOKUP(B31,'SINAPI COMP'!B:F,4,0))=0,VLOOKUP(B31,'OUTRAS BASES'!C:D,2,0),IF(A31="Insumo", VLOOKUP(B31,'SINAPI INSUMOS'!B:F,5,0),VLOOKUP(B31,'SINAPI COMP'!B:F,4,0))), VLOOKUP(B31,'OUTRAS BASES'!C:D,2,0)) -> 16.88 | J31: 0.222816 | L31: TRUE
A36: 2 | D36: MOBILIZAÇÂO E DESMOBILIZAÇÂO EQUIPE CAMPO | J36: 4554.88
A37: 2.1 | B37: Código | C37: Banco | D37: Descrição | E37: Tipo | G37: Und | H37: Quant. | I37: Valor Unit | J37: Total
A38: Composição | B38: COMPOSIÇÃO - 3 | C38: Próprio | D38: Transporte de Comboio Perfuração | E38: TRAN - TRANSPORTES, CARGAS E DESCARGAS | G38: km | H38: 1 | I38: =SUM(J39:J40) -> 4.7062834 | J38: =H38*I38 -> 4.7062834 | L38: =_xlfn.ISFORMULA(I38) -> TRUE
A39: Composição Auxiliar | B39: 5824 | C39: SINAPI | D39: CAMINHÃO TOCO, PBT 16.000 KG, CARGA ÚTIL MÁX. 10.685 KG, DIST. ENTRE EIXOS 4,8 M, POTÊNCIA 189 CV, INCLUSIVE CARROCERIA FIXA ABERTA DE MADEIRA P/ TRANSPORTE GERAL DE CARGA SECA, DIMEN. APROX. 2,5 X 7,00 X 0,50 M - CHP DIURNO. AF_06/2014 | E39: Custos Horários Produtivo e Improdutivo dos Equipamentos | G39: CHP | H39: 0.01666 | I39: =IF(C39="SINAPI", IF( IF(A39="Insumo", VLOOKUP(B39,'SINAPI INSUMOS'!B:F,5,0), VLOOKUP(B39,'SINAPI COMP'!B:F,4,0))=0,VLOOKUP(B39,'OUTRAS BASES'!C:D,2,0),IF(A39="Insumo", VLOOKUP(B39,'SINAPI INSUMOS'!B:F,5,0),VLOOKUP(B39,'SINAPI COMP'!B:F,4,0))), VLOOKUP(B39,'OUTRAS BASES'!C:D,2,0)) -> 222.93 | J39: =H39*I39 -> 3.7140138 | L39: TRUE
A40: Composição Auxiliar | B40: 5826 | C40: SINAPI | D40: CAMINHÃO TOCO, PBT 16.000 KG, CARGA ÚTIL MÁX. 10.685 KG, DIST. ENTRE EIXOS 4,8 M, POTÊNCIA 189 CV, INCLUSIVE CARROCERIA FIXA ABERTA DE MADEIRA P/ TRANSPORTE GERAL DE CARGA SECA, DIMEN. APROX. 2,5 X 7,00 X 0,50 M - CHI DIURNO. AF_06/2014 | E40: Custos Horários Produtivo e Improdutivo dos Equipamentos | G40: CHI | H40: 0.01666 | I40: =IF(C40="SINAPI", IF( IF(A40="Insumo", VLOOKUP(B40,'SINAPI INSUMOS'!B:F,5,0), VLOOKUP(B40,'SINAPI COMP'!B:F,4,0))=0,VLOOKUP(B40,'OUTRAS BASES'!C:D,2,0),IF(A40="Insumo", VLOOKUP(B40,'SINAPI INSUMOS'!B:F,5,0),VLOOKUP(B40,'SINAPI COMP'!B:F,4,0))), VLOOKUP(B40,'OUTRAS BASES'!C:D,2,0)) -> 59.56 | J40: =H40*I40 -> 0.9922696 | L40: TRUE
A45: 2.2 | B45: Código | C45: Banco | D45: Descrição | E45: Tipo | G45: Und | H45: Quant. | I45: Valor Unit | J45: Total
A46: Composição | B46: COMPOSIÇÃO - 4 | C46: Próprio | D46: Transporte de Comboio Instalação | E46: TRAN - TRANSPORTES, CARGAS E DESCARGAS | G46: km | H46: 1 | I46: =SUM(J47:J48) -> 5.9572828 | J46: =H46*I46 -> 5.9572828 | L46: =_xlfn.ISFORMULA(I46) -> TRUE
A47: Composição Auxiliar | B47: 5928 | C47: SINAPI | D47: GUINDAUTO HIDRÁULICO, CAPACIDADE MÁXIMA DE CARGA 6200 KG, MOMENTO MÁXIMO DE CARGA 11,7 TM, ALCANCE MÁXIMO HORIZONTAL 9,70 M, INCLUSIVE CAMINHÃO TOCO PBT 16.000 KG, POTÊNCIA DE 189 CV - CHP DIURNO. AF_06/2014 | E47: Custos Horários Produtivo e Improdutivo dos Equipamentos | G47: CHP | H47: 0.01666 | I47: =IF(C47="SINAPI", IF( IF(A47="Insumo", VLOOKUP(B47,'SINAPI INSUMOS'!B:F,5,0), VLOOKUP(B47,'SINAPI COMP'!B:F,4,0))=0,VLOOKUP(B47,'OUTRAS BASES'!C:D,2,0),IF(A47="Insumo", VLOOKUP(B47,'SINAPI INSUMOS'!B:F,5,0),VLOOKUP(B47,'SINAPI COMP'!B:F,4,0))), VLOOKUP(B47,'OUTRAS BASES'!C:D,2,0)) -> 286.55 | J47: =H47*I47 -> 4.773923 | L47: TRUE
A48: Composição Auxiliar | B48: 5930 | C48: SINAPI | D48: GUINDAUTO HIDRÁULICO, CAPACIDADE MÁXIMA DE CARGA 6200 KG, MOMENTO MÁXIMO DE CARGA 11,7 TM, ALCANCE MÁXIMO HORIZONTAL 9,70 M, INCLUSIVE CAMINHÃO TOCO PBT 16.000 KG, POTÊNCIA DE 189 CV - CHI DIURNO. AF_06/2014 | E48: Custos Horários Produtivo e Improdutivo dos Equipamentos | G48: CHI | H48: 0.01666 | I48: =IF(C48="SINAPI", IF( IF(A48="Insumo", VLOOKUP(B48,'SINAPI INSUMOS'!B:F,5,0), VLOOKUP(B48,'SINAPI COMP'!B:F,4,0))=0,VLOOKUP(B48,'OUTRAS BASES'!C:D,2,0),IF(A48="Insumo", VLOOKUP(B48,'SINAPI INSUMOS'!B:F,5,0),VLOOKUP(B48,'SINAPI COMP'!B:F,4,0))), VLOOKUP(B48,'OUTRAS BASES'!C:D,2,0)) -> 71.03 | J48: =H48*I48 -> 1.1833598 | L48: TRUE
A53: 2.3 | B53: Código | C53: Banco | D53: Descrição | E53: Tipo | G53: Und | H53: Quant. | I53: Valor Unit | J53: Total
A54: Composição | B54: COMPOSIÇÃO - 5 | C54: Próprio | D54: Transporte de Equipe Teste de Vazão | E54: TRAN - TRANSPORTES, CARGAS E DESCARGAS | G54: km | H54: 1 | I54: =SUM(J55:J56) -> 2.607113 | J54: =H54*I54 -> 2.607113 | L54: =_xlfn.ISFORMULA(I54) -> TRUE
A55: Composição Auxiliar | B55: 73467 | C55: SINAPI | D55: CAMINHÃO TOCO, PBT 14.300 KG, CARGA ÚTIL MÁX. 9.710 KG, DIST. ENTRE EIXOS 3,56 M, POTÊNCIA 185 CV, INCLUSIVE CARROCERIA FIXA ABERTA DE MADEIRA P/ TRANSPORTE GERAL DE CARGA SECA, DIMEN. APROX. 2,50 X 6,50 X 0,50 M - CHP DIURNO. AF_06/2014 | E55: Custos Horários Produtivo e Improdutivo dos Equipamentos | G55: CHP | H55: 0.0083 | I55: =IF(C55="SINAPI", IF( IF(A55="Insumo", VLOOKUP(B55,'SINAPI INSUMOS'!B:F,5,0), VLOOKUP(B55,'SINAPI COMP'!B:F,4,0))=0,VLOOKUP(B55,'OUTRAS BASES'!C:D,2,0),IF(A55="Insumo", VLOOKUP(B55,'SINAPI INSUMOS'!B:F,5,0),VLOOKUP(B55,'SINAPI COMP'!B:F,4,0))), VLOOKUP(B55,'OUTRAS BASES'!C:D,2,0)) -> 257.47 | J55: =H55*I55 -> 2.137001 | L55: TRUE
A56: Composição Auxiliar | B56: 91395 | C56: SINAPI | D56: CAMINHÃO TOCO, PBT 14.300 KG, CARGA ÚTIL MÁX. 9.710 KG, DIST. ENTRE EIXOS 3,56 M, POTÊNCIA 185 CV, INCLUSIVE CARROCERIA FIXA ABERTA DE MADEIRA P/ TRANSPORTE GERAL DE CARGA SECA, DIMEN. APROX. 2,50 X 6,50 X 0,50 M - CHI DIURNO. AF_06/2014 | E56: Custos Horários Produtivo e Improdutivo dos Equipamentos | G56: CHI | H56: 0.0083 | I56: =IF(C56="SINAPI", IF( IF(A56="Insumo", VLOOKUP(B56,'SINAPI INSUMOS'!B:F,5,0), VLOOKUP(B56,'SINAPI COMP'!B:F,4,0))=0,VLOOKUP(B56,'OUTRAS BASES'!C:D,2,0),IF(A56="Insumo", VLOOKUP(B56,'SINAPI INSUMOS'!B:F,5,0),VLOOKUP(B56,'SINAPI COMP'!B:F,4,0))), VLOOKUP(B56,'OUTRAS BASES'!C:D,2,0)) -> 56.64 | J56: =H56*I56 -> 0.470112 | L56: TRUE
A61: 2.4 | B61: Código | C61: Banco | D61: Descrição | E61: Tipo | G61: Und | H61: Quant. | I61: Valor Unit | J61: Total
A62: Insumo | B62: COTAÇÃO-015 | C62: Próprio | D62: Transporte hidroviário perfuração e instalação poços - trecho ida e volta | E62: Transporte | G62: un. | H62: 1 | I62: 5576.46 | J62: =H62*I62 -> 5576.46 | L62: =_xlfn.ISFORMULA(I62) -> FALSE
A67: 3 | D67: PERFURAÇÃO E COMPLETAÇÃO DE POÇO TUBULAR | J67: 108559.16
A68: 3.1 | B68: Código | C68: Banco | D68: Descrição | E68: Tipo | G68: Und | H68: Quant. | I68: Valor Unit | J68: Total
A69: Composição | B69: COMPOSIÇÃO - 6 | C69: Próprio | D69: Perfuração diâmetro de Ø 12 1/2" em sedimento/camadas inconsolidadas - incluso mão de obra para instalação do revestimento e completação anelar | E69: SERT - SERVIÇOS TÉCNICOS | G69: m | H69: 1 | I69: =SUM(J70:J71) -> 255.86 | J69: =H69*I69 -> 255.86 | L69: =_xlfn.ISFORMULA(I69) -> TRUE
A70: Composição Auxiliar | B70: 5057 | C70: ORSE | D70: Perfuração rocha sedimentar sedimento / Camadas inconsolidadas DN 12.1/2" - Poço até 150 m | E70: Conversão InfoWOrca | G70: m | H70: 1 | I70: =IF(C70="SINAPI", IF( IF(A70="Insumo", VLOOKUP(B70,'SINAPI INSUMOS'!B:F,5,0), VLOOKUP(B70,'SINAPI COMP'!B:F,4,0))=0,VLOOKUP(B70,'OUTRAS BASES'!C:D,2,0),IF(A70="Insumo", VLOOKUP(B70,'SINAPI INSUMOS'!B:F,5,0),VLOOKUP(B70,'SINAPI COMP'!B:F,4,0))), VLOOKUP(B70,'OUTRAS BASES'!C:D,2,0)) -> 247.66 | J70: =H70*I70 -> 247.66 | L70: TRUE
A71: Insumo | B71: 43366 | C71: SINAPI | D71: BENTONITA, ARGILA CONSTITUIDA POR MONTMORILONITA | E71: Material | G71: KG | H71: 5 | I71: =IF(C71="SINAPI", IF( IF(A71="Insumo", VLOOKUP(B71,'SINAPI INSUMOS'!B:F,5,0), VLOOKUP(B71,'SINAPI COMP'!B:F,4,0))=0,VLOOKUP(B71,'OUTRAS BASES'!C:D,2,0),IF(A71="Insumo", VLOOKUP(B71,'SINAPI INSUMOS'!B:F,5,0),VLOOKUP(B71,'SINAPI COMP'!B:F,4,0))), VLOOKUP(B71,'OUTRAS BASES'!C:D,2,0)) -> 1.64 | J71: =H71*I71 -> 8.2 | K71: Preço AS digitado (Atribuído São Paulo) | L71: TRUE
A76: 3.2 | B76: Código | C76: Banco | D76: Descrição | E76: Tipo | G76: Und | H76: Quant. | I76: Valor Unit | J76: Total
A77: Insumo | B77: 5073 | C77: ORSE | D77: Fornecimento de pré-filtro comum m3 | E77: Serviços | G77: m³ | H77: 1 | I77: =IF(C77="SINAPI", IF( IF(A77="Insumo", VLOOKUP(B77,'SINAPI INSUMOS'!B:F,5,0), VLOOKUP(B77,'SINAPI COMP'!B:F,4,0))=0,VLOOKUP(B77,'OUTRAS BASES'!C:D,2,0),IF(A77="Insumo", VLOOKUP(B77,'SINAPI INSUMOS'!B:F,5,0),VLOOKUP(B77,'SINAPI COMP'!B:F,4,0))), VLOOKUP(B77,'OUTRAS BASES'!C:D,2,0)) -> 1619.38 | J77: =H77*I77 -> 1619.38 | L77: =_xlfn.ISFORMULA(I77) -> TRUE
A82: 3.3 | B82: Código | C82: Banco | D82: Descrição | E82: Tipo | G82: Und | H82: Quant. | I82: Valor Unit | J82: Total
A83: Insumo | B83: 5091 | C83: ORSE | D83: Revestimento filtro pvc geomecânico reforçado dn 150mm | E83: Serviços | G83: m | H83: 1 | I83: =IF(C83="SINAPI", IF( IF(A83="Insumo", VLOOKUP(B83,'SINAPI INSUMOS'!B:F,5,0), VLOOKUP(B83,'SINAPI COMP'!B:F,4,0))=0,VLOOKUP(B83,'OUTRAS BASES'!C:D,2,0),IF(A83="Insumo", VLOOKUP(B83,'SINAPI INSUMOS'!B:F,5,0),VLOOKUP(B83,'SINAPI COMP'!B:F,4,0))), VLOOKUP(B83,'OUTRAS BASES'!C:D,2,0)) -> 221.38 | J83: =H83*I83 -> 221.38 | L83: =_xlfn.ISFORMULA(I83) -> TRUE
A88: 3.4 | B88: Código | C88: Banco | D88: Descrição | E88: Tipo | G88: Und | H88: Quant. | I88: Valor Unit | J88: Total
A89: Insumo | B89: 5024 | C89: ORSE | D89: Centralizador em 6" | E89: Serviços | G89: un | H89: 1 | I89: =IF(C89="SINAPI", IF( IF(A89="Insumo", VLOOKUP(B89,'SINAPI INSUMOS'!B:F,5,0), VLOOKUP(B89,'SINAPI COMP'!B:F,4,0))=0,VLOOKUP(B89,'OUTRAS BASES'!C:D,2,0),IF(A89="Insumo", VLOOKUP(B89,'SINAPI INSUMOS'!B:F,5,0),VLOOKUP(B89,'SINAPI COMP'!B:F,4,0))), VLOOKUP(B89,'OUTRAS BASES'!C:D,2,0)) -> 267.02 | J89: =H89*I89 -> 267.02 | L89: =_xlfn.ISFORMULA(I89) -> TRUE
A94: 3.5 | B94: Código | C94: Banco | D94: Descrição | E94: Tipo | G94: Und | H94: Quant. | I94: Valor Unit | J94: Total
A95: Insumo | B95: 9850 | C95: SINAPI | D95: TUBO PVC DE REVESTIMENTO GEOMECANICO NERVURADO REFORCADO, DN = 150 MM, COMPRIMENTO = 2 M | E95: Material | G95: M | H95: 1 | I95: =IF(C95="SINAPI", IF( IF(A95="Insumo", VLOOKUP(B95,'SINAPI INSUMOS'!B:F,5,0), VLOOKUP(B95,'SINAPI COMP'!B:F,4,0))=0,VLOOKUP(B95,'OUTRAS BASES'!C:D,2,0),IF(A95="Insumo", VLOOKUP(B95,'SINAPI INSUMOS'!B:F,5,0),VLOOKUP(B95,'SINAPI COMP'!B:F,4,0))), VLOOKUP(B95,'OUTRAS BASES'!C:D,2,0)) -> 234.5 | J95: =H95*I95 -> 234.5 | K95: Preço AS digitado (Atribuído São Paulo) | L95: =_xlfn.ISFORMULA(I95) -> TRUE
A100: 3.6 | B100: Código | C100: Banco | D100: Descrição | E100: Tipo | G100: Und | H100: Quant. | I100: Valor Unit | J100: Total
A101: Composição | B101: COMPOSIÇÃO - 7 | C101: Próprio | D101: Serviço de lançamento cimentação anelar, incluso materiais. | E101: SEDI - SERVIÇOS DIVERSOS | G101: m³ | H101: 1 | I101: =J102 -> 521.34 | J101: =H101*I101 -> 521.34
A102: Composição Auxiliar | B102: 1903 | C102: ORSE | D102: Argamassa cimento e areia traço t-1 (1:3) - 1 saco cimento 50kg / 3 padiolas areia dim. 0.35 x 0.45 x 0.23 m - Confecção mecânica e transporte | E102: Argamassas | G102: m³ | H102: 1 | I102: =IF(C102="SINAPI", IF( IF(A102="Insumo", VLOOKUP(B102,'SINAPI INSUMOS'!B:F,5,0), VLOOKUP(B102,'SINAPI COMP'!B:F,4,0))=0,VLOOKUP(B102,'OUTRAS BASES'!C:D,2,0),IF(A102="Insumo", VLOOKUP(B102,'SINAPI INSUMOS'!B:F,5,0),VLOOKUP(B102,'SINAPI COMP'!B:F,4,0))), VLOOKUP(B102,'OUTRAS BASES'!C:D,2,0)) -> 521.34 | J102: =H102*I102 -> 521.34 | L102: =_xlfn.ISFORMULA(I102) -> TRUE
A107: 4 | D107: PÓS PERFURAÇÃO | J107: 12326.04
A108: 4.1 | B108: Código | C108: Banco | D108: Descrição | E108: Tipo | G108: Und | H108: Quant. | I108: Valor Unit | J108: Total
A109: Composição | B109: 6305 | C109: ORSE | D109: Desenvolvimento com Compressor 250psi / 750cfm | E109: Conversão InfoWOrca | G109: h | H109: 1 | I109: =IF(C109="SINAPI", IF( IF(A109="Insumo", VLOOKUP(B109,'SINAPI INSUMOS'!B:F,5,0), VLOOKUP(B109,'SINAPI COMP'!B:F,4,0))=0,VLOOKUP(B109,'OUTRAS BASES'!C:D,2,0),IF(A109="Insumo", VLOOKUP(B109,'SINAPI INSUMOS'!B:F,5,0),VLOOKUP(B109,'SINAPI COMP'!B:F,4,0))), VLOOKUP(B109,'OUTRAS BASES'!C:D,2,0)) -> 411.16 | J109: =H109*I109 -> 411.16 | L109: =_xlfn.ISFORMULA(I109) -> TRUE
A110: Insumo | B110: 5030 | C110: ORSE | D110: Desenvolvimento com compressor 250psi - 750cfm h | E110: Serviços | G110: h | H110: 1 | I110: =IF(C110="SINAPI", IF( IF(A110="Insumo", VLOOKUP(B110,'SINAPI INSUMOS'!B:F,5,0), VLOOKUP(B110,'SINAPI COMP'!B:F,4,0))=0,VLOOKUP(B110,'OUTRAS BASES'!C:D,2,0),IF(A110="Insumo", VLOOKUP(B110,'SINAPI INSUMOS'!B:F,5,0),VLOOKUP(B110,'SINAPI COMP'!B:F,4,0))), VLOOKUP(B110,'OUTRAS BASES'!C:D,2,0)) -> 411.16 | J110: =H110*I110 -> 411.16 | L110: TRUE
A115: 4.2 | B115: Código | C115: Banco | D115: Descrição | E115: Tipo | G115: Und | H115: Quant. | I115: Valor Unit | J115: Total
A116: Composição | B116: COMPOSIÇÃO - 8 | C116: Próprio | D116: Inspeção ótica em poço tubular câmera com rotação de 360º, visada lateral, com fonte própria de luz, entregue vídeo em cores e marcação de profundidades. | E116: SEES - SERVIÇOS ESPECIAIS | G116: m | H116: 1 | I116: =SUM(J117:J118) -> 9.64046 | J116: =H116*I116 -> 9.64046
A117: Insumo | B117: H020050004 | C117: EMBASA | D117: APARELHO DE PERFILAGEM OPTICA | E117: Material | G117: M | H117: 1 | I117: =IF(C117="SINAPI", IF( IF(A117="Insumo", VLOOKUP(B117,'SINAPI INSUMOS'!B:F,5,0), VLOOKUP(B117,'SINAPI COMP'!B:F,4,0))=0,VLOOKUP(B117,'OUTRAS BASES'!C:D,2,0),IF(A117="Insumo", VLOOKUP(B117,'SINAPI INSUMOS'!B:F,5,0),VLOOKUP(B117,'SINAPI COMP'!B:F,4,0))), VLOOKUP(B117,'OUTRAS BASES'!C:D,2,0)) -> 4.4 | J117: =H117*I117 -> 4.4 | L117: =_xlfn.ISFORMULA(I117) -> TRUE
A118: Insumo | B118: B590000022 | C118: EMBASA | D118: TECNICO MEDIO | E118: Mão de Obra | G118: H | H118: 0.0835 | I118: =IF(C118="SINAPI", IF( IF(A118="Insumo", VLOOKUP(B118,'SINAPI INSUMOS'!B:F,5,0), VLOOKUP(B118,'SINAPI COMP'!B:F,4,0))=0,VLOOKUP(B118,'OUTRAS BASES'!C:D,2,0),IF(A118="Insumo", VLOOKUP(B118,'SINAPI INSUMOS'!B:F,5,0),VLOOKUP(B118,'SINAPI COMP'!B:F,4,0))), VLOOKUP(B118,'OUTRAS BASES'!C:D,2,0)) -> 62.76 | J118: =H118*I118 -> 5.24046 | L118: TRUE
A123: 4.3 | B123: Código | C123: Banco | D123: Descrição | E123: Tipo | G123: Und | H123: Quant. | I123: Valor Unit | J123: Total
A124: Composição | B124: COMPOSIÇÃO - 9 | C124: Próprio | D124: Serviço de coleta e Análise Físico-Química e Bacteriológica | E124: SEDI - SERVIÇOS DIVERSOS | G124: un | H124: 1 | I124: =SUM(J125:J126) -> 621.19 | J124: =H124*I124 -> 621.19
A125: Composição Auxiliar | B125: 6312 | C125: ORSE | D125: Análise Físico-química da Água | E125: Conversão InfoWOrca | G125: un | H125: 1 | I125: =IF(C125="SINAPI", IF( IF(A125="Insumo", VLOOKUP(B125,'SINAPI INSUMOS'!B:F,5,0), VLOOKUP(B125,'SINAPI COMP'!B:F,4,0))=0,VLOOKUP(B125,'OUTRAS BASES'!C:D,2,0),IF(A125="Insumo", VLOOKUP(B125,'SINAPI INSUMOS'!B:F,5,0),VLOOKUP(B125,'SINAPI COMP'!B:F,4,0))), VLOOKUP(B125,'OUTRAS BASES'!C:D,2,0)) -> 565.21 | J125: =H125*I125 -> 565.21 | L125: =_xlfn.ISFORMULA(I125) -> TRUE
A126: Composição Auxiliar | B126: 6313 | C126: ORSE | D126: Análise Bacteriológica da Água | E126: Conversão InfoWOrca | G126: un | H126: 1 | I126: =IF(C126="SINAPI", IF( IF(A126="Insumo", VLOOKUP(B126,'SINAPI INSUMOS'!B:F,5,0), VLOOKUP(B126,'SINAPI COMP'!B:F,4,0))=0,VLOOKUP(B126,'OUTRAS BASES'!C:D,2,0),IF(A126="Insumo", VLOOKUP(B126,'SINAPI INSUMOS'!B:F,5,0),VLOOKUP(B126,'SINAPI COMP'!B:F,4,0))), VLOOKUP(B126,'OUTRAS BASES'!C:D,2,0)) -> 55.98 | J126: =H126*I126 -> 55.98 | L126: TRUE
A131: 4.4 | B131: Código | C131: Banco | D131: Descrição | E131: Tipo | G131: Und | H131: Quant. | I131: Valor Unit | J131: Total
A132: Composição | B132: COMPOSIÇÃO - 10 | C132: Próprio | D132: Serviço de instalação de laje sanitária com dimensões (1,5x1,5x0,3) , incluso material. | E132: SEDI - SERVIÇOS DIVERSOS | G132: un | H132: 1 | I132: =SUM(J133:J136) -> 776.961 | J132: =H132*I132 -> 776.961
A133: Composição Auxiliar | B133: 92522 | C133: SINAPI | D133: MONTAGEM E DESMONTAGEM DE FÔRMA DE LAJE MACIÇA, PÉ-DIREITO SIMPLES, EM CHAPA DE MADEIRA COMPENSADA RESINADA, 8 UTILIZAÇÕES. AF_09/2020 | E133: Fôrmas para Estruturas de Concreto Armado | G133: m² | H133: 1.8 | I133: =IF(C133="SINAPI", IF( IF(A133="Insumo", VLOOKUP(B133,'SINAPI INSUMOS'!B:F,5,0), VLOOKUP(B133,'SINAPI COMP'!B:F,4,0))=0,VLOOKUP(B133,'OUTRAS BASES'!C:D,2,0),IF(A133="Insumo", VLOOKUP(B133,'SINAPI INSUMOS'!B:F,5,0),VLOOKUP(B133,'SINAPI COMP'!B:F,4,0))), VLOOKUP(B133,'OUTRAS BASES'!C:D,2,0)) -> 44.25 | J133: =H133*I133 -> 79.65 | L133: =_xlfn.ISFORMULA(I133) -> TRUE
A134: Composição Auxiliar | B134: 93358 | C134: SINAPI | D134: ESCAVAÇÃO MANUAL DE VALA COM PROFUNDIDADE MENOR OU IGUAL A 1,30 M. AF_02/2021 | E134: Escavação de Valas | G134: m³ | H134: 0.225 | I134: =IF(C134="SINAPI", IF( IF(A134="Insumo", VLOOKUP(B134,'SINAPI INSUMOS'!B:F,5,0), VLOOKUP(B134,'SINAPI COMP'!B:F,4,0))=0,VLOOKUP(B134,'OUTRAS BASES'!C:D,2,0),IF(A134="Insumo", VLOOKUP(B134,'SINAPI INSUMOS'!B:F,5,0),VLOOKUP(B134,'SINAPI COMP'!B:F,4,0))), VLOOKUP(B134,'OUTRAS BASES'!C:D,2,0)) -> 78.52 | J134: =H134*I134 -> 17.667 | L134: TRUE
A135: Composição Auxiliar | B135: 94975 | C135: SINAPI | D135: CONCRETO FCK = 15MPA, TRAÇO 1:3,4:3,5 (EM MASSA SECA DE CIMENTO/ AREIA MÉDIA/ BRITA 1) - PREPARO MANUAL. AF_05/2021 | E135: Produção de Concreto | G135: m³ | H135: 0.675 | I135: =IF(C135="SINAPI", IF( IF(A135="Insumo", VLOOKUP(B135,'SINAPI INSUMOS'!B:F,5,0), VLOOKUP(B135,'SINAPI COMP'!B:F,4,0))=0,VLOOKUP(B135,'OUTRAS BASES'!C:D,2,0),IF(A135="Insumo", VLOOKUP(B135,'SINAPI INSUMOS'!B:F,5,0),VLOOKUP(B135,'SINAPI COMP'!B:F,4,0))), VLOOKUP(B135,'OUTRAS BASES'!C:D,2,0)) -> 730.29 | J135: 492.94575 | L135: TRUE
A136: Composição Auxiliar | B136: 103670 | C136: SINAPI | D136: LANÇAMENTO COM USO DE BALDES, ADENSAMENTO E ACABAMENTO DE CONCRETO EM ESTRUTURAS. AF_02/2022 | E136: Concretagem para Estruturas de Concreto Armado | G136: m³ | H136: 0.675 | I136: =IF(C136="SINAPI", IF( IF(A136="Insumo", VLOOKUP(B136,'SINAPI INSUMOS'!B:F,5,0), VLOOKUP(B136,'SINAPI COMP'!B:F,4,0))=0,VLOOKUP(B136,'OUTRAS BASES'!C:D,2,0),IF(A136="Insumo", VLOOKUP(B136,'SINAPI INSUMOS'!B:F,5,0),VLOOKUP(B136,'SINAPI COMP'!B:F,4,0))), VLOOKUP(B136,'OUTRAS BASES'!C:D,2,0)) -> 276.59 | J136: 186.69825 | L136: TRUE
A141: 4.5 | B141: Código | C141: Banco | D141: Descrição | E141: Tipo | G141: Und | H141: Quant. | I141: Valor Unit | J141: Total
A142: Composição | B142: 24.80.22 | C142: EMBASA | D142: (REVISADA) DESENVOLVIMENTO OU TESTE COM BOMBA SUBMERSA - UEB1 NO SEDIMENTO COM VAZAO < 60M3 (Ensaio de bombeamento poço tubular incluso materiais e grupo gerador) | E142: 2480 | G142: H | H142: 1 | I142: =IF(C142="SINAPI", IF( IF(A142="Insumo", VLOOKUP(B142,'SINAPI INSUMOS'!B:F,5,0), VLOOKUP(B142,'SINAPI COMP'!B:F,4,0))=0,VLOOKUP(B142,'OUTRAS BASES'!C:D,2,0),IF(A142="Insumo", VLOOKUP(B142,'SINAPI INSUMOS'!B:F,5,0),VLOOKUP(B142,'SINAPI COMP'!B:F,4,0))), VLOOKUP(B142,'OUTRAS BASES'!C:D,2,0)) -> 263.27 | J142: =H142*I142 -> 263.27
A143: Composição Auxiliar | B143: 24.00.15 | C143: EMBASA | D143: EQUIPE (3 PROFISSIONAIS CAMPO) - BOMBEIO | E143: 2400 | G143: H | H143: 1 | I143: =IF(C143="SINAPI", IF( IF(A143="Insumo", VLOOKUP(B143,'SINAPI INSUMOS'!B:F,5,0), VLOOKUP(B143,'SINAPI COMP'!B:F,4,0))=0,VLOOKUP(B143,'OUTRAS BASES'!C:D,2,0),IF(A143="Insumo", VLOOKUP(B143,'SINAPI INSUMOS'!B:F,5,0),VLOOKUP(B143,'SINAPI COMP'!B:F,4,0))), VLOOKUP(B143,'OUTRAS BASES'!C:D,2,0)) -> 198.35 | J143: =H143*I143 -> 198.35 | L143: =_xlfn.ISFORMULA(I143) -> TRUE
A144: Insumo | B144: H020050001 | C144: EMBASA | D144: UNIDADE DE ENSAIO E BOMBEAMENTO - UEB1 ATE 150M3 NO SEDIMENTO | E144: Material | G144: H | H144: 1 | I144: =IF(C144="SINAPI", IF( IF(A144="Insumo", VLOOKUP(B144,'SINAPI INSUMOS'!B:F,5,0), VLOOKUP(B144,'SINAPI COMP'!B:F,4,0))=0,VLOOKUP(B144,'OUTRAS BASES'!C:D,2,0),IF(A144="Insumo", VLOOKUP(B144,'SINAPI INSUMOS'!B:F,5,0),VLOOKUP(B144,'SINAPI COMP'!B:F,4,0))), VLOOKUP(B144,'OUTRAS BASES'!C:D,2,0)) -> 64.92 | J144: =H144*I144 -> 64.92 | L144: TRUE
A149: 5 | D149: RESERVAÇÃO
A150: 5.1 | B150: Código | C150: Banco | D150: Descrição | E150: Tipo | G150: Und | H150: Quant. | I150: Valor Unit | J150: Total
A151: Composição | B151: COMPOSIÇÃO - 11 | C151: Próprio | D151: Fornecimento e instalação de reservatório e base elevada 10 m³ | E151: ASTU - ASSENTAMENTO DE TUBOS E PECAS | G151: un | H151: 1 | I151: =SUM(J152:J173) -> 20417.17379 | J151: =H151*I151 -> 20417.17379 | L151: TRUE
A152: Composição Auxiliar | B152: 92759 | C152: SINAPI | D152: ARMAÇÃO DE PILAR OU VIGA DE ESTRUTURA CONVENCIONAL DE CONCRETO ARMADO UTILIZANDO AÇO CA-60 DE 5,0 MM - MONTAGEM. AF_06/2022 | E152: Armação para Estruturas de Concreto Armado | G152: KG | H152: 17.2 | I152: =IF(C152="SINAPI", IF( IF(A152="Insumo", VLOOKUP(B152,'SINAPI INSUMOS'!B:F,5,0), VLOOKUP(B152,'SINAPI COMP'!B:F,4,0))=0,VLOOKUP(B152,'OUTRAS BASES'!C:D,2,0),IF(A152="Insumo", VLOOKUP(B152,'SINAPI INSUMOS'!B:F,5,0),VLOOKUP(B152,'SINAPI COMP'!B:F,4,0))), VLOOKUP(B152,'OUTRAS BASES'!C:D,2,0)) -> 15.79 | J152: =H152*I152 -> 271.588 | L152: TRUE
A153: Composição Auxiliar | B153: 92761 | C153: SINAPI | D153: ARMAÇÃO DE PILAR OU VIGA DE ESTRUTURA CONVENCIONAL DE CONCRETO ARMADO UTILIZANDO AÇO CA-50 DE 8,0 MM - MONTAGEM. AF_06/2022 | E153: Armação para Estruturas de Concreto Armado | G153: KG | H153: 30.4 | I153: =IF(C153="SINAPI", IF( IF(A153="Insumo", VLOOKUP(B153,'SINAPI INSUMOS'!B:F,5,0), VLOOKUP(B153,'SINAPI COMP'!B:F,4,0))=0,VLOOKUP(B153,'OUTRAS BASES'!C:D,2,0),IF(A153="Insumo", VLOOKUP(B153,'SINAPI INSUMOS'!B:F,5,0),VLOOKUP(B153,'SINAPI COMP'!B:F,4,0))), VLOOKUP(B153,'OUTRAS BASES'!C:D,2,0)) -> 14.58 | J153: =H153*I153 -> 443.232 | L153: TRUE
A154: Composição Auxiliar | B154: 92768 | C154: SINAPI | D154: ARMAÇÃO DE LAJE DE ESTRUTURA CONVENCIONAL DE CONCRETO ARMADO UTILIZANDO AÇO CA-60 DE 5,0 MM - MONTAGEM. AF_06/2022 | E154: Armação para Estruturas de Concreto Armado | G154: KG | H154: 11.9 | I154: =IF(C154="SINAPI", IF( IF(A154="Insumo", VLOOKUP(B154,'SINAPI INSUMOS'!B:F,5,0), VLOOKUP(B154,'SINAPI COMP'!B:F,4,0))=0,VLOOKUP(B154,'OUTRAS BASES'!C:D,2,0),IF(A154="Insumo", VLOOKUP(B154,'SINAPI INSUMOS'!B:F,5,0),VLOOKUP(B154,'SINAPI COMP'!B:F,4,0))), VLOOKUP(B154,'OUTRAS BASES'!C:D,2,0)) -> 15.29 | J154: 181.951 | L154: TRUE
A155: Composição Auxiliar | B155: 92770 | C155: SINAPI | D155: ARMAÇÃO DE LAJE DE ESTRUTURA CONVENCIONAL DE CONCRETO ARMADO UTILIZANDO AÇO CA-50 DE 8,0 MM - MONTAGEM. AF_06/2022 | E155: Armação para Estruturas de Concreto Armado | G155: KG | H155: 48 | I155: =IF(C155="SINAPI", IF( IF(A155="Insumo", VLOOKUP(B155,'SINAPI INSUMOS'!B:F,5,0), VLOOKUP(B155,'SINAPI COMP'!B:F,4,0))=0,VLOOKUP(B155,'OUTRAS BASES'!C:D,2,0),IF(A155="Insumo", VLOOKUP(B155,'SINAPI INSUMOS'!B:F,5,0),VLOOKUP(B155,'SINAPI COMP'!B:F,4,0))), VLOOKUP(B155,'OUTRAS BASES'!C:D,2,0)) -> 14.11 | J155: 677.28 | L155: TRUE
A156: Composição Auxiliar | B156: 93358 | C156: SINAPI | D156: ESCAVAÇÃO MANUAL DE VALA COM PROFUNDIDADE MENOR OU IGUAL A 1,30 M. AF_02/2021 | E156: Escavação de Valas | G156: m³ | H156: 5.2 | I156: =IF(C156="SINAPI", IF( IF(A156="Insumo", VLOOKUP(B156,'SINAPI INSUMOS'!B:F,5,0), VLOOKUP(B156,'SINAPI COMP'!B:F,4,0))=0,VLOOKUP(B156,'OUTRAS BASES'!C:D,2,0),IF(A156="Insumo", VLOOKUP(B156,'SINAPI INSUMOS'!B:F,5,0),VLOOKUP(B156,'SINAPI COMP'!B:F,4,0))), VLOOKUP(B156,'OUTRAS BASES'!C:D,2,0)) -> 78.52 | J156: 408.304 | L156: TRUE
A157: Composição Auxiliar | B157: 92763 | C157: SINAPI | D157: ARMAÇÃO DE PILAR OU VIGA DE ESTRUTURA CONVENCIONAL DE CONCRETO ARMADO UTILIZANDO AÇO CA-50 DE 12,5 MM - MONTAGEM. AF_06/2022 | E157: Armação para Estruturas de Concreto Armado | G157: KG | H157: 118.4 | I157: =IF(C157="SINAPI", IF( IF(A157="Insumo", VLOOKUP(B157,'SINAPI INSUMOS'!B:F,5,0), VLOOKUP(B157,'SINAPI COMP'!B:F,4,0))=0,VLOOKUP(B157,'OUTRAS BASES'!C:D,2,0),IF(A157="Insumo", VLOOKUP(B157,'SINAPI INSUMOS'!B:F,5,0),VLOOKUP(B157,'SINAPI COMP'!B:F,4,0))), VLOOKUP(B157,'OUTRAS BASES'!C:D,2,0)) -> 11.12 | J157: 1316.608 | L157: TRUE
A158: Composição Auxiliar | B158: 94970 | C158: SINAPI | D158: CONCRETO FCK = 20MPA, TRAÇO 1:2,7:3 (EM MASSA SECA DE CIMENTO/ AREIA MÉDIA/ BRITA 1) - PREPARO MECÂNICO COM BETONEIRA 600 L. AF_05/2021 | E158: Produção de Concreto | G158: m³ | H158: 4.89 | I158: =IF(C158="SINAPI", IF( IF(A158="Insumo", VLOOKUP(B158,'SINAPI INSUMOS'!B:F,5,0), VLOOKUP(B158,'SINAPI COMP'!B:F,4,0))=0,VLOOKUP(B158,'OUTRAS BASES'!C:D,2,0),IF(A158="Insumo", VLOOKUP(B158,'SINAPI INSUMOS'!B:F,5,0),VLOOKUP(B158,'SINAPI COMP'!B:F,4,0))), VLOOKUP(B158,'OUTRAS BASES'!C:D,2,0)) -> 722.71 | J158: 3534.0519 | K158: Composição auxiliar teve seus insumos atualizados, presente na aba "Composições" | L158: TRUE
A159: Composição Auxiliar | B159: 103670 | C159: SINAPI | D159: LANÇAMENTO COM USO DE BALDES, ADENSAMENTO E ACABAMENTO DE CONCRETO EM ESTRUTURAS. AF_02/2022 | E159: Concretagem para Estruturas de Concreto Armado | G159: m³ | H159: 6.85 | I159: =IF(C159="SINAPI", IF( IF(A159="Insumo", VLOOKUP(B159,'SINAPI INSUMOS'!B:F,5,0), VLOOKUP(B159,'SINAPI COMP'!B:F,4,0))=0,VLOOKUP(B159,'OUTRAS BASES'!C:D,2,0),IF(A159="Insumo", VLOOKUP(B159,'SINAPI INSUMOS'!B:F,5,0),VLOOKUP(B159,'SINAPI COMP'!B:F,4,0))), VLOOKUP(B159,'OUTRAS BASES'!C:D,2,0)) -> 276.59 | J159: 1894.6415 | L159: TRUE
A160: Composição Auxiliar | B160: 84651 | C160: SINAPI | D160: PINTURA COM TINTA IMPERMEAVEL MINERAL EM PO, DUAS DEMAOS | E160: PINT - PINTURAS | G160: m² | H160: 28.27 | I160: =IF(C160="SINAPI", IF( IF(A160="Insumo", VLOOKUP(B160,'SINAPI INSUMOS'!B:F,5,0), VLOOKUP(B160,'SINAPI COMP'!B:F,4,0))=0,VLOOKUP(B160,'OUTRAS BASES'!C:D,2,0),IF(A160="Insumo", VLOOKUP(B160,'SINAPI INSUMOS'!B:F,5,0),VLOOKUP(B160,'SINAPI COMP'!B:F,4,0))), VLOOKUP(B160,'OUTRAS BASES'!C:D,2,0)) -> 13.0385 | J160: 368.598395 | L160: TRUE
A161: Composição Auxiliar | B161: 90776 | C161: SINAPI | D161: ENCARREGADO GERAL COM ENCARGOS COMPLEMENTARES | E161: Livro SINAPI: Cálculos e Parâmetros | G161: H | H161: 1 | I161: =IF(C161="SINAPI", IF( IF(A161="Insumo", VLOOKUP(B161,'SINAPI INSUMOS'!B:F,5,0), VLOOKUP(B161,'SINAPI COMP'!B:F,4,0))=0,VLOOKUP(B161,'OUTRAS BASES'!C:D,2,0),IF(A161="Insumo", VLOOKUP(B161,'SINAPI INSUMOS'!B:F,5,0),VLOOKUP(B161,'SINAPI COMP'!B:F,4,0))), VLOOKUP(B161,'OUTRAS BASES'!C:D,2,0)) -> 27.91 | J161: 27.91 | L161: TRUE
A162: Composição Auxiliar | B162: 102482 | C162: SINAPI | D162: CONCRETO FCK = 25MPA, TRAÇO 1:2,2:2,5 (EM MASSA SECA DE CIMENTO/ AREIA MÉDIA/ SEIXO ROLADO) - PREPARO MECÂNICO COM BETONEIRA 600 L. AF_05/2021 | E162: Produção de Concreto | G162: m³ | H162: 1.96 | I162: =IF(C162="SINAPI", IF( IF(A162="Insumo", VLOOKUP(B162,'SINAPI INSUMOS'!B:F,5,0), VLOOKUP(B162,'SINAPI COMP'!B:F,4,0))=0,VLOOKUP(B162,'OUTRAS BASES'!C:D,2,0),IF(A162="Insumo", VLOOKUP(B162,'SINAPI INSUMOS'!B:F,5,0),VLOOKUP(B162,'SINAPI COMP'!B:F,4,0))), VLOOKUP(B162,'OUTRAS BASES'!C:D,2,0)) -> 738.33 | J162: 1447.1268 | L162: TRUE
A163: Composição Auxiliar | B163: 92263 | C163: SINAPI | D163: FABRICAÇÃO DE FÔRMA PARA PILARES E ESTRUTURAS SIMILARES, EM CHAPA DE MADEIRA COMPENSADA RESINADA, E = 17 MM. AF_09/2020 | E163: Fôrmas para Estruturas de Concreto Armado | G163: m² | H163: 25.19 | I163: =IF(C163="SINAPI", IF( IF(A163="Insumo", VLOOKUP(B163,'SINAPI INSUMOS'!B:F,5,0), VLOOKUP(B163,'SINAPI COMP'!B:F,4,0))=0,VLOOKUP(B163,'OUTRAS BASES'!C:D,2,0),IF(A163="Insumo", VLOOKUP(B163,'SINAPI INSUMOS'!B:F,5,0),VLOOKUP(B163,'SINAPI COMP'!B:F,4,0))), VLOOKUP(B163,'OUTRAS BASES'!C:D,2,0)) -> 186 | J163: 4685.34 | L163: TRUE
A164: Composição Auxiliar | B164: 88267 | C164: SINAPI | D164: ENCANADOR OU BOMBEIRO HIDRÁULICO COM ENCARGOS COMPLEMENTARES | E164: Livro SINAPI: Cálculos e Parâmetros | G164: H | H164: 4 | I164: =IF(C164="SINAPI", IF( IF(A164="Insumo", VLOOKUP(B164,'SINAPI INSUMOS'!B:F,5,0), VLOOKUP(B164,'SINAPI COMP'!B:F,4,0))=0,VLOOKUP(B164,'OUTRAS BASES'!C:D,2,0),IF(A164="Insumo", VLOOKUP(B164,'SINAPI INSUMOS'!B:F,5,0),VLOOKUP(B164,'SINAPI COMP'!B:F,4,0))), VLOOKUP(B164,'OUTRAS BASES'!C:D,2,0)) -> 25.5 | J164: 102 | L164: TRUE
A165: Composição Auxiliar | B165: 88248 | C165: SINAPI | D165: AUXILIAR DE ENCANADOR OU BOMBEIRO HIDRÁULICO COM ENCARGOS COMPLEMENTARES | E165: Livro SINAPI: Cálculos e Parâmetros | G165: H | H165: 4 | I165: =IF(C165="SINAPI", IF( IF(A165="Insumo", VLOOKUP(B165,'SINAPI INSUMOS'!B:F,5,0), VLOOKUP(B165,'SINAPI COMP'!B:F,4,0))=0,VLOOKUP(B165,'OUTRAS BASES'!C:D,2,0),IF(A165="Insumo", VLOOKUP(B165,'SINAPI INSUMOS'!B:F,5,0),VLOOKUP(B165,'SINAPI COMP'!B:F,4,0))), VLOOKUP(B165,'OUTRAS BASES'!C:D,2,0)) -> 21.35 | J165: 85.4 | L165: TRUE
A166: Insumo | B166: 3146 | C166: SINAPI | D166: FITA VEDA ROSCA EM ROLOS DE 18 MM X 10 M (L X C) | E166: Material | G166: UN | H166: 0.18 | I166: =IF(C166="SINAPI", IF( IF(A166="Insumo", VLOOKUP(B166,'SINAPI INSUMOS'!B:F,5,0), VLOOKUP(B166,'SINAPI COMP'!B:F,4,0))=0,VLOOKUP(B166,'OUTRAS BASES'!C:D,2,0),IF(A166="Insumo", VLOOKUP(B166,'SINAPI INSUMOS'!B:F,5,0),VLOOKUP(B166,'SINAPI COMP'!B:F,4,0))), VLOOKUP(B166,'OUTRAS BASES'!C:D,2,0)) -> 4.49 | J166: =H166*I166 -> 0.8082 | L166: TRUE
A167: Insumo | B167: 37106 | C167: SINAPI | D167: CAIXA D'AGUA / RESERVATORIO EM POLIESTER REFORCADO COM FIBRA DE VIDRO, 10000 LITROS, COM TAMPA | E167: Material | G167: UN | H167: 1 | I167: =IF(C167="SINAPI", IF( IF(A167="Insumo", VLOOKUP(B167,'SINAPI INSUMOS'!B:F,5,0), VLOOKUP(B167,'SINAPI COMP'!B:F,4,0))=0,VLOOKUP(B167,'OUTRAS BASES'!C:D,2,0),IF(A167="Insumo", VLOOKUP(B167,'SINAPI INSUMOS'!B:F,5,0),VLOOKUP(B167,'SINAPI COMP'!B:F,4,0))), VLOOKUP(B167,'OUTRAS BASES'!C:D,2,0)) -> 4724.2 | J167: =H167*I167 -> 4724.2 | L167: TRUE
A168: Insumo | B168: 14073 | C168: ORSE | D168: CURVA 90º PVC D=50MM, LINHA IRRIGA-LF, TIGRE OU SIMILAR | E168: Material | G168: UM | H168: 3 | I168: =IF(C168="SINAPI", IF( IF(A168="Insumo", VLOOKUP(B168,'SINAPI INSUMOS'!B:F,5,0), VLOOKUP(B168,'SINAPI COMP'!B:F,4,0))=0,VLOOKUP(B168,'OUTRAS BASES'!C:D,2,0),IF(A168="Insumo", VLOOKUP(B168,'SINAPI INSUMOS'!B:F,5,0),VLOOKUP(B168,'SINAPI COMP'!B:F,4,0))), VLOOKUP(B168,'OUTRAS BASES'!C:D,2,0)) -> 8.1 | J168: 24.3 | L168: TRUE
A169: Insumo | B169: 14068 | C169: ORSE | D169: Tubo PVC para irrigação LF PN 80 Ø 50mm, linha Irriga-LF, Tigre ou similar | E169: Material | G169: UN | H169: 15.2 | I169: =IF(C169="SINAPI", IF( IF(A169="Insumo", VLOOKUP(B169,'SINAPI INSUMOS'!B:F,5,0), VLOOKUP(B169,'SINAPI COMP'!B:F,4,0))=0,VLOOKUP(B169,'OUTRAS BASES'!C:D,2,0),IF(A169="Insumo", VLOOKUP(B169,'SINAPI INSUMOS'!B:F,5,0),VLOOKUP(B169,'SINAPI COMP'!B:F,4,0))), VLOOKUP(B169,'OUTRAS BASES'!C:D,2,0)) -> 9.27 | J169: 140.904 | L169: TRUE
A170: Insumo | B170: 1434 | C170: ORSE | D170: Luva pvc rigido roscavel d=2 " | E170: Material | G170: UN | H170: 1 | I170: =IF(C170="SINAPI", IF( IF(A170="Insumo", VLOOKUP(B170,'SINAPI INSUMOS'!B:F,5,0), VLOOKUP(B170,'SINAPI COMP'!B:F,4,0))=0,VLOOKUP(B170,'OUTRAS BASES'!C:D,2,0),IF(A170="Insumo", VLOOKUP(B170,'SINAPI INSUMOS'!B:F,5,0),VLOOKUP(B170,'SINAPI COMP'!B:F,4,0))), VLOOKUP(B170,'OUTRAS BASES'!C:D,2,0)) -> 28.58 | J170: 28.58 | L170: TRUE
A171: Insumo | B171: 90 | C171: ORSE | D171: Adaptador curto, pvc rigido soldavel, c/ bolsa e rosca p/ registro, d= 50mm x 1 1/2” | E171: Material | G171: UN | H171: 1 | I171: =IF(C171="SINAPI", IF( IF(A171="Insumo", VLOOKUP(B171,'SINAPI INSUMOS'!B:F,5,0), VLOOKUP(B171,'SINAPI COMP'!B:F,4,0))=0,VLOOKUP(B171,'OUTRAS BASES'!C:D,2,0),IF(A171="Insumo", VLOOKUP(B171,'SINAPI INSUMOS'!B:F,5,0),VLOOKUP(B171,'SINAPI COMP'!B:F,4,0))), VLOOKUP(B171,'OUTRAS BASES'!C:D,2,0)) -> 4.2 | J171: 4.2 | L171: TRUE
A172: Insumo | B172: 99 | C172: SINAPI | D172: ADAPTADOR PVC SOLDAVEL, COM FLANGE E ANEL DE VEDACAO, 50 MM X 1 1/2", PARA CAIXA D'AGUA | E172: Material | G172: UN | H172: 2 | I172: =IF(C172="SINAPI", IF( IF(A172="Insumo", VLOOKUP(B172,'SINAPI INSUMOS'!B:F,5,0), VLOOKUP(B172,'SINAPI COMP'!B:F,4,0))=0,VLOOKUP(B172,'OUTRAS BASES'!C:D,2,0),IF(A172="Insumo", VLOOKUP(B172,'SINAPI INSUMOS'!B:F,5,0),VLOOKUP(B172,'SINAPI COMP'!B:F,4,0))), VLOOKUP(B172,'OUTRAS BASES'!C:D,2,0)) -> 23.05 | J172: 46.1 | L172: TRUE
A173: Insumo | B173: 119 | C173: SINAPI | D173: ADESIVO PLASTICO PARA PVC, BISNAGA COM 75 GR | E173: Material | G173: UN | H173: 0.45 | I173: =IF(C173="SINAPI", IF( IF(A173="Insumo", VLOOKUP(B173,'SINAPI INSUMOS'!B:F,5,0), VLOOKUP(B173,'SINAPI COMP'!B:F,4,0))=0,VLOOKUP(B173,'OUTRAS BASES'!C:D,2,0),IF(A173="Insumo", VLOOKUP(B173,'SINAPI INSUMOS'!B:F,5,0),VLOOKUP(B173,'SINAPI COMP'!B:F,4,0))), VLOOKUP(B173,'OUTRAS BASES'!C:D,2,0)) -> 9 | J173: 4.05 | L173: TRUE
A178: 5.2 | B178: Código | C178: Banco | D178: Descrição | E178: Tipo | G178: Und | H178: Quant. | I178: Valor Unit | J178: Total
A179: Composição | B179: COMPOSIÇÃO - 12 | C179: Próprio | D179: Fornecimento e execução de reservatório apoiado de 5 m³ | E179: SEDI - SERVIÇOS DIVERSOS | G179: un | H179: 1 | I179: =SUM(J180:J189) -> 8537.316425 | J179: =H179*I179 -> 8537.316425 | L179: =_xlfn.ISFORMULA(I179) -> TRUE
A180: Composição Auxiliar | B180: 88309 | C180: SINAPI | D180: PEDREIRO COM ENCARGOS COMPLEMENTARES | E180: Livro SINAPI: Cálculos e Parâmetros | G180: H | H180: 3 | I180: =IF(C180="SINAPI", IF( IF(A180="Insumo", VLOOKUP(B180,'SINAPI INSUMOS'!B:F,5,0), VLOOKUP(B180,'SINAPI COMP'!B:F,4,0))=0,VLOOKUP(B180,'OUTRAS BASES'!C:D,2,0),IF(A180="Insumo", VLOOKUP(B180,'SINAPI INSUMOS'!B:F,5,0),VLOOKUP(B180,'SINAPI COMP'!B:F,4,0))), VLOOKUP(B180,'OUTRAS BASES'!C:D,2,0)) -> 26.21 | J180: =H180*I180 -> 78.63 | L180: TRUE
A181: Composição Auxiliar | B181: 88316 | C181: SINAPI | D181: SERVENTE COM ENCARGOS COMPLEMENTARES | E181: Livro SINAPI: Cálculos e Parâmetros | G181: H | H181: 3 | I181: =IF(C181="SINAPI", IF( IF(A181="Insumo", VLOOKUP(B181,'SINAPI INSUMOS'!B:F,5,0), VLOOKUP(B181,'SINAPI COMP'!B:F,4,0))=0,VLOOKUP(B181,'OUTRAS BASES'!C:D,2,0),IF(A181="Insumo", VLOOKUP(B181,'SINAPI INSUMOS'!B:F,5,0),VLOOKUP(B181,'SINAPI COMP'!B:F,4,0))), VLOOKUP(B181,'OUTRAS BASES'!C:D,2,0)) -> 19.85 | J181: =H181*I181 -> 59.55 | L181: TRUE
A182: Composição Auxiliar | B182: 102617 | C182: SINAPI | D182: CAIXA D´ÁGUA EM POLIÉSTER REFORÇADO COM FIBRA DE VIDRO, 5000 LITROS - FORNECIMENTO E INSTALAÇÃO. AF_06/2021 | E182: Caixas de Água para Edificações | G182: UN | H182: 1 | I182: =IF(C182="SINAPI", IF( IF(A182="Insumo", VLOOKUP(B182,'SINAPI INSUMOS'!B:F,5,0), VLOOKUP(B182,'SINAPI COMP'!B:F,4,0))=0,VLOOKUP(B182,'OUTRAS BASES'!C:D,2,0),IF(A182="Insumo", VLOOKUP(B182,'SINAPI INSUMOS'!B:F,5,0),VLOOKUP(B182,'SINAPI COMP'!B:F,4,0))), VLOOKUP(B182,'OUTRAS BASES'!C:D,2,0)) -> 3289.53 | J182: 3289.53 | L182: TRUE
A183: Composição Auxiliar | B183: 92767 | C183: SINAPI | D183: ARMAÇÃO DE LAJE DE UMA ESTRUTURA CONVENCIONAL DE CONCRETO ARMADO UTILIZANDO AÇO CA-60 DE 4,2 MM - MONTAGEM. AF_12/2015 | E183: FUES - FUNDAÇÕES E ESTRUTURAS | G183: KG | H183: 3.04 | I183: =IF(C183="SINAPI", IF( IF(A183="Insumo", VLOOKUP(B183,'SINAPI INSUMOS'!B:F,5,0), VLOOKUP(B183,'SINAPI COMP'!B:F,4,0))=0,VLOOKUP(B183,'OUTRAS BASES'!C:D,2,0),IF(A183="Insumo", VLOOKUP(B183,'SINAPI INSUMOS'!B:F,5,0),VLOOKUP(B183,'SINAPI COMP'!B:F,4,0))), VLOOKUP(B183,'OUTRAS BASES'!C:D,2,0)) -> 17.13 | J183: 52.0752 | L183: TRUE
A184: Composição Auxiliar | B184: 104917 | C184: SINAPI | D184: ARMAÇAO DE SAPATA ISOLADA, VIGA BALDRAME E SAPATA CORRIDA UTILIZANDO AÇO CA-50 DE 6,3 MM - MONTAGEM AD_01/2024 | E184: FUES - FUNDAÇÕES E ESTRUTURAS | G184: KG | H184: 9.3 | I184: =IF(C184="SINAPI", IF( IF(A184="Insumo", VLOOKUP(B184,'SINAPI INSUMOS'!B:F,5,0), VLOOKUP(B184,'SINAPI COMP'!B:F,4,0))=0,VLOOKUP(B184,'OUTRAS BASES'!C:D,2,0),IF(A184="Insumo", VLOOKUP(B184,'SINAPI INSUMOS'!B:F,5,0),VLOOKUP(B184,'SINAPI COMP'!B:F,4,0))), VLOOKUP(B184,'OUTRAS BASES'!C:D,2,0)) -> 17.36 | J184: 161.448 | L184: TRUE
A185: Composição Auxiliar | B185: 92760 | C185: SINAPI | D185: ARMAÇÃO DE PILAR OU VIGA DE ESTRTURA CONVENCIONAL DE CONCRETO ARMADO UTILIZANDO AÇO CA-50 DE 6,3 MM - MONTAGEM. AF_12/2015 | E185: FUES - FUNDAÇÕES E ESTRUTURAS | G185: KG | H185: 16.3 | I185: =IF(C185="SINAPI", IF( IF(A185="Insumo", VLOOKUP(B185,'SINAPI INSUMOS'!B:F,5,0), VLOOKUP(B185,'SINAPI COMP'!B:F,4,0))=0,VLOOKUP(B185,'OUTRAS BASES'!C:D,2,0),IF(A185="Insumo", VLOOKUP(B185,'SINAPI INSUMOS'!B:F,5,0),VLOOKUP(B185,'SINAPI COMP'!B:F,4,0))), VLOOKUP(B185,'OUTRAS BASES'!C:D,2,0)) -> 15.27 | J185: 248.901 | K185: Composição auxiliar teve seus insumos atualizados, presente na aba "Composições" | L185: TRUE
A186: Composição Auxiliar | B186: 94964 | C186: SINAPI | D186: CONCRETO FCK = 20MPA, TRAÇO 1:2,7:3 (EM MASSA SECA DE CIMENTO/ AREIA MÉDIA/ BRITA 1) - PREPARO MECÂNICO COM BETONEIRA 400 L. AF_05/2021 | E186: Produção de Concreto | G186: m³ | H186: 1.56 | I186: =IF(C186="SINAPI", IF( IF(A186="Insumo", VLOOKUP(B186,'SINAPI INSUMOS'!B:F,5,0), VLOOKUP(B186,'SINAPI COMP'!B:F,4,0))=0,VLOOKUP(B186,'OUTRAS BASES'!C:D,2,0),IF(A186="Insumo", VLOOKUP(B186,'SINAPI INSUMOS'!B:F,5,0),VLOOKUP(B186,'SINAPI COMP'!B:F,4,0))), VLOOKUP(B186,'OUTRAS BASES'!C:D,2,0)) -> 732.05 | J186: 1141.998 | L186: TRUE
A187: Composição Auxiliar | B187: 84651 | C187: SINAPI | D187: PINTURA COM TINTA IMPERMEAVEL MINERAL EM PO, DUAS DEMAOS | E187: PINT - PINTURAS | G187: m² | H187: 7.85 | I187: =IF(C187="SINAPI", IF( IF(A187="Insumo", VLOOKUP(B187,'SINAPI INSUMOS'!B:F,5,0), VLOOKUP(B187,'SINAPI COMP'!B:F,4,0))=0,VLOOKUP(B187,'OUTRAS BASES'!C:D,2,0),IF(A187="Insumo", VLOOKUP(B187,'SINAPI INSUMOS'!B:F,5,0),VLOOKUP(B187,'SINAPI COMP'!B:F,4,0))), VLOOKUP(B187,'OUTRAS BASES'!C:D,2,0)) -> 13.0385 | J187: 102.352225 | L187: TRUE
A188: Composição Auxiliar | B188: 92263 | C188: SINAPI | D188: FABRICAÇÃO DE FÔRMA PARA PILARES E ESTRUTURAS SIMILARES, EM CHAPA DE MADEIRA COMPENSADA RESINADA, E = 17 MM. AF_09/2020 | E188: FUES - FUNDAÇÕES E ESTRUTURAS | G188: KG | H188: 16.99 | I188: =IF(C188="SINAPI", IF( IF(A188="Insumo", VLOOKUP(B188,'SINAPI INSUMOS'!B:F,5,0), VLOOKUP(B188,'SINAPI COMP'!B:F,4,0))=0,VLOOKUP(B188,'OUTRAS BASES'!C:D,2,0),IF(A188="Insumo", VLOOKUP(B188,'SINAPI INSUMOS'!B:F,5,0),VLOOKUP(B188,'SINAPI COMP'!B:F,4,0))), VLOOKUP(B188,'OUTRAS BASES'!C:D,2,0)) -> 186 | J188: 3160.14 | K188: Composição auxiliar teve seus insumos atualizados, presente na aba "Composições" | L188: TRUE
A189: Composição Auxiliar | B189: 92770 | C189: SINAPI | D189: ARMAÇÃO DE LAJE DE UMA ESTRUTURA CONVENCIONAL DE CONCRETO ARMADO UTILIZANDO AÇO CA-50 DE 8,0 MM - MONTAGEM. AF_06/2022 | E189: FUES - FUNDAÇÕES E ESTRUTURAS | G189: KG | H189: 17.2 | I189: =IF(C189="SINAPI", IF( IF(A189="Insumo", VLOOKUP(B189,'SINAPI INSUMOS'!B:F,5,0), VLOOKUP(B189,'SINAPI COMP'!B:F,4,0))=0,VLOOKUP(B189,'OUTRAS BASES'!C:D,2,0),IF(A189="Insumo", VLOOKUP(B189,'SINAPI INSUMOS'!B:F,5,0),VLOOKUP(B189,'SINAPI COMP'!B:F,4,0))), VLOOKUP(B189,'OUTRAS BASES'!C:D,2,0)) -> 14.11 | J189: 242.692 | K189: Composição auxiliar teve seus insumos atualizados, presente na aba "Composições" | L189: TRUE
A194: 6 | D194: BEBEDOURO | J194: 2273.8
A195: 6.1 | B195: Código | C195: Banco | D195: Descrição | E195: Tipo | G195: Und | H195: Quant. | I195: Valor Unit | J195: Total
A196: Composição | B196: COMPOSIÇÃO - 13 | C196: Próprio | D196: Serviço de execução do bebedouro em concreto armado, incluso materiais. | E196: SEDI - SERVIÇOS DIVERSOS | G196: un | H196: 1 | I196: =SUM(J197:J202) -> 2002.62994 | J196: =H196*I196 -> 2002.62994 | L196: =_xlfn.ISFORMULA(I196) -> TRUE
A197: Composição Auxiliar | B197: 92916 | C197: SINAPI | D197: ARMAÇÃODE ESTRUTURAS DIVERSAS DE CONCRETO ARMADO, EXCETO VIGA, PILARES, LAJES E FUNDAÇÕES, UTILIZANDO AÇO CA-50 DE 6,3 MM - MONTAGEM. AF_06/2022 | E197: Armação para Estruturas de Concreto Armado | G197: KG | H197: 6 | I197: =IF(C197="SINAPI", IF( IF(A197="Insumo", VLOOKUP(B197,'SINAPI INSUMOS'!B:F,5,0), VLOOKUP(B197,'SINAPI COMP'!B:F,4,0))=0,VLOOKUP(B197,'OUTRAS BASES'!C:D,2,0),IF(A197="Insumo", VLOOKUP(B197,'SINAPI INSUMOS'!B:F,5,0),VLOOKUP(B197,'SINAPI COMP'!B:F,4,0))), VLOOKUP(B197,'OUTRAS BASES'!C:D,2,0)) -> 17.16 | J197: =H197*I197 -> 102.96 | L197: TRUE
A198: Composição Auxiliar | B198: 92915 | C198: SINAPI | D198: ARMAÇÃODE ESTRUTURAS DIVERSAS DE CONCRETO ARMADO, EXCETO VIGA, PILARES, LAJES E FUNDAÇÕES, UTILIZANDO AÇO CA-60 DE 5,0 MM - MONTAGEM. AF_06/2022 | E198: Armação para Estruturas de Concreto Armado | G198: KG | H198: 13 | I198: =IF(C198="SINAPI", IF( IF(A198="Insumo", VLOOKUP(B198,'SINAPI INSUMOS'!B:F,5,0), VLOOKUP(B198,'SINAPI COMP'!B:F,4,0))=0,VLOOKUP(B198,'OUTRAS BASES'!C:D,2,0),IF(A198="Insumo", VLOOKUP(B198,'SINAPI INSUMOS'!B:F,5,0),VLOOKUP(B198,'SINAPI COMP'!B:F,4,0))), VLOOKUP(B198,'OUTRAS BASES'!C:D,2,0)) -> 18.34 | J198: =H198*I198 -> 238.42 | L198: TRUE
A199: Composição Auxiliar | B199: 92921 | C199: SINAPI | D199: ARMAÇÃODE ESTRUTURAS DIVERSAS DE CONCRETO ARMADO, EXCETO VIGA, PILARES, LAJES E FUNDAÇÕES, UTILIZANDO AÇO CA-50 DE 12,5 MM - MONTAGEM. AF_06/2022 | E199: Armação para Estruturas de Concreto Armado | G199: KG | H199: 12 | I199: =IF(C199="SINAPI", IF( IF(A199="Insumo", VLOOKUP(B199,'SINAPI INSUMOS'!B:F,5,0), VLOOKUP(B199,'SINAPI COMP'!B:F,4,0))=0,VLOOKUP(B199,'OUTRAS BASES'!C:D,2,0),IF(A199="Insumo", VLOOKUP(B199,'SINAPI INSUMOS'!B:F,5,0),VLOOKUP(B199,'SINAPI COMP'!B:F,4,0))), VLOOKUP(B199,'OUTRAS BASES'!C:D,2,0)) -> 11.73 | J199: 140.76 | L199: TRUE
A200: Composição Auxiliar | B200: 94971 | C200: SINAPI | D200: CONCRETO FCK = 25MPA, TRAÇO 1:2,3:2:2,7(EM MASSA SECA DE CIMENTO, AREIA MÉDIA, BRITA 1) - PREPARO MECÂNICO COM BETONEIRA 600l. AF_05/2021 | E200: Produção de concreto | G200: m³ | H200: 0.374 | I200: =IF(C200="SINAPI", IF( IF(A200="Insumo", VLOOKUP(B200,'SINAPI INSUMOS'!B:F,5,0), VLOOKUP(B200,'SINAPI COMP'!B:F,4,0))=0,VLOOKUP(B200,'OUTRAS BASES'!C:D,2,0),IF(A200="Insumo", VLOOKUP(B200,'SINAPI INSUMOS'!B:F,5,0),VLOOKUP(B200,'SINAPI COMP'!B:F,4,0))), VLOOKUP(B200,'OUTRAS BASES'!C:D,2,0)) -> 762.06 | J200: 285.01044 | L200: TRUE
A201: Composição Auxiliar | B201: 92263 | C201: SINAPI | D201: FABRICAÇÃO DE FÔRMA PARA PILARES E ESTRUTURAS SIMILARES, EM CHAPA DE MADEIRA COMPENSADA RESINADA, E = 17 MM. AF_09/2020 | E201: FUES - FUNDAÇÕES E ESTRUTURAS | G201: m² | H201: 6.21 | I201: =IF(C201="SINAPI", IF( IF(A201="Insumo", VLOOKUP(B201,'SINAPI INSUMOS'!B:F,5,0), VLOOKUP(B201,'SINAPI COMP'!B:F,4,0))=0,VLOOKUP(B201,'OUTRAS BASES'!C:D,2,0),IF(A201="Insumo", VLOOKUP(B201,'SINAPI INSUMOS'!B:F,5,0),VLOOKUP(B201,'SINAPI COMP'!B:F,4,0))), VLOOKUP(B201,'OUTRAS BASES'!C:D,2,0)) -> 186 | J201: 1155.06 | L201: TRUE
A202: Composição Auxiliar | B202: 15.07.09 | C202: EMBASA | D202: PINTURA LÁTEX ACRÍLICA, APLICAÇÃO MANUAL EM DUAS DEMÃOS | E202: EDIFICAÇÕES | G202: m² | H202: 6.21 | I202: =IF(C202="SINAPI", IF( IF(A202="Insumo", VLOOKUP(B202,'SINAPI INSUMOS'!B:F,5,0), VLOOKUP(B202,'SINAPI COMP'!B:F,4,0))=0,VLOOKUP(B202,'OUTRAS BASES'!C:D,2,0),IF(A202="Insumo", VLOOKUP(B202,'SINAPI INSUMOS'!B:F,5,0),VLOOKUP(B202,'SINAPI COMP'!B:F,4,0))), VLOOKUP(B202,'OUTRAS BASES'!C:D,2,0)) -> 12.95 | J202: 80.4195 | L202: TRUE
L203: FALSE
L204: FALSE
L205: FALSE
L206: FALSE
A207: 7 | D207: CHAFARIZ | J207: 1506.71 | L207: FALSE
A208: 7.1 | B208: Código | C208: Banco | D208: Descrição | E208: Tipo | G208: Und | H208: Quant. | I208: Valor Unit | J208: Total | L208: FALSE
A209: Composição | B209: COMPOSIÇÃO - 14 | C209: Próprio | D209: Fornecimento de material e instalação do chafariz | E209: ASTU - ASSENTAMENTO DE TUBOS E PECAS | G209: un | H209: 1 | I209: =SUM(J210:J228) -> 1044.814754 | J209: =H209*I209 -> 1044.814754 | L209: TRUE
A210: Composição Auxiliar | B210: 88267 | C210: SINAPI | D210: ENCANADOR OU BOMBEIRO HIDRÁULICO COM ENCARGOS COMPLEMENTARES | E210: Livro SINAPI: Cálculos e Parâmetros | G210: H | H210: 2 | I210: =IF(C210="SINAPI", IF( IF(A210="Insumo", VLOOKUP(B210,'SINAPI INSUMOS'!B:F,5,0), VLOOKUP(B210,'SINAPI COMP'!B:F,4,0))=0,VLOOKUP(B210,'OUTRAS BASES'!C:D,2,0),IF(A210="Insumo", VLOOKUP(B210,'SINAPI INSUMOS'!B:F,5,0),VLOOKUP(B210,'SINAPI COMP'!B:F,4,0))), VLOOKUP(B210,'OUTRAS BASES'!C:D,2,0)) -> 25.5 | J210: =H210*I210 -> 51 | L210: TRUE
A211: Composição Auxiliar | B211: 88248 | C211: SINAPI | D211: AUXILIAR DE ENCANADOR OU BOMBEIRO HIDRÁULICO COM ENCARGOS COMPLEMENTARES | E211: Livro SINAPI: Cálculos e Parâmetros | G211: H | H211: 2 | I211: =IF(C211="SINAPI", IF( IF(A211="Insumo", VLOOKUP(B211,'SINAPI INSUMOS'!B:F,5,0), VLOOKUP(B211,'SINAPI COMP'!B:F,4,0))=0,VLOOKUP(B211,'OUTRAS BASES'!C:D,2,0),IF(A211="Insumo", VLOOKUP(B211,'SINAPI INSUMOS'!B:F,5,0),VLOOKUP(B211,'SINAPI COMP'!B:F,4,0))), VLOOKUP(B211,'OUTRAS BASES'!C:D,2,0)) -> 21.35 | J211: =H211*I211 -> 42.7 | L211: TRUE
A212: Composição Auxiliar | B212: 93358 | C212: SINAPI | D212: ESCAVAÇÃO MANUAL DE VALA COM PROFUNDIDADE MENOR OU IGUAL A 1,30 M. AF_02/2021 | E212: Escavação de Valas | G212: m³ | H212: 0.0785398 | I212: =IF(C212="SINAPI", IF( IF(A212="Insumo", VLOOKUP(B212,'SINAPI INSUMOS'!B:F,5,0), VLOOKUP(B212,'SINAPI COMP'!B:F,4,0))=0,VLOOKUP(B212,'OUTRAS BASES'!C:D,2,0),IF(A212="Insumo", VLOOKUP(B212,'SINAPI INSUMOS'!B:F,5,0),VLOOKUP(B212,'SINAPI COMP'!B:F,4,0))), VLOOKUP(B212,'OUTRAS BASES'!C:D,2,0)) -> 78.52 | J212: 6.166945096 | L212: TRUE
A213: Composição Auxiliar | B213: 96533 | C213: SINAPI | D213: FABRICAÇÃO, MONTAGEM E DESMONTAGEM DE FÔRMA PARA VIGA BALDRAME, EM MADEIRA SERRADA, E=25 MM, 2 UTILIZAÇÕES. AF_01/2024 | E213: FUES - FUNDAÇÕES E ESTRUTURAS | G213: m² | H213: 0.628 | I213: =IF(C213="SINAPI", IF( IF(A213="Insumo", VLOOKUP(B213,'SINAPI INSUMOS'!B:F,5,0), VLOOKUP(B213,'SINAPI COMP'!B:F,4,0))=0,VLOOKUP(B213,'OUTRAS BASES'!C:D,2,0),IF(A213="Insumo", VLOOKUP(B213,'SINAPI INSUMOS'!B:F,5,0),VLOOKUP(B213,'SINAPI COMP'!B:F,4,0))), VLOOKUP(B213,'OUTRAS BASES'!C:D,2,0)) -> 96.2 | J213: 60.4136 | L213: TRUE
A214: Composição Auxiliar | B214: 94963 | C214: SINAPI | D214: CONCRETO FCK = 15MPA, TRAÇO 1:3,4:3,5 (EM MASSA SECA DE CIMENTO/AREIA/MÉDIA/BRITA 1) - PREPARO MECÂNICO COM BETONEIRA 400 L. AF_05/2021 | E214: Produção de Concreto | G214: m³ | H214: 0.157 | I214: =IF(C214="SINAPI", IF( IF(A214="Insumo", VLOOKUP(B214,'SINAPI INSUMOS'!B:F,5,0), VLOOKUP(B214,'SINAPI COMP'!B:F,4,0))=0,VLOOKUP(B214,'OUTRAS BASES'!C:D,2,0),IF(A214="Insumo", VLOOKUP(B214,'SINAPI INSUMOS'!B:F,5,0),VLOOKUP(B214,'SINAPI COMP'!B:F,4,0))), VLOOKUP(B214,'OUTRAS BASES'!C:D,2,0)) -> 674.58 | J214: 105.90906 | L214: TRUE
A215: Composição Auxiliar | B215: 87904 | C215: SINAPI | D215: CHAPISCO APLICADO EM ALVENARIA (COM PRESENÇA DE VÃOS) E ESTRUTURAS DE CONCRETO DE FACHADA, COM COLHER DE PEDREIRO. ARGAMASSA TRAÇO 1:3 COM PREPARO MANUAL. AF_10/2022 | E215: Chapisco | G215: m² | H215: 0.314 | I215: =IF(C215="SINAPI", IF( IF(A215="Insumo", VLOOKUP(B215,'SINAPI INSUMOS'!B:F,5,0), VLOOKUP(B215,'SINAPI COMP'!B:F,4,0))=0,VLOOKUP(B215,'OUTRAS BASES'!C:D,2,0),IF(A215="Insumo", VLOOKUP(B215,'SINAPI INSUMOS'!B:F,5,0),VLOOKUP(B215,'SINAPI COMP'!B:F,4,0))), VLOOKUP(B215,'OUTRAS BASES'!C:D,2,0)) -> 8.72 | J215: 2.73808 | L215: TRUE
A216: Composição Auxiliar | B216: 87529 | C216: SINAPI | D216: MASSA ÚNICA, EM ARGAMASSA TRAÇO 1:2:8, PREPARO MECÂNICO, APLICADA MANUALMENTE EM PAREDES INTERNAS DE AMBIENTES COM ÁREA ENTRE 5M² E 10M², E = 17,5MM, COM TALISCAS. AF_03/2024 | E216: Massa Única Interna | G216: m² | H216: 0.314 | I216: =IF(C216="SINAPI", IF( IF(A216="Insumo", VLOOKUP(B216,'SINAPI INSUMOS'!B:F,5,0), VLOOKUP(B216,'SINAPI COMP'!B:F,4,0))=0,VLOOKUP(B216,'OUTRAS BASES'!C:D,2,0),IF(A216="Insumo", VLOOKUP(B216,'SINAPI INSUMOS'!B:F,5,0),VLOOKUP(B216,'SINAPI COMP'!B:F,4,0))), VLOOKUP(B216,'OUTRAS BASES'!C:D,2,0)) -> 38.57 | J216: 12.11098 | L216: TRUE
A217: Composição Auxiliar | B217: 84651 | C217: SINAPI | D217: PINTURA COM TINTA IMPERMEAVEL MINERAL EM PO, DUAS DEMAOS | E217: PINT - PINTURAS | G217: m² | H217: 0.314 | I217: =IF(C217="SINAPI", IF( IF(A217="Insumo", VLOOKUP(B217,'SINAPI INSUMOS'!B:F,5,0), VLOOKUP(B217,'SINAPI COMP'!B:F,4,0))=0,VLOOKUP(B217,'OUTRAS BASES'!C:D,2,0),IF(A217="Insumo", VLOOKUP(B217,'SINAPI INSUMOS'!B:F,5,0),VLOOKUP(B217,'SINAPI COMP'!B:F,4,0))), VLOOKUP(B217,'OUTRAS BASES'!C:D,2,0)) -> 13.0385 | J217: 4.094089 | L217: TRUE
A218: Insumo | B218: 765 | C218: SINAPI | D218: BUCHA DE REDUCAO DE FERRO GALVANIZADO, COM ROSCA BSP, DE 1" X 3/4" | E218: Material | G218: UN | H218: 2 | I218: =IF(C218="SINAPI", IF( IF(A218="Insumo", VLOOKUP(B218,'SINAPI INSUMOS'!B:F,5,0), VLOOKUP(B218,'SINAPI COMP'!B:F,4,0))=0,VLOOKUP(B218,'OUTRAS BASES'!C:D,2,0),IF(A218="Insumo", VLOOKUP(B218,'SINAPI INSUMOS'!B:F,5,0),VLOOKUP(B218,'SINAPI COMP'!B:F,4,0))), VLOOKUP(B218,'OUTRAS BASES'!C:D,2,0)) -> 10.43 | J218: 20.86 | K218: Composição auxiliar teve seus insumos atualizados, presente na aba "Composições" | L218: TRUE
A219: Insumo | B219: 9887 | C219: SINAPI | D219: UNIAO DE FERRO GALVANIZADO, COM ROSCA BSP, COM ASSENTO PLANO, DE 2" | E219: Material | G219: UN | H219: 2 | I219: =IF(C219="SINAPI", IF( IF(A219="Insumo", VLOOKUP(B219,'SINAPI INSUMOS'!B:F,5,0), VLOOKUP(B219,'SINAPI COMP'!B:F,4,0))=0,VLOOKUP(B219,'OUTRAS BASES'!C:D,2,0),IF(A219="Insumo", VLOOKUP(B219,'SINAPI INSUMOS'!B:F,5,0),VLOOKUP(B219,'SINAPI COMP'!B:F,4,0))), VLOOKUP(B219,'OUTRAS BASES'!C:D,2,0)) -> 106.17 | J219: =H219*I219 -> 212.34 | L219: TRUE
A220: Insumo | B220: 21013 | C220: SINAPI | D220: TUBO ACO GALVANIZADO COM COSTURA, CLASSE LEVE, DN 50 MM ( 2"), E = 3,00 MM, *4,40* KG/M (NBR 5580) | E220: Material | G220: M | H220: 1.8 | I220: =IF(C220="SINAPI", IF( IF(A220="Insumo", VLOOKUP(B220,'SINAPI INSUMOS'!B:F,5,0), VLOOKUP(B220,'SINAPI COMP'!B:F,4,0))=0,VLOOKUP(B220,'OUTRAS BASES'!C:D,2,0),IF(A220="Insumo", VLOOKUP(B220,'SINAPI INSUMOS'!B:F,5,0),VLOOKUP(B220,'SINAPI COMP'!B:F,4,0))), VLOOKUP(B220,'OUTRAS BASES'!C:D,2,0)) -> 67.19 | J220: =H220*I220 -> 120.942 | L220: TRUE
A221: Insumo | B221: 6298 | C221: SINAPI | D221: TE DE FERRO GALVANIZADO, DE 2" | E221: Material | G221: UN | H221: 1 | I221: =IF(C221="SINAPI", IF( IF(A221="Insumo", VLOOKUP(B221,'SINAPI INSUMOS'!B:F,5,0), VLOOKUP(B221,'SINAPI COMP'!B:F,4,0))=0,VLOOKUP(B221,'OUTRAS BASES'!C:D,2,0),IF(A221="Insumo", VLOOKUP(B221,'SINAPI INSUMOS'!B:F,5,0),VLOOKUP(B221,'SINAPI COMP'!B:F,4,0))), VLOOKUP(B221,'OUTRAS BASES'!C:D,2,0)) -> 69.15 | J221: 69.15 | K221: Preço AS digitado (Atribuído São Paulo) | L221: TRUE
A222: Insumo | B222: 3471 | C222: SINAPI | D222: COTOVELO 90 GRAUS DE FERRO GALVANIZADO, COM ROSCA BSP, DE 2" | E222: Material | G222: UN | H222: 1 | I222: =IF(C222="SINAPI", IF( IF(A222="Insumo", VLOOKUP(B222,'SINAPI INSUMOS'!B:F,5,0), VLOOKUP(B222,'SINAPI COMP'!B:F,4,0))=0,VLOOKUP(B222,'OUTRAS BASES'!C:D,2,0),IF(A222="Insumo", VLOOKUP(B222,'SINAPI INSUMOS'!B:F,5,0),VLOOKUP(B222,'SINAPI COMP'!B:F,4,0))), VLOOKUP(B222,'OUTRAS BASES'!C:D,2,0)) -> 52.01 | J222: 52.01 | L222: TRUE
A223: Insumo | B223: 113 | C223: SINAPI | D223: ADAPTADOR PVC SOLDAVEL CURTO COM BOLSA E ROSCA, 60 MM X 2", PARA AGUA FRIA | E223: Material | G223: UN | H223: 1 | I223: =IF(C223="SINAPI", IF( IF(A223="Insumo", VLOOKUP(B223,'SINAPI INSUMOS'!B:F,5,0), VLOOKUP(B223,'SINAPI COMP'!B:F,4,0))=0,VLOOKUP(B223,'OUTRAS BASES'!C:D,2,0),IF(A223="Insumo", VLOOKUP(B223,'SINAPI INSUMOS'!B:F,5,0),VLOOKUP(B223,'SINAPI COMP'!B:F,4,0))), VLOOKUP(B223,'OUTRAS BASES'!C:D,2,0)) -> 9.82 | J223: 9.82 | L223: TRUE
A224: Insumo | B224: 818 | C224: SINAPI | D224: BUCHA DE REDUCAO DE PVC, SOLDAVEL, CURTA, COM 60 X 50 MM, PARA AGUA FRIA PREDIAL | E224: Material | G224: UN | H224: 1 | I224: =IF(C224="SINAPI", IF( IF(A224="Insumo", VLOOKUP(B224,'SINAPI INSUMOS'!B:F,5,0), VLOOKUP(B224,'SINAPI COMP'!B:F,4,0))=0,VLOOKUP(B224,'OUTRAS BASES'!C:D,2,0),IF(A224="Insumo", VLOOKUP(B224,'SINAPI INSUMOS'!B:F,5,0),VLOOKUP(B224,'SINAPI COMP'!B:F,4,0))), VLOOKUP(B224,'OUTRAS BASES'!C:D,2,0)) -> 5.99 | J224: 5.99 | L224: TRUE
A225: Insumo | B225: 7604 | C225: SINAPI | D225: TORNEIRA METALICA CROMADA PARA TANQUE / JARDIM, SEM BICO , CANO LONGO, DE PAREDE, PADRAO POPULAR / USO GERAL, 1/2 " OU 3/4 " (REF 1126) | E225: Material | G225: UN | H225: 2 | I225: =IF(C225="SINAPI", IF( IF(A225="Insumo", VLOOKUP(B225,'SINAPI INSUMOS'!B:F,5,0), VLOOKUP(B225,'SINAPI COMP'!B:F,4,0))=0,VLOOKUP(B225,'OUTRAS BASES'!C:D,2,0),IF(A225="Insumo", VLOOKUP(B225,'SINAPI INSUMOS'!B:F,5,0),VLOOKUP(B225,'SINAPI COMP'!B:F,4,0))), VLOOKUP(B225,'OUTRAS BASES'!C:D,2,0)) -> 98.58 | J225: 197.16 | L225: TRUE
A226: Insumo | B226: 119 | C226: SINAPI | D226: ADESIVO PLASTICO PARA PVC, BISNAGA COM 75 GR | E226: Material | G226: UN | H226: 1 | I226: =IF(C226="SINAPI", IF( IF(A226="Insumo", VLOOKUP(B226,'SINAPI INSUMOS'!B:F,5,0), VLOOKUP(B226,'SINAPI COMP'!B:F,4,0))=0,VLOOKUP(B226,'OUTRAS BASES'!C:D,2,0),IF(A226="Insumo", VLOOKUP(B226,'SINAPI INSUMOS'!B:F,5,0),VLOOKUP(B226,'SINAPI COMP'!B:F,4,0))), VLOOKUP(B226,'OUTRAS BASES'!C:D,2,0)) -> 9 | J226: 9 | L226: TRUE
A227: Insumo | B227: 3146 | C227: SINAPI | D227: FITA VEDA ROSCA EM ROLOS DE 18 MM X 10 M (L X C) | E227: Material | G227: UN | H227: 1 | I227: =IF(C227="SINAPI", IF( IF(A227="Insumo", VLOOKUP(B227,'SINAPI INSUMOS'!B:F,5,0), VLOOKUP(B227,'SINAPI COMP'!B:F,4,0))=0,VLOOKUP(B227,'OUTRAS BASES'!C:D,2,0),IF(A227="Insumo", VLOOKUP(B227,'SINAPI INSUMOS'!B:F,5,0),VLOOKUP(B227,'SINAPI COMP'!B:F,4,0))), VLOOKUP(B227,'OUTRAS BASES'!C:D,2,0)) -> 4.49 | J227: 4.49 | L227: TRUE
A228: Insumo | B228: 771 | C228: SINAPI | D228: BUCHA DE REDUCAO DE FERRO GALVANIZADO, COM ROSCA BSP, DE 2" X 1" | E228: Material | G228: UN | H228: 2 | I228: =IF(C228="SINAPI", IF( IF(A228="Insumo", VLOOKUP(B228,'SINAPI INSUMOS'!B:F,5,0), VLOOKUP(B228,'SINAPI COMP'!B:F,4,0))=0,VLOOKUP(B228,'OUTRAS BASES'!C:D,2,0),IF(A228="Insumo", VLOOKUP(B228,'SINAPI INSUMOS'!B:F,5,0),VLOOKUP(B228,'SINAPI COMP'!B:F,4,0))), VLOOKUP(B228,'OUTRAS BASES'!C:D,2,0)) -> 28.96 | J228: 57.92 | L228: TRUE
L229: FALSE
L230: FALSE
L231: FALSE
L232: FALSE
A233: 8 | D233: CAVALETE | J233: 2079.81 | L233: FALSE
A234: 8.1 | B234: Código | C234: Banco | D234: Descrição | E234: Tipo | G234: Und | H234: Quant. | I234: Valor Unit | J234: Total | L234: FALSE
A235: Composição | B235: COMPOSIÇÃO - 15 | C235: Próprio | D235: Fornecimento de conexões e Instalação do Cavalete com hidrômetro e clorador de pastilhas | E235: INHI - INSTALAÇÕES HIDROS SANITÁRIAS | G235: un | H235: 1 | I235: =SUM(J236:J253) -> 2335.835 | J235: =H235*I235 -> 2335.835 | L235: TRUE
A236: Composição Auxiliar | B236: 88248 | C236: SINAPI | D236: AUXILIAR DE ENCANADOR OU BOMBEIRO HIDRÁULICO COM ENCARGOS COMPLEMENTARES | E236: Livro SINAPI: Cálculos e Parâmetros | G236: H | H236: 3 | I236: =IF(C236="SINAPI", IF( IF(A236="Insumo", VLOOKUP(B236,'SINAPI INSUMOS'!B:F,5,0), VLOOKUP(B236,'SINAPI COMP'!B:F,4,0))=0,VLOOKUP(B236,'OUTRAS BASES'!C:D,2,0),IF(A236="Insumo", VLOOKUP(B236,'SINAPI INSUMOS'!B:F,5,0),VLOOKUP(B236,'SINAPI COMP'!B:F,4,0))), VLOOKUP(B236,'OUTRAS BASES'!C:D,2,0)) -> 21.35 | J236: =H236*I236 -> 64.05 | L236: TRUE
A237: Insumo | B237: 9860 | C237: SINAPI | D237: TUBO PVC, ROSCAVEL, 2", PARA AGUA FRIA PREDIAL | E237: Tubos e Conexões de PVC Rígido Roscável | G237: m | H237: 1.5 | I237: =IF(C237="SINAPI", IF( IF(A237="Insumo", VLOOKUP(B237,'SINAPI INSUMOS'!B:F,5,0), VLOOKUP(B237,'SINAPI COMP'!B:F,4,0))=0,VLOOKUP(B237,'OUTRAS BASES'!C:D,2,0),IF(A237="Insumo", VLOOKUP(B237,'SINAPI INSUMOS'!B:F,5,0),VLOOKUP(B237,'SINAPI COMP'!B:F,4,0))), VLOOKUP(B237,'OUTRAS BASES'!C:D,2,0)) -> 39.41 | J237: =H237*I237 -> 59.115 | L237: TRUE
A238: Insumo | B238: 11831 | C238: SINAPI | D238: TORNEIRA PLASTICA PARA TANQUE 1/2 " OU 3/4 " COM BICO PARA MANGUEIRA | E238: Material | G238: UN | H238: 1 | I238: =IF(C238="SINAPI", IF( IF(A238="Insumo", VLOOKUP(B238,'SINAPI INSUMOS'!B:F,5,0), VLOOKUP(B238,'SINAPI COMP'!B:F,4,0))=0,VLOOKUP(B238,'OUTRAS BASES'!C:D,2,0),IF(A238="Insumo", VLOOKUP(B238,'SINAPI INSUMOS'!B:F,5,0),VLOOKUP(B238,'SINAPI COMP'!B:F,4,0))), VLOOKUP(B238,'OUTRAS BASES'!C:D,2,0)) -> 19.51 | J238: =H238*I238 -> 19.51 | L238: TRUE
A239: Insumo | B239: 9569 | C239: ORSE | D239: Adaptador pvc BSxRM d= 35mm x 1 1/2", linha Irriga-LF, Tigre ou similar un | E239: Material | G239: un | H239: 1 | I239: =IF(C239="SINAPI", IF( IF(A239="Insumo", VLOOKUP(B239,'SINAPI INSUMOS'!B:F,5,0), VLOOKUP(B239,'SINAPI COMP'!B:F,4,0))=0,VLOOKUP(B239,'OUTRAS BASES'!C:D,2,0),IF(A239="Insumo", VLOOKUP(B239,'SINAPI INSUMOS'!B:F,5,0),VLOOKUP(B239,'SINAPI COMP'!B:F,4,0))), VLOOKUP(B239,'OUTRAS BASES'!C:D,2,0)) -> 3.04 | J239: 3.04 | L239: TRUE
A240: Insumo | B240: 3939 | C240: SINAPI | D240: LUVA DE FERRO GALVANIZADO, COM ROSCA BSP, DE 1 1/2" | E240: Material | G240: UN | H240: 1 | I240: =IF(C240="SINAPI", IF( IF(A240="Insumo", VLOOKUP(B240,'SINAPI INSUMOS'!B:F,5,0), VLOOKUP(B240,'SINAPI COMP'!B:F,4,0))=0,VLOOKUP(B240,'OUTRAS BASES'!C:D,2,0),IF(A240="Insumo", VLOOKUP(B240,'SINAPI INSUMOS'!B:F,5,0),VLOOKUP(B240,'SINAPI COMP'!B:F,4,0))), VLOOKUP(B240,'OUTRAS BASES'!C:D,2,0)) -> 23.91 | J240: 23.91 | L240: TRUE
A241: Insumo | B241: 1798 | C241: SINAPI | D241: CURVA 90 GRAUS DE FERRO GALVANIZADO, COM ROSCA BSP MACHO, DE 2" | E241: Material | G241: UN | H241: 1 | I241: =IF(C241="SINAPI", IF( IF(A241="Insumo", VLOOKUP(B241,'SINAPI INSUMOS'!B:F,5,0), VLOOKUP(B241,'SINAPI COMP'!B:F,4,0))=0,VLOOKUP(B241,'OUTRAS BASES'!C:D,2,0),IF(A241="Insumo", VLOOKUP(B241,'SINAPI INSUMOS'!B:F,5,0),VLOOKUP(B241,'SINAPI COMP'!B:F,4,0))), VLOOKUP(B241,'OUTRAS BASES'!C:D,2,0)) -> 133.27 | J241: 133.27 | L241: TRUE
A242: Insumo | B242: 9887 | C242: SINAPI | D242: UNIAO DE FERRO GALVANIZADO, COM ROSCA BSP, COM ASSENTO PLANO, DE 2" | E242: Material | G242: UN | H242: 1 | I242: =IF(C242="SINAPI", IF( IF(A242="Insumo", VLOOKUP(B242,'SINAPI INSUMOS'!B:F,5,0), VLOOKUP(B242,'SINAPI COMP'!B:F,4,0))=0,VLOOKUP(B242,'OUTRAS BASES'!C:D,2,0),IF(A242="Insumo", VLOOKUP(B242,'SINAPI INSUMOS'!B:F,5,0),VLOOKUP(B242,'SINAPI COMP'!B:F,4,0))), VLOOKUP(B242,'OUTRAS BASES'!C:D,2,0)) -> 106.17 | J242: 106.17 | L242: TRUE
A243: Insumo | B243: 00004181/SINAPI | C243: ORSE | D243: Niple de ferro galvanizado, com rosca bsp, de 2" | E243: Material | G243: un | H243: 2 | I243: =IF(C243="SINAPI", IF( IF(A243="Insumo", VLOOKUP(B243,'SINAPI INSUMOS'!B:F,5,0), VLOOKUP(B243,'SINAPI COMP'!B:F,4,0))=0,VLOOKUP(B243,'OUTRAS BASES'!C:D,2,0),IF(A243="Insumo", VLOOKUP(B243,'SINAPI INSUMOS'!B:F,5,0),VLOOKUP(B243,'SINAPI COMP'!B:F,4,0))), VLOOKUP(B243,'OUTRAS BASES'!C:D,2,0)) -> 36.64 | J243: 73.28 | L243: TRUE
A244: Insumo | B244: 6028 | C244: SINAPI | D244: REGISTRO GAVETA BRUTO EM LATAO FORJADO, BITOLA 2 " (REF 1509) | E244: Material | G244: UN | H244: 1 | I244: =IF(C244="SINAPI", IF( IF(A244="Insumo", VLOOKUP(B244,'SINAPI INSUMOS'!B:F,5,0), VLOOKUP(B244,'SINAPI COMP'!B:F,4,0))=0,VLOOKUP(B244,'OUTRAS BASES'!C:D,2,0),IF(A244="Insumo", VLOOKUP(B244,'SINAPI INSUMOS'!B:F,5,0),VLOOKUP(B244,'SINAPI COMP'!B:F,4,0))), VLOOKUP(B244,'OUTRAS BASES'!C:D,2,0)) -> 147.31 | J244: 147.31 | L244: TRUE
A245: Insumo | B245: 12775 | C245: SINAPI | D245: HIDROMETRO MULTIJATO / MEDIDOR DE AGUA, DN 1", VAZAO MAXIMA DE 7 M3/H, PARA AGUA POTAVEL FRIA, RELOJOARIA PLANA, CLASSE B, HORIZONTAL (SEM CONEXOES) | E245: Material | G245: UN | H245: 1 | I245: =IF(C245="SINAPI", IF( IF(A245="Insumo", VLOOKUP(B245,'SINAPI INSUMOS'!B:F,5,0), VLOOKUP(B245,'SINAPI COMP'!B:F,4,0))=0,VLOOKUP(B245,'OUTRAS BASES'!C:D,2,0),IF(A245="Insumo", VLOOKUP(B245,'SINAPI INSUMOS'!B:F,5,0),VLOOKUP(B245,'SINAPI COMP'!B:F,4,0))), VLOOKUP(B245,'OUTRAS BASES'!C:D,2,0)) -> 420.58 | J245: 420.58 | L245: TRUE
A246: Insumo | B246: 771 | C246: SINAPI | D246: BUCHA DE REDUCAO DE FERRO GALVANIZADO, COM ROSCA BSP, DE 2" X 1" | E246: Material | G246: UN | H246: 2 | I246: =IF(C246="SINAPI", IF( IF(A246="Insumo", VLOOKUP(B246,'SINAPI INSUMOS'!B:F,5,0), VLOOKUP(B246,'SINAPI COMP'!B:F,4,0))=0,VLOOKUP(B246,'OUTRAS BASES'!C:D,2,0),IF(A246="Insumo", VLOOKUP(B246,'SINAPI INSUMOS'!B:F,5,0),VLOOKUP(B246,'SINAPI COMP'!B:F,4,0))), VLOOKUP(B246,'OUTRAS BASES'!C:D,2,0)) -> 28.96 | J246: 57.92 | L246: TRUE
A247: Insumo | B247: 6305 | C247: SINAPI | D247: TE DE REDUCAO DE FERRO GALVANIZADO, COM ROSCA BSP, DE 2" X 1" | E247: Material | G247: UN | H247: 1 | I247: =IF(C247="SINAPI", IF( IF(A247="Insumo", VLOOKUP(B247,'SINAPI INSUMOS'!B:F,5,0), VLOOKUP(B247,'SINAPI COMP'!B:F,4,0))=0,VLOOKUP(B247,'OUTRAS BASES'!C:D,2,0),IF(A247="Insumo", VLOOKUP(B247,'SINAPI INSUMOS'!B:F,5,0),VLOOKUP(B247,'SINAPI COMP'!B:F,4,0))), VLOOKUP(B247,'OUTRAS BASES'!C:D,2,0)) -> 411.16 | J247: 411.16 | K247: Preço AS digitado (Atribuído São Paulo) | L247: TRUE
A248: Insumo | B248: 764 | C248: SINAPI | D248: BUCHA DE REDUCAO DE FERRO GALVANIZADO, COM ROSCA BSP, DE 1" X 1/2" | E248: Material | G248: UN | H248: 1 | I248: =IF(C248="SINAPI", IF( IF(A248="Insumo", VLOOKUP(B248,'SINAPI INSUMOS'!B:F,5,0), VLOOKUP(B248,'SINAPI COMP'!B:F,4,0))=0,VLOOKUP(B248,'OUTRAS BASES'!C:D,2,0),IF(A248="Insumo", VLOOKUP(B248,'SINAPI INSUMOS'!B:F,5,0),VLOOKUP(B248,'SINAPI COMP'!B:F,4,0))), VLOOKUP(B248,'OUTRAS BASES'!C:D,2,0)) -> 109.89 | J248: 109.89 | L248: TRUE
A249: Insumo | B249: 5128 | C249: ORSE | D249: Tampa de poço galvanizada em 6" | E249: Material | G249: UN | H249: 1 | I249: =IF(C249="SINAPI", IF( IF(A249="Insumo", VLOOKUP(B249,'SINAPI INSUMOS'!B:F,5,0), VLOOKUP(B249,'SINAPI COMP'!B:F,4,0))=0,VLOOKUP(B249,'OUTRAS BASES'!C:D,2,0),IF(A249="Insumo", VLOOKUP(B249,'SINAPI INSUMOS'!B:F,5,0),VLOOKUP(B249,'SINAPI COMP'!B:F,4,0))), VLOOKUP(B249,'OUTRAS BASES'!C:D,2,0)) -> 107.28 | J249: 107.28 | L249: TRUE
A250: Insumo | B250: 1160 | C250: ORSE | D250: Joelho 45° ferro galvanizado d=2" | E250: Material | G250: UN | H250: 2 | I250: =IF(C250="SINAPI", IF( IF(A250="Insumo", VLOOKUP(B250,'SINAPI INSUMOS'!B:F,5,0), VLOOKUP(B250,'SINAPI COMP'!B:F,4,0))=0,VLOOKUP(B250,'OUTRAS BASES'!C:D,2,0),IF(A250="Insumo", VLOOKUP(B250,'SINAPI INSUMOS'!B:F,5,0),VLOOKUP(B250,'SINAPI COMP'!B:F,4,0))), VLOOKUP(B250,'OUTRAS BASES'!C:D,2,0)) -> 54.39 | J250: 108.78 | L250: TRUE
A251: Insumo | B251: 53688 | C251: SBC | D251: VALVULA DE RETENCAO HORIZONTAL EM LATAO, ROSCA BSP 2" | E251: Material | G251: UN | H251: 1 | I251: =IF(C251="SINAPI", IF( IF(A251="Insumo", VLOOKUP(B251,'SINAPI INSUMOS'!B:F,5,0), VLOOKUP(B251,'SINAPI COMP'!B:F,4,0))=0,VLOOKUP(B251,'OUTRAS BASES'!C:D,2,0),IF(A251="Insumo", VLOOKUP(B251,'SINAPI INSUMOS'!B:F,5,0),VLOOKUP(B251,'SINAPI COMP'!B:F,4,0))), VLOOKUP(B251,'OUTRAS BASES'!C:D,2,0)) -> 192.66 | J251: =H251*I251 -> 192.66 | L251: TRUE
A252: Insumo | B252: 4194 | C252: SINAPI | D252: NIPLE DE REDUCAO DE FERRO GALVANIZADO, COM ROSCA BSP, DE 2" X 1 1/2" | E252: Material | G252: UN | H252: 1 | I252: =IF(C252="SINAPI", IF( IF(A252="Insumo", VLOOKUP(B252,'SINAPI INSUMOS'!B:F,5,0), VLOOKUP(B252,'SINAPI COMP'!B:F,4,0))=0,VLOOKUP(B252,'OUTRAS BASES'!C:D,2,0),IF(A252="Insumo", VLOOKUP(B252,'SINAPI INSUMOS'!B:F,5,0),VLOOKUP(B252,'SINAPI COMP'!B:F,4,0))), VLOOKUP(B252,'OUTRAS BASES'!C:D,2,0)) -> 46.94 | J252: =H252*I252 -> 46.94 | L252: TRUE
A253: Insumo | B253: 12464 | C253: ORSE | D253: Clorador dosador de cloro de pastilhas automático | E253: Material | G253: un | H253: 1 | I253: =IF(C253="SINAPI", IF( IF(A253="Insumo", VLOOKUP(B253,'SINAPI INSUMOS'!B:F,5,0), VLOOKUP(B253,'SINAPI COMP'!B:F,4,0))=0,VLOOKUP(B253,'OUTRAS BASES'!C:D,2,0),IF(A253="Insumo", VLOOKUP(B253,'SINAPI INSUMOS'!B:F,5,0),VLOOKUP(B253,'SINAPI COMP'!B:F,4,0))), VLOOKUP(B253,'OUTRAS BASES'!C:D,2,0)) -> 250.97 | J253: =H253*I253 -> 250.97 | L253: TRUE
L254: FALSE
L255: FALSE
L256: FALSE
L257: FALSE
A258: 9 | D258: INSTALAÇÕES HIDRÁULICAS POÇO E ADUTORA | J258: 20625.2 | L258: FALSE
A259: 9.1 | B259: Código | C259: Banco | D259: Descrição | E259: Tipo | G259: Und | H259: Quant. | I259: Valor Unit | J259: Total | L259: FALSE
A260: Composição | B260: COMPOSIÇÃO - 16 | C260: Próprio | D260: Instalação da rede adutora poço-reservatório-bebedouro em PN80 e DN50MM | E260: SEDI - SERVIÇOS DIVERSOS | G260: m | H260: 1 | I260: =SUM(J261:J263) -> 5.8185 | J260: =H260*I260 -> 5.8185 | L260: =_xlfn.ISFORMULA(I260) -> TRUE
A261: Composição Auxiliar | B261: 88316 | C261: SINAPI | D261: SERVENTE COM ENCARGOS COMPLEMENTARES | E261: Livro SINAPI: Cálculos e Parâmetros | G261: H | H261: 0.05 | I261: =IF(C261="SINAPI", IF( IF(A261="Insumo", VLOOKUP(B261,'SINAPI INSUMOS'!B:F,5,0), VLOOKUP(B261,'SINAPI COMP'!B:F,4,0))=0,VLOOKUP(B261,'OUTRAS BASES'!C:D,2,0),IF(A261="Insumo", VLOOKUP(B261,'SINAPI INSUMOS'!B:F,5,0),VLOOKUP(B261,'SINAPI COMP'!B:F,4,0))), VLOOKUP(B261,'OUTRAS BASES'!C:D,2,0)) -> 19.85 | J261: =H261*I261 -> 0.9925 | L261: TRUE
A262: Composição Auxiliar | B262: 93358 | C262: SINAPI | D262: ESCAVAÇÃO MANUAL DE VALA COM PROFUNDIDADE MENOR OU IGUAL A 1,30 M. AF_02/2021 | E262: Escavação de Valas | G262: m³ | H262: 0.05 | I262: =IF(C262="SINAPI", IF( IF(A262="Insumo", VLOOKUP(B262,'SINAPI INSUMOS'!B:F,5,0), VLOOKUP(B262,'SINAPI COMP'!B:F,4,0))=0,VLOOKUP(B262,'OUTRAS BASES'!C:D,2,0),IF(A262="Insumo", VLOOKUP(B262,'SINAPI INSUMOS'!B:F,5,0),VLOOKUP(B262,'SINAPI COMP'!B:F,4,0))), VLOOKUP(B262,'OUTRAS BASES'!C:D,2,0)) -> 78.52 | J262: =H262*I262 -> 3.926 | L262: =_xlfn.ISFORMULA(I262) -> TRUE
A263: Insumo | B263: 119 | C263: SINAPI | D263: ADESIVO PLASTICO PARA PVC, BISNAGA COM 75 GR | E263: Material | G263: UN | H263: 0.1 | I263: =IF(C263="SINAPI", IF( IF(A263="Insumo", VLOOKUP(B263,'SINAPI INSUMOS'!B:F,5,0), VLOOKUP(B263,'SINAPI COMP'!B:F,4,0))=0,VLOOKUP(B263,'OUTRAS BASES'!C:D,2,0),IF(A263="Insumo", VLOOKUP(B263,'SINAPI INSUMOS'!B:F,5,0),VLOOKUP(B263,'SINAPI COMP'!B:F,4,0))), VLOOKUP(B263,'OUTRAS BASES'!C:D,2,0)) -> 9 | J263: =H263*I263 -> 0.9 | L263: TRUE
L264: FALSE
A265: 9.2 | B265: Código | C265: Banco | D265: Descrição | E265: Tipo | G265: Und | H265: Quant. | I265: Valor Unit | J265: Total | L265: FALSE
A266: Insumo | B266: 9875 | C266: SINAPI | D266: TUBO PVC, SOLDAVEL, DE 50 MM, AGUA FRIA (NBR-5648) | E266: MATERIAL | G266: un | H266: 1 | I266: =IF(C266="SINAPI", IF( IF(A266="Insumo", VLOOKUP(B266,'SINAPI INSUMOS'!B:F,5,0), VLOOKUP(B266,'SINAPI COMP'!B:F,4,0))=0,VLOOKUP(B266,'OUTRAS BASES'!C:D,2,0),IF(A266="Insumo", VLOOKUP(B266,'SINAPI INSUMOS'!B:F,5,0),VLOOKUP(B266,'SINAPI COMP'!B:F,4,0))), VLOOKUP(B266,'OUTRAS BASES'!C:D,2,0)) -> 13.57 | J266: =I266*H266 -> 13.57 | L266: TRUE
L267: FALSE
L268: FALSE
L269: FALSE
L270: FALSE
A271: 9.3 | B271: Código | C271: Banco | D271: Descrição | E271: Tipo | G271: Und | H271: Quant. | I271: Valor Unit | J271: Total | L271: FALSE
A272: Composição | B272: COMPOSIÇÃO - 17 | C272: Próprio | D272: Montagem hidráulica do equipamento de bombeamento | E272: INHI - INSTALAÇÕES HIDROS SANITÁRIAS | G272: un | H272: 1 | I272: =SUM(J273:J274) -> 140.55 | J272: =H272*I272 -> 140.55 | L272: TRUE
A273: Composição Auxiliar | B273: 88267 | C273: SINAPI | D273: ENCANADOR OU BOMBEIRO HIDRÁULICO COM ENCARGOS COMPLEMENTARES | E273: Livro SINAPI: Cálculos e Parâmetros | G273: H | H273: 3 | I273: =IF(C273="SINAPI", IF( IF(A273="Insumo", VLOOKUP(B273,'SINAPI INSUMOS'!B:F,5,0), VLOOKUP(B273,'SINAPI COMP'!B:F,4,0))=0,VLOOKUP(B273,'OUTRAS BASES'!C:D,2,0),IF(A273="Insumo", VLOOKUP(B273,'SINAPI INSUMOS'!B:F,5,0),VLOOKUP(B273,'SINAPI COMP'!B:F,4,0))), VLOOKUP(B273,'OUTRAS BASES'!C:D,2,0)) -> 25.5 | J273: =H273*I273 -> 76.5 | L273: TRUE
A274: Composição Auxiliar | B274: 88248 | C274: SINAPI | D274: AUXILIAR DE ENCANADOR OU BOMBEIRO HIDRÁULICO COM ENCARGOS COMPLEMENTARES | E274: Livro SINAPI: Cálculos e Parâmetros | G274: H | H274: 3 | I274: =IF(C274="SINAPI", IF( IF(A274="Insumo", VLOOKUP(B274,'SINAPI INSUMOS'!B:F,5,0), VLOOKUP(B274,'SINAPI COMP'!B:F,4,0))=0,VLOOKUP(B274,'OUTRAS BASES'!C:D,2,0),IF(A274="Insumo", VLOOKUP(B274,'SINAPI INSUMOS'!B:F,5,0),VLOOKUP(B274,'SINAPI COMP'!B:F,4,0))), VLOOKUP(B274,'OUTRAS BASES'!C:D,2,0)) -> 21.35 | J274: =H274*I274 -> 64.05 | L274: TRUE
L275: FALSE
L276: FALSE
L277: FALSE
L278: FALSE
... 84 more rows

Sheet Crono. - AP - T
A1: OBJETO: EXECUÇÃO DE SERVIÇOS DE PERFURAÇÃO E INSTALAÇÃO DE POÇOS TUBULARES EM MUNICÍPIOS LOCALIZADOS NO ESTADO DO AMAPÁ, NA ÁREA DE ATUAÇÃO DA CODEVASF
A8: CRONOGRAMA FÍSICO-FINANCEIRO POÇO TOTALMENTE REVESTIDO
A10: ITEM | B10: ESPECIFICAÇÃO DOS SERVIÇOS | C10: VALOR TOTAL (R$) | D10: Mês 01 | E10: Mês 02 | F10: Mês 03 | G10: Mês 04 | H10: Mês 05 | I10: Mês 06 | J10: Mês 07 | K10: Mês 08 | L10: Mês 09 | M10: Mês 10 | N10: Mês 11 | O10: Mês 12
A11: 1 | B11: Serviços preliminares. | C11: ='Orçamento Sintético - AP - T'!K4 -> 136318.99 | D11: =ROUND($C11/12,2) -> 11359.92 | E11: =ROUND($C11/12,2) -> 11359.92 | F11: 11359.92 | G11: 11359.92 | H11: 11359.92 | I11: 11359.92 | J11: 11359.92 | K11: 11359.92 | L11: 11359.92 | M11: 11359.92 | N11: 11359.92 | O11: 11359.92
A12: 2 | B12: Mobilizaçâo e desmobilizaçâo equipe campo. | C12: ='Orçamento Sintético - AP - T'!K8 -> 213106.65 | D12: =ROUND($C12/12,2) -> 17758.89 | E12: 17758.89 | F12: 17758.89 | G12: 17758.89 | H12: 17758.89 | I12: 17758.89 | J12: 17758.89 | K12: 17758.89 | L12: 17758.89 | M12: 17758.89 | N12: 17758.89 | O12: 17758.89
A13: 3 | B13: Perfuração e completação de poço tubular. | C13: ='Orçamento Sintético - AP - T'!K13 -> 6307167.14 | D13: 525597.26 | E13: 525597.26 | F13: 525597.26 | G13: 525597.26 | H13: 525597.26 | I13: 525597.26 | J13: 525597.26 | K13: 525597.26 | L13: 525597.26 | M13: 525597.26 | N13: 525597.26 | O13: 525597.26
A14: 4 | B14: Pós perfuração. | C14: ='Orçamento Sintético - AP - T'!K20 -> 741546.6 | D14: 61795.55 | E14: 61795.55 | F14: 61795.55 | G14: 61795.55 | H14: 61795.55 | I14: 61795.55 | J14: 61795.55 | K14: 61795.55 | L14: 61795.55 | M14: 61795.55 | N14: 61795.55 | O14: 61795.55
A15: 5 | B15: Reservação. | C15: ='Orçamento Sintético - AP - T'!K26 -> 1339884.12 | D15: 111657.01 | E15: 111657.01 | F15: 111657.01 | G15: 111657.01 | H15: 111657.01 | I15: 111657.01 | J15: 111657.01 | K15: 111657.01 | L15: 111657.01 | M15: 111657.01 | N15: 111657.01 | O15: 111657.01
A16: 6 | B16: Bebedouro. | C16: ='Orçamento Sintético - AP - T'!K29 -> 148731.6 | D16: 12394.3 | E16: 12394.3 | F16: 12394.3 | G16: 12394.3 | H16: 12394.3 | I16: 12394.3 | J16: 12394.3 | K16: 12394.3 | L16: 12394.3 | M16: 12394.3 | N16: 12394.3 | O16: 12394.3
A17: 7 | B17: Chafariz. | C17: ='Orçamento Sintético - AP - T'!K31 -> 77596.2 | D17: 6466.35 | E17: 6466.35 | F17: 6466.35 | G17: 6466.35 | H17: 6466.35 | I17: 6466.35 | J17: 6466.35 | K17: 6466.35 | L17: 6466.35 | M17: 6466.35 | N17: 6466.35 | O17: 6466.35
A18: 8 | B18: Cavalete. | C18: ='Orçamento Sintético - AP - T'!K33 -> 173478 | D18: 14456.5 | E18: 14456.5 | F18: 14456.5 | G18: 14456.5 | H18: 14456.5 | I18: 14456.5 | J18: 14456.5 | K18: 14456.5 | L18: 14456.5 | M18: 14456.5 | N18: 14456.5 | O18: 14456.5
A19: 9 | B19: Instalações hidráulicas poço e adutora. | C19: ='Orçamento Sintético - AP - T'!K35 -> 1003261.22 | D19: 83605.1 | E19: 83605.1 | F19: 83605.1 | G19: 83605.1 | H19: 83605.1 | I19: 83605.1 | J19: 83605.1 | K19: 83605.1 | L19: 83605.1 | M19: 83605.1 | N19: 83605.1 | O19: 83605.1
A20: 10 | B20: Estrutura de fixação para módulos fotovoltáicos. | C20: ='Orçamento Sintético - AP - T'!K43 -> 134242.81 | D20: 11186.9 | E20: 11186.9 | F20: 11186.9 | G20: 11186.9 | H20: 11186.9 | I20: 11186.9 | J20: 11186.9 | K20: 11186.9 | L20: 11186.9 | M20: 11186.9 | N20: 11186.9 | O20: 11186.9
A21: 11 | B21: Instalações elétricas. | C21: ='Orçamento Sintético - AP - T'!K45 -> 1026489 | D21: 85540.75 | E21: 85540.75 | F21: 85540.75 | G21: 85540.75 | H21: 85540.75 | I21: 85540.75 | J21: 85540.75 | K21: 85540.75 | L21: 85540.75 | M21: 85540.75 | N21: 85540.75 | O21: 85540.75
A22: 12 | B22: Urbanização. | C22: ='Orçamento Sintético - AP - T'!K51 -> 253574.1 | D22: 21131.18 | E22: 21131.18 | F22: 21131.18 | G22: 21131.18 | H22: 21131.18 | I22: 21131.18 | J22: 21131.18 | K22: 21131.18 | L22: 21131.18 | M22: 21131.18 | N22: 21131.18 | O22: 21131.18
A23: 13 | B23: Outros serviços e insumos excepcionais. | C23: ='Orçamento Sintético - AP - T'!K54 -> 555744.36 | D23: 46312.03 | E23: 46312.03 | F23: 46312.03 | G23: 46312.03 | H23: 46312.03 | I23: 46312.03 | J23: 46312.03 | K23: 46312.03 | L23: 46312.03 | M23: 46312.03 | N23: 46312.03 | O23: 46312.03
A24: TOTAL | C24: =SUM(C11:C23) -> 12111140.79 | D24: =SUM(D11:D23) -> 1009261.74 | E24: =SUM(E11:E23) -> 1009261.74 | F24: 1009261.74 | G24: 1009261.74 | H24: 1009261.74 | I24: 1009261.74 | J24: 1009261.74 | K24: 1009261.74 | L24: 1009261.74 | M24: 1009261.74 | N24: 1009261.74 | O24: 1009261.74
A25: PERCENTUAL | D25: 0.08333333333 | E25: 0.08333333333 | F25: 0.08333333333 | G25: 0.08333333333 | H25: 0.08333333333 | I25: 0.08333333333 | J25: 0.08333333333 | K25: 0.08333333333 | L25: 0.08333333333 | M25: 0.08333333333 | N25: 0.08333333333 | O25: 0.08333333333
A26: CUSTO ACUMULADO | D26: =D24 -> 1009261.74 | E26: =D26+E24 -> 2018523.48 | F26: =E26+F24 -> 3027785.22 | G26: 4037046.96 | H26: 5046308.7 | I26: 6055570.44 | J26: 7064832.18 | K26: 8074093.92 | L26: 9083355.66 | M26: 10092617.4 | N26: 11101879.14 | O26: 12111140.88
A27: PERCENTUAL ACUMULADO | D27: =D25 -> 0.08333333333 | E27: =D27+E25 -> 0.1666666667 | F27: =E27+F25 -> 0.25 | G27: 0.3333333333 | H27: 0.4166666667 | I27: 0.5 | J27: 0.5833333333 | K27: 0.6666666667 | L27: 0.75 | M27: 0.8333333333 | N27: 0.9166666667 | O27: 1

Sheet CAPA PA
B7: EXECUÇÃO DE SERVIÇOS DE PERFURAÇÃO E INSTALAÇÃO DE POÇOS TUBULARES NO PARÁ

Sheet Planilha Resumo PA
B2: OBJETO: EXECUÇÃO DE SERVIÇOS DE PERFURAÇÃO E INSTALAÇÃO DE POÇOS TUBULARES EM MUNICÍPIOS LOCALIZADOS NO ESTADO DO PARÁ, NA ÁREA DE ATUAÇÃO DA CODEVASF
B3: PLANILHA ORÇAMENTÁRIA ESTIMATIVA GERAL
B4: DATABASE DO ORÇAMENTO: setembro/2025 - NÃO DESONERADO
B5: PLANILHA RESUMIDA - GRUPO 2 - PARÁ
B6: ITEM | C6: DISCRIMINAÇÃO | D6: UND | E6: Quantidade de Poços | F6: PREÇO UNITÁRIO | G6: TOTAL
B7: 3 | C7: Perfuração e instalação de poço tubular parcialmente revestido, instalado com sistema fotovoltaico, bomba submersa, reservatório e bebedouro para animais. | D7: un | E7: ='Orçamento Sintético - PA - P'!H2 -> 26 | F7: ='Orçamento Sintético - PA - P'!L2 -> 125392.7 | G7: =F7*E7 -> 3260210.2
B8: 4 | C8: Perfuração e instalação de poços poço tubular totalmente revestido, instalado com sistema fotovoltaico, bomba submersa, reservatório e bebedouro para animais. | D8: un | E8: ='Orçamento Sintético - PA - T'!H2 -> 54 | F8: ='Orçamento Sintético - PA - T'!L2 -> 190654.62 | G8: =F8*E8 -> 10295349.48
B9: TOTAL GERAL ESTIMADO GRUPO | D9: un | E9: =E7+E8 -> 80 | G9: =SUM(G7:G8) -> 13555559.68
B13: Base de Preços Consultados | E13: SBC 09/2025 SINAPI 08/2025 SICRO 04/2025 ORSE 06/2025 CPOS/CDHU 06/2025 EMBASA 06/2025 SEINFRA 028 SIURB 01/2025
B15: Encargos Sociais | E15: Não Desonerado: Horista: 111,58% Mensalista: 66,34%

Sheet Orçamento Sintético - PA - P
C1: OBJETO: EXECUÇÃO DE SERVIÇOS DE PERFURAÇÃO E INSTALAÇÃO DE POÇOS TUBULARES EM MUNICÍPIOS LOCALIZADOS NO ESTADO DO PARÁ, NA ÁREA DE ATUAÇÃO DA CODEVASF | H1: Quantidade de Poços | I1: BDI SERVIÇO | J1: BDI INSUMO | K1: Total | L1: Preço Unitário Por Poço | M1: DESCONTO
H2: 26 | I2: ='BDI-SERVICOS'!D22 -> 0.2378 | J2: ='BDI-FORNECIMENTO'!C28 -> 0.146920122 | K2: =SUM(K4,K8,K12,K17,K23,K26,K28,K30,K32,K40,K42,K48,K51) -> 3260210.08 | L2: =ROUND(K2/H2,2) -> 125392.7 | M2: 0
A3: Item | B3: Código | C3: Banco | D3: TIPO | E3: Descrição. | F3: un. | G3: Mem. calc. | H3: Quanti. | I3: Valor Unit | J3: Valor Unit com BDI | K3: Total | L3: Peso (%)
A4: 1 | E4: Serviços preliminares. | K4: =SUM(K5:K7) -> 37256.49 | L4: =K4/$K$2 -> 0.01142763475
A5: 1.1 | B5: COMPOSIÇÃO - 1 | C5: Próprio | D5: Serviço | E5: Administração local da obra - poço parcialmente revestido. | F5: un. | G5: 1 | H5: =ROUND(G5*$H$2,2) -> 26 | I5: =VLOOKUP(B5,'Orçamento Analítico - PA - P'!B:J,9,0)*(1-$M$2) -> 214.8792 | J5: =ROUND(I5*(1+$I$2),2) -> 265.98 | K5: =ROUND(J5*H5,2) -> 6915.48 | L5: 0.002121176191 | N5: =_xlfn.ISFORMULA(K5) -> TRUE
A6: 1.2 | B6: COMPOSIÇÃO - 2 | C6: Próprio | D6: Serviço | E6: Serviço de locação geológica de campo com relatório hidro geológico e perfil construtivo e geológico esperado. relatório de viabilidade de implantação das estruturas e vistorias preliminares. | F6: un. | G6: 1 | H6: =ROUND(G6*$H$2,2) -> 26 | I6: =VLOOKUP(B6,'Orçamento Analítico - PA - P'!B:J,9,0)*(1-$M$2) -> 603.45 | J6: =ROUND(I6*(1+$I$2),2) -> 746.95 | K6: =ROUND(J6*H6,2) -> 19420.7 | L6: 0.005956886067 | N6: TRUE
A7: 1.3 | B7: 103689 | C7: SINAPI | D7: Serviço | E7: Fornecimento e instalação de placa de obra com chapa galvanizada e estrutura de madeira. . | F7: m² | G7: 0.72 | H7: =ROUND(G7*$H$2,2) -> 18.72 | I7: =VLOOKUP(B7,'Orçamento Analítico - PA - P'!B:J,9,0)*(1-$M$2) -> 471.28 | J7: =ROUND(I7*(1+$I$2),2) -> 583.35 | K7: =ROUND(J7*H7,2) -> 10920.31 | L7: 0.003349572491 | N7: TRUE
A8: 2 | E8: Mobilizaçâo e desmobilizaçâo equipes perfuraçâo e instalação. | K8: =SUM(K9:K11) -> 66690 | L8: 0.02045573701 | N8: TRUE
A9: 2.1 | B9: COMPOSIÇÃO - 3 | C9: Próprio | D9: Serviço | E9: Transporte de comboio perfuração. | F9: km | G9: 150 | H9: =ROUND(G9*$H$2,2) -> 3900 | I9: =VLOOKUP(B9,'Orçamento Analítico - PA - P'!B:J,9,0)*(1-$M$2) -> 4.9256956 | J9: =ROUND(I9*(1+$I$2),2) -> 6.1 | K9: =ROUND(J9*H9,2) -> 23790 | L9: 0.007297075776 | N9: TRUE
A10: 2.2 | B10: COMPOSIÇÃO - 4 | C10: Próprio | D10: Serviço | E10: Transporte de comboio instalação. | F10: km | G10: 150 | H10: =ROUND(G10*$H$2,2) -> 3900 | I10: =VLOOKUP(B10,'Orçamento Analítico - PA - P'!B:J,9,0)*(1-$M$2) -> 6.1686982 | J10: =ROUND(I10*(1+$I$2),2) -> 7.64 | K10: =ROUND(J10*H10,2) -> 29796 | L10: 0.009139288349 | N10: TRUE
A11: 2.3 | B11: COMPOSIÇÃO - 5 | C11: Próprio | D11: Serviço | E11: Transporte de equipe teste de vazão. | F11: km | G11: 150 | H11: =ROUND(G11*$H$2,2) -> 3900 | I11: =VLOOKUP(B11,'Orçamento Analítico - PA - P'!B:J,9,0)*(1-$M$2) -> 2.711195 | J11: =ROUND(I11*(1+$I$2),2) -> 3.36 | K11: =ROUND(J11*H11,2) -> 13104 | L11: 0.004019372887 | N11: TRUE
A12: 3 | E12: Perfuração e completação de poço tubular. | K12: =SUM(K13:K16) -> 732362.7 | L12: 0.224636659 | N12: TRUE
A13: 3.1 | B13: 5048 | C13: ORSE | D13: Serviço | E13: Perfuraçao em rocha cristalina - rocha cristalina alterada / compacto dn 6" (poço até 120m) | F13: m | G13: 90 | H13: =ROUND(G13*$H$2,2) -> 2340 | I13: =VLOOKUP(B13,'Orçamento Analítico - PA - P'!B:J,9,0)*(1-$M$2) -> 125.23 | J13: =ROUND(I13*(1+$I$2),2) -> 155.01 | K13: =ROUND(J13*H13,2) -> 362723.4 | L13: 0.111257677 | N13: TRUE
A14: 3.2 | B14: 5057 | C14: ORSE | D14: Serviço | E14: = Perfuração rocha sedimentar sedimento / Camadas inconsolidadas DN 12.1/2" - Poço até 150 m (Perfuração rotopneumática Ø 12 1/2" . Estimativa de 30 metros de profundidade para cada poço.) | F14: m | G14: 30 | H14: =ROUND(G14*$H$2,2) -> 780 | I14: =VLOOKUP(B14,'Orçamento Analítico - PA - P'!B:J,9,0)*(1-$M$2) -> 247.66 | J14: =ROUND(I14*(1+$I$2),2) -> 306.55 | K14: =ROUND(J14*H14,2) -> 239109 | L14: 0.07334159276 | N14: TRUE
A15: 3.3 | B15: COMPOSIÇÃO - 6 | C15: Próprio | D15: Serviço | E15: Serviço de lançamento cimentação anelar, incluso materiais. | F15: m³ | G15: 1.6 | H15: =ROUND(G15*$H$2,2) -> 41.6 | I15: =VLOOKUP(B15,'Orçamento Analítico - PA - P'!B:J,9,0)*(1-$M$2) -> 521.34 | J15: =ROUND(I15*(1+$I$2),2) -> 645.31 | K15: =ROUND(J15*H15,2) -> 26844.9 | L15: 0.008234101282 | N15: TRUE
A16: 3.4 | B16: 9854 | C16: SINAPI | D16: Insumo | E16: Tubo pvc de revestimento geomecanico nervurado standard, dn = 154 mm, comprimento = 2 m. | F16: m | G16: 30 | H16: =ROUND(G16*$H$2,2) -> 780 | I16: =VLOOKUP(B16,'Orçamento Analítico - PA - P'!B:J,9,0)*(1-$M$2) -> 115.9 | J16: =ROUND(I16*(1+$J$2),2) -> 132.93 | K16: =ROUND(J16*H16,2) -> 103685.4 | L16: 0.03180328796 | N16: TRUE
A17: 4 | E17: Pós perfuração. | K17: =SUM(K18:K22) -> 313347.06 | L17: 0.0961125364 | N17: TRUE
A18: 4.1 | B18: 6305 | C18: ORSE | D18: Serviço | E18: Desenvolvimento com compressor 250psi / 750cfm. | F18: h | G18: 2 | H18: =ROUND(G18*$H$2,2) -> 52 | I18: =VLOOKUP(B18,'Orçamento Analítico - PA - P'!B:J,9,0)*(1-$M$2) -> 411.16 | J18: =ROUND(I18*(1+$I$2),2) -> 508.93 | K18: =ROUND(J18*H18,2) -> 26464.36 | L18: 0.008117378743 | N18: TRUE
A19: 4.2 | B19: COMPOSIÇÃO - 7 | C19: Próprio | D19: Serviço | E19: Inspeção ótica em poço tubular câmera com rotação de 360º, visada lateral, com fonte própria de luz, entregue vídeo em cores e marcação de profundidades. | F19: m | G19: 120 | H19: =ROUND(G19*$H$2,2) -> 3120 | I19: =VLOOKUP(B19,'Orçamento Analítico - PA - P'!B:J,9,0)*(1-$M$2) -> 9.64046 | J19: =ROUND(I19*(1+$I$2),2) -> 11.93 | K19: =ROUND(J19*H19,2) -> 37221.6 | L19: 0.01141693298 | N19: TRUE
A20: 4.3 | B20: COMPOSIÇÃO - 8 | C20: Próprio | D20: Serviço | E20: Serviço de coleta e análise físico-química e bacteriológica. | F20: un. | G20: 1 | H20: =ROUND(G20*$H$2,2) -> 26 | I20: =VLOOKUP(B20,'Orçamento Analítico - PA - P'!B:J,9,0)*(1-$M$2) -> 621.19 | J20: =ROUND(I20*(1+$I$2),2) -> 768.91 | K20: =ROUND(J20*H20,2) -> 19991.66 | L20: 0.006132015885 | N20: TRUE
A21: 4.4 | B21: 24.80.22 | C21: EMBASA | D21: Serviço | E21: (REVISADA) DESENVOLVIMENTO OU TESTE COM BOMBA SUBMERSA - UEB1 NO SEDIMENTO COM VAZAO < 60M3 (Ensaio de bombeamento poço tubular incluso materiais e grupo gerador) | F21: h | G21: 24 | H21: =ROUND(G21*$H$2,2) -> 624 | I21: =VLOOKUP(B21,'Orçamento Analítico - PA - P'!B:J,9,0)*(1-$M$2) -> 263.27 | J21: =ROUND(I21*(1+$I$2),2) -> 325.88 | K21: =ROUND(J21*H21,2) -> 203349.12 | L21: 0.06237301125 | N21: TRUE
A22: 4.5 | B22: COMPOSIÇÃO - 9 | C22: Próprio | D22: Serviço | E22: Serviço de instalação de laje sanitária com dimensões (1,5x1,5x0,3) metros , incluso material. | F22: un. | G22: 1 | H22: =ROUND(G22*$H$2,2) -> 26 | I22: =VLOOKUP(B22,'Orçamento Analítico - PA - P'!B:J,9,0)*(1-$M$2) -> 817.8345 | J22: =ROUND(I22*(1+$I$2),2) -> 1012.32 | K22: =ROUND(J22*H22,2) -> 26320.32 | L22: 0.008073197541 | N22: TRUE
A23: 5 | E23: Reservação. | K23: =SUM(K24:K25) -> 607989.67 | L23: 0.1864878812 | N23: TRUE
A24: 5.1 | B24: COMPOSIÇÃO - 10 | C24: Próprio | D24: Serviço | E24: Fornecimento e instalação de reservatório e base elevada 10 m³. | F24: un. | G24: 0.8 | H24: =ROUND(G24*$H$2,2) -> 20.8 | I24: =VLOOKUP(B24,'Orçamento Analítico - PA - P'!B:J,9,0)*(1-$M$2) -> 21363.09678 | J24: =ROUND(I24*(1+$I$2),2) -> 26443.24 | K24: =ROUND(J24*H24,2) -> 550019.39 | L24: 0.1687067325 | N24: TRUE
A25: 5.2 | B25: COMPOSIÇÃO - 11 | C25: Próprio | D25: Serviço | E25: Fornecimento e execução de reservatório apoiado de 5 m³. | F25: un. | G25: 0.2 | H25: =ROUND(G25*$H$2,2) -> 5.2 | I25: =VLOOKUP(B25,'Orçamento Analítico - PA - P'!B:J,9,0)*(1-$M$2) -> 9006.402825 | J25: =ROUND(I25*(1+$I$2),2) -> 11148.13 | K25: =ROUND(J25*H25,2) -> 57970.28 | L25: 0.01778114863 | N25: TRUE
A26: 6 | E26: Bebedouro. | K26: =K27 -> 62653.5 | L26: 0.01921762661 | N26: TRUE
A27: 6.1 | B27: COMPOSIÇÃO - 12 | C27: Próprio | D27: Serviço | E27: Serviço de execução do bebedouro em concreto armado, incluso materiais. | F27: un. | G27: 1 | H27: =ROUND(G27*$H$2,2) -> 26 | I27: =VLOOKUP(B27,'Orçamento Analítico - PA - P'!B:J,9,0)*(1-$M$2) -> 1946.80108 | J27: =ROUND(I27*(1+$I$2),2) -> 2409.75 | K27: =ROUND(J27*H27,2) -> 62653.5 | L27: 0.01921762661 | N27: TRUE
A28: 7 | E28: Chafariz. | K28: =K29 -> 30208.88 | L28: 0.009265930495 | N28: TRUE
A29: 7.1 | B29: COMPOSIÇÃO - 13 | C29: Próprio | D29: Serviço | E29: Fornecimento de material e instalação do chafariz. | F29: un. | G29: 1 | H29: =ROUND(G29*$H$2,2) -> 26 | I29: =VLOOKUP(B29,'Orçamento Analítico - PA - P'!B:J,9,0)*(1-$M$2) -> 938.6691079 | J29: =ROUND(I29*(1+$I$2),2) -> 1161.88 | K29: =ROUND(J29*H29,2) -> 30208.88 | L29: 0.009265930495 | N29: TRUE
A30: 8 | E30: Cavalete. | K30: =SUM(K31) -> 60675.16 | L30: 0.01861081296 | N30: TRUE
A31: 8.1 | B31: COMPOSIÇÃO - 14 | C31: Próprio | D31: Serviço | E31: Fornecimento de conexões e instalação do cavalete com hidrômetro e clorador de pastilhas. | F31: un. | G31: 1 | H31: =ROUND(G31*$H$2,2) -> 26 | I31: =VLOOKUP(B31,'Orçamento Analítico - PA - P'!B:J,9,0)*(1-$M$2) -> 1885.325 | J31: =ROUND(I31*(1+$I$2),2) -> 2333.66 | K31: =ROUND(J31*H31,2) -> 60675.16 | L31: 0.01861081296 | N31: TRUE
A32: 9 | E32: Instalações hidráulicas. | K32: =SUM(K33:K39) -> 555694.98 | L32: 0.1704475989 | N32: TRUE
A33: 9.1 | B33: COMPOSIÇÃO - 15 | C33: Próprio | D33: Serviço | E33: Instalação da rede adutora poço-reservatório-bebedouro em pn80 e dn50mm. | F33: m | G33: 400 | H33: =ROUND(G33*$H$2,2) -> 10400 | I33: =VLOOKUP(B33,'Orçamento Analítico - PA - P'!B:J,9,0)*(1-$M$2) -> 7.1215 | J33: =ROUND(I33*(1+$I$2),2) -> 8.81 | K33: =ROUND(J33*H33,2) -> 91624 | L33: 0.02810371042 | N33: TRUE
A34: 9.2 | B34: 9875 | C34: SINAPI | D34: Insumo | E34: TUBO PVC, SOLDAVEL, DE 50 MM, AGUA FRIA (NBR-5648) | F34: m | G34: 400 | H34: 10400 | I34: =VLOOKUP(B34,'Orçamento Analítico - PA - P'!B:J,9,0)*(1-$M$2) -> 17.95 | J34: =ROUND(I34*(1+$J$2),2) -> 20.59 | K34: 214136 | L34: 0.06568165693 | N34: TRUE
A35: 9.3 | B35: COMPOSIÇÃO - 16 | C35: Próprio | D35: Serviço | E35: Montagem hidráulica do equipamento de bombeamento. | F35: un. | G35: 1 | H35: 26 | I35: =VLOOKUP(B35,'Orçamento Analítico - PA - P'!B:J,9,0)*(1-$M$2) -> 165.24 | J35: =ROUND(I35*(1+$I$2),2) -> 204.53 | K35: 5317.78 | L35: 0.001631115747 | N35: TRUE
A36: 9.4 | B36: 38200 | C36: SINAPI | D36: Insumo | E36: Corda de poliamida 12 mm tipo bombeiro, para trabalho em altura. | F36: 100m | G36: 0.93 | H36: 24.18 | I36: =VLOOKUP(B36,'Orçamento Analítico - PA - P'!B:J,9,0)*(1-$M$2) -> 500.67 | J36: =ROUND(I36*(1+$J$2),2) -> 574.23 | K36: 13884.88 | L36: 0.004258891194 | N36: TRUE
A37: 9.5 | B37: 9860 | C37: SINAPI | D37: Insumo | E37: Tubo pvc, roscavel, 2", para agua fria predial. | F37: m | G37: 90 | H37: 2340 | I37: =VLOOKUP(B37,'Orçamento Analítico - PA - P'!B:J,9,0)*(1-$M$2) -> 78.225 | J37: =ROUND(I37*(1+$J$2),2) -> 89.72 | K37: 209944.8 | L37: =K37/$K$2 -> 0.0643960956 | N37: TRUE
A38: 9.6 | B38: 3912 | C38: SINAPI | D38: Insumo | E38: Luva de ferro galvanizado, com rosca bsp, de 2". | F38: un. | G38: 16 | H38: 416 | I38: =VLOOKUP(B38,'Orçamento Analítico - PA - P'!B:J,9,0)*(1-$M$2) -> 36.86 | J38: =ROUND(I38*(1+$J$2),2) -> 42.28 | K38: 17588.48 | L38: 0.005394891608 | N38: TRUE
A39: 9.7 | B39: 5128 | C39: ORSE | D39: Insumo | E39: Tampa de poço galvanizada em 6" un. | F39: un. | G39: 1 | H39: 26 | I39: =VLOOKUP(B39,'Orçamento Analítico - PA - P'!B:J,9,0)*(1-$M$2) -> 107.28 | J39: =ROUND(I39*(1+$J$2),2) -> 123.04 | K39: 3199.04 | L39: 0.0009812373809 | N39: TRUE
A40: 10 | E40: Estrutura de fixação para módulos fotovoltáicos. | K40: =SUM(K41) -> 38689.16 | L40: 0.01186707576 | N40: TRUE
A41: 10.1 | B41: COMPOSIÇÃO - 17 | C41: Próprio | D41: Serviço | E41: Serviço de fixação de estruturas para os módulos fotovoltaicos e suportes de concreto, incluso materiais. | F41: m² | G41: 10.12 | H41: =ROUND(G41*$H$2,2) -> 263.12 | I41: =VLOOKUP(B41,'Orçamento Analítico - PA - P'!B:J,9,0)*(1-$M$2) -> 118.791064 | J41: =ROUND(I41*(1+$I$2),2) -> 147.04 | K41: =ROUND(J41*H41,2) -> 38689.16 | L41: 0.01186707576 | N41: TRUE
A42: 11 | E42: Instalações elétricas e bóia elétrica. | K42: =SUM(K43:K47) -> 371872.02 | L42: 0.1140638213 | N42: TRUE
A43: 11.1 | B43: COMPOSIÇÃO - 18 | C43: Próprio | D43: Serviço | E43: Montagem e instalação elétrica do kit de bombeamento e sistema fotovoltaico inclusive sistema de aterramento. | F43: un. | G43: 1 | H43: =ROUND(G43*$H$2,2) -> 26 | I43: =VLOOKUP(B43,'Orçamento Analítico - PA - P'!B:J,9,0)*(1-$M$2) -> 1121.7444 | J43: =ROUND(I43*(1+$I$2),2) -> 1388.5 | K43: =ROUND(J43*H43,2) -> 36101 | L43: 0.0110732128 | N43: TRUE
A44: 11.2 | B44: 34622 | C44: SINAPI | D44: Insumo | E44: Fornecimento de cabo flexivel pvc 750 v, 3 condutores de 6,0 mm2. | F44: m | G44: 105 | H44: =ROUND(G44*$H$2,2) -> 2730 | I44: =VLOOKUP(B44,'Orçamento Analítico - PA - P'!B:J,9,0)*(1-$M$2) -> 24.47 | J44: =ROUND(I44*(1+$J$2),2) -> 28.07 | K44: =ROUND(J44*H44,2) -> 76631.1 | L44: 0.02350495769 | N44: TRUE
A45: 11.3 | B45: COMPOSIÇÃO - 19 | C45: Próprio | D45: Serviço | E45: Fornecimento e instalação de automático de bóia superior e inferior. | F45: un. | G45: 1 | H45: =ROUND(G45*$H$2,2) -> 26 | I45: =VLOOKUP(B45,'Orçamento Analítico - PA - P'!B:J,9,0)*(1-$M$2) -> 64.5175 | J45: =ROUND(I45*(1+$I$2),2) -> 79.86 | K45: =ROUND(J45*H45,2) -> 2076.36 | L45: 0.0006368792038 | N45: TRUE
A46: 11.4 | B46: 39257 | C46: SINAPI | D46: Insumo | E46: Cabo multipolar de cobre, flexivel, classe 4 ou 5, isolacao em hepr, cobertura em pvc-st2, antichama bwf-b, 0,6/1 kv, 3 condutores de 1,5 mm2. | F46: m | G46: 200 | H46: =ROUND(G46*$H$2,2) -> 5200 | I46: =VLOOKUP(B46,'Orçamento Analítico - PA - P'!B:J,9,0)*(1-$M$2) -> 6.65 | J46: =ROUND(I46*(1+$J$2),2) -> 7.63 | K46: =ROUND(J46*H46,2) -> 39676 | L46: 0.01216976791 | N46: TRUE
A47: 11.5 | B47: COTAÇÃO-001 | C47: Próprio | D47: Insumo | E47: Fornecimento de kit de bombeamento fotovoltaico, incluindo uma bomba cc de 1500w com controladora de carga externa, caixa de proteção metálica, módulos fotovoltaicos compatíveis com a geração de 2200wp além de componentes elétricos necessários para interligação dos painéis, como cabos, conectores mc4 e presilhas de fixação. | F47: un. | G47: 1 | H47: =ROUND(G47*$H$2,2) -> 26 | I47: =VLOOKUP(B47,'Orçamento Analítico - PA - P'!B:J,9,0)*(1-$M$2) -> 7290.01 | J47: =ROUND(I47*(1+$J$2),2) -> 8361.06 | K47: =ROUND(J47*H47,2) -> 217387.56 | L47: 0.0666790037 | N47: TRUE
A48: 12 | E48: Urbanização. | K48: =SUM(K49:K50) -> 111779.07 | L48: 0.03428584884 | N48: TRUE
A49: 12.1 | B49: COMPOSIÇÃO - 20 | C49: Próprio | D49: Serviço | E49: Cerca com mourões de concreto de 15x15cm, espaçados de 3m e cravados a 0,5m, escoras de 10x10cm nos cantos, e 9 fios de arame de aço ovalado 15x17. | F49: m | G49: 28 | H49: =ROUND(G49*$H$2,2) -> 728 | I49: =VLOOKUP(B49,'Orçamento Analítico - PA - P'!B:J,9,0)*(1-$M$2) -> 89.235312 | J49: =ROUND(I49*(1+$I$2),2) -> 110.46 | K49: =ROUND(J49*H49,2) -> 80414.88 | L49: 0.02466555161 | N49: TRUE
A50: 12.2 | B50: COMPOSIÇÃO - 21 | C50: Próprio | D50: Serviço | E50: Serviço de instalação de portão de ferro com suporte e batedor conforme projeto, incluso material. | F50: m² | G50: 1.5 | H50: =ROUND(G50*$H$2,2) -> 39 | I50: =VLOOKUP(B50,'Orçamento Analítico - PA - P'!B:J,9,0)*(1-$M$2) -> 649.70796 | J50: =ROUND(I50*(1+$I$2),2) -> 804.21 | K50: =ROUND(J50*H50,2) -> 31364.19 | L50: 0.009620297229 | N50: TRUE
A51: 13 | E51: Outros serviços e insumos excepcionais. | K51: =SUM(K52:K59) -> 270991.39 | L51: 0.0831208368 | N51: TRUE
A52: 13.1 | B52: COMPOSIÇÃO - 22 | C52: Próprio | D52: Serviço | E52: Fornecimento e instalação do pré filtro para revestimento interno. | F52: m³ | G52: 1.212 | H52: =ROUND(G52*$H$2,2) -> 31.51 | I52: =VLOOKUP(B52,'Orçamento Analítico - PA - P'!B:J,9,0)*(1-$M$2) -> 1654.251 | J52: =ROUND(I52*(1+$I$2),2) -> 2047.63 | K52: =ROUND(J52*H52,2) -> 64520.82 | L52: 0.01979038725 | N52: TRUE
A53: 13.2 | B53: COMPOSIÇÃO - 23 | C53: Próprio | D53: Serviço | E53: Execução de tamponamento conforme especificação. | F53: m³ | G53: 0.24 | H53: 6.24 | I53: =VLOOKUP(B53,'Orçamento Analítico - PA - P'!B:J,9,0)*(1-$M$2) -> 924.97 | J53: =ROUND(I53*(1+$I$2),2) -> 1144.93 | K53: 7144.36 | L53: 0.002191380256 | N53: TRUE
A54: 13.3 | B54: COMPOSIÇÃO - 24 | C54: Próprio | D54: Serviço | E54: Fornecimento e instalação do filtro para revestimento interno ø 4 1/2". | F54: m | G54: 0.6 | H54: 15.6 | I54: =VLOOKUP(B54,'Orçamento Analítico - PA - P'!B:J,9,0)*(1-$M$2) -> 118.5245 | J54: =ROUND(I54*(1+$I$2),2) -> 146.71 | K54: 2288.68 | L54: 0.0007020038414 | N54: TRUE
A55: 13.4 | B55: COMPOSIÇÃO - 25 | C55: Próprio | D55: Serviço | E55: Fornecimento e instalação do revestimento interno ø 4 1/2". | F55: m | G55: 34.8 | H55: 904.8 | I55: =VLOOKUP(B55,'Orçamento Analítico - PA - P'!B:J,9,0)*(1-$M$2) -> 109.1045 | J55: =ROUND(I55*(1+$I$2),2) -> 135.05 | K55: 122193.24 | L55: 0.03748017367 | N55: TRUE
A56: 13.5 | B56: M3929 | C56: SICRO3 | D56: Insumo | E56: Tubo em aço-carbono - e = 3,00 mm e d = 150 mm (6"). | F56: m | G56: 9 | H56: 234 | I56: =VLOOKUP(B56,'Orçamento Analítico - PA - P'!B:J,9,0)*(1-$M$2) -> 148.57 | J56: =ROUND(I56*(1+$J$2),2) -> 170.4 | K56: 39873.6 | L56: 0.0122303775 | N56: TRUE
A57: 13.6 | B57: 5108 | C57: Orse | D57: Insumo | E57: Revestimento tubo liso aço sch-40 em 8" | F57: m | G57: 6 | H57: =ROUND(G57*$H$2,2) -> 156 | I57: =VLOOKUP(B57,'Orçamento Analítico - PA - P'!B:J,9,0)*(1-$M$2) -> 164.55 | J57: =ROUND(I57*(1+$J$2),2) -> 188.73 | K57: 29441.88 | L57: 0.009030669582 | N57: TRUE
A58: 13.7 | B58: M039706073 | C58: EMBASA | D58: Insumo | E58: Filtro nold em aço galvanizado dn 6". | F58: m | G58: 0.04 | H58: 1.04 | I58: =VLOOKUP(B58,'Orçamento Analítico - PA - P'!B:J,9,0)*(1-$M$2) -> 835.86 | J58: =ROUND(I58*(1+$J$2),2) -> 958.66 | K58: 997.01 | L58: 0.0003058115813 | N58: TRUE
A59: 13.8 | B59: COMPOSIÇÃO - 26 | C59: Próprio | D59: Serviço | E59: Limpeza manual , remoção de cerca, capina e instalação dos equipamentos (área do poço, painéis solares, bebedouro e reservatório). | F59: m² | G59: 70 | H59: 1820 | I59: =VLOOKUP(B59,'Orçamento Analítico - PA - P'!B:J,9,0)*(1-$M$2) -> 2.0088 | J59: =ROUND(I59*(1+$I$2),2) -> 2.49 | K59: 4531.8 | L59: 0.001390033123 | N59: TRUE
N60: FALSE

Sheet Orçamento Analítico - PA - P
C1: OBJETO: EXECUÇÃO DE SERVIÇOS DE PERFURAÇÃO E INSTALAÇÃO DE POÇOS TUBULARES EM MUNICÍPIOS LOCALIZADOS NO ESTADO DO PARÁ, NA ÁREA DE ATUAÇÃO DA CODEVASF
A4: PLANILHA ANALÍTICA - POÇO PARCIALMENTE REVESTIDO - PARÁ
A5: 1 | D5: SERVIÇOS PRELIMINARES
A6: 1.1 | B6: Código | C6: Banco | D6: Descrição | E6: Tipo | G6: Und | H6: Quant. | I6: =IF(C6="SINAPI", IF( IF(A6="Insumo", VLOOKUP(B6,'SINAPI INSUMOS'!B:H,6,0), VLOOKUP(B6,'SINAPI COMP'!B:H,6,0))=0,VLOOKUP(B6,'OUTRAS BASES'!C:D,2,0),IF(A6="Insumo", VLOOKUP(B6,'SINAPI INSUMOS'!B:H,6,0),VLOOKUP(B6,'SINAPI COMP'!B:H,6,0))), VLOOKUP(B6,'OUTRAS BASES'!C:D,2,0)) -> VALOR | J6: Total
A7: Composição | B7: COMPOSIÇÃO - 1 | C7: Próprio | D7: Administração Local da Obra - Poço Parcialmente Revestido | E7: CANT - CANTEIRO DE OBRAS | G7: un | H7: 1 | I7: =SUM(J8:J9) -> 214.8792 | J7: =H7*I7 -> 214.8792
A8: Composição Auxiliar | B8: 12710 | C8: SBC | D8: DESPESAS GERAIS DE MANUTENCAO CANTEIRO DE OBRAS | E8: INSTALACOES PROVISORIAS | G8: MES | H8: 0.03 | I8: =IF(C8="SINAPI", IF( IF(A8="Insumo", VLOOKUP(B8,'SINAPI INSUMOS'!B:H,6,0), VLOOKUP(B8,'SINAPI COMP'!B:H,6,0))=0,VLOOKUP(B8,'OUTRAS BASES'!C:D,2,0),IF(A8="Insumo", VLOOKUP(B8,'SINAPI INSUMOS'!B:H,6,0),VLOOKUP(B8,'SINAPI COMP'!B:H,6,0))), VLOOKUP(B8,'OUTRAS BASES'!C:D,2,0)) -> 910.61 | J8: =H8*I8 -> 27.3183 | L8: =_xlfn.ISFORMULA(I8) -> TRUE
A9: Composição Auxiliar | B9: 100321 | C9: SINAPI | D9: TÉCNICO EM SEGURANÇA DO TRABALHO COM ENCARGOS COMPLEMENTARES | E9: Livro SINAPI: Cálculos e Parâmetros | G9: MES | H9: 0.03 | I9: =IF(C9="SINAPI", IF( IF(A9="Insumo", VLOOKUP(B9,'SINAPI INSUMOS'!B:H,6,0), VLOOKUP(B9,'SINAPI COMP'!B:H,6,0))=0,VLOOKUP(B9,'OUTRAS BASES'!C:D,2,0),IF(A9="Insumo", VLOOKUP(B9,'SINAPI INSUMOS'!B:H,6,0),VLOOKUP(B9,'SINAPI COMP'!B:H,6,0))), VLOOKUP(B9,'OUTRAS BASES'!C:D,2,0)) -> 6252.03 | J9: 187.5609 | L9: =_xlfn.ISFORMULA(I9) -> TRUE
A14: 1.2 | B14: Código | C14: Banco | D14: Descrição | E14: Tipo | G14: Und | H14: Quant. | I14: Valor Unit | J14: Total
A15: Composição | B15: COMPOSIÇÃO - 2 | C15: Próprio | D15: Serviço de locação Geológica de campo com relatório hidro geológico e perfil construtivo e geológico esperado. Relatório de Viabilidade de implantação das estruturas e vistorias preliminares | E15: SERT - SERVIÇOS TÉCNICOS | G15: un | H15: 1 | I15: =SUM(J16:J18) -> 603.45 | J15: =H15*I15 -> 603.45
A16: Composição Auxiliar | B16: 30.01.45 | C16: EMBASA | D16: GEOLOGO SENIOR | E16: 3001 | G16: hora | H16: 5 | I16: =IF(C16="SINAPI", IF( IF(A16="Insumo", VLOOKUP(B16,'SINAPI INSUMOS'!B:H,6,0), VLOOKUP(B16,'SINAPI COMP'!B:H,6,0))=0,VLOOKUP(B16,'OUTRAS BASES'!C:D,2,0),IF(A16="Insumo", VLOOKUP(B16,'SINAPI INSUMOS'!B:H,6,0),VLOOKUP(B16,'SINAPI COMP'!B:H,6,0))), VLOOKUP(B16,'OUTRAS BASES'!C:D,2,0)) -> 99.88 | J16: 499.4 | L16: =_xlfn.ISFORMULA(I16) -> TRUE
A17: Insumo | B17: 5896 | C17: ORSE | D17: Veículo tipo sedan ou pick-up capacidade 0,6 ton h | E17: Equipamento | G17: h | H17: 5 | I17: =IF(C17="SINAPI", IF( IF(A17="Insumo", VLOOKUP(B17,'SINAPI INSUMOS'!B:H,6,0), VLOOKUP(B17,'SINAPI COMP'!B:H,6,0))=0,VLOOKUP(B17,'OUTRAS BASES'!C:D,2,0),IF(A17="Insumo", VLOOKUP(B17,'SINAPI INSUMOS'!B:H,6,0),VLOOKUP(B17,'SINAPI COMP'!B:H,6,0))), VLOOKUP(B17,'OUTRAS BASES'!C:D,2,0)) -> 8.33 | J17: 41.65
A18: Insumo | B18: 4222 | C18: SINAPI | D18: GASOLINA COMUM | E18: Material | G18: L | H18: 10 | I18: =IF(C18="SINAPI", IF( IF(A18="Insumo", VLOOKUP(B18,'SINAPI INSUMOS'!B:H,6,0), VLOOKUP(B18,'SINAPI COMP'!B:H,6,0))=0,VLOOKUP(B18,'OUTRAS BASES'!C:D,2,0),IF(A18="Insumo", VLOOKUP(B18,'SINAPI INSUMOS'!B:H,6,0),VLOOKUP(B18,'SINAPI COMP'!B:H,6,0))), VLOOKUP(B18,'OUTRAS BASES'!C:D,2,0)) -> 6.24 | J18: 62.4
A23: 1.3 | B23: Código | C23: Banco | D23: Descrição | E23: Tipo | G23: Und | H23: Quant. | I23: Valor Unit | J23: Total
A24: Composição | B24: 103689 | C24: SINAPI | D24: FORNECIMENTO E INSTALAÇÃO DE PLACA DE OBRA COM CHAPA GALVANIZADA E ESTRUTURA DE MADEIRA. AF_03/2022_PS | E24: Sinalização Vertical Viária | G24: m² | H24: 1 | I24: =IF(C24="SINAPI", IF( IF(A24="Insumo", VLOOKUP(B24,'SINAPI INSUMOS'!B:H,6,0), VLOOKUP(B24,'SINAPI COMP'!B:H,6,0))=0,VLOOKUP(B24,'OUTRAS BASES'!C:D,2,0),IF(A24="Insumo", VLOOKUP(B24,'SINAPI INSUMOS'!B:H,6,0),VLOOKUP(B24,'SINAPI COMP'!B:H,6,0))), VLOOKUP(B24,'OUTRAS BASES'!C:D,2,0)) -> 471.28 | J24: =H24*I24 -> 471.28 | K24: Utilizado o código da Composição 103689 | L24: =_xlfn.ISFORMULA(I24) -> TRUE
A25: Composição Auxiliar | B25: 102234 | C25: SINAPI | D25: PINTURA IMUNIZANTE PARA MADEIRA, 2 DEMÃOS. AF_01/2021 | E25: Pintura em Madeira | G25: m² | H25: 0.5 | I25: =IF(C25="SINAPI", IF( IF(A25="Insumo", VLOOKUP(B25,'SINAPI INSUMOS'!B:H,6,0), VLOOKUP(B25,'SINAPI COMP'!B:H,6,0))=0,VLOOKUP(B25,'OUTRAS BASES'!C:D,2,0),IF(A25="Insumo", VLOOKUP(B25,'SINAPI INSUMOS'!B:H,6,0),VLOOKUP(B25,'SINAPI COMP'!B:H,6,0))), VLOOKUP(B25,'OUTRAS BASES'!C:D,2,0)) -> 26.86 | J25: 13.43 | L25: TRUE
A26: Composição Auxiliar | B26: 88262 | C26: SINAPI | D26: CARPINTEIRO DE FORMAS COM ENCARGOS COMPLEMENTARES | E26: Livro SINAPI: Cálculos e Parâmetros | G26: H | H26: 0.3729 | I26: =IF(C26="SINAPI", IF( IF(A26="Insumo", VLOOKUP(B26,'SINAPI INSUMOS'!B:H,6,0), VLOOKUP(B26,'SINAPI COMP'!B:H,6,0))=0,VLOOKUP(B26,'OUTRAS BASES'!C:D,2,0),IF(A26="Insumo", VLOOKUP(B26,'SINAPI INSUMOS'!B:H,6,0),VLOOKUP(B26,'SINAPI COMP'!B:H,6,0))), VLOOKUP(B26,'OUTRAS BASES'!C:D,2,0)) -> 30.31 | J26: 11.302599 | L26: TRUE
A27: Composição Auxiliar | B27: 88316 | C27: SINAPI | D27: SERVENTE COM ENCARGOS COMPLEMENTARES | E27: Livro SINAPI: Cálculos e Parâmetros | G27: H | H27: 1.1186 | I27: =IF(C27="SINAPI", IF( IF(A27="Insumo", VLOOKUP(B27,'SINAPI INSUMOS'!B:H,6,0), VLOOKUP(B27,'SINAPI COMP'!B:H,6,0))=0,VLOOKUP(B27,'OUTRAS BASES'!C:D,2,0),IF(A27="Insumo", VLOOKUP(B27,'SINAPI INSUMOS'!B:H,6,0),VLOOKUP(B27,'SINAPI COMP'!B:H,6,0))), VLOOKUP(B27,'OUTRAS BASES'!C:D,2,0)) -> 25.11 | J27: 28.088046 | L27: TRUE
A28: Insumo | B28: 4509 | C28: SINAPI | D28: SARRAFO *2,5 X 10* CM EM PINUS, MISTA OU EQUIVALENTE DA REGIAO - BRUTA | E28: Material | G28: M | H28: 3.2083 | I28: =IF(C28="SINAPI", IF( IF(A28="Insumo", VLOOKUP(B28,'SINAPI INSUMOS'!B:H,6,0), VLOOKUP(B28,'SINAPI COMP'!B:H,6,0))=0,VLOOKUP(B28,'OUTRAS BASES'!C:D,2,0),IF(A28="Insumo", VLOOKUP(B28,'SINAPI INSUMOS'!B:H,6,0),VLOOKUP(B28,'SINAPI COMP'!B:H,6,0))), VLOOKUP(B28,'OUTRAS BASES'!C:D,2,0)) -> 5.57 | J28: 17.870231 | L28: TRUE
A29: Insumo | B29: 4813 | C29: SINAPI | D29: PLACA DE OBRA (PARA CONSTRUCAO CIVIL) EM CHAPA GALVANIZADA *N. 22*, ADESIVADA, DE *2,4 X 1,2* M (SEM POSTES PARA FIXACAO) | E29: Material | G29: m² | H29: 1 | I29: =IF(C29="SINAPI", IF( IF(A29="Insumo", VLOOKUP(B29,'SINAPI INSUMOS'!B:H,6,0), VLOOKUP(B29,'SINAPI COMP'!B:H,6,0))=0,VLOOKUP(B29,'OUTRAS BASES'!C:D,2,0),IF(A29="Insumo", VLOOKUP(B29,'SINAPI INSUMOS'!B:H,6,0),VLOOKUP(B29,'SINAPI COMP'!B:H,6,0))), VLOOKUP(B29,'OUTRAS BASES'!C:D,2,0)) -> 400 | J29: 400 | K29: Preço AS digitado (Atribuído São Paulo) | L29: TRUE
A30: Insumo | B30: 5065 | C30: SINAPI | D30: PREGO DE ACO POLIDO COM CABECA 10 X 10 (7/8 X 17) | E30: Material | G30: KG | H30: 0.0113 | I30: =IF(C30="SINAPI", IF( IF(A30="Insumo", VLOOKUP(B30,'SINAPI INSUMOS'!B:H,6,0), VLOOKUP(B30,'SINAPI COMP'!B:H,6,0))=0,VLOOKUP(B30,'OUTRAS BASES'!C:D,2,0),IF(A30="Insumo", VLOOKUP(B30,'SINAPI INSUMOS'!B:H,6,0),VLOOKUP(B30,'SINAPI COMP'!B:H,6,0))), VLOOKUP(B30,'OUTRAS BASES'!C:D,2,0)) -> 33.24 | J30: 0.375612 | L30: TRUE
A31: Insumo | B31: 5069 | C31: SINAPI | D31: PREGO DE ACO POLIDO COM CABECA 17 X 27 (2 1/2 X 11) | E31: Material | G31: KG | H31: 0.0132 | I31: =IF(C31="SINAPI", IF( IF(A31="Insumo", VLOOKUP(B31,'SINAPI INSUMOS'!B:H,6,0), VLOOKUP(B31,'SINAPI COMP'!B:H,6,0))=0,VLOOKUP(B31,'OUTRAS BASES'!C:D,2,0),IF(A31="Insumo", VLOOKUP(B31,'SINAPI INSUMOS'!B:H,6,0),VLOOKUP(B31,'SINAPI COMP'!B:H,6,0))), VLOOKUP(B31,'OUTRAS BASES'!C:D,2,0)) -> 17.81 | J31: 0.235092 | L31: TRUE
A36: 2 | D36: MOBILIZAÇÂO E DESMOBILIZAÇÂO EQUIPES PERFURAÇÂO E INSTALAÇÃO
A37: 2.1 | B37: Código | C37: Banco | D37: Descrição | E37: Tipo | G37: Und | H37: Quant. | I37: Valor Unit | J37: Total
A38: Composição | B38: COMPOSIÇÃO - 3 | C38: Próprio | D38: Transporte de Comboio Perfuração | E38: TRAN - TRANSPORTES, CARGAS E DESCARGAS | G38: km | H38: 1 | I38: =SUM(J39:J40) -> 4.9256956 | J38: =H38*I38 -> 4.9256956 | L38: =_xlfn.ISFORMULA(I38) -> TRUE
A39: Composição Auxiliar | B39: 5824 | C39: SINAPI | D39: CAMINHÃO TOCO, PBT 16.000 KG, CARGA ÚTIL MÁX. 10.685 KG, DIST. ENTRE EIXOS 4,8 M, POTÊNCIA 189 CV, INCLUSIVE CARROCERIA FIXA ABERTA DE MADEIRA P/ TRANSPORTE GERAL DE CARGA SECA, DIMEN. APROX. 2,5 X 7,00 X 0,50 M - CHP DIURNO. AF_06/2014 | E39: Custos Horários Produtivo e Improdutivo dos Equipamentos | G39: CHP | H39: 0.01666 | I39: =IF(C39="SINAPI", IF( IF(A39="Insumo", VLOOKUP(B39,'SINAPI INSUMOS'!B:H,6,0), VLOOKUP(B39,'SINAPI COMP'!B:H,6,0))=0,VLOOKUP(B39,'OUTRAS BASES'!C:D,2,0),IF(A39="Insumo", VLOOKUP(B39,'SINAPI INSUMOS'!B:H,6,0),VLOOKUP(B39,'SINAPI COMP'!B:H,6,0))), VLOOKUP(B39,'OUTRAS BASES'!C:D,2,0)) -> 230.19 | J39: 3.8349654 | L39: TRUE
A40: Composição Auxiliar | B40: 5826 | C40: SINAPI | D40: CAMINHÃO TOCO, PBT 16.000 KG, CARGA ÚTIL MÁX. 10.685 KG, DIST. ENTRE EIXOS 4,8 M, POTÊNCIA 189 CV, INCLUSIVE CARROCERIA FIXA ABERTA DE MADEIRA P/ TRANSPORTE GERAL DE CARGA SECA, DIMEN. APROX. 2,5 X 7,00 X 0,50 M - CHI DIURNO. AF_06/2014 | E40: Custos Horários Produtivo e Improdutivo dos Equipamentos | G40: CHI | H40: 0.01666 | I40: =IF(C40="SINAPI", IF( IF(A40="Insumo", VLOOKUP(B40,'SINAPI INSUMOS'!B:H,6,0), VLOOKUP(B40,'SINAPI COMP'!B:H,6,0))=0,VLOOKUP(B40,'OUTRAS BASES'!C:D,2,0),IF(A40="Insumo", VLOOKUP(B40,'SINAPI INSUMOS'!B:H,6,0),VLOOKUP(B40,'SINAPI COMP'!B:H,6,0))), VLOOKUP(B40,'OUTRAS BASES'!C:D,2,0)) -> 65.47 | J40: 1.0907302 | L40: TRUE
L44: =_xlfn.ISFORMULA(I44) -> FALSE
A45: 2.2 | B45: Código | C45: Banco | D45: Descrição | E45: Tipo | G45: Und | H45: Quant. | I45: Valor Unit | J45: Total | L45: FALSE
A46: Composição | B46: COMPOSIÇÃO - 4 | C46: Próprio | D46: Transporte de Comboio Instalação | E46: TRAN - TRANSPORTES, CARGAS E DESCARGAS | G46: km | H46: 1 | I46: =SUM(J47:J48) -> 6.1686982 | J46: =H46*I46 -> 6.1686982 | L46: TRUE
A47: Composição Auxiliar | B47: 5928 | C47: SINAPI | D47: GUINDAUTO HIDRÁULICO, CAPACIDADE MÁXIMA DE CARGA 6200 KG, MOMENTO MÁXIMO DE CARGA 11,7 TM, ALCANCE MÁXIMO HORIZONTAL 9,70 M, INCLUSIVE CAMINHÃO TOCO PBT 16.000 KG, POTÊNCIA DE 189 CV - CHP DIURNO. AF_06/2014 | E47: Custos Horários Produtivo e Improdutivo dos Equipamentos | G47: CHP | H47: 0.01666 | I47: =IF(C47="SINAPI", IF( IF(A47="Insumo", VLOOKUP(B47,'SINAPI INSUMOS'!B:H,6,0), VLOOKUP(B47,'SINAPI COMP'!B:H,6,0))=0,VLOOKUP(B47,'OUTRAS BASES'!C:D,2,0),IF(A47="Insumo", VLOOKUP(B47,'SINAPI INSUMOS'!B:H,6,0),VLOOKUP(B47,'SINAPI COMP'!B:H,6,0))), VLOOKUP(B47,'OUTRAS BASES'!C:D,2,0)) -> 293.47 | J47: 4.8892102 | L47: TRUE
A48: Composição Auxiliar | B48: 5930 | C48: SINAPI | D48: GUINDAUTO HIDRÁULICO, CAPACIDADE MÁXIMA DE CARGA 6200 KG, MOMENTO MÁXIMO DE CARGA 11,7 TM, ALCANCE MÁXIMO HORIZONTAL 9,70 M, INCLUSIVE CAMINHÃO TOCO PBT 16.000 KG, POTÊNCIA DE 189 CV - CHI DIURNO. AF_06/2014 | E48: Custos Horários Produtivo e Improdutivo dos Equipamentos | G48: CHI | H48: 0.01666 | I48: =IF(C48="SINAPI", IF( IF(A48="Insumo", VLOOKUP(B48,'SINAPI INSUMOS'!B:H,6,0), VLOOKUP(B48,'SINAPI COMP'!B:H,6,0))=0,VLOOKUP(B48,'OUTRAS BASES'!C:D,2,0),IF(A48="Insumo", VLOOKUP(B48,'SINAPI INSUMOS'!B:H,6,0),VLOOKUP(B48,'SINAPI COMP'!B:H,6,0))), VLOOKUP(B48,'OUTRAS BASES'!C:D,2,0)) -> 76.8 | J48: 1.279488 | L48: TRUE
L52: =_xlfn.ISFORMULA(I52) -> FALSE
A53: 2.3 | B53: Código | C53: Banco | D53: Descrição | E53: Tipo | G53: Und | H53: Quant. | I53: Valor Unit | J53: Total | L53: FALSE
A54: Composição | B54: COMPOSIÇÃO - 5 | C54: Próprio | D54: Transporte de Equipe Teste de Vazão | E54: TRAN - TRANSPORTES, CARGAS E DESCARGAS | G54: km | H54: 1 | I54: =SUM(J55:J56) -> 2.711195 | J54: =H54*I54 -> 2.711195 | L54: TRUE
A55: Composição Auxiliar | B55: 73467 | C55: SINAPI | D55: CAMINHÃO TOCO, PBT 14.300 KG, CARGA ÚTIL MÁX. 9.710 KG, DIST. ENTRE EIXOS 3,56 M, POTÊNCIA 185 CV, INCLUSIVE CARROCERIA FIXA ABERTA DE MADEIRA P/ TRANSPORTE GERAL DE CARGA SECA, DIMEN. APROX. 2,50 X 6,50 X 0,50 M - CHP DIURNO. AF_06/2014 | E55: Custos Horários Produtivo e Improdutivo dos Equipamentos | G55: CHP | H55: 0.0083 | I55: =IF(C55="SINAPI", IF( IF(A55="Insumo", VLOOKUP(B55,'SINAPI INSUMOS'!B:H,6,0), VLOOKUP(B55,'SINAPI COMP'!B:H,6,0))=0,VLOOKUP(B55,'OUTRAS BASES'!C:D,2,0),IF(A55="Insumo", VLOOKUP(B55,'SINAPI INSUMOS'!B:H,6,0),VLOOKUP(B55,'SINAPI COMP'!B:H,6,0))), VLOOKUP(B55,'OUTRAS BASES'!C:D,2,0)) -> 264.24 | J55: 2.193192 | L55: TRUE
A56: Composição Auxiliar | B56: 91395 | C56: SINAPI | D56: CAMINHÃO TOCO, PBT 14.300 KG, CARGA ÚTIL MÁX. 9.710 KG, DIST. ENTRE EIXOS 3,56 M, POTÊNCIA 185 CV, INCLUSIVE CARROCERIA FIXA ABERTA DE MADEIRA P/ TRANSPORTE GERAL DE CARGA SECA, DIMEN. APROX. 2,50 X 6,50 X 0,50 M - CHI DIURNO. AF_06/2014 | E56: Custos Horários Produtivo e Improdutivo dos Equipamentos | G56: CHI | H56: 0.0083 | I56: =IF(C56="SINAPI", IF( IF(A56="Insumo", VLOOKUP(B56,'SINAPI INSUMOS'!B:H,6,0), VLOOKUP(B56,'SINAPI COMP'!B:H,6,0))=0,VLOOKUP(B56,'OUTRAS BASES'!C:D,2,0),IF(A56="Insumo", VLOOKUP(B56,'SINAPI INSUMOS'!B:H,6,0),VLOOKUP(B56,'SINAPI COMP'!B:H,6,0))), VLOOKUP(B56,'OUTRAS BASES'!C:D,2,0)) -> 62.41 | J56: 0.518003 | L56: TRUE
A61: 3 | D61: PERFURAÇÃO E COMPLETAÇÃO DE POÇO TUBULAR | L61: =_xlfn.ISFORMULA(I61) -> FALSE
A62: 3.1 | B62: Código | C62: Banco | D62: Descrição | E62: Tipo | G62: Und | H62: Quant. | I62: Valor Unit | J62: Total | L62: FALSE
A63: Insumo | B63: 5048 | C63: ORSE | D63: Perfuraçao em rocha cristalina - rocha cristalina alterada / compacto dn 6" (poço até 120m) | E63: Serviços | G63: m | H63: 1 | I63: =IF(C63="SINAPI", IF( IF(A63="Insumo", VLOOKUP(B63,'SINAPI INSUMOS'!B:H,6,0), VLOOKUP(B63,'SINAPI COMP'!B:H,6,0))=0,VLOOKUP(B63,'OUTRAS BASES'!C:D,2,0),IF(A63="Insumo", VLOOKUP(B63,'SINAPI INSUMOS'!B:H,6,0),VLOOKUP(B63,'SINAPI COMP'!B:H,6,0))), VLOOKUP(B63,'OUTRAS BASES'!C:D,2,0)) -> 125.23 | J63: =H63*I63 -> 125.23 | L63: TRUE
L64: FALSE
L65: FALSE
L66: FALSE
L67: FALSE
A68: 3.2 | B68: Código | C68: Banco | D68: Descrição | E68: Tipo | G68: Und | H68: Quant. | I68: Valor Unit | J68: Total | L68: FALSE
A69: Insumo | B69: 5057 | C69: ORSE | D69: = Perfuração rocha sedimentar sedimento / Camadas inconsolidadas DN 12.1/2" - Poço até 150 m (Perfuração rotopneumática Ø 12 1/2" . Estimativa de 30 metros de profundidade para cada poço.) | E69: Serviços | G69: m | H69: 1 | I69: =IF(C69="SINAPI", IF( IF(A69="Insumo", VLOOKUP(B69,'SINAPI INSUMOS'!B:H,6,0), VLOOKUP(B69,'SINAPI COMP'!B:H,6,0))=0,VLOOKUP(B69,'OUTRAS BASES'!C:D,2,0),IF(A69="Insumo", VLOOKUP(B69,'SINAPI INSUMOS'!B:H,6,0),VLOOKUP(B69,'SINAPI COMP'!B:H,6,0))), VLOOKUP(B69,'OUTRAS BASES'!C:D,2,0)) -> 247.66 | J69: =H69*I69 -> 247.66 | L69: TRUE
L70: FALSE
L71: FALSE
L72: FALSE
L73: FALSE
A74: 3.3 | B74: Código | C74: Banco | D74: Descrição | E74: Tipo | G74: Und | H74: Quant. | I74: Valor Unit | J74: Total | L74: FALSE
A75: Composição | B75: COMPOSIÇÃO - 6 | C75: Próprio | D75: Serviço de lançamento cimentação anelar, incluso materiais. | E75: SEDI - SERVIÇOS DIVERSOS | G75: m³ | H75: 1 | I75: =J76 -> 521.34 | J75: =H75*I75 -> 521.34 | L75: TRUE
A76: Composição Auxiliar | B76: 1903 | C76: ORSE | D76: Argamassa cimento e areia traço t-1 (1:3) - 1 saco cimento 50kg / 3 padiolas areia dim. 0.35 x 0.45 x 0.23 m - Confecção mecânica e transporte | E76: Argamassas | G76: m³ | H76: 1 | I76: =IF(C76="SINAPI", IF( IF(A76="Insumo", VLOOKUP(B76,'SINAPI INSUMOS'!B:H,6,0), VLOOKUP(B76,'SINAPI COMP'!B:H,6,0))=0,VLOOKUP(B76,'OUTRAS BASES'!C:D,2,0),IF(A76="Insumo", VLOOKUP(B76,'SINAPI INSUMOS'!B:H,6,0),VLOOKUP(B76,'SINAPI COMP'!B:H,6,0))), VLOOKUP(B76,'OUTRAS BASES'!C:D,2,0)) -> 521.34 | J76: 521.34 | L76: TRUE
L77: FALSE
L78: FALSE
L79: FALSE
L80: FALSE
A81: 3.4 | B81: Código | C81: Banco | D81: Descrição | E81: Tipo | G81: Und | H81: Quant. | I81: Valor Unit | J81: Total | L81: FALSE
A82: Insumo | B82: 9854 | C82: SINAPI | D82: TUBO PVC DE REVESTIMENTO GEOMECANICO NERVURADO STANDARD, DN = 154 MM, COMPRIMENTO = 2 M | E82: Material | G82: M | H82: 1 | I82: =IF(C82="SINAPI", IF( IF(A82="Insumo", VLOOKUP(B82,'SINAPI INSUMOS'!B:H,6,0), VLOOKUP(B82,'SINAPI COMP'!B:H,6,0))=0,VLOOKUP(B82,'OUTRAS BASES'!C:D,2,0),IF(A82="Insumo", VLOOKUP(B82,'SINAPI INSUMOS'!B:H,6,0),VLOOKUP(B82,'SINAPI COMP'!B:H,6,0))), VLOOKUP(B82,'OUTRAS BASES'!C:D,2,0)) -> 115.9 | J82: =H82*I82 -> 115.9 | L82: TRUE
L86: =_xlfn.ISFORMULA(I86) -> FALSE
A87: 4 | D87: PÓS PERFURAÇÃO | L87: FALSE
A88: 4.1 | B88: Código | C88: Banco | D88: Descrição | E88: Tipo | G88: Und | H88: Quant. | I88: Valor Unit | J88: Total | L88: FALSE
A89: Composição | B89: 6305 | C89: ORSE | D89: Desenvolvimento com Compressor 250psi / 750cfm | E89: Conversão InfoWOrca | G89: h | H89: 1 | I89: =IF(C89="SINAPI", IF( IF(A89="Insumo", VLOOKUP(B89,'SINAPI INSUMOS'!B:H,6,0), VLOOKUP(B89,'SINAPI COMP'!B:H,6,0))=0,VLOOKUP(B89,'OUTRAS BASES'!C:D,2,0),IF(A89="Insumo", VLOOKUP(B89,'SINAPI INSUMOS'!B:H,6,0),VLOOKUP(B89,'SINAPI COMP'!B:H,6,0))), VLOOKUP(B89,'OUTRAS BASES'!C:D,2,0)) -> 411.16 | J89: =H89*I89 -> 411.16 | L89: TRUE
A90: Insumo | B90: 5030 | C90: ORSE | D90: Desenvolvimento com compressor 250psi - 750cfm h | E90: Serviços | G90: h | H90: 1 | I90: =IF(C90="SINAPI", IF( IF(A90="Insumo", VLOOKUP(B90,'SINAPI INSUMOS'!B:H,6,0), VLOOKUP(B90,'SINAPI COMP'!B:H,6,0))=0,VLOOKUP(B90,'OUTRAS BASES'!C:D,2,0),IF(A90="Insumo", VLOOKUP(B90,'SINAPI INSUMOS'!B:H,6,0),VLOOKUP(B90,'SINAPI COMP'!B:H,6,0))), VLOOKUP(B90,'OUTRAS BASES'!C:D,2,0)) -> 411.16 | J90: 411.16 | L90: TRUE
L91: FALSE
L92: FALSE
L93: FALSE
L94: FALSE
A95: 4.2 | B95: Código | C95: Banco | D95: Descrição | E95: Tipo | G95: Und | H95: Quant. | I95: Valor Unit | J95: Total | L95: FALSE
A96: Composição | B96: COMPOSIÇÃO - 7 | C96: Próprio | D96: Inspeção ótica em poço tubular câmera com rotação de 360º, visada lateral, com fonte própria de luz, entregue vídeo em cores e marcação de profundidades. | E96: SEES - SERVIÇOS ESPECIAIS | G96: m | H96: 1 | I96: =SUM(J97:J98) -> 9.64046 | J96: =H96*I96 -> 9.64046 | L96: TRUE
A97: Insumo | B97: H020050004 | C97: EMBASA | D97: APARELHO DE PERFILAGEM OPTICA | E97: Material | G97: M | H97: 1 | I97: =IF(C97="SINAPI", IF( IF(A97="Insumo", VLOOKUP(B97,'SINAPI INSUMOS'!B:H,6,0), VLOOKUP(B97,'SINAPI COMP'!B:H,6,0))=0,VLOOKUP(B97,'OUTRAS BASES'!C:D,2,0),IF(A97="Insumo", VLOOKUP(B97,'SINAPI INSUMOS'!B:H,6,0),VLOOKUP(B97,'SINAPI COMP'!B:H,6,0))), VLOOKUP(B97,'OUTRAS BASES'!C:D,2,0)) -> 4.4 | J97: 4.4 | L97: TRUE
A98: Insumo | B98: B590000022 | C98: EMBASA | D98: TECNICO MEDIO | E98: Mão de Obra | G98: H | H98: 0.0835 | I98: =IF(C98="SINAPI", IF( IF(A98="Insumo", VLOOKUP(B98,'SINAPI INSUMOS'!B:H,6,0), VLOOKUP(B98,'SINAPI COMP'!B:H,6,0))=0,VLOOKUP(B98,'OUTRAS BASES'!C:D,2,0),IF(A98="Insumo", VLOOKUP(B98,'SINAPI INSUMOS'!B:H,6,0),VLOOKUP(B98,'SINAPI COMP'!B:H,6,0))), VLOOKUP(B98,'OUTRAS BASES'!C:D,2,0)) -> 62.76 | J98: 5.24046 | L98: TRUE
L99: FALSE
L100: FALSE
L101: FALSE
L102: FALSE
A103: 4.3 | B103: Código | C103: Banco | D103: Descrição | E103: Tipo | G103: Und | H103: Quant. | I103: Valor Unit | J103: Total | L103: FALSE
A104: Composição | B104: COMPOSIÇÃO - 8 | C104: Próprio | D104: Serviço de coleta e Análise Físico-Química e Bacteriológica | E104: SEDI - SERVIÇOS DIVERSOS | G104: un | H104: 1 | I104: =SUM(J105:J106) -> 621.19 | J104: =H104*I104 -> 621.19 | L104: TRUE
A105: Composição Auxiliar | B105: 6312 | C105: ORSE | D105: Análise Físico-química da Água | E105: Conversão InfoWOrca | G105: un | H105: 1 | I105: =IF(C105="SINAPI", IF( IF(A105="Insumo", VLOOKUP(B105,'SINAPI INSUMOS'!B:H,6,0), VLOOKUP(B105,'SINAPI COMP'!B:H,6,0))=0,VLOOKUP(B105,'OUTRAS BASES'!C:D,2,0),IF(A105="Insumo", VLOOKUP(B105,'SINAPI INSUMOS'!B:H,6,0),VLOOKUP(B105,'SINAPI COMP'!B:H,6,0))), VLOOKUP(B105,'OUTRAS BASES'!C:D,2,0)) -> 565.21 | J105: 565.21 | L105: TRUE
A106: Composição Auxiliar | B106: 6313 | C106: ORSE | D106: Análise Bacteriológica da Água | E106: Conversão InfoWOrca | G106: un | H106: 1 | I106: =IF(C106="SINAPI", IF( IF(A106="Insumo", VLOOKUP(B106,'SINAPI INSUMOS'!B:H,6,0), VLOOKUP(B106,'SINAPI COMP'!B:H,6,0))=0,VLOOKUP(B106,'OUTRAS BASES'!C:D,2,0),IF(A106="Insumo", VLOOKUP(B106,'SINAPI INSUMOS'!B:H,6,0),VLOOKUP(B106,'SINAPI COMP'!B:H,6,0))), VLOOKUP(B106,'OUTRAS BASES'!C:D,2,0)) -> 55.98 | J106: 55.98 | L106: TRUE
L107: FALSE
L108: FALSE
L109: FALSE
L110: FALSE
A111: 4.4 | B111: Código | C111: Banco | D111: Descrição | E111: Tipo | G111: Und | H111: Quant. | I111: Valor Unit | J111: Total | L111: FALSE
A112: Composição | B112: 24.80.22 | C112: EMBASA | D112: (REVISADA) DESENVOLVIMENTO OU TESTE COM BOMBA SUBMERSA - UEB1 NO SEDIMENTO COM VAZAO < 60M3 (Ensaio de bombeamento poço tubular incluso materiais e grupo gerador) | E112: 2480 | G112: H | H112: 1 | I112: =IF(C112="SINAPI", IF( IF(A112="Insumo", VLOOKUP(B112,'SINAPI INSUMOS'!B:H,6,0), VLOOKUP(B112,'SINAPI COMP'!B:H,6,0))=0,VLOOKUP(B112,'OUTRAS BASES'!C:D,2,0),IF(A112="Insumo", VLOOKUP(B112,'SINAPI INSUMOS'!B:H,6,0),VLOOKUP(B112,'SINAPI COMP'!B:H,6,0))), VLOOKUP(B112,'OUTRAS BASES'!C:D,2,0)) -> 263.27 | J112: =H112*I112 -> 263.27 | L112: TRUE
A113: Composição Auxiliar | B113: 24.00.15 | C113: EMBASA | D113: EQUIPE (3 PROFISSIONAIS CAMPO) - BOMBEIO | E113: 2400 | G113: H | H113: 1 | I113: =IF(C113="SINAPI", IF( IF(A113="Insumo", VLOOKUP(B113,'SINAPI INSUMOS'!B:H,6,0), VLOOKUP(B113,'SINAPI COMP'!B:H,6,0))=0,VLOOKUP(B113,'OUTRAS BASES'!C:D,2,0),IF(A113="Insumo", VLOOKUP(B113,'SINAPI INSUMOS'!B:H,6,0),VLOOKUP(B113,'SINAPI COMP'!B:H,6,0))), VLOOKUP(B113,'OUTRAS BASES'!C:D,2,0)) -> 198.35 | J113: 198.35 | L113: TRUE
A114: Insumo | B114: H020050001 | C114: EMBASA | D114: UNIDADE DE ENSAIO E BOMBEAMENTO - UEB1 ATE 150M3 NO SEDIMENTO | E114: Material | G114: H | H114: 1 | I114: =IF(C114="SINAPI", IF( IF(A114="Insumo", VLOOKUP(B114,'SINAPI INSUMOS'!B:H,6,0), VLOOKUP(B114,'SINAPI COMP'!B:H,6,0))=0,VLOOKUP(B114,'OUTRAS BASES'!C:D,2,0),IF(A114="Insumo", VLOOKUP(B114,'SINAPI INSUMOS'!B:H,6,0),VLOOKUP(B114,'SINAPI COMP'!B:H,6,0))), VLOOKUP(B114,'OUTRAS BASES'!C:D,2,0)) -> 64.92 | J114: 64.92 | L114: TRUE
L115: FALSE
L116: FALSE
L117: FALSE
L118: FALSE
A119: 4.5 | B119: Código | C119: Banco | D119: Descrição | E119: Tipo | G119: Und | H119: Quant. | I119: Valor Unit | J119: Total | L119: FALSE
A120: Composição | B120: COMPOSIÇÃO - 9 | C120: Próprio | D120: Serviço de instalação de laje sanitária com dimensões (1,5x1,5x0,3) metros , incluso material. | E120: SEDI - SERVIÇOS DIVERSOS | G120: un | H120: 1 | I120: =SUM(J121:J124) -> 817.8345 | J120: =H120*I120 -> 817.8345 | L120: TRUE
A121: Composição Auxiliar | B121: 92522 | C121: SINAPI | D121: MONTAGEM E DESMONTAGEM DE FÔRMA DE LAJE MACIÇA, PÉ-DIREITO SIMPLES, EM CHAPA DE MADEIRA COMPENSADA RESINADA, 8 UTILIZAÇÕES. AF_09/2020 | E121: Fôrmas para Estruturas de Concreto Armado | G121: m² | H121: 1.8 | I121: =IF(C121="SINAPI", IF( IF(A121="Insumo", VLOOKUP(B121,'SINAPI INSUMOS'!B:H,6,0), VLOOKUP(B121,'SINAPI COMP'!B:H,6,0))=0,VLOOKUP(B121,'OUTRAS BASES'!C:D,2,0),IF(A121="Insumo", VLOOKUP(B121,'SINAPI INSUMOS'!B:H,6,0),VLOOKUP(B121,'SINAPI COMP'!B:H,6,0))), VLOOKUP(B121,'OUTRAS BASES'!C:D,2,0)) -> 43.44 | J121: 78.192 | L121: TRUE
A122: Composição Auxiliar | B122: 93358 | C122: SINAPI | D122: ESCAVAÇÃO MANUAL DE VALA COM PROFUNDIDADE MENOR OU IGUAL A 1,30 M. AF_02/2021 | E122: Escavação de Valas | G122: m³ | H122: 0.225 | I122: =IF(C122="SINAPI", IF( IF(A122="Insumo", VLOOKUP(B122,'SINAPI INSUMOS'!B:H,6,0), VLOOKUP(B122,'SINAPI COMP'!B:H,6,0))=0,VLOOKUP(B122,'OUTRAS BASES'!C:D,2,0),IF(A122="Insumo", VLOOKUP(B122,'SINAPI INSUMOS'!B:H,6,0),VLOOKUP(B122,'SINAPI COMP'!B:H,6,0))), VLOOKUP(B122,'OUTRAS BASES'!C:D,2,0)) -> 99.32 | J122: 22.347 | L122: TRUE
A123: Composição Auxiliar | B123: 94975 | C123: SINAPI | D123: CONCRETO FCK = 15MPA, TRAÇO 1:3,4:3,5 (EM MASSA SECA DE CIMENTO/ AREIA MÉDIA/ BRITA 1) - PREPARO MANUAL. AF_05/2021 | E123: Produção de Concreto | G123: m³ | H123: 0.675 | I123: =IF(C123="SINAPI", IF( IF(A123="Insumo", VLOOKUP(B123,'SINAPI INSUMOS'!B:H,6,0), VLOOKUP(B123,'SINAPI COMP'!B:H,6,0))=0,VLOOKUP(B123,'OUTRAS BASES'!C:D,2,0),IF(A123="Insumo", VLOOKUP(B123,'SINAPI INSUMOS'!B:H,6,0),VLOOKUP(B123,'SINAPI COMP'!B:H,6,0))), VLOOKUP(B123,'OUTRAS BASES'!C:D,2,0)) -> 724.99 | J123: 489.36825 | L123: TRUE
A124: Composição Auxiliar | B124: 103670 | C124: SINAPI | D124: LANÇAMENTO COM USO DE BALDES, ADENSAMENTO E ACABAMENTO DE CONCRETO EM ESTRUTURAS. AF_02/2022 | E124: Concretagem para Estruturas de Concreto Armado | G124: m³ | H124: 0.675 | I124: =IF(C124="SINAPI", IF( IF(A124="Insumo", VLOOKUP(B124,'SINAPI INSUMOS'!B:H,6,0), VLOOKUP(B124,'SINAPI COMP'!B:H,6,0))=0,VLOOKUP(B124,'OUTRAS BASES'!C:D,2,0),IF(A124="Insumo", VLOOKUP(B124,'SINAPI INSUMOS'!B:H,6,0),VLOOKUP(B124,'SINAPI COMP'!B:H,6,0))), VLOOKUP(B124,'OUTRAS BASES'!C:D,2,0)) -> 337.67 | J124: 227.92725 | L124: TRUE
L125: FALSE
L126: FALSE
L127: FALSE
L128: FALSE
A129: 5 | D129: RESERVAÇÃO | L129: FALSE
A130: 5.1 | B130: Código | C130: Banco | D130: Descrição | E130: Tipo | G130: Und | H130: Quant. | I130: Valor Unit | J130: Total | L130: FALSE
A131: Composição | B131: COMPOSIÇÃO - 10 | C131: Próprio | D131: Fornecimento e instalação de reservatório e base elevada 10 m³ | E131: ASTU - ASSENTAMENTO DE TUBOS E PECAS | G131: un | H131: 1 | I131: =SUM(J132:J153) -> 21363.09678 | J131: =H131*I131 -> 21363.09678 | L131: TRUE
A132: Composição Auxiliar | B132: 92759 | C132: SINAPI | D132: ARMAÇÃO DE PILAR OU VIGA DE ESTRUTURA CONVENCIONAL DE CONCRETO ARMADO UTILIZANDO AÇO CA-60 DE 5,0 MM - MONTAGEM. AF_06/2022 | E132: Armação para Estruturas de Concreto Armado | G132: KG | H132: 17.2 | I132: =IF(C132="SINAPI", IF( IF(A132="Insumo", VLOOKUP(B132,'SINAPI INSUMOS'!B:H,6,0), VLOOKUP(B132,'SINAPI COMP'!B:H,6,0))=0,VLOOKUP(B132,'OUTRAS BASES'!C:D,2,0),IF(A132="Insumo", VLOOKUP(B132,'SINAPI INSUMOS'!B:H,6,0),VLOOKUP(B132,'SINAPI COMP'!B:H,6,0))), VLOOKUP(B132,'OUTRAS BASES'!C:D,2,0)) -> 14.18 | J132: 243.896 | L132: TRUE
A133: Composição Auxiliar | B133: 92761 | C133: SINAPI | D133: ARMAÇÃO DE PILAR OU VIGA DE ESTRUTURA CONVENCIONAL DE CONCRETO ARMADO UTILIZANDO AÇO CA-50 DE 8,0 MM - MONTAGEM. AF_06/2022 | E133: Armação para Estruturas de Concreto Armado | G133: KG | H133: 30.4 | I133: =IF(C133="SINAPI", IF( IF(A133="Insumo", VLOOKUP(B133,'SINAPI INSUMOS'!B:H,6,0), VLOOKUP(B133,'SINAPI COMP'!B:H,6,0))=0,VLOOKUP(B133,'OUTRAS BASES'!C:D,2,0),IF(A133="Insumo", VLOOKUP(B133,'SINAPI INSUMOS'!B:H,6,0),VLOOKUP(B133,'SINAPI COMP'!B:H,6,0))), VLOOKUP(B133,'OUTRAS BASES'!C:D,2,0)) -> 12.11 | J133: 368.144 | L133: TRUE
A134: Composição Auxiliar | B134: 92768 | C134: SINAPI | D134: ARMAÇÃO DE LAJE DE ESTRUTURA CONVENCIONAL DE CONCRETO ARMADO UTILIZANDO AÇO CA-60 DE 5,0 MM - MONTAGEM. AF_06/2022 | E134: Armação para Estruturas de Concreto Armado | G134: KG | H134: 11.9 | I134: =IF(C134="SINAPI", IF( IF(A134="Insumo", VLOOKUP(B134,'SINAPI INSUMOS'!B:H,6,0), VLOOKUP(B134,'SINAPI COMP'!B:H,6,0))=0,VLOOKUP(B134,'OUTRAS BASES'!C:D,2,0),IF(A134="Insumo", VLOOKUP(B134,'SINAPI INSUMOS'!B:H,6,0),VLOOKUP(B134,'SINAPI COMP'!B:H,6,0))), VLOOKUP(B134,'OUTRAS BASES'!C:D,2,0)) -> 13.57 | J134: 161.483 | L134: TRUE
A135: Composição Auxiliar | B135: 92770 | C135: SINAPI | D135: ARMAÇÃO DE LAJE DE ESTRUTURA CONVENCIONAL DE CONCRETO ARMADO UTILIZANDO AÇO CA-50 DE 8,0 MM - MONTAGEM. AF_06/2022 | E135: Armação para Estruturas de Concreto Armado | G135: KG | H135: 48 | I135: =IF(C135="SINAPI", IF( IF(A135="Insumo", VLOOKUP(B135,'SINAPI INSUMOS'!B:H,6,0), VLOOKUP(B135,'SINAPI COMP'!B:H,6,0))=0,VLOOKUP(B135,'OUTRAS BASES'!C:D,2,0),IF(A135="Insumo", VLOOKUP(B135,'SINAPI INSUMOS'!B:H,6,0),VLOOKUP(B135,'SINAPI COMP'!B:H,6,0))), VLOOKUP(B135,'OUTRAS BASES'!C:D,2,0)) -> 11.56 | J135: 554.88 | L135: TRUE
A136: Composição Auxiliar | B136: 93358 | C136: SINAPI | D136: ESCAVAÇÃO MANUAL DE VALA COM PROFUNDIDADE MENOR OU IGUAL A 1,30 M. AF_02/2021 | E136: Escavação de Valas | G136: m³ | H136: 5.2 | I136: =IF(C136="SINAPI", IF( IF(A136="Insumo", VLOOKUP(B136,'SINAPI INSUMOS'!B:H,6,0), VLOOKUP(B136,'SINAPI COMP'!B:H,6,0))=0,VLOOKUP(B136,'OUTRAS BASES'!C:D,2,0),IF(A136="Insumo", VLOOKUP(B136,'SINAPI INSUMOS'!B:H,6,0),VLOOKUP(B136,'SINAPI COMP'!B:H,6,0))), VLOOKUP(B136,'OUTRAS BASES'!C:D,2,0)) -> 99.32 | J136: 516.464 | L136: TRUE
A137: Composição Auxiliar | B137: 92763 | C137: SINAPI | D137: ARMAÇÃO DE PILAR OU VIGA DE ESTRUTURA CONVENCIONAL DE CONCRETO ARMADO UTILIZANDO AÇO CA-50 DE 12,5 MM - MONTAGEM. AF_06/2022 | E137: Armação para Estruturas de Concreto Armado | G137: KG | H137: 118.4 | I137: =IF(C137="SINAPI", IF( IF(A137="Insumo", VLOOKUP(B137,'SINAPI INSUMOS'!B:H,6,0), VLOOKUP(B137,'SINAPI COMP'!B:H,6,0))=0,VLOOKUP(B137,'OUTRAS BASES'!C:D,2,0),IF(A137="Insumo", VLOOKUP(B137,'SINAPI INSUMOS'!B:H,6,0),VLOOKUP(B137,'SINAPI COMP'!B:H,6,0))), VLOOKUP(B137,'OUTRAS BASES'!C:D,2,0)) -> 8.94 | J137: 1058.496 | L137: TRUE
A138: Composição Auxiliar | B138: 94970 | C138: SINAPI | D138: CONCRETO FCK = 20MPA, TRAÇO 1:2,7:3 (EM MASSA SECA DE CIMENTO/ AREIA MÉDIA/ BRITA 1) - PREPARO MECÂNICO COM BETONEIRA 600 L. AF_05/2021 | E138: Produção de Concreto | G138: m³ | H138: 4.89 | I138: =IF(C138="SINAPI", IF( IF(A138="Insumo", VLOOKUP(B138,'SINAPI INSUMOS'!B:H,6,0), VLOOKUP(B138,'SINAPI COMP'!B:H,6,0))=0,VLOOKUP(B138,'OUTRAS BASES'!C:D,2,0),IF(A138="Insumo", VLOOKUP(B138,'SINAPI INSUMOS'!B:H,6,0),VLOOKUP(B138,'SINAPI COMP'!B:H,6,0))), VLOOKUP(B138,'OUTRAS BASES'!C:D,2,0)) -> 707.22 | J138: 3458.3058 | K138: Composição auxiliar teve seus insumos atualizados, presente na aba "Composições" | L138: TRUE
A139: Composição Auxiliar | B139: 103670 | C139: SINAPI | D139: LANÇAMENTO COM USO DE BALDES, ADENSAMENTO E ACABAMENTO DE CONCRETO EM ESTRUTURAS. AF_02/2022 | E139: Concretagem para Estruturas de Concreto Armado | G139: m³ | H139: 6.85 | I139: =IF(C139="SINAPI", IF( IF(A139="Insumo", VLOOKUP(B139,'SINAPI INSUMOS'!B:H,6,0), VLOOKUP(B139,'SINAPI COMP'!B:H,6,0))=0,VLOOKUP(B139,'OUTRAS BASES'!C:D,2,0),IF(A139="Insumo", VLOOKUP(B139,'SINAPI INSUMOS'!B:H,6,0),VLOOKUP(B139,'SINAPI COMP'!B:H,6,0))), VLOOKUP(B139,'OUTRAS BASES'!C:D,2,0)) -> 337.67 | J139: 2313.0395 | L139: TRUE
A140: Composição Auxiliar | B140: 84651 | C140: SINAPI | D140: PINTURA COM TINTA IMPERMEAVEL MINERAL EM PO, DUAS DEMAOS | E140: PINT - PINTURAS | G140: m² | H140: 28.27 | I140: =IF(C140="SINAPI", IF( IF(A140="Insumo", VLOOKUP(B140,'SINAPI INSUMOS'!B:H,6,0), VLOOKUP(B140,'SINAPI COMP'!B:H,6,0))=0,VLOOKUP(B140,'OUTRAS BASES'!C:D,2,0),IF(A140="Insumo", VLOOKUP(B140,'SINAPI INSUMOS'!B:H,6,0),VLOOKUP(B140,'SINAPI COMP'!B:H,6,0))), VLOOKUP(B140,'OUTRAS BASES'!C:D,2,0)) -> 15.0625 | J140: 425.816875 | L140: TRUE
A141: Composição Auxiliar | B141: 90776 | C141: SINAPI | D141: ENCARREGADO GERAL COM ENCARGOS COMPLEMENTARES | E141: Livro SINAPI: Cálculos e Parâmetros | G141: H | H141: 1 | I141: =IF(C141="SINAPI", IF( IF(A141="Insumo", VLOOKUP(B141,'SINAPI INSUMOS'!B:H,6,0), VLOOKUP(B141,'SINAPI COMP'!B:H,6,0))=0,VLOOKUP(B141,'OUTRAS BASES'!C:D,2,0),IF(A141="Insumo", VLOOKUP(B141,'SINAPI INSUMOS'!B:H,6,0),VLOOKUP(B141,'SINAPI COMP'!B:H,6,0))), VLOOKUP(B141,'OUTRAS BASES'!C:D,2,0)) -> 26.02 | J141: 26.02 | L141: TRUE
A142: Composição Auxiliar | B142: 102482 | C142: SINAPI | D142: CONCRETO FCK = 25MPA, TRAÇO 1:2,2:2,5 (EM MASSA SECA DE CIMENTO/ AREIA MÉDIA/ SEIXO ROLADO) - PREPARO MECÂNICO COM BETONEIRA 600 L. AF_05/2021 | E142: Produção de Concreto | G142: m³ | H142: 1.96 | I142: =IF(C142="SINAPI", IF( IF(A142="Insumo", VLOOKUP(B142,'SINAPI INSUMOS'!B:H,6,0), VLOOKUP(B142,'SINAPI COMP'!B:H,6,0))=0,VLOOKUP(B142,'OUTRAS BASES'!C:D,2,0),IF(A142="Insumo", VLOOKUP(B142,'SINAPI INSUMOS'!B:H,6,0),VLOOKUP(B142,'SINAPI COMP'!B:H,6,0))), VLOOKUP(B142,'OUTRAS BASES'!C:D,2,0)) -> 733.28 | J142: 1437.2288 | L142: TRUE
A143: Composição Auxiliar | B143: 92263 | C143: SINAPI | D143: FABRICAÇÃO DE FÔRMA PARA PILARES E ESTRUTURAS SIMILARES, EM CHAPA DE MADEIRA COMPENSADA RESINADA, E = 17 MM. AF_09/2020 | E143: Fôrmas para Estruturas de Concreto Armado | G143: m² | H143: 25.19 | I143: =IF(C143="SINAPI", IF( IF(A143="Insumo", VLOOKUP(B143,'SINAPI INSUMOS'!B:H,6,0), VLOOKUP(B143,'SINAPI COMP'!B:H,6,0))=0,VLOOKUP(B143,'OUTRAS BASES'!C:D,2,0),IF(A143="Insumo", VLOOKUP(B143,'SINAPI INSUMOS'!B:H,6,0),VLOOKUP(B143,'SINAPI COMP'!B:H,6,0))), VLOOKUP(B143,'OUTRAS BASES'!C:D,2,0)) -> 186.02 | J143: 4685.8438 | L143: TRUE
A144: Composição Auxiliar | B144: 88267 | C144: SINAPI | D144: ENCANADOR OU BOMBEIRO HIDRÁULICO COM ENCARGOS COMPLEMENTARES | E144: Livro SINAPI: Cálculos e Parâmetros | G144: H | H144: 4 | I144: =IF(C144="SINAPI", IF( IF(A144="Insumo", VLOOKUP(B144,'SINAPI INSUMOS'!B:H,6,0), VLOOKUP(B144,'SINAPI COMP'!B:H,6,0))=0,VLOOKUP(B144,'OUTRAS BASES'!C:D,2,0),IF(A144="Insumo", VLOOKUP(B144,'SINAPI INSUMOS'!B:H,6,0),VLOOKUP(B144,'SINAPI COMP'!B:H,6,0))), VLOOKUP(B144,'OUTRAS BASES'!C:D,2,0)) -> 30.01 | J144: 120.04 | L144: TRUE
A145: Composição Auxiliar | B145: 88248 | C145: SINAPI | D145: AUXILIAR DE ENCANADOR OU BOMBEIRO HIDRÁULICO COM ENCARGOS COMPLEMENTARES | E145: Livro SINAPI: Cálculos e Parâmetros | G145: H | H145: 4 | I145: =IF(C145="SINAPI", IF( IF(A145="Insumo", VLOOKUP(B145,'SINAPI INSUMOS'!B:H,6,0), VLOOKUP(B145,'SINAPI COMP'!B:H,6,0))=0,VLOOKUP(B145,'OUTRAS BASES'!C:D,2,0),IF(A145="Insumo", VLOOKUP(B145,'SINAPI INSUMOS'!B:H,6,0),VLOOKUP(B145,'SINAPI COMP'!B:H,6,0))), VLOOKUP(B145,'OUTRAS BASES'!C:D,2,0)) -> 25.07 | J145: 100.28 | L145: TRUE
A146: Insumo | B146: 3146 | C146: SINAPI | D146: FITA VEDA ROSCA EM ROLOS DE 18 MM X 10 M (L X C) | E146: Material | G146: UN | H146: 0.18 | I146: =IF(C146="SINAPI", IF( IF(A146="Insumo", VLOOKUP(B146,'SINAPI INSUMOS'!B:H,6,0), VLOOKUP(B146,'SINAPI COMP'!B:H,6,0))=0,VLOOKUP(B146,'OUTRAS BASES'!C:D,2,0),IF(A146="Insumo", VLOOKUP(B146,'SINAPI INSUMOS'!B:H,6,0),VLOOKUP(B146,'SINAPI COMP'!B:H,6,0))), VLOOKUP(B146,'OUTRAS BASES'!C:D,2,0)) -> 3.75 | J146: 0.675 | L146: TRUE
A147: Insumo | B147: 37106 | C147: SINAPI | D147: CAIXA D'AGUA / RESERVATORIO EM POLIESTER REFORCADO COM FIBRA DE VIDRO, 10000 LITROS, COM TAMPA | E147: Material | G147: UN | H147: 1 | I147: =IF(C147="SINAPI", IF( IF(A147="Insumo", VLOOKUP(B147,'SINAPI INSUMOS'!B:H,6,0), VLOOKUP(B147,'SINAPI COMP'!B:H,6,0))=0,VLOOKUP(B147,'OUTRAS BASES'!C:D,2,0),IF(A147="Insumo", VLOOKUP(B147,'SINAPI INSUMOS'!B:H,6,0),VLOOKUP(B147,'SINAPI COMP'!B:H,6,0))), VLOOKUP(B147,'OUTRAS BASES'!C:D,2,0)) -> 5629.45 | J147: 5629.45 | L147: TRUE
A148: Insumo | B148: 14073 | C148: ORSE | D148: CURVA 90º PVC D=50MM, LINHA IRRIGA-LF, TIGRE OU SIMILAR | E148: Material | G148: UM | H148: 3 | I148: =IF(C148="SINAPI", IF( IF(A148="Insumo", VLOOKUP(B148,'SINAPI INSUMOS'!B:H,6,0), VLOOKUP(B148,'SINAPI COMP'!B:H,6,0))=0,VLOOKUP(B148,'OUTRAS BASES'!C:D,2,0),IF(A148="Insumo", VLOOKUP(B148,'SINAPI INSUMOS'!B:H,6,0),VLOOKUP(B148,'SINAPI COMP'!B:H,6,0))), VLOOKUP(B148,'OUTRAS BASES'!C:D,2,0)) -> 8.1 | J148: 24.3 | L148: TRUE
A149: Insumo | B149: 14068 | C149: ORSE | D149: Tubo PVC para irrigação LF PN 80 Ø 50mm, linha Irriga-LF, Tigre ou similar | E149: Material | G149: UN | H149: 15.2 | I149: =IF(C149="SINAPI", IF( IF(A149="Insumo", VLOOKUP(B149,'SINAPI INSUMOS'!B:H,6,0), VLOOKUP(B149,'SINAPI COMP'!B:H,6,0))=0,VLOOKUP(B149,'OUTRAS BASES'!C:D,2,0),IF(A149="Insumo", VLOOKUP(B149,'SINAPI INSUMOS'!B:H,6,0),VLOOKUP(B149,'SINAPI COMP'!B:H,6,0))), VLOOKUP(B149,'OUTRAS BASES'!C:D,2,0)) -> 9.27 | J149: 140.904 | L149: TRUE
A150: Insumo | B150: 1434 | C150: ORSE | D150: Luva pvc rigido roscavel d=2 " | E150: Material | G150: UN | H150: 1 | I150: =IF(C150="SINAPI", IF( IF(A150="Insumo", VLOOKUP(B150,'SINAPI INSUMOS'!B:H,6,0), VLOOKUP(B150,'SINAPI COMP'!B:H,6,0))=0,VLOOKUP(B150,'OUTRAS BASES'!C:D,2,0),IF(A150="Insumo", VLOOKUP(B150,'SINAPI INSUMOS'!B:H,6,0),VLOOKUP(B150,'SINAPI COMP'!B:H,6,0))), VLOOKUP(B150,'OUTRAS BASES'!C:D,2,0)) -> 28.58 | J150: 28.58 | L150: =_xlfn.ISFORMULA(I150) -> TRUE
A151: Insumo | B151: 90 | C151: ORSE | D151: Adaptador curto, pvc rigido soldavel, c/ bolsa e rosca p/ registro, d= 50mm x 1 1/2” | E151: Material | G151: UN | H151: 1 | I151: =IF(C151="SINAPI", IF( IF(A151="Insumo", VLOOKUP(B151,'SINAPI INSUMOS'!B:H,6,0), VLOOKUP(B151,'SINAPI COMP'!B:H,6,0))=0,VLOOKUP(B151,'OUTRAS BASES'!C:D,2,0),IF(A151="Insumo", VLOOKUP(B151,'SINAPI INSUMOS'!B:H,6,0),VLOOKUP(B151,'SINAPI COMP'!B:H,6,0))), VLOOKUP(B151,'OUTRAS BASES'!C:D,2,0)) -> 4.2 | J151: 4.2 | L151: TRUE
A152: Insumo | B152: 99 | C152: SINAPI | D152: ADAPTADOR PVC SOLDAVEL, COM FLANGE E ANEL DE VEDACAO, 50 MM X 1 1/2", PARA CAIXA D'AGUA | E152: Material | G152: UN | H152: 2 | I152: =IF(C152="SINAPI", IF( IF(A152="Insumo", VLOOKUP(B152,'SINAPI INSUMOS'!B:H,6,0), VLOOKUP(B152,'SINAPI COMP'!B:H,6,0))=0,VLOOKUP(B152,'OUTRAS BASES'!C:D,2,0),IF(A152="Insumo", VLOOKUP(B152,'SINAPI INSUMOS'!B:H,6,0),VLOOKUP(B152,'SINAPI COMP'!B:H,6,0))), VLOOKUP(B152,'OUTRAS BASES'!C:D,2,0)) -> 30.5 | J152: 61 | L152: TRUE
A153: Insumo | B153: 119 | C153: SINAPI | D153: ADESIVO PLASTICO PARA PVC, BISNAGA COM 75 GR | E153: Material | G153: UN | H153: 0.45 | I153: =IF(C153="SINAPI", IF( IF(A153="Insumo", VLOOKUP(B153,'SINAPI INSUMOS'!B:H,6,0), VLOOKUP(B153,'SINAPI COMP'!B:H,6,0))=0,VLOOKUP(B153,'OUTRAS BASES'!C:D,2,0),IF(A153="Insumo", VLOOKUP(B153,'SINAPI INSUMOS'!B:H,6,0),VLOOKUP(B153,'SINAPI COMP'!B:H,6,0))), VLOOKUP(B153,'OUTRAS BASES'!C:D,2,0)) -> 9 | J153: 4.05 | L153: TRUE
L154: FALSE
L155: FALSE
L156: FALSE
L157: FALSE
A158: 5.2 | B158: Código | C158: Banco | D158: Descrição | E158: Tipo | G158: Und | H158: Quant. | I158: Valor Unit | J158: Total | L158: FALSE
A159: Composição | B159: COMPOSIÇÃO - 11 | C159: Próprio | D159: Fornecimento e execução de reservatório apoiado de 5 m³ | E159: SEDI - SERVIÇOS DIVERSOS | G159: un | H159: 1 | I159: =SUM(J160:J169) -> 9006.402825 | J159: =H159*I159 -> 9006.402825 | L159: TRUE
A160: Composição Auxiliar | B160: 88309 | C160: SINAPI | D160: PEDREIRO COM ENCARGOS COMPLEMENTARES | E160: Livro SINAPI: Cálculos e Parâmetros | G160: H | H160: 3 | I160: =IF(C160="SINAPI", IF( IF(A160="Insumo", VLOOKUP(B160,'SINAPI INSUMOS'!B:H,6,0), VLOOKUP(B160,'SINAPI COMP'!B:H,6,0))=0,VLOOKUP(B160,'OUTRAS BASES'!C:D,2,0),IF(A160="Insumo", VLOOKUP(B160,'SINAPI INSUMOS'!B:H,6,0),VLOOKUP(B160,'SINAPI COMP'!B:H,6,0))), VLOOKUP(B160,'OUTRAS BASES'!C:D,2,0)) -> 30.73 | J160: 92.19 | L160: TRUE
A161: Composição Auxiliar | B161: 88316 | C161: SINAPI | D161: SERVENTE COM ENCARGOS COMPLEMENTARES | E161: Livro SINAPI: Cálculos e Parâmetros | G161: H | H161: 3 | I161: =IF(C161="SINAPI", IF( IF(A161="Insumo", VLOOKUP(B161,'SINAPI INSUMOS'!B:H,6,0), VLOOKUP(B161,'SINAPI COMP'!B:H,6,0))=0,VLOOKUP(B161,'OUTRAS BASES'!C:D,2,0),IF(A161="Insumo", VLOOKUP(B161,'SINAPI INSUMOS'!B:H,6,0),VLOOKUP(B161,'SINAPI COMP'!B:H,6,0))), VLOOKUP(B161,'OUTRAS BASES'!C:D,2,0)) -> 25.11 | J161: 75.33 | L161: TRUE
A162: Composição Auxiliar | B162: 102617 | C162: SINAPI | D162: CAIXA D´ÁGUA EM POLIÉSTER REFORÇADO COM FIBRA DE VIDRO, 5000 LITROS - FORNECIMENTO E INSTALAÇÃO. AF_06/2021 | E162: Caixas de Água para Edificações | G162: UN | H162: 1 | I162: =IF(C162="SINAPI", IF( IF(A162="Insumo", VLOOKUP(B162,'SINAPI INSUMOS'!B:H,6,0), VLOOKUP(B162,'SINAPI COMP'!B:H,6,0))=0,VLOOKUP(B162,'OUTRAS BASES'!C:D,2,0),IF(A162="Insumo", VLOOKUP(B162,'SINAPI INSUMOS'!B:H,6,0),VLOOKUP(B162,'SINAPI COMP'!B:H,6,0))), VLOOKUP(B162,'OUTRAS BASES'!C:D,2,0)) -> 3830.13 | J162: 3830.13 | L162: TRUE
A163: Composição Auxiliar | B163: 92767 | C163: SINAPI | D163: ARMAÇÃO DE LAJE DE UMA ESTRUTURA CONVENCIONAL DE CONCRETO ARMADO UTILIZANDO AÇO CA-60 DE 4,2 MM - MONTAGEM. AF_12/2015 | E163: FUES - FUNDAÇÕES E ESTRUTURAS | G163: KG | H163: 3.04 | I163: =IF(C163="SINAPI", IF( IF(A163="Insumo", VLOOKUP(B163,'SINAPI INSUMOS'!B:H,6,0), VLOOKUP(B163,'SINAPI COMP'!B:H,6,0))=0,VLOOKUP(B163,'OUTRAS BASES'!C:D,2,0),IF(A163="Insumo", VLOOKUP(B163,'SINAPI INSUMOS'!B:H,6,0),VLOOKUP(B163,'SINAPI COMP'!B:H,6,0))), VLOOKUP(B163,'OUTRAS BASES'!C:D,2,0)) -> 15.7 | J163: 47.728 | L163: TRUE
A164: Composição Auxiliar | B164: 104917 | C164: SINAPI | D164: ARMAÇAO DE SAPATA ISOLADA, VIGA BALDRAME E SAPATA CORRIDA UTILIZANDO AÇO CA-50 DE 6,3 MM - MONTAGEM AD_01/2024 | E164: FUES - FUNDAÇÕES E ESTRUTURAS | G164: KG | H164: 9.3 | I164: =IF(C164="SINAPI", IF( IF(A164="Insumo", VLOOKUP(B164,'SINAPI INSUMOS'!B:H,6,0), VLOOKUP(B164,'SINAPI COMP'!B:H,6,0))=0,VLOOKUP(B164,'OUTRAS BASES'!C:D,2,0),IF(A164="Insumo", VLOOKUP(B164,'SINAPI INSUMOS'!B:H,6,0),VLOOKUP(B164,'SINAPI COMP'!B:H,6,0))), VLOOKUP(B164,'OUTRAS BASES'!C:D,2,0)) -> 15.57 | J164: 144.801 | L164: TRUE
A165: Composição Auxiliar | B165: 92760 | C165: SINAPI | D165: ARMAÇÃO DE PILAR OU VIGA DE ESTRTURA CONVENCIONAL DE CONCRETO ARMADO UTILIZANDO AÇO CA-50 DE 6,3 MM - MONTAGEM. AF_12/2015 | E165: FUES - FUNDAÇÕES E ESTRUTURAS | G165: KG | H165: 16.3 | I165: =IF(C165="SINAPI", IF( IF(A165="Insumo", VLOOKUP(B165,'SINAPI INSUMOS'!B:H,6,0), VLOOKUP(B165,'SINAPI COMP'!B:H,6,0))=0,VLOOKUP(B165,'OUTRAS BASES'!C:D,2,0),IF(A165="Insumo", VLOOKUP(B165,'SINAPI INSUMOS'!B:H,6,0),VLOOKUP(B165,'SINAPI COMP'!B:H,6,0))), VLOOKUP(B165,'OUTRAS BASES'!C:D,2,0)) -> 13.11 | J165: 213.693 | K165: Composição auxiliar teve seus insumos atualizados, presente na aba "Composições" | L165: TRUE
A166: Composição Auxiliar | B166: 94964 | C166: SINAPI | D166: CONCRETO FCK = 20MPA, TRAÇO 1:2,7:3 (EM MASSA SECA DE CIMENTO/ AREIA MÉDIA/ BRITA 1) - PREPARO MECÂNICO COM BETONEIRA 400 L. AF_05/2021 | E166: Produção de Concreto | G166: m³ | H166: 1.56 | I166: =IF(C166="SINAPI", IF( IF(A166="Insumo", VLOOKUP(B166,'SINAPI INSUMOS'!B:H,6,0), VLOOKUP(B166,'SINAPI COMP'!B:H,6,0))=0,VLOOKUP(B166,'OUTRAS BASES'!C:D,2,0),IF(A166="Insumo", VLOOKUP(B166,'SINAPI INSUMOS'!B:H,6,0),VLOOKUP(B166,'SINAPI COMP'!B:H,6,0))), VLOOKUP(B166,'OUTRAS BASES'!C:D,2,0)) -> 721.14 | J166: 1124.9784 | L166: TRUE
A167: Composição Auxiliar | B167: 84651 | C167: SINAPI | D167: PINTURA COM TINTA IMPERMEAVEL MINERAL EM PO, DUAS DEMAOS | E167: PINT - PINTURAS | G167: m² | H167: 7.85 | I167: =IF(C167="SINAPI", IF( IF(A167="Insumo", VLOOKUP(B167,'SINAPI INSUMOS'!B:H,6,0), VLOOKUP(B167,'SINAPI COMP'!B:H,6,0))=0,VLOOKUP(B167,'OUTRAS BASES'!C:D,2,0),IF(A167="Insumo", VLOOKUP(B167,'SINAPI INSUMOS'!B:H,6,0),VLOOKUP(B167,'SINAPI COMP'!B:H,6,0))), VLOOKUP(B167,'OUTRAS BASES'!C:D,2,0)) -> 15.0625 | J167: 118.240625 | L167: TRUE
A168: Composição Auxiliar | B168: 92263 | C168: SINAPI | D168: FABRICAÇÃO DE FÔRMA PARA PILARES E ESTRUTURAS SIMILARES, EM CHAPA DE MADEIRA COMPENSADA RESINADA, E = 17 MM. AF_09/2020 | E168: FUES - FUNDAÇÕES E ESTRUTURAS | G168: KG | H168: 16.99 | I168: =IF(C168="SINAPI", IF( IF(A168="Insumo", VLOOKUP(B168,'SINAPI INSUMOS'!B:H,6,0), VLOOKUP(B168,'SINAPI COMP'!B:H,6,0))=0,VLOOKUP(B168,'OUTRAS BASES'!C:D,2,0),IF(A168="Insumo", VLOOKUP(B168,'SINAPI INSUMOS'!B:H,6,0),VLOOKUP(B168,'SINAPI COMP'!B:H,6,0))), VLOOKUP(B168,'OUTRAS BASES'!C:D,2,0)) -> 186.02 | J168: 3160.4798 | K168: Composição auxiliar teve seus insumos atualizados, presente na aba "Composições" | L168: TRUE
A169: Composição Auxiliar | B169: 92770 | C169: SINAPI | D169: ARMAÇÃO DE LAJE DE UMA ESTRUTURA CONVENCIONAL DE CONCRETO ARMADO UTILIZANDO AÇO CA-50 DE 8,0 MM - MONTAGEM. AF_06/2022 | E169: FUES - FUNDAÇÕES E ESTRUTURAS | G169: KG | H169: 17.2 | I169: =IF(C169="SINAPI", IF( IF(A169="Insumo", VLOOKUP(B169,'SINAPI INSUMOS'!B:H,6,0), VLOOKUP(B169,'SINAPI COMP'!B:H,6,0))=0,VLOOKUP(B169,'OUTRAS BASES'!C:D,2,0),IF(A169="Insumo", VLOOKUP(B169,'SINAPI INSUMOS'!B:H,6,0),VLOOKUP(B169,'SINAPI COMP'!B:H,6,0))), VLOOKUP(B169,'OUTRAS BASES'!C:D,2,0)) -> 11.56 | J169: 198.832 | K169: Composição auxiliar teve seus insumos atualizados, presente na aba "Composições" | L169: TRUE
L170: FALSE
L171: FALSE
L172: FALSE
L173: FALSE
A174: 6 | D174: BEBEDOURO | L174: FALSE
A175: 6.1 | B175: Código | C175: Banco | D175: Descrição | E175: Tipo | G175: Und | H175: Quant. | I175: Valor Unit | J175: Total | L175: FALSE
A176: Composição | B176: COMPOSIÇÃO - 12 | C176: Próprio | D176: Serviço de execução do bebedouro em concreto armado, incluso materiais. | E176: SEDI - SERVIÇOS DIVERSOS | G176: un | H176: 1 | I176: =SUM(J177:J182) -> 1946.80108 | J176: =H176*I176 -> 1946.80108 | L176: TRUE
A177: Composição Auxiliar | B177: 92916 | C177: SINAPI | D177: ARMAÇÃODE ESTRUTURAS DIVERSAS DE CONCRETO ARMADO, EXCETO VIGA, PILARES, LAJES E FUNDAÇÕES, UTILIZANDO AÇO CA-50 DE 6,3 MM - MONTAGEM. AF_06/2022 | E177: Armação para Estruturas de Concreto Armado | G177: KG | H177: 6 | I177: =IF(C177="SINAPI", IF( IF(A177="Insumo", VLOOKUP(B177,'SINAPI INSUMOS'!B:H,6,0), VLOOKUP(B177,'SINAPI COMP'!B:H,6,0))=0,VLOOKUP(B177,'OUTRAS BASES'!C:D,2,0),IF(A177="Insumo", VLOOKUP(B177,'SINAPI INSUMOS'!B:H,6,0),VLOOKUP(B177,'SINAPI COMP'!B:H,6,0))), VLOOKUP(B177,'OUTRAS BASES'!C:D,2,0)) -> 15.31 | J177: 91.86 | L177: TRUE
A178: Composição Auxiliar | B178: 92915 | C178: SINAPI | D178: ARMAÇÃODE ESTRUTURAS DIVERSAS DE CONCRETO ARMADO, EXCETO VIGA, PILARES, LAJES E FUNDAÇÕES, UTILIZANDO AÇO CA-60 DE 5,0 MM - MONTAGEM. AF_06/2022 | E178: Armação para Estruturas de Concreto Armado | G178: KG | H178: 13 | I178: =IF(C178="SINAPI", IF( IF(A178="Insumo", VLOOKUP(B178,'SINAPI INSUMOS'!B:H,6,0), VLOOKUP(B178,'SINAPI COMP'!B:H,6,0))=0,VLOOKUP(B178,'OUTRAS BASES'!C:D,2,0),IF(A178="Insumo", VLOOKUP(B178,'SINAPI INSUMOS'!B:H,6,0),VLOOKUP(B178,'SINAPI COMP'!B:H,6,0))), VLOOKUP(B178,'OUTRAS BASES'!C:D,2,0)) -> 17.18 | J178: 223.34 | L178: TRUE
A179: Composição Auxiliar | B179: 92921 | C179: SINAPI | D179: ARMAÇÃODE ESTRUTURAS DIVERSAS DE CONCRETO ARMADO, EXCETO VIGA, PILARES, LAJES E FUNDAÇÕES, UTILIZANDO AÇO CA-50 DE 12,5 MM - MONTAGEM. AF_06/2022 | E179: Armação para Estruturas de Concreto Armado | G179: KG | H179: 12 | I179: =IF(C179="SINAPI", IF( IF(A179="Insumo", VLOOKUP(B179,'SINAPI INSUMOS'!B:H,6,0), VLOOKUP(B179,'SINAPI COMP'!B:H,6,0))=0,VLOOKUP(B179,'OUTRAS BASES'!C:D,2,0),IF(A179="Insumo", VLOOKUP(B179,'SINAPI INSUMOS'!B:H,6,0),VLOOKUP(B179,'SINAPI COMP'!B:H,6,0))), VLOOKUP(B179,'OUTRAS BASES'!C:D,2,0)) -> 9.66 | J179: 115.92 | L179: TRUE
A180: Composição Auxiliar | B180: 94971 | C180: SINAPI | D180: CONCRETO FCK = 25MPA, TRAÇO 1:2,3:2:2,7(EM MASSA SECA DE CIMENTO, AREIA MÉDIA, BRITA 1) - PREPARO MECÂNICO COM BETONEIRA 600l. AF_05/2021 | E180: Produção de concreto | G180: m³ | H180: 0.374 | I180: =IF(C180="SINAPI", IF( IF(A180="Insumo", VLOOKUP(B180,'SINAPI INSUMOS'!B:H,6,0), VLOOKUP(B180,'SINAPI COMP'!B:H,6,0))=0,VLOOKUP(B180,'OUTRAS BASES'!C:D,2,0),IF(A180="Insumo", VLOOKUP(B180,'SINAPI INSUMOS'!B:H,6,0),VLOOKUP(B180,'SINAPI COMP'!B:H,6,0))), VLOOKUP(B180,'OUTRAS BASES'!C:D,2,0)) -> 748.87 | J180: 280.07738 | L180: TRUE
A181: Composição Auxiliar | B181: 92263 | C181: SINAPI | D181: FABRICAÇÃO DE FÔRMA PARA PILARES E ESTRUTURAS SIMILARES, EM CHAPA DE MADEIRA COMPENSADA RESINADA, E = 17 MM. AF_09/2020 | E181: FUES - FUNDAÇÕES E ESTRUTURAS | G181: m² | H181: 6.21 | I181: =IF(C181="SINAPI", IF( IF(A181="Insumo", VLOOKUP(B181,'SINAPI INSUMOS'!B:H,6,0), VLOOKUP(B181,'SINAPI COMP'!B:H,6,0))=0,VLOOKUP(B181,'OUTRAS BASES'!C:D,2,0),IF(A181="Insumo", VLOOKUP(B181,'SINAPI INSUMOS'!B:H,6,0),VLOOKUP(B181,'SINAPI COMP'!B:H,6,0))), VLOOKUP(B181,'OUTRAS BASES'!C:D,2,0)) -> 186.02 | J181: 1155.1842 | L181: TRUE
A182: Composição Auxiliar | B182: 15.07.09 | C182: EMBASA | D182: PINTURA LÁTEX ACRÍLICA, APLICAÇÃO MANUAL EM DUAS DEMÃOS | E182: EDIFICAÇÕES | G182: m² | H182: 6.21 | I182: =IF(C182="SINAPI", IF( IF(A182="Insumo", VLOOKUP(B182,'SINAPI INSUMOS'!B:H,6,0), VLOOKUP(B182,'SINAPI COMP'!B:H,6,0))=0,VLOOKUP(B182,'OUTRAS BASES'!C:D,2,0),IF(A182="Insumo", VLOOKUP(B182,'SINAPI INSUMOS'!B:H,6,0),VLOOKUP(B182,'SINAPI COMP'!B:H,6,0))), VLOOKUP(B182,'OUTRAS BASES'!C:D,2,0)) -> 12.95 | J182: 80.4195 | L182: TRUE
L183: FALSE
L184: FALSE
L185: FALSE
L186: FALSE
A187: 7 | D187: CHAFARIZ | L187: FALSE
A188: 7.1 | B188: Código | C188: Banco | D188: Descrição | E188: Tipo | G188: Und | H188: Quant. | I188: Valor Unit | J188: Total | L188: FALSE
A189: Composição | B189: COMPOSIÇÃO - 13 | C189: Próprio | D189: Fornecimento de material e instalação do chafariz | E189: ASTU - ASSENTAMENTO DE TUBOS E PECAS | G189: un | H189: 1 | I189: =SUM(J190:J208) -> 938.6691079 | J189: =H189*I189 -> 938.6691079 | L189: TRUE
A190: Composição Auxiliar | B190: 88267 | C190: SINAPI | D190: ENCANADOR OU BOMBEIRO HIDRÁULICO COM ENCARGOS COMPLEMENTARES | E190: Livro SINAPI: Cálculos e Parâmetros | G190: H | H190: 2 | I190: =IF(C190="SINAPI", IF( IF(A190="Insumo", VLOOKUP(B190,'SINAPI INSUMOS'!B:H,6,0), VLOOKUP(B190,'SINAPI COMP'!B:H,6,0))=0,VLOOKUP(B190,'OUTRAS BASES'!C:D,2,0),IF(A190="Insumo", VLOOKUP(B190,'SINAPI INSUMOS'!B:H,6,0),VLOOKUP(B190,'SINAPI COMP'!B:H,6,0))), VLOOKUP(B190,'OUTRAS BASES'!C:D,2,0)) -> 30.01 | J190: 60.02 | L190: TRUE
A191: Composição Auxiliar | B191: 88248 | C191: SINAPI | D191: AUXILIAR DE ENCANADOR OU BOMBEIRO HIDRÁULICO COM ENCARGOS COMPLEMENTARES | E191: Livro SINAPI: Cálculos e Parâmetros | G191: H | H191: 2 | I191: =IF(C191="SINAPI", IF( IF(A191="Insumo", VLOOKUP(B191,'SINAPI INSUMOS'!B:H,6,0), VLOOKUP(B191,'SINAPI COMP'!B:H,6,0))=0,VLOOKUP(B191,'OUTRAS BASES'!C:D,2,0),IF(A191="Insumo", VLOOKUP(B191,'SINAPI INSUMOS'!B:H,6,0),VLOOKUP(B191,'SINAPI COMP'!B:H,6,0))), VLOOKUP(B191,'OUTRAS BASES'!C:D,2,0)) -> 25.07 | J191: 50.14 | L191: TRUE
A192: Composição Auxiliar | B192: 93358 | C192: SINAPI | D192: ESCAVAÇÃO MANUAL DE VALA COM PROFUNDIDADE MENOR OU IGUAL A 1,30 M. AF_02/2021 | E192: Escavação de Valas | G192: m³ | H192: 0.0785398 | I192: =IF(C192="SINAPI", IF( IF(A192="Insumo", VLOOKUP(B192,'SINAPI INSUMOS'!B:H,6,0), VLOOKUP(B192,'SINAPI COMP'!B:H,6,0))=0,VLOOKUP(B192,'OUTRAS BASES'!C:D,2,0),IF(A192="Insumo", VLOOKUP(B192,'SINAPI INSUMOS'!B:H,6,0),VLOOKUP(B192,'SINAPI COMP'!B:H,6,0))), VLOOKUP(B192,'OUTRAS BASES'!C:D,2,0)) -> 99.32 | J192: 7.800572936 | L192: TRUE
A193: Composição Auxiliar | B193: 96533 | C193: SINAPI | D193: FABRICAÇÃO, MONTAGEM E DESMONTAGEM DE FÔRMA PARA VIGA BALDRAME, EM MADEIRA SERRADA, E=25 MM, 2 UTILIZAÇÕES. AF_01/2024 | E193: FUES - FUNDAÇÕES E ESTRUTURAS | G193: m² | H193: 0.628 | I193: =IF(C193="SINAPI", IF( IF(A193="Insumo", VLOOKUP(B193,'SINAPI INSUMOS'!B:H,6,0), VLOOKUP(B193,'SINAPI COMP'!B:H,6,0))=0,VLOOKUP(B193,'OUTRAS BASES'!C:D,2,0),IF(A193="Insumo", VLOOKUP(B193,'SINAPI INSUMOS'!B:H,6,0),VLOOKUP(B193,'SINAPI COMP'!B:H,6,0))), VLOOKUP(B193,'OUTRAS BASES'!C:D,2,0)) -> 111.19 | J193: 69.82732 | L193: TRUE
A194: Composição Auxiliar | B194: 94963 | C194: SINAPI | D194: CONCRETO FCK = 15MPA, TRAÇO 1:3,4:3,5 (EM MASSA SECA DE CIMENTO/AREIA/MÉDIA/BRITA 1) - PREPARO MECÂNICO COM BETONEIRA 400 L. AF_05/2021 | E194: Produção de Concreto | G194: m³ | H194: 0.157 | I194: =IF(C194="SINAPI", IF( IF(A194="Insumo", VLOOKUP(B194,'SINAPI INSUMOS'!B:H,6,0), VLOOKUP(B194,'SINAPI COMP'!B:H,6,0))=0,VLOOKUP(B194,'OUTRAS BASES'!C:D,2,0),IF(A194="Insumo", VLOOKUP(B194,'SINAPI INSUMOS'!B:H,6,0),VLOOKUP(B194,'SINAPI COMP'!B:H,6,0))), VLOOKUP(B194,'OUTRAS BASES'!C:D,2,0)) -> 658.19 | J194: 103.33583 | L194: TRUE
A195: Composição Auxiliar | B195: 87904 | C195: SINAPI | D195: CHAPISCO APLICADO EM ALVENARIA (COM PRESENÇA DE VÃOS) E ESTRUTURAS DE CONCRETO DE FACHADA, COM COLHER DE PEDREIRO. ARGAMASSA TRAÇO 1:3 COM PREPARO MANUAL. AF_10/2022 | E195: Chapisco | G195: m² | H195: 0.314 | I195: =IF(C195="SINAPI", IF( IF(A195="Insumo", VLOOKUP(B195,'SINAPI INSUMOS'!B:H,6,0), VLOOKUP(B195,'SINAPI COMP'!B:H,6,0))=0,VLOOKUP(B195,'OUTRAS BASES'!C:D,2,0),IF(A195="Insumo", VLOOKUP(B195,'SINAPI INSUMOS'!B:H,6,0),VLOOKUP(B195,'SINAPI COMP'!B:H,6,0))), VLOOKUP(B195,'OUTRAS BASES'!C:D,2,0)) -> 9.99 | J195: 3.13686 | L195: TRUE
A196: Composição Auxiliar | B196: 87529 | C196: SINAPI | D196: MASSA ÚNICA, EM ARGAMASSA TRAÇO 1:2:8, PREPARO MECÂNICO, APLICADA MANUALMENTE EM PAREDES INTERNAS DE AMBIENTES COM ÁREA ENTRE 5M² E 10M², E = 17,5MM, COM TALISCAS. AF_03/2024 | E196: Massa Única Interna | G196: m² | H196: 0.314 | I196: =IF(C196="SINAPI", IF( IF(A196="Insumo", VLOOKUP(B196,'SINAPI INSUMOS'!B:H,6,0), VLOOKUP(B196,'SINAPI COMP'!B:H,6,0))=0,VLOOKUP(B196,'OUTRAS BASES'!C:D,2,0),IF(A196="Insumo", VLOOKUP(B196,'SINAPI INSUMOS'!B:H,6,0),VLOOKUP(B196,'SINAPI COMP'!B:H,6,0))), VLOOKUP(B196,'OUTRAS BASES'!C:D,2,0)) -> 45.85 | J196: 14.3969 | L196: TRUE
A197: Composição Auxiliar | B197: 84651 | C197: SINAPI | D197: PINTURA COM TINTA IMPERMEAVEL MINERAL EM PO, DUAS DEMAOS | E197: PINT - PINTURAS | G197: m² | H197: 0.314 | I197: =IF(C197="SINAPI", IF( IF(A197="Insumo", VLOOKUP(B197,'SINAPI INSUMOS'!B:H,6,0), VLOOKUP(B197,'SINAPI COMP'!B:H,6,0))=0,VLOOKUP(B197,'OUTRAS BASES'!C:D,2,0),IF(A197="Insumo", VLOOKUP(B197,'SINAPI INSUMOS'!B:H,6,0),VLOOKUP(B197,'SINAPI COMP'!B:H,6,0))), VLOOKUP(B197,'OUTRAS BASES'!C:D,2,0)) -> 15.0625 | J197: 4.729625 | L197: TRUE
A198: Insumo | B198: 765 | C198: SINAPI | D198: BUCHA DE REDUCAO DE FERRO GALVANIZADO, COM ROSCA BSP, DE 1" X 3/4" | E198: Material | G198: UN | H198: 2 | I198: =IF(C198="SINAPI", IF( IF(A198="Insumo", VLOOKUP(B198,'SINAPI INSUMOS'!B:H,6,0), VLOOKUP(B198,'SINAPI COMP'!B:H,6,0))=0,VLOOKUP(B198,'OUTRAS BASES'!C:D,2,0),IF(A198="Insumo", VLOOKUP(B198,'SINAPI INSUMOS'!B:H,6,0),VLOOKUP(B198,'SINAPI COMP'!B:H,6,0))), VLOOKUP(B198,'OUTRAS BASES'!C:D,2,0)) -> 10.5 | J198: 21 | K198: Composição auxiliar teve seus insumos atualizados, presente na aba "Composições" | L198: TRUE
A199: Insumo | B199: 9887 | C199: SINAPI | D199: UNIAO DE FERRO GALVANIZADO, COM ROSCA BSP, COM ASSENTO PLANO, DE 2" | E199: Material | G199: UN | H199: 2 | I199: =IF(C199="SINAPI", IF( IF(A199="Insumo", VLOOKUP(B199,'SINAPI INSUMOS'!B:H,6,0), VLOOKUP(B199,'SINAPI COMP'!B:H,6,0))=0,VLOOKUP(B199,'OUTRAS BASES'!C:D,2,0),IF(A199="Insumo", VLOOKUP(B199,'SINAPI INSUMOS'!B:H,6,0),VLOOKUP(B199,'SINAPI COMP'!B:H,6,0))), VLOOKUP(B199,'OUTRAS BASES'!C:D,2,0)) -> 106.88 | J199: 213.76 | L199: TRUE
A200: Insumo | B200: 21013 | C200: SINAPI | D200: TUBO ACO GALVANIZADO COM COSTURA, CLASSE LEVE, DN 50 MM ( 2"), E = 3,00 MM, *4,40* KG/M (NBR 5580) | E200: Material | G200: M | H200: 1.8 | I200: =IF(C200="SINAPI", IF( IF(A200="Insumo", VLOOKUP(B200,'SINAPI INSUMOS'!B:H,6,0), VLOOKUP(B200,'SINAPI COMP'!B:H,6,0))=0,VLOOKUP(B200,'OUTRAS BASES'!C:D,2,0),IF(A200="Insumo", VLOOKUP(B200,'SINAPI INSUMOS'!B:H,6,0),VLOOKUP(B200,'SINAPI COMP'!B:H,6,0))), VLOOKUP(B200,'OUTRAS BASES'!C:D,2,0)) -> 67.19 | J200: 120.942 | L200: TRUE
A201: Insumo | B201: 6298 | C201: SINAPI | D201: TE DE FERRO GALVANIZADO, DE 2" | E201: Material | G201: UN | H201: 1 | I201: =IF(C201="SINAPI", IF( IF(A201="Insumo", VLOOKUP(B201,'SINAPI INSUMOS'!B:H,6,0), VLOOKUP(B201,'SINAPI COMP'!B:H,6,0))=0,VLOOKUP(B201,'OUTRAS BASES'!C:D,2,0),IF(A201="Insumo", VLOOKUP(B201,'SINAPI INSUMOS'!B:H,6,0),VLOOKUP(B201,'SINAPI COMP'!B:H,6,0))), VLOOKUP(B201,'OUTRAS BASES'!C:D,2,0)) -> 69.61 | J201: 69.61 | K201: Preço AS digitado (Atribuído São Paulo) | L201: TRUE
A202: Insumo | B202: 3471 | C202: SINAPI | D202: COTOVELO 90 GRAUS DE FERRO GALVANIZADO, COM ROSCA BSP, DE 2" | E202: Material | G202: UN | H202: 1 | I202: =IF(C202="SINAPI", IF( IF(A202="Insumo", VLOOKUP(B202,'SINAPI INSUMOS'!B:H,6,0), VLOOKUP(B202,'SINAPI COMP'!B:H,6,0))=0,VLOOKUP(B202,'OUTRAS BASES'!C:D,2,0),IF(A202="Insumo", VLOOKUP(B202,'SINAPI INSUMOS'!B:H,6,0),VLOOKUP(B202,'SINAPI COMP'!B:H,6,0))), VLOOKUP(B202,'OUTRAS BASES'!C:D,2,0)) -> 52.36 | J202: 52.36 | L202: TRUE
A203: Insumo | B203: 113 | C203: SINAPI | D203: ADAPTADOR PVC SOLDAVEL CURTO COM BOLSA E ROSCA, 60 MM X 2", PARA AGUA FRIA | E203: Material | G203: UN | H203: 1 | I203: =IF(C203="SINAPI", IF( IF(A203="Insumo", VLOOKUP(B203,'SINAPI INSUMOS'!B:H,6,0), VLOOKUP(B203,'SINAPI COMP'!B:H,6,0))=0,VLOOKUP(B203,'OUTRAS BASES'!C:D,2,0),IF(A203="Insumo", VLOOKUP(B203,'SINAPI INSUMOS'!B:H,6,0),VLOOKUP(B203,'SINAPI COMP'!B:H,6,0))), VLOOKUP(B203,'OUTRAS BASES'!C:D,2,0)) -> 12.99 | J203: 12.99 | L203: TRUE
A204: Insumo | B204: 818 | C204: SINAPI | D204: BUCHA DE REDUCAO DE PVC, SOLDAVEL, CURTA, COM 60 X 50 MM, PARA AGUA FRIA PREDIAL | E204: Material | G204: UN | H204: 1 | I204: =IF(C204="SINAPI", IF( IF(A204="Insumo", VLOOKUP(B204,'SINAPI INSUMOS'!B:H,6,0), VLOOKUP(B204,'SINAPI COMP'!B:H,6,0))=0,VLOOKUP(B204,'OUTRAS BASES'!C:D,2,0),IF(A204="Insumo", VLOOKUP(B204,'SINAPI INSUMOS'!B:H,6,0),VLOOKUP(B204,'SINAPI COMP'!B:H,6,0))), VLOOKUP(B204,'OUTRAS BASES'!C:D,2,0)) -> 7.93 | J204: 7.93 | L204: TRUE
A205: Insumo | B205: 7604 | C205: SINAPI | D205: TORNEIRA METALICA CROMADA PARA TANQUE / JARDIM, SEM BICO , CANO LONGO, DE PAREDE, PADRAO POPULAR / USO GERAL, 1/2 " OU 3/4 " (REF 1126) | E205: Material | G205: UN | H205: 2 | I205: =IF(C205="SINAPI", IF( IF(A205="Insumo", VLOOKUP(B205,'SINAPI INSUMOS'!B:H,6,0), VLOOKUP(B205,'SINAPI COMP'!B:H,6,0))=0,VLOOKUP(B205,'OUTRAS BASES'!C:D,2,0),IF(A205="Insumo", VLOOKUP(B205,'SINAPI INSUMOS'!B:H,6,0),VLOOKUP(B205,'SINAPI COMP'!B:H,6,0))), VLOOKUP(B205,'OUTRAS BASES'!C:D,2,0)) -> 27.82 | J205: 55.64 | L205: TRUE
A206: Insumo | B206: 119 | C206: SINAPI | D206: ADESIVO PLASTICO PARA PVC, BISNAGA COM 75 GR | E206: Material | G206: UN | H206: 1 | I206: =IF(C206="SINAPI", IF( IF(A206="Insumo", VLOOKUP(B206,'SINAPI INSUMOS'!B:H,6,0), VLOOKUP(B206,'SINAPI COMP'!B:H,6,0))=0,VLOOKUP(B206,'OUTRAS BASES'!C:D,2,0),IF(A206="Insumo", VLOOKUP(B206,'SINAPI INSUMOS'!B:H,6,0),VLOOKUP(B206,'SINAPI COMP'!B:H,6,0))), VLOOKUP(B206,'OUTRAS BASES'!C:D,2,0)) -> 9 | J206: 9 | L206: TRUE
A207: Insumo | B207: 3146 | C207: SINAPI | D207: FITA VEDA ROSCA EM ROLOS DE 18 MM X 10 M (L X C) | E207: Material | G207: UN | H207: 1 | I207: =IF(C207="SINAPI", IF( IF(A207="Insumo", VLOOKUP(B207,'SINAPI INSUMOS'!B:H,6,0), VLOOKUP(B207,'SINAPI COMP'!B:H,6,0))=0,VLOOKUP(B207,'OUTRAS BASES'!C:D,2,0),IF(A207="Insumo", VLOOKUP(B207,'SINAPI INSUMOS'!B:H,6,0),VLOOKUP(B207,'SINAPI COMP'!B:H,6,0))), VLOOKUP(B207,'OUTRAS BASES'!C:D,2,0)) -> 3.75 | J207: 3.75 | L207: TRUE
A208: Insumo | B208: 771 | C208: SINAPI | D208: BUCHA DE REDUCAO DE FERRO GALVANIZADO, COM ROSCA BSP, DE 2" X 1" | E208: Material | G208: UN | H208: 2 | I208: =IF(C208="SINAPI", IF( IF(A208="Insumo", VLOOKUP(B208,'SINAPI INSUMOS'!B:H,6,0), VLOOKUP(B208,'SINAPI COMP'!B:H,6,0))=0,VLOOKUP(B208,'OUTRAS BASES'!C:D,2,0),IF(A208="Insumo", VLOOKUP(B208,'SINAPI INSUMOS'!B:H,6,0),VLOOKUP(B208,'SINAPI COMP'!B:H,6,0))), VLOOKUP(B208,'OUTRAS BASES'!C:D,2,0)) -> 29.15 | J208: 58.3 | L208: TRUE
L209: FALSE
L210: FALSE
L211: FALSE
L212: FALSE
A213: 8 | D213: CAVALETE | L213: FALSE
A214: 8.1 | B214: Código | C214: Banco | D214: Descrição | E214: Tipo | G214: Und | H214: Quant. | I214: Valor Unit | J214: Total | L214: =_xlfn.ISFORMULA(I214) -> FALSE
A215: Composição | B215: COMPOSIÇÃO - 14 | C215: Próprio | D215: Fornecimento de conexões e Instalação do Cavalete com hidrômetro e clorador de pastilhas | E215: INHI - INSTALAÇÕES HIDROS SANITÁRIAS | G215: un | H215: 1 | I215: =SUM(J216:J233) -> 1885.325 | J215: =H215*I215 -> 1885.325 | L215: TRUE
A216: Composição Auxiliar | B216: 88248 | C216: SINAPI | D216: AUXILIAR DE ENCANADOR OU BOMBEIRO HIDRÁULICO COM ENCARGOS COMPLEMENTARES | E216: Livro SINAPI: Cálculos e Parâmetros | G216: H | H216: 3 | I216: =IF(C216="SINAPI", IF( IF(A216="Insumo", VLOOKUP(B216,'SINAPI INSUMOS'!B:H,6,0), VLOOKUP(B216,'SINAPI COMP'!B:H,6,0))=0,VLOOKUP(B216,'OUTRAS BASES'!C:D,2,0),IF(A216="Insumo", VLOOKUP(B216,'SINAPI INSUMOS'!B:H,6,0),VLOOKUP(B216,'SINAPI COMP'!B:H,6,0))), VLOOKUP(B216,'OUTRAS BASES'!C:D,2,0)) -> 25.07 | J216: 75.21 | L216: TRUE
A217: Insumo | B217: 9860 | C217: SINAPI | D217: TUBO PVC, ROSCAVEL, 2", PARA AGUA FRIA PREDIAL | E217: Tubos e Conexões de PVC Rígido Roscável | G217: m | H217: 1.5 | I217: =IF(C217="SINAPI", IF( IF(A217="Insumo", VLOOKUP(B217,'SINAPI INSUMOS'!B:H,6,0), VLOOKUP(B217,'SINAPI COMP'!B:H,6,0))=0,VLOOKUP(B217,'OUTRAS BASES'!C:D,2,0),IF(A217="Insumo", VLOOKUP(B217,'SINAPI INSUMOS'!B:H,6,0),VLOOKUP(B217,'SINAPI COMP'!B:H,6,0))), VLOOKUP(B217,'OUTRAS BASES'!C:D,2,0)) -> 52.15 | J217: 78.225 | L217: TRUE
A218: Insumo | B218: 11831 | C218: SINAPI | D218: TORNEIRA PLASTICA PARA TANQUE 1/2 " OU 3/4 " COM BICO PARA MANGUEIRA | E218: Material | G218: UN | H218: 1 | I218: =IF(C218="SINAPI", IF( IF(A218="Insumo", VLOOKUP(B218,'SINAPI INSUMOS'!B:H,6,0), VLOOKUP(B218,'SINAPI COMP'!B:H,6,0))=0,VLOOKUP(B218,'OUTRAS BASES'!C:D,2,0),IF(A218="Insumo", VLOOKUP(B218,'SINAPI INSUMOS'!B:H,6,0),VLOOKUP(B218,'SINAPI COMP'!B:H,6,0))), VLOOKUP(B218,'OUTRAS BASES'!C:D,2,0)) -> 18.17 | J218: 18.17 | L218: TRUE
A219: Insumo | B219: 9569 | C219: ORSE | D219: Adaptador pvc BSxRM d= 35mm x 1 1/2", linha Irriga-LF, Tigre ou similar un | E219: Material | G219: un | H219: 1 | I219: =IF(C219="SINAPI", IF( IF(A219="Insumo", VLOOKUP(B219,'SINAPI INSUMOS'!B:H,6,0), VLOOKUP(B219,'SINAPI COMP'!B:H,6,0))=0,VLOOKUP(B219,'OUTRAS BASES'!C:D,2,0),IF(A219="Insumo", VLOOKUP(B219,'SINAPI INSUMOS'!B:H,6,0),VLOOKUP(B219,'SINAPI COMP'!B:H,6,0))), VLOOKUP(B219,'OUTRAS BASES'!C:D,2,0)) -> 3.04 | J219: 3.04 | L219: TRUE
A220: Insumo | B220: 3939 | C220: SINAPI | D220: LUVA DE FERRO GALVANIZADO, COM ROSCA BSP, DE 1 1/2" | E220: Material | G220: UN | H220: 1 | I220: =IF(C220="SINAPI", IF( IF(A220="Insumo", VLOOKUP(B220,'SINAPI INSUMOS'!B:H,6,0), VLOOKUP(B220,'SINAPI COMP'!B:H,6,0))=0,VLOOKUP(B220,'OUTRAS BASES'!C:D,2,0),IF(A220="Insumo", VLOOKUP(B220,'SINAPI INSUMOS'!B:H,6,0),VLOOKUP(B220,'SINAPI COMP'!B:H,6,0))), VLOOKUP(B220,'OUTRAS BASES'!C:D,2,0)) -> 24.07 | J220: 24.07 | L220: TRUE
A221: Insumo | B221: 1798 | C221: SINAPI | D221: CURVA 90 GRAUS DE FERRO GALVANIZADO, COM ROSCA BSP MACHO, DE 2" | E221: Material | G221: UN | H221: 1 | I221: =IF(C221="SINAPI", IF( IF(A221="Insumo", VLOOKUP(B221,'SINAPI INSUMOS'!B:H,6,0), VLOOKUP(B221,'SINAPI COMP'!B:H,6,0))=0,VLOOKUP(B221,'OUTRAS BASES'!C:D,2,0),IF(A221="Insumo", VLOOKUP(B221,'SINAPI INSUMOS'!B:H,6,0),VLOOKUP(B221,'SINAPI COMP'!B:H,6,0))), VLOOKUP(B221,'OUTRAS BASES'!C:D,2,0)) -> 134.16 | J221: 134.16 | L221: TRUE
A222: Insumo | B222: 9887 | C222: SINAPI | D222: UNIAO DE FERRO GALVANIZADO, COM ROSCA BSP, COM ASSENTO PLANO, DE 2" | E222: Material | G222: UN | H222: 1 | I222: =IF(C222="SINAPI", IF( IF(A222="Insumo", VLOOKUP(B222,'SINAPI INSUMOS'!B:H,6,0), VLOOKUP(B222,'SINAPI COMP'!B:H,6,0))=0,VLOOKUP(B222,'OUTRAS BASES'!C:D,2,0),IF(A222="Insumo", VLOOKUP(B222,'SINAPI INSUMOS'!B:H,6,0),VLOOKUP(B222,'SINAPI COMP'!B:H,6,0))), VLOOKUP(B222,'OUTRAS BASES'!C:D,2,0)) -> 106.88 | J222: 106.88 | L222: TRUE
A223: Insumo | B223: 00004181/SINAPI | C223: ORSE | D223: Niple de ferro galvanizado, com rosca bsp, de 2" | E223: Material | G223: un | H223: 2 | I223: =IF(C223="SINAPI", IF( IF(A223="Insumo", VLOOKUP(B223,'SINAPI INSUMOS'!B:H,6,0), VLOOKUP(B223,'SINAPI COMP'!B:H,6,0))=0,VLOOKUP(B223,'OUTRAS BASES'!C:D,2,0),IF(A223="Insumo", VLOOKUP(B223,'SINAPI INSUMOS'!B:H,6,0),VLOOKUP(B223,'SINAPI COMP'!B:H,6,0))), VLOOKUP(B223,'OUTRAS BASES'!C:D,2,0)) -> 36.64 | J223: 73.28 | L223: TRUE
A224: Insumo | B224: 6028 | C224: SINAPI | D224: REGISTRO GAVETA BRUTO EM LATAO FORJADO, BITOLA 2 " (REF 1509) | E224: Material | G224: UN | H224: 1 | I224: =IF(C224="SINAPI", IF( IF(A224="Insumo", VLOOKUP(B224,'SINAPI INSUMOS'!B:H,6,0), VLOOKUP(B224,'SINAPI COMP'!B:H,6,0))=0,VLOOKUP(B224,'OUTRAS BASES'!C:D,2,0),IF(A224="Insumo", VLOOKUP(B224,'SINAPI INSUMOS'!B:H,6,0),VLOOKUP(B224,'SINAPI COMP'!B:H,6,0))), VLOOKUP(B224,'OUTRAS BASES'!C:D,2,0)) -> 98.9 | J224: 98.9 | L224: TRUE
A225: Insumo | B225: 12775 | C225: SINAPI | D225: HIDROMETRO MULTIJATO / MEDIDOR DE AGUA, DN 1", VAZAO MAXIMA DE 7 M3/H, PARA AGUA POTAVEL FRIA, RELOJOARIA PLANA, CLASSE B, HORIZONTAL (SEM CONEXOES) | E225: Material | G225: UN | H225: 1 | I225: =IF(C225="SINAPI", IF( IF(A225="Insumo", VLOOKUP(B225,'SINAPI INSUMOS'!B:H,6,0), VLOOKUP(B225,'SINAPI COMP'!B:H,6,0))=0,VLOOKUP(B225,'OUTRAS BASES'!C:D,2,0),IF(A225="Insumo", VLOOKUP(B225,'SINAPI INSUMOS'!B:H,6,0),VLOOKUP(B225,'SINAPI COMP'!B:H,6,0))), VLOOKUP(B225,'OUTRAS BASES'!C:D,2,0)) -> 420.58 | J225: 420.58 | L225: TRUE
A226: Insumo | B226: 771 | C226: SINAPI | D226: BUCHA DE REDUCAO DE FERRO GALVANIZADO, COM ROSCA BSP, DE 2" X 1" | E226: Material | G226: UN | H226: 2 | I226: =IF(C226="SINAPI", IF( IF(A226="Insumo", VLOOKUP(B226,'SINAPI INSUMOS'!B:H,6,0), VLOOKUP(B226,'SINAPI COMP'!B:H,6,0))=0,VLOOKUP(B226,'OUTRAS BASES'!C:D,2,0),IF(A226="Insumo", VLOOKUP(B226,'SINAPI INSUMOS'!B:H,6,0),VLOOKUP(B226,'SINAPI COMP'!B:H,6,0))), VLOOKUP(B226,'OUTRAS BASES'!C:D,2,0)) -> 29.15 | J226: 58.3 | L226: TRUE
A227: Insumo | B227: 6305 | C227: SINAPI | D227: TE DE REDUCAO DE FERRO GALVANIZADO, COM ROSCA BSP, DE 2" X 1" | E227: Material | G227: UN | H227: 1 | I227: =IF(C227="SINAPI", IF( IF(A227="Insumo", VLOOKUP(B227,'SINAPI INSUMOS'!B:H,6,0), VLOOKUP(B227,'SINAPI COMP'!B:H,6,0))=0,VLOOKUP(B227,'OUTRAS BASES'!C:D,2,0),IF(A227="Insumo", VLOOKUP(B227,'SINAPI INSUMOS'!B:H,6,0),VLOOKUP(B227,'SINAPI COMP'!B:H,6,0))), VLOOKUP(B227,'OUTRAS BASES'!C:D,2,0)) -> 77.07 | J227: 77.07 | K227: Preço AS digitado (Atribuído São Paulo) | L227: TRUE
... 193 more rows

Sheet Crono. - PA - P
A1: OBJETO: EXECUÇÃO DE SERVIÇOS DE PERFURAÇÃO E INSTALAÇÃO DE POÇOS TUBULARES EM MUNICÍPIOS LOCALIZADOS NO ESTADO DO PARÁ, NA ÁREA DE ATUAÇÃO DA CODEVASF
A8: CRONOGRAMA FÍSICO-FINANCEIRO POÇO PARCIALMENTE REVESTIDO
A10: ITEM | B10: ESPECIFICAÇÃO DOS SERVIÇOS | C10: VALOR TOTAL (R$) | D10: Mês 01 | E10: Mês 02 | F10: Mês 03 | G10: Mês 04 | H10: Mês 05 | I10: Mês 06 | J10: Mês 07 | K10: Mês 08 | L10: Mês 09 | M10: Mês 10 | N10: Mês 11 | O10: Mês 12
A11: 1 | B11: Serviços preliminares. | C11: ='Orçamento Sintético - PA - P'!K4 -> 37256.49 | D11: =ROUND($C11/12,2) -> 3104.71 | E11: =ROUND($C11/12,2) -> 3104.71 | F11: 3104.71 | G11: 3104.71 | H11: 3104.71 | I11: 3104.71 | J11: 3104.71 | K11: 3104.71 | L11: 3104.71 | M11: 3104.71 | N11: 3104.71 | O11: 3104.71
A12: 2 | B12: Mobilizaçâo e desmobilizaçâo equipes perfuraçâo e instalação. | C12: ='Orçamento Sintético - PA - P'!K8 -> 66690 | D12: =ROUND($C12/12,2) -> 5557.5 | E12: 5557.5 | F12: 5557.5 | G12: 5557.5 | H12: 5557.5 | I12: 5557.5 | J12: 5557.5 | K12: 5557.5 | L12: 5557.5 | M12: 5557.5 | N12: 5557.5 | O12: 5557.5
A13: 3 | B13: Perfuração e completação de poço tubular. | C13: ='Orçamento Sintético - PA - P'!K12 -> 732362.7 | D13: 61030.23 | E13: 61030.23 | F13: 61030.23 | G13: 61030.23 | H13: 61030.23 | I13: 61030.23 | J13: 61030.23 | K13: 61030.23 | L13: 61030.23 | M13: 61030.23 | N13: 61030.23 | O13: 61030.23
A14: 4 | B14: Pós perfuração. | C14: ='Orçamento Sintético - PA - P'!K17 -> 313347.06 | D14: 26112.26 | E14: 26112.26 | F14: 26112.26 | G14: 26112.26 | H14: 26112.26 | I14: 26112.26 | J14: 26112.26 | K14: 26112.26 | L14: 26112.26 | M14: 26112.26 | N14: 26112.26 | O14: 26112.26
A15: 5 | B15: Reservação. | C15: ='Orçamento Sintético - PA - P'!K23 -> 607989.67 | D15: 50665.81 | E15: 50665.81 | F15: 50665.81 | G15: 50665.81 | H15: 50665.81 | I15: 50665.81 | J15: 50665.81 | K15: 50665.81 | L15: 50665.81 | M15: 50665.81 | N15: 50665.81 | O15: 50665.81
A16: 6 | B16: Bebedouro. | C16: ='Orçamento Sintético - PA - P'!K26 -> 62653.5 | D16: 5221.13 | E16: 5221.13 | F16: 5221.13 | G16: 5221.13 | H16: 5221.13 | I16: 5221.13 | J16: 5221.13 | K16: 5221.13 | L16: 5221.13 | M16: 5221.13 | N16: 5221.13 | O16: 5221.13
A17: 7 | B17: Chafariz. | C17: ='Orçamento Sintético - PA - P'!K28 -> 30208.88 | D17: 2517.41 | E17: 2517.41 | F17: 2517.41 | G17: 2517.41 | H17: 2517.41 | I17: 2517.41 | J17: 2517.41 | K17: 2517.41 | L17: 2517.41 | M17: 2517.41 | N17: 2517.41 | O17: 2517.41
A18: 8 | B18: Cavalete. | C18: ='Orçamento Sintético - PA - P'!K30 -> 60675.16 | D18: 5056.26 | E18: 5056.26 | F18: 5056.26 | G18: 5056.26 | H18: 5056.26 | I18: 5056.26 | J18: 5056.26 | K18: 5056.26 | L18: 5056.26 | M18: 5056.26 | N18: 5056.26 | O18: 5056.26
A19: 9 | B19: Instalações hidráulicas. | C19: ='Orçamento Sintético - PA - P'!K32 -> 555694.98 | D19: 46307.92 | E19: 46307.92 | F19: 46307.92 | G19: 46307.92 | H19: 46307.92 | I19: 46307.92 | J19: 46307.92 | K19: 46307.92 | L19: 46307.92 | M19: 46307.92 | N19: 46307.92 | O19: 46307.92
A20: 10 | B20: Estrutura de fixação para módulos fotovoltáicos. | C20: ='Orçamento Sintético - PA - P'!K40 -> 38689.16 | D20: 3224.1 | E20: 3224.1 | F20: 3224.1 | G20: 3224.1 | H20: 3224.1 | I20: 3224.1 | J20: 3224.1 | K20: 3224.1 | L20: 3224.1 | M20: 3224.1 | N20: 3224.1 | O20: 3224.1
A21: 11 | B21: Instalações elétricas e bóia elétrica. | C21: ='Orçamento Sintético - PA - P'!K42 -> 371872.02 | D21: 30989.34 | E21: 30989.34 | F21: 30989.34 | G21: 30989.34 | H21: 30989.34 | I21: 30989.34 | J21: 30989.34 | K21: 30989.34 | L21: 30989.34 | M21: 30989.34 | N21: 30989.34 | O21: 30989.34
A22: 12 | B22: Urbanização. | C22: ='Orçamento Sintético - PA - P'!K48 -> 111779.07 | D22: 9314.92 | E22: 9314.92 | F22: 9314.92 | G22: 9314.92 | H22: 9314.92 | I22: 9314.92 | J22: 9314.92 | K22: 9314.92 | L22: 9314.92 | M22: 9314.92 | N22: 9314.92 | O22: 9314.92
A23: 13 | B23: Outros serviços e insumos excepcionais. | C23: ='Orçamento Sintético - PA - P'!K51 -> 270991.39 | D23: 22582.62 | E23: 22582.62 | F23: 22582.62 | G23: 22582.62 | H23: 22582.62 | I23: 22582.62 | J23: 22582.62 | K23: 22582.62 | L23: 22582.62 | M23: 22582.62 | N23: 22582.62 | O23: 22582.62
A24: TOTAL | C24: =SUM(C11:C23) -> 3260210.08 | D24: =ROUND($C$24/12,2) -> 271684.17 | E24: =ROUND($C$24/12,2) -> 271684.17 | F24: 271684.17 | G24: 271684.17 | H24: 271684.17 | I24: 271684.17 | J24: 271684.17 | K24: 271684.17 | L24: 271684.17 | M24: 271684.17 | N24: 271684.17 | O24: 271684.17
A25: PERCENTUAL | D25: =D24/$C$24 -> 0.08333333231 | E25: =E24/$C$24 -> 0.08333333231 | F25: 0.08333333231 | G25: 0.08333333231 | H25: 0.08333333231 | I25: 0.08333333231 | J25: 0.08333333231 | K25: 0.08333333231 | L25: 0.08333333231 | M25: 0.08333333231 | N25: 0.08333333231 | O25: 0.08333333231
A26: CUSTO ACUMULADO | D26: =D24 -> 271684.17 | E26: =D26+E24 -> 543368.34 | F26: =E26+F24 -> 815052.51 | G26: =F26+G24 -> 1086736.68 | H26: =G26+H24 -> 1358420.85 | I26: 1630105.02 | J26: 1901789.19 | K26: 2173473.36 | L26: 2445157.53 | M26: 2716841.7 | N26: 2988525.87 | O26: 3260210.04
A27: PERCENTUAL ACUMULADO | D27: =D25 -> 0.08333333231 | E27: =D27+E25 -> 0.1666666646 | F27: =E27+F25 -> 0.2499999969 | G27: 0.3333333292 | H27: 0.4166666616 | I27: 0.4999999939 | J27: 0.5833333262 | K27: 0.6666666585 | L27: 0.7499999908 | M27: 0.8333333231 | N27: 0.9166666554 | O27: 0.9999999877

Sheet Orçamento Sintético - PA - T
C1: OBJETO: EXECUÇÃO DE SERVIÇOS DE PERFURAÇÃO E INSTALAÇÃO DE POÇOS TUBULARES EM MUNICÍPIOS LOCALIZADOS NO ESTADO DO PARÁ, NA ÁREA DE ATUAÇÃO DA CODEVASF | H1: Quantidade de Poços | I1: BDI SERVIÇO | J1: BDI INSUMO | K1: Total | L1: Preço Unitário Por Poço | M1: DESCONTO
H2: 54 | I2: ='BDI-SERVICOS'!D22 -> 0.2378 | J2: ='BDI-FORNECIMENTO'!C28 -> 0.146920122 | K2: =SUM(K4,K8,K12,K19,K25,K28,K30,K32,K34,K42,K44,K50,K53) -> 10295349.31 | L2: =ROUND(K2/H2,2) -> 190654.62 | M2: 0
A3: Item | B3: Código | C3: Banco | D3: TIPO | E3: Descrição. | F3: un. | G3: Mem. calc. | H3: Quanti. | I3: Valor Unit | J3: Valor Unit com BDI | K3: Total | L3: Peso (%)
A4: 1 | E4: Serviços preliminares. | K4: =SUM(K5:K7) -> 126691.13 | L4: =K4/$K$2 -> 0.012305666
A5: 1.1 | B5: COMPOSIÇÃO - 1 | C5: Próprio | D5: Serviço | E5: Administração local da obra - poço totalmente revestido. | F5: un. | G5: 1 | H5: =ROUND(G5*$H$2,2) -> 54 | I5: =VLOOKUP(B5,'Orçamento Analítico - PA - T'!B:J,9,0)*(1-$M$2) -> 952.63112 | J5: =ROUND(I5*(1+$I$2),2) -> 1179.17 | K5: =ROUND(J5*H5,2) -> 63675.18 | L5: =K5/$K$2 -> 0.006184848914 | N5: =_xlfn.ISFORMULA(K5) -> TRUE
A6: 1.2 | B6: COMPOSIÇÃO - 2 | C6: Próprio | D6: Serviço | E6: Serviço de locação geológica de campo com relatório hidro geológico e perfil construtivo e geológico esperado. relatório de viabilidade de implantação das estruturas e vistorias preliminares. | F6: un. | G6: 1 | H6: 54 | I6: =VLOOKUP(B6,'Orçamento Analítico - PA - T'!B:J,9,0)*(1-$M$2) -> 603.45 | J6: =ROUND(I6*(1+$I$2),2) -> 746.95 | K6: =ROUND(J6*H6,2) -> 40335.3 | L6: 0.00391781753 | N6: TRUE
A7: 1.3 | B7: 103689 | C7: Sinapi | D7: Serviço | E7: Fornecimento e instalação de placa de obra com chapa galvanizada e estrutura de madeira. | F7: m² | G7: 0.72 | H7: 38.88 | I7: =VLOOKUP(B7,'Orçamento Analítico - PA - T'!B:J,9,0)*(1-$M$2) -> 471.28 | J7: =ROUND(I7*(1+$I$2),2) -> 583.35 | K7: =ROUND(J7*H7,2) -> 22680.65 | L7: 0.00220299956 | N7: TRUE
A8: 2 | E8: Mobilizaçâo e desmobilizaçâo equipe campo. | K8: =SUM(K9:K11) -> 138510 | L8: 0.01345364745 | N8: TRUE
A9: 2.1 | B9: COMPOSIÇÃO - 3 | C9: Próprio | D9: Serviço | E9: Transporte de comboio perfuração. | F9: km | G9: 150 | H9: =ROUND(G9*$H$2,2) -> 8100 | I9: =VLOOKUP(B9,'Orçamento Analítico - PA - T'!B:J,9,0)*(1-$M$2) -> 4.9256956 | J9: =ROUND(I9*(1+$I$2),2) -> 6.1 | K9: =ROUND(J9*H9,2) -> 49410 | L9: 0.004799254354 | N9: TRUE
A10: 2.2 | B10: COMPOSIÇÃO - 4 | C10: Próprio | D10: Serviço | E10: Transporte de comboio instalação. | F10: km | G10: 150 | H10: 8100 | I10: =VLOOKUP(B10,'Orçamento Analítico - PA - T'!B:J,9,0)*(1-$M$2) -> 6.1686982 | J10: 7.64 | K10: 61884 | L10: 0.006010869387 | N10: TRUE
A11: 2.3 | B11: COMPOSIÇÃO - 5 | C11: Próprio | D11: Serviço | E11: Transporte de equipe teste de vazão. | F11: km | G11: 150 | H11: 8100 | I11: =VLOOKUP(B11,'Orçamento Analítico - PA - T'!B:J,9,0)*(1-$M$2) -> 2.711195 | J11: 3.36 | K11: 27216 | L11: 0.00264352371 | N11: TRUE
A12: 3 | E12: Perfuração e completação de poço tubular. | K12: =SUM(K13:K18) -> 4981097.42 | L12: 0.4838201473 | N12: TRUE
A13: 3.1 | B13: COMPOSIÇÃO - 6 | C13: Próprio | D13: Serviço | E13: Perfuração diâmetro de ø 12 1/2" em rocha - incluso mão de obra para instalação do revestimento e completação anelar. | F13: m | G13: 150 | H13: =ROUND(G13*$H$2,2) -> 8100 | I13: =VLOOKUP(B13,'Orçamento Analítico - PA - T'!B:J,9,0)*(1-$M$2) -> 255.86 | J13: =ROUND(I13*(1+$I$2),2) -> 316.7 | K13: =ROUND(J13*H13,2) -> 2565270 | L13: 0.2491678449 | N13: TRUE
A14: 3.2 | B14: 5073 | C14: Orse | D14: Insumo | E14: Fornecimento de pré-filtro comum m3. | F14: m³ | G14: 7.308 | H14: 394.63 | I14: =VLOOKUP(B14,'Orçamento Analítico - PA - T'!B:J,9,0)*(1-$M$2) -> 1619.38 | J14: =ROUND(I14*(1+$J$2),2) -> 1857.3 | K14: =ROUND(J14*H14,2) -> 732946.3 | L14: 0.07119197979 | N14: TRUE
A15: 3.3 | B15: 5091 | C15: Orse | D15: Insumo | E15: Revestimento filtro pvc geomecânico reforçado dn 150mm. | F15: m | G15: 16 | H15: 864 | I15: =VLOOKUP(B15,'Orçamento Analítico - PA - T'!B:J,9,0)*(1-$M$2) -> 221.38 | J15: 253.91 | K15: =ROUND(J15*H15,2) -> 219378.24 | L15: 0.02130847953 | N15: TRUE
A16: 3.4 | B16: 5024 | C16: Orse | D16: Insumo | E16: Centralizador em 6". | F16: un. | G16: 10 | H16: 540 | I16: =VLOOKUP(B16,'Orçamento Analítico - PA - T'!B:J,9,0)*(1-$M$2) -> 267.02 | J16: 306.25 | K16: 165375 | L16: 0.0160630781 | N16: TRUE
A17: 3.5 | B17: 9850 | C17: Sinapi | D17: Insumo | E17: Tubo pvc de revestimento geomecanico nervurado reforcado, dn = 150 mm, comprimento = 2 m. | F17: m | G17: 134 | H17: 7236 | I17: =VLOOKUP(B17,'Orçamento Analítico - PA - T'!B:J,9,0)*(1-$M$2) -> 148.75 | J17: 170.6 | K17: 1234461.6 | L17: 0.1199047806 | N17: TRUE
A18: 3.6 | B18: COMPOSIÇÃO - 7 | C18: Próprio | D18: Serviço | E18: Serviço de lançamento cimentação anelar, incluso materiais. | F18: m³ | G18: 1.827 | H18: 98.66 | I18: =VLOOKUP(B18,'Orçamento Analítico - PA - T'!B:J,9,0)*(1-$M$2) -> 521.34 | J18: =ROUND(I18*(1+$I$2),2) -> 645.31 | K18: 63666.28 | L18: 0.006183984446 | N18: TRUE
A19: 4 | E19: Pós perfuração. | K19: =SUM(K20:K24) -> 670124.34 | L19: 0.06509000519 | N19: TRUE
A20: 4.1 | B20: 6305 | C20: ORSE | D20: Serviço | E20: Desenvolvimento com compressor 250psi / 750cfm. | F20: h | G20: 2 | H20: =ROUND(G20*$H$2,2) -> 108 | I20: =VLOOKUP(B20,'Orçamento Analítico - PA - T'!B:J,9,0)*(1-$M$2) -> 411.16 | J20: =ROUND(I20*(1+$I$2),2) -> 508.93 | K20: =ROUND(J20*H20,2) -> 54964.44 | L20: 0.005338763974 | N20: TRUE
A21: 4.2 | B21: COMPOSIÇÃO - 8 | C21: Próprio | D21: Serviço | E21: Inspeção ótica em poço tubular câmera com rotação de 360º, visada lateral, com fonte própria de luz, entregue vídeo em cores e marcação de profundidades. | F21: m | G21: 150 | H21: 8100 | I21: =VLOOKUP(B21,'Orçamento Analítico - PA - T'!B:J,9,0)*(1-$M$2) -> 9.64046 | J21: =ROUND(I21*(1+$I$2),2) -> 11.93 | K21: 96633 | L21: 0.009386082695 | N21: TRUE
A22: 4.3 | B22: COMPOSIÇÃO - 9 | C22: Próprio | D22: Serviço | E22: Serviço de coleta e análise físico-química e bacteriológica. | F22: un. | G22: 1 | H22: 54 | I22: =VLOOKUP(B22,'Orçamento Analítico - PA - T'!B:J,9,0)*(1-$M$2) -> 621.19 | J22: 768.91 | K22: 41521.14 | L22: 0.004032999634 | N22: TRUE
A23: 4.4 | B23: COMPOSIÇÃO - 10 | C23: Próprio | D23: Serviço | E23: Serviço de instalação de laje sanitária com dimensões (1,5x1,5x0,3) , incluso material. | F23: un. | G23: 1 | H23: 54 | I23: =VLOOKUP(B23,'Orçamento Analítico - PA - T'!B:J,9,0)*(1-$M$2) -> 817.8345 | J23: 1012.32 | K23: 54665.28 | L23: 0.005309706194 | N23: TRUE
A24: 4.5 | B24: 24.80.22 | C24: EMBASA | D24: Serviço | E24: (REVISADA) DESENVOLVIMENTO OU TESTE COM BOMBA SUBMERSA - UEB1 NO SEDIMENTO COM VAZAO < 60M3 (Ensaio de bombeamento poço tubular incluso materiais e grupo gerador) | F24: h | G24: 24 | H24: 1296 | I24: =VLOOKUP(B24,'Orçamento Analítico - PA - T'!B:J,9,0)*(1-$M$2) -> 263.27 | J24: 325.88 | K24: 422340.48 | L24: 0.04102245269 | N24: TRUE
A25: 5 | E25: Reservação. | K25: =SUM(K26:K27) -> 1262747.77 | L25: 0.1226522512 | N25: TRUE
A26: 5.1 | B26: COMPOSIÇÃO - 11 | C26: Próprio | D26: Serviço | E26: Fornecimento e instalação de reservatório e base elevada 10 m³. | F26: un. | G26: 0.8 | H26: =ROUND(G26*$H$2,2) -> 43.2 | I26: =VLOOKUP(B26,'Orçamento Analítico - PA - T'!B:J,9,0)*(1-$M$2) -> 21363.09678 | J26: =ROUND(I26*(1+$I$2),2) -> 26443.24 | K26: 1142347.97 | L26: 0.1109576699 | N26: TRUE
A27: 5.2 | B27: COMPOSIÇÃO - 12 | C27: Próprio | D27: Serviço | E27: Fornecimento e execução de reservatório apoiado de 5 m³. | F27: un. | G27: 0.2 | H27: 10.8 | I27: =VLOOKUP(B27,'Orçamento Analítico - PA - T'!B:J,9,0)*(1-$M$2) -> 9006.402825 | J27: 11148.13 | K27: 120399.8 | L27: 0.01169458135 | N27: TRUE
A28: 6 | E28: Bebedouro. | K28: =SUM(K29) -> 130126.5 | L28: 0.01263934774 | N28: TRUE
A29: 6.1 | B29: COMPOSIÇÃO - 13 | C29: Próprio | D29: Serviço | E29: Serviço de execução do bebedouro em concreto armado, incluso materiais. | F29: un. | G29: 1 | H29: =ROUND(G29*$H$2,2) -> 54 | I29: =VLOOKUP(B29,'Orçamento Analítico - PA - T'!B:J,9,0)*(1-$M$2) -> 1946.80108 | J29: =ROUND(I29*(1+$I$2),2) -> 2409.75 | K29: 130126.5 | L29: 0.01263934774 | N29: TRUE
A30: 7 | E30: Chafariz. | K30: =K31 -> 62741.52 | L30: 0.006094161365 | N30: TRUE
A31: 7.1 | B31: COMPOSIÇÃO - 14 | C31: Próprio | D31: Serviço | E31: Fornecimento de material e instalação do chafariz. | F31: un. | G31: 1 | H31: =ROUND(G31*$H$2,2) -> 54 | I31: =VLOOKUP(B31,'Orçamento Analítico - PA - T'!B:J,9,0)*(1-$M$2) -> 938.6691079 | J31: =ROUND(I31*(1+$I$2),2) -> 1161.88 | K31: 62741.52 | L31: 0.006094161365 | N31: TRUE
A32: 8 | E32: Cavalete. | K32: =K33 -> 104092.02 | L32: 0.01011058652 | N32: TRUE
A33: 8.1 | B33: COMPOSIÇÃO - 15 | C33: Próprio | D33: Serviço | E33: Fornecimento de conexões e instalação do cavalete com hidrômetro e clorador de pastilhas. | F33: un. | G33: 1 | H33: =ROUND(G33*$H$2,2) -> 54 | I33: =VLOOKUP(B33,'Orçamento Analítico - PA - T'!B:J,9,0)*(1-$M$2) -> 1557.3 | J33: =ROUND(I33*(1+$I$2),2) -> 1927.63 | K33: 104092.02 | L33: 0.01011058652 | N33: TRUE
A34: 9 | E34: Instalações hidráulicas poço e adutora. | K34: =SUM(K35:K41) -> 1008773.13 | L34: 0.09798338061 | N34: TRUE
A35: 9.1 | B35: COMPOSIÇÃO - 16 | C35: Próprio | D35: Serviço | E35: Instalação da rede adutora poço-reservatório-bebedouro em pn80 e dn50mm. | F35: m | G35: 400 | H35: =ROUND(G35*$H$2,2) -> 21600 | I35: =VLOOKUP(B35,'Orçamento Analítico - PA - T'!B:J,9,0)*(1-$M$2) -> 7.1215 | J35: =ROUND(I35*(1+$I$2),2) -> 8.81 | K35: 190296 | L35: 0.01848368562 | N35: TRUE
A36: 9.2 | B36: COMPOSIÇÃO - 17 | C36: Próprio | D36: Serviço | E36: Montagem hidráulica do equipamento de bombeamento. | F36: un. | G36: 1 | H36: 54 | I36: =VLOOKUP(B36,'Orçamento Analítico - PA - T'!B:J,9,0)*(1-$M$2) -> 165.24 | J36: =ROUND(I36*(1+$I$2),2) -> 204.53 | K36: 11044.62 | L36: 0.001072777588 | N36: TRUE
A37: 9.3 | B37: 9875 | C37: SINAPI | D37: Insumo | E37: TUBO PVC, SOLDAVEL, DE 50 MM, AGUA FRIA (NBR-5648) | F37: m | G37: 400 | H37: =G37*H2 -> 21600 | I37: =VLOOKUP(B37,'Orçamento Analítico - PA - T'!B:J,9,0)*(1-$M$2) -> 17.95 | J37: =ROUND(I37*(1+$J$2),2) -> 20.59 | K37: =ROUND(J37*H37,2) -> 444744 | L37: =K37/$K$2 -> 0.04319853427 | N37: TRUE
A38: 9.4 | B38: 38200 | C38: Sinapi | D38: Insumo | E38: Corda de poliamida 12 mm tipo bombeiro, para trabalho em altura. | F38: 100m | G38: 0.93 | H38: 50.22 | I38: =VLOOKUP(B38,'Orçamento Analítico - PA - T'!B:J,9,0)*(1-$M$2) -> 500.67 | J38: =ROUND(I38*(1+$J$2),2) -> 574.23 | K38: 28837.83 | L38: 0.002801054062 | N38: TRUE
A39: 9.5 | B39: 9860 | C39: Sinapi | D39: Insumo | E39: Tubo pvc, roscavel, 2", para agua fria predial. | F39: m | G39: 90 | H39: 4860 | I39: =VLOOKUP(B39,'Orçamento Analítico - PA - T'!B:J,9,0)*(1-$M$2) -> 52.15 | J39: 59.81 | K39: 290676.6 | L39: 0.02823377733 | N39: TRUE
A40: 9.6 | B40: 3912 | C40: Sinapi | D40: Insumo | E40: Luva de ferro galvanizado, com rosca bsp, de 2". | F40: un. | G40: 16 | H40: 864 | I40: =VLOOKUP(B40,'Orçamento Analítico - PA - T'!B:J,9,0)*(1-$M$2) -> 36.86 | J40: 42.28 | K40: 36529.92 | L40: 0.003548196268 | N40: TRUE
A41: 9.7 | B41: 5128 | C41: Orse | D41: Insumo | E41: Tampa de poço galvanizada em 6" un. | F41: un. | G41: 1 | H41: 54 | I41: =VLOOKUP(B41,'Orçamento Analítico - PA - T'!B:J,9,0)*(1-$M$2) -> 107.28 | J41: 123.04 | K41: 6644.16 | L41: 0.0006453554707 | N41: TRUE
A42: 10 | E42: Estrutura de fixação para módulos fotovoltáicos. | K42: =K43 -> 120531.63 | L42: 0.01170738616 | N42: TRUE
A43: 10.1 | B43: COMPOSIÇÃO - 18 | C43: Próprio | D43: Serviço | E43: Serviço de fixação de estruturas para os módulos fotovoltaicos e suportes de concreto, incluso materiais. | F43: m² | G43: 15.18 | H43: =ROUND(G43*$H$2,2) -> 819.72 | I43: =VLOOKUP(B43,'Orçamento Analítico - PA - T'!B:J,9,0)*(1-$M$2) -> 118.791064 | J43: =ROUND(I43*(1+$I$2),2) -> 147.04 | K43: 120531.63 | L43: 0.01170738616 | N43: TRUE
A44: 11 | E44: Instalações elétricas. | K44: =SUM(K45:K49) -> 953135.64 | L44: 0.09257924246 | N44: TRUE
A45: 11.1 | B45: COMPOSIÇÃO - 19 | C45: Próprio | D45: Serviço | E45: Montagem e instalação elétrica do kit de bombeamento e sistema fotovoltaico inclusive sistema de aterramento. | F45: un. | G45: 1 | H45: =ROUND(G45*$H$2,2) -> 54 | I45: =VLOOKUP(B45,'Orçamento Analítico - PA - T'!B:J,9,0)*(1-$M$2) -> 1121.7444 | J45: =ROUND(I45*(1+$I$2),2) -> 1388.5 | K45: 74979 | L45: 0.007282802918 | N45: TRUE
A46: 11.2 | B46: 34622 | C46: Sinapi | D46: Insumo | E46: Fornecimento de cabo flexivel pvc 750 v, 3 condutores de 6,0 mm2. | F46: m | G46: 135 | H46: 7290 | I46: =VLOOKUP(B46,'Orçamento Analítico - PA - T'!B:J,9,0)*(1-$M$2) -> 24.47 | J46: =ROUND(I46*(1+$J$2),2) -> 28.07 | K46: 204630.3 | L46: 0.01987599389 | N46: TRUE
A47: 11.3 | B47: COMPOSIÇÃO - 20 | C47: Próprio | D47: Serviço | E47: Fornecimento e instalação de automático de bóia superior e inferior. | F47: un. | G47: 1 | H47: 54 | I47: =VLOOKUP(B47,'Orçamento Analítico - PA - T'!B:J,9,0)*(1-$M$2) -> 64.5175 | J47: =ROUND(I47*(1+$I$2),2) -> 79.86 | K47: 4312.44 | L47: 0.0004188726259 | N47: TRUE
A48: 11.4 | B48: 39257 | C48: Sinapi | D48: Insumo | E48: Cabo multipolar de cobre, flexivel, classe 4 ou 5, isolacao em hepr, cobertura em pvc-st2, antichama bwf-b, 0,6/1 kv, 3 condutores de 1,5 mm2. | F48: m | G48: 200 | H48: 10800 | I48: =VLOOKUP(B48,'Orçamento Analítico - PA - T'!B:J,9,0)*(1-$M$2) -> 6.65 | J48: =ROUND(I48*(1+$J$2),2) -> 7.63 | K48: 82404 | L48: 0.008004002343 | N48: TRUE
A49: 11.5 | B49: COTAÇÃO-002 | C49: Próprio | D49: Insumo | E49: Fornecimento de kit de bombeamento fotovoltaico, incluindo uma bomba cc de 2200w com controladora de carga externa, caixa de proteção metálica, módulos fotovoltaicos compatíveis com a geração de 3300wp além de componentes elétricos necessários para interligação dos painéis, como cabos, conectores mc4 e presilhas de fixação. | F49: un. | G49: 1 | H49: 54 | I49: =VLOOKUP(B49,'Orçamento Analítico - PA - T'!B:J,9,0)*(1-$M$2) -> 9474.81 | J49: =ROUND(I49*(1+$J$2),2) -> 10866.85 | K49: 586809.9 | L49: 0.05699757068 | N49: TRUE
A50: 12 | E50: Urbanização. | K50: =SUM(K51:K52) -> 232156.53 | L50: 0.02254965062 | N50: TRUE
A51: 12.1 | B51: COMPOSIÇÃO - 21 | C51: Próprio | D51: Serviço | E51: Cerca com mourões de concreto de 15x15cm, espaçados de 3m e cravados a 0,5m, escoras de 10x10cm nos cantos, e 9 fios de arame de aço ovalado 15x17. | F51: m | G51: 28 | H51: =ROUND(G51*$H$2,2) -> 1512 | I51: =VLOOKUP(B51,'Orçamento Analítico - PA - T'!B:J,9,0)*(1-$M$2) -> 89.235312 | J51: =ROUND(I51*(1+$I$2),2) -> 110.46 | K51: 167015.52 | L51: 0.01622242383 | N51: TRUE
A52: 12.2 | B52: COMPOSIÇÃO - 22 | C52: Próprio | D52: Serviço | E52: Serviço de instalação de portão de ferro com suporte e batedor conforme projeto, incluso material. | F52: m² | G52: 1.5 | H52: 81 | I52: =VLOOKUP(B52,'Orçamento Analítico - PA - T'!B:J,9,0)*(1-$M$2) -> 649.70796 | J52: 804.21 | K52: 65141.01 | L52: 0.006327226793 | N52: TRUE
A53: 13 | E53: Outros serviços e insumos excepcionais. | K53: =SUM(K54:K60) -> 504621.68 | L53: 0.04901452732 | N53: TRUE
A54: 13.1 | B54: COMPOSIÇÃO - 23 | C54: Próprio | D54: Serviço | E54: Execução de tamponamento conforme especificação. | F54: m³ | G54: 0.08 | H54: =ROUND(G54*$H$2,2) -> 4.32 | I54: =VLOOKUP(B54,'Orçamento Analítico - PA - T'!B:J,9,0)*(1-$M$2) -> 924.97 | J54: =ROUND(I54*(1+$I$2),2) -> 1144.93 | K54: 4946.1 | L54: 0.0004804208047 | N54: TRUE
A55: 13.2 | B55: 13747 | C55: Orse | D55: Insumo | E55: Revestimento tubo liso aço sch-40 em 12". | F55: m | G55: 6 | H55: 324 | I55: =VLOOKUP(B55,'Orçamento Analítico - PA - T'!B:J,9,0)*(1-$M$2) -> 921.04 | J55: =ROUND(I55*(1+$J$2),2) -> 1056.36 | K55: 342260.64 | L55: 0.03324419888 | N55: TRUE
A56: 13.3 | B56: M3929 | C56: Sicro3 | D56: Insumo | E56: Tubo em aço-carbono - e = 3,00 mm e d = 150 mm (6"). | F56: m | G56: 1.44 | H56: 77.76 | I56: =VLOOKUP(B56,'Orçamento Analítico - PA - T'!B:J,9,0)*(1-$M$2) -> 148.57 | J56: 170.4 | K56: 13250.3 | L56: 0.001287018012 | N56: TRUE
A57: 13.4 | B57: M039706073 | C57: Embasa | D57: Insumo | E57: Filtro nold em aço galvanizado dn 6". | F57: m | G57: 0.06 | H57: 3.24 | I57: =VLOOKUP(B57,'Orçamento Analítico - PA - T'!B:J,9,0)*(1-$M$2) -> 835.86 | J57: 958.66 | K57: 3106.06 | L57: 0.0003016954458 | N57: TRUE
A58: 13.5 | B58: COMPOSIÇÃO - 24 | C58: Próprio | D58: Serviço | E58: Limpeza manual , remoção de cerca, capina e instalação dos equipamentos (área do poço, painéis solares, bebedouro e reservatório). | F58: m² | G58: 70 | H58: 3780 | I58: =VLOOKUP(B58,'Orçamento Analítico - PA - T'!B:J,9,0)*(1-$M$2) -> 2.0088 | J58: =ROUND(I58*(1+$I$2),2) -> 2.49 | K58: 9412.2 | L58: 0.0009142186163 | N58: TRUE
A59: 13.6 | B59: COMPOSIÇÃO - 25 | C59: Próprio | D59: Serviço | E59: Fornecimento e instalação do filtro para revestimento interno ø 4 1/2". | F59: m | G59: 0.6 | H59: =G59*$H$2 -> 32.4 | I59: =VLOOKUP(B59,'Orçamento Analítico - PA - T'!B:J,9,0)*(1-$M$2) -> 118.5245 | J59: =ROUND(I59*(1+$I$2),2) -> 146.71 | K59: 4753.4 | L59: 0.0004617036156 | N59: TRUE
A60: 13.7 | B60: COMPOSIÇÃO - 26 | C60: Próprio | D60: Serviço | E60: Fornecimento e instalação do revestimento interno ø 4 1/2". | F60: m | G60: 17.4 | H60: =G60*$H$2 -> 939.6 | I60: =VLOOKUP(B60,'Orçamento Analítico - PA - T'!B:J,9,0)*(1-$M$2) -> 109.1045 | J60: 135.05 | K60: 126892.98 | L60: 0.01232527194 | N60: TRUE

Sheet Orçamento Analítico - PA - T
C1: OBJETO: EXECUÇÃO DE SERVIÇOS DE PERFURAÇÃO E INSTALAÇÃO DE POÇOS TUBULARES EM MUNICÍPIOS LOCALIZADOS NO ESTADO DO PARÁ, NA ÁREA DE ATUAÇÃO DA CODEVASF
A4: PLANILHA ANALÍTICA - POÇO TOTALMENTE REVESTIDO - PARÁ
A5: 1 | D5: SERVIÇOS PRELIMINARES
A6: 1.1 | B6: Código | C6: Banco | D6: Descrição | E6: Tipo | G6: Und | H6: Quant. | I6: =IF(C6="SINAPI", IF( IF(A6="Insumo", VLOOKUP(B6,'SINAPI INSUMOS'!B:H,6,0), VLOOKUP(B6,'SINAPI COMP'!B:H,6,0))=0,VLOOKUP(B6,'OUTRAS BASES'!C:D,2,0),IF(A6="Insumo", VLOOKUP(B6,'SINAPI INSUMOS'!B:H,6,0),VLOOKUP(B6,'SINAPI COMP'!B:H,6,0))), VLOOKUP(B6,'OUTRAS BASES'!C:D,2,0)) -> VALOR | J6: Total
A7: Composição | B7: COMPOSIÇÃO - 1 | C7: Próprio | D7: Administração Local da Obra - Poço Totalmente Revestido | E7: CANT - CANTEIRO DE OBRAS | G7: un | H7: 1 | I7: =SUM(J8:J9) -> 952.63112 | J7: =H7*I7 -> 952.63112
A8: Composição Auxiliar | B8: 12710 | C8: SBC | D8: DESPESAS GERAIS DE MANUTENCAO CANTEIRO DE OBRAS | E8: INSTALACOES PROVISORIAS | G8: MES | H8: 0.133 | I8: =IF(C8="SINAPI", IF( IF(A8="Insumo", VLOOKUP(B8,'SINAPI INSUMOS'!B:H,6,0), VLOOKUP(B8,'SINAPI COMP'!B:H,6,0))=0,VLOOKUP(B8,'OUTRAS BASES'!C:D,2,0),IF(A8="Insumo", VLOOKUP(B8,'SINAPI INSUMOS'!B:H,6,0),VLOOKUP(B8,'SINAPI COMP'!B:H,6,0))), VLOOKUP(B8,'OUTRAS BASES'!C:D,2,0)) -> 910.61 | J8: =H8*I8 -> 121.11113 | L8: =_xlfn.ISFORMULA(I8) -> TRUE
A9: Composição Auxiliar | B9: 100321 | C9: SINAPI | D9: TÉCNICO EM SEGURANÇA DO TRABALHO COM ENCARGOS COMPLEMENTARES | E9: Livro SINAPI: Cálculos e Parâmetros | G9: MES | H9: 0.133 | I9: =IF(C9="SINAPI", IF( IF(A9="Insumo", VLOOKUP(B9,'SINAPI INSUMOS'!B:H,6,0), VLOOKUP(B9,'SINAPI COMP'!B:H,6,0))=0,VLOOKUP(B9,'OUTRAS BASES'!C:D,2,0),IF(A9="Insumo", VLOOKUP(B9,'SINAPI INSUMOS'!B:H,6,0),VLOOKUP(B9,'SINAPI COMP'!B:H,6,0))), VLOOKUP(B9,'OUTRAS BASES'!C:D,2,0)) -> 6252.03 | J9: 831.51999 | L9: =_xlfn.ISFORMULA(I9) -> TRUE
A14: 1.2 | B14: Código | C14: Banco | D14: Descrição | E14: Tipo | G14: Und | H14: Quant. | I14: Valor Unit | J14: Total
A15: Composição | B15: COMPOSIÇÃO - 2 | C15: Próprio | D15: Serviço de locação Geológica de campo com relatório hidro geológico e perfil construtivo e geológico esperado. Relatório de Viabilidade de implantação das estruturas e vistorias preliminares | E15: SERT - SERVIÇOS TÉCNICOS | G15: un | H15: 1 | I15: =SUM(J16:J18) -> 603.45 | J15: =H15*I15 -> 603.45
A16: Composição Auxiliar | B16: 30.01.45 | C16: EMBASA | D16: GEOLOGO SENIOR | E16: 3001 | G16: hora | H16: 5 | I16: =IF(C16="SINAPI", IF( IF(A16="Insumo", VLOOKUP(B16,'SINAPI INSUMOS'!B:H,6,0), VLOOKUP(B16,'SINAPI COMP'!B:H,6,0))=0,VLOOKUP(B16,'OUTRAS BASES'!C:D,2,0),IF(A16="Insumo", VLOOKUP(B16,'SINAPI INSUMOS'!B:H,6,0),VLOOKUP(B16,'SINAPI COMP'!B:H,6,0))), VLOOKUP(B16,'OUTRAS BASES'!C:D,2,0)) -> 99.88 | J16: 499.4 | L16: =_xlfn.ISFORMULA(I16) -> TRUE
A17: Insumo | B17: 5896 | C17: ORSE | D17: Veículo tipo sedan ou pick-up capacidade 0,6 ton h | E17: Equipamento | G17: h | H17: 5 | I17: =IF(C17="SINAPI", IF( IF(A17="Insumo", VLOOKUP(B17,'SINAPI INSUMOS'!B:H,6,0), VLOOKUP(B17,'SINAPI COMP'!B:H,6,0))=0,VLOOKUP(B17,'OUTRAS BASES'!C:D,2,0),IF(A17="Insumo", VLOOKUP(B17,'SINAPI INSUMOS'!B:H,6,0),VLOOKUP(B17,'SINAPI COMP'!B:H,6,0))), VLOOKUP(B17,'OUTRAS BASES'!C:D,2,0)) -> 8.33 | J17: 41.65
A18: Insumo | B18: 4222 | C18: SINAPI | D18: GASOLINA COMUM | E18: Material | G18: L | H18: 10 | I18: =IF(C18="SINAPI", IF( IF(A18="Insumo", VLOOKUP(B18,'SINAPI INSUMOS'!B:H,6,0), VLOOKUP(B18,'SINAPI COMP'!B:H,6,0))=0,VLOOKUP(B18,'OUTRAS BASES'!C:D,2,0),IF(A18="Insumo", VLOOKUP(B18,'SINAPI INSUMOS'!B:H,6,0),VLOOKUP(B18,'SINAPI COMP'!B:H,6,0))), VLOOKUP(B18,'OUTRAS BASES'!C:D,2,0)) -> 6.24 | J18: 62.4
A21: 1.3 | B21: Código | C21: Banco | D21: Descrição | E21: Tipo | G21: Und | H21: Quant. | I21: Valor Unit | J21: Total
A22: Composição | B22: 103689 | C22: SINAPI | D22: FORNECIMENTO E INSTALAÇÃO DE PLACA DE OBRA COM CHAPA GALVANIZADA E ESTRUTURA DE MADEIRA. AF_03/2022_PS | E22: Sinalização Vertical Viária | G22: m² | H22: 1 | I22: =IF(C22="SINAPI", IF( IF(A22="Insumo", VLOOKUP(B22,'SINAPI INSUMOS'!B:H,6,0), VLOOKUP(B22,'SINAPI COMP'!B:H,6,0))=0,VLOOKUP(B22,'OUTRAS BASES'!C:D,2,0),IF(A22="Insumo", VLOOKUP(B22,'SINAPI INSUMOS'!B:H,6,0),VLOOKUP(B22,'SINAPI COMP'!B:H,6,0))), VLOOKUP(B22,'OUTRAS BASES'!C:D,2,0)) -> 471.28 | J22: =H22*I22 -> 471.28 | K22: Utilizado o código da Composição 103689
A23: Composição Auxiliar | B23: 102234 | C23: SINAPI | D23: PINTURA IMUNIZANTE PARA MADEIRA, 2 DEMÃOS. AF_01/2021 | E23: Pintura em Madeira | G23: m² | H23: 0.5 | I23: =IF(C23="SINAPI", IF( IF(A23="Insumo", VLOOKUP(B23,'SINAPI INSUMOS'!B:H,6,0), VLOOKUP(B23,'SINAPI COMP'!B:H,6,0))=0,VLOOKUP(B23,'OUTRAS BASES'!C:D,2,0),IF(A23="Insumo", VLOOKUP(B23,'SINAPI INSUMOS'!B:H,6,0),VLOOKUP(B23,'SINAPI COMP'!B:H,6,0))), VLOOKUP(B23,'OUTRAS BASES'!C:D,2,0)) -> 26.86 | J23: 13.43 | L23: =_xlfn.ISFORMULA(I23) -> TRUE
A24: Composição Auxiliar | B24: 88262 | C24: SINAPI | D24: CARPINTEIRO DE FORMAS COM ENCARGOS COMPLEMENTARES | E24: Livro SINAPI: Cálculos e Parâmetros | G24: H | H24: 0.3729 | I24: =IF(C24="SINAPI", IF( IF(A24="Insumo", VLOOKUP(B24,'SINAPI INSUMOS'!B:H,6,0), VLOOKUP(B24,'SINAPI COMP'!B:H,6,0))=0,VLOOKUP(B24,'OUTRAS BASES'!C:D,2,0),IF(A24="Insumo", VLOOKUP(B24,'SINAPI INSUMOS'!B:H,6,0),VLOOKUP(B24,'SINAPI COMP'!B:H,6,0))), VLOOKUP(B24,'OUTRAS BASES'!C:D,2,0)) -> 30.31 | J24: 11.302599 | L24: TRUE
A25: Composição Auxiliar | B25: 88316 | C25: SINAPI | D25: SERVENTE COM ENCARGOS COMPLEMENTARES | E25: Livro SINAPI: Cálculos e Parâmetros | G25: H | H25: 1.1186 | I25: =IF(C25="SINAPI", IF( IF(A25="Insumo", VLOOKUP(B25,'SINAPI INSUMOS'!B:H,6,0), VLOOKUP(B25,'SINAPI COMP'!B:H,6,0))=0,VLOOKUP(B25,'OUTRAS BASES'!C:D,2,0),IF(A25="Insumo", VLOOKUP(B25,'SINAPI INSUMOS'!B:H,6,0),VLOOKUP(B25,'SINAPI COMP'!B:H,6,0))), VLOOKUP(B25,'OUTRAS BASES'!C:D,2,0)) -> 25.11 | J25: 28.088046 | L25: TRUE
A26: Insumo | B26: 4509 | C26: SINAPI | D26: SARRAFO *2,5 X 10* CM EM PINUS, MISTA OU EQUIVALENTE DA REGIAO - BRUTA | E26: Material | G26: M | H26: 3.2083 | I26: =IF(C26="SINAPI", IF( IF(A26="Insumo", VLOOKUP(B26,'SINAPI INSUMOS'!B:H,6,0), VLOOKUP(B26,'SINAPI COMP'!B:H,6,0))=0,VLOOKUP(B26,'OUTRAS BASES'!C:D,2,0),IF(A26="Insumo", VLOOKUP(B26,'SINAPI INSUMOS'!B:H,6,0),VLOOKUP(B26,'SINAPI COMP'!B:H,6,0))), VLOOKUP(B26,'OUTRAS BASES'!C:D,2,0)) -> 5.57 | J26: 17.870231 | L26: TRUE
A27: Insumo | B27: 4813 | C27: SINAPI | D27: PLACA DE OBRA (PARA CONSTRUCAO CIVIL) EM CHAPA GALVANIZADA *N. 22*, ADESIVADA, DE *2,4 X 1,2* M (SEM POSTES PARA FIXACAO) | E27: Material | G27: m² | H27: 1 | I27: =IF(C27="SINAPI", IF( IF(A27="Insumo", VLOOKUP(B27,'SINAPI INSUMOS'!B:H,6,0), VLOOKUP(B27,'SINAPI COMP'!B:H,6,0))=0,VLOOKUP(B27,'OUTRAS BASES'!C:D,2,0),IF(A27="Insumo", VLOOKUP(B27,'SINAPI INSUMOS'!B:H,6,0),VLOOKUP(B27,'SINAPI COMP'!B:H,6,0))), VLOOKUP(B27,'OUTRAS BASES'!C:D,2,0)) -> 400 | J27: 400 | K27: Preço AS digitado (Atribuído São Paulo) | L27: TRUE
A28: Insumo | B28: 5065 | C28: SINAPI | D28: PREGO DE ACO POLIDO COM CABECA 10 X 10 (7/8 X 17) | E28: Material | G28: KG | H28: 0.0113 | I28: =IF(C28="SINAPI", IF( IF(A28="Insumo", VLOOKUP(B28,'SINAPI INSUMOS'!B:H,6,0), VLOOKUP(B28,'SINAPI COMP'!B:H,6,0))=0,VLOOKUP(B28,'OUTRAS BASES'!C:D,2,0),IF(A28="Insumo", VLOOKUP(B28,'SINAPI INSUMOS'!B:H,6,0),VLOOKUP(B28,'SINAPI COMP'!B:H,6,0))), VLOOKUP(B28,'OUTRAS BASES'!C:D,2,0)) -> 33.24 | J28: 0.375612 | L28: TRUE
A29: Insumo | B29: 5069 | C29: SINAPI | D29: PREGO DE ACO POLIDO COM CABECA 17 X 27 (2 1/2 X 11) | E29: Material | G29: KG | H29: 0.0132 | I29: =IF(C29="SINAPI", IF( IF(A29="Insumo", VLOOKUP(B29,'SINAPI INSUMOS'!B:H,6,0), VLOOKUP(B29,'SINAPI COMP'!B:H,6,0))=0,VLOOKUP(B29,'OUTRAS BASES'!C:D,2,0),IF(A29="Insumo", VLOOKUP(B29,'SINAPI INSUMOS'!B:H,6,0),VLOOKUP(B29,'SINAPI COMP'!B:H,6,0))), VLOOKUP(B29,'OUTRAS BASES'!C:D,2,0)) -> 17.81 | J29: 0.235092 | L29: TRUE
A33: 2 | D33: MOBILIZAÇÂO E DESMOBILIZAÇÂO EQUIPE CAMPO
A34: 2.1 | B34: Código | C34: Banco | D34: Descrição | E34: Tipo | G34: Und | H34: Quant. | I34: Valor Unit | J34: Total
A35: Composição | B35: COMPOSIÇÃO - 3 | C35: Próprio | D35: Transporte de Comboio Perfuração | E35: TRAN - TRANSPORTES, CARGAS E DESCARGAS | G35: km | H35: 1 | I35: =SUM(J36:J37) -> 4.9256956 | J35: =H35*I35 -> 4.9256956
A36: Composição Auxiliar | B36: 5824 | C36: SINAPI | D36: CAMINHÃO TOCO, PBT 16.000 KG, CARGA ÚTIL MÁX. 10.685 KG, DIST. ENTRE EIXOS 4,8 M, POTÊNCIA 189 CV, INCLUSIVE CARROCERIA FIXA ABERTA DE MADEIRA P/ TRANSPORTE GERAL DE CARGA SECA, DIMEN. APROX. 2,5 X 7,00 X 0,50 M - CHP DIURNO. AF_06/2014 | E36: Custos Horários Produtivo e Improdutivo dos Equipamentos | G36: CHP | H36: 0.01666 | I36: =IF(C36="SINAPI", IF( IF(A36="Insumo", VLOOKUP(B36,'SINAPI INSUMOS'!B:H,6,0), VLOOKUP(B36,'SINAPI COMP'!B:H,6,0))=0,VLOOKUP(B36,'OUTRAS BASES'!C:D,2,0),IF(A36="Insumo", VLOOKUP(B36,'SINAPI INSUMOS'!B:H,6,0),VLOOKUP(B36,'SINAPI COMP'!B:H,6,0))), VLOOKUP(B36,'OUTRAS BASES'!C:D,2,0)) -> 230.19 | J36: 3.8349654 | L36: =_xlfn.ISFORMULA(I36) -> TRUE
A37: Composição Auxiliar | B37: 5826 | C37: SINAPI | D37: CAMINHÃO TOCO, PBT 16.000 KG, CARGA ÚTIL MÁX. 10.685 KG, DIST. ENTRE EIXOS 4,8 M, POTÊNCIA 189 CV, INCLUSIVE CARROCERIA FIXA ABERTA DE MADEIRA P/ TRANSPORTE GERAL DE CARGA SECA, DIMEN. APROX. 2,5 X 7,00 X 0,50 M - CHI DIURNO. AF_06/2014 | E37: Custos Horários Produtivo e Improdutivo dos Equipamentos | G37: CHI | H37: 0.01666 | I37: =IF(C37="SINAPI", IF( IF(A37="Insumo", VLOOKUP(B37,'SINAPI INSUMOS'!B:H,6,0), VLOOKUP(B37,'SINAPI COMP'!B:H,6,0))=0,VLOOKUP(B37,'OUTRAS BASES'!C:D,2,0),IF(A37="Insumo", VLOOKUP(B37,'SINAPI INSUMOS'!B:H,6,0),VLOOKUP(B37,'SINAPI COMP'!B:H,6,0))), VLOOKUP(B37,'OUTRAS BASES'!C:D,2,0)) -> 65.47 | J37: 1.0907302 | L37: TRUE
A42: 2.2 | B42: Código | C42: Banco | D42: Descrição | E42: Tipo | G42: Und | H42: Quant. | I42: Valor Unit | J42: Total
A43: Composição | B43: COMPOSIÇÃO - 4 | C43: Próprio | D43: Transporte de Comboio Instalação | E43: TRAN - TRANSPORTES, CARGAS E DESCARGAS | G43: km | H43: 1 | I43: =SUM(J44:J45) -> 6.1686982 | J43: =H43*I43 -> 6.1686982
A44: Composição Auxiliar | B44: 5928 | C44: SINAPI | D44: GUINDAUTO HIDRÁULICO, CAPACIDADE MÁXIMA DE CARGA 6200 KG, MOMENTO MÁXIMO DE CARGA 11,7 TM, ALCANCE MÁXIMO HORIZONTAL 9,70 M, INCLUSIVE CAMINHÃO TOCO PBT 16.000 KG, POTÊNCIA DE 189 CV - CHP DIURNO. AF_06/2014 | E44: Custos Horários Produtivo e Improdutivo dos Equipamentos | G44: CHP | H44: 0.01666 | I44: =IF(C44="SINAPI", IF( IF(A44="Insumo", VLOOKUP(B44,'SINAPI INSUMOS'!B:H,6,0), VLOOKUP(B44,'SINAPI COMP'!B:H,6,0))=0,VLOOKUP(B44,'OUTRAS BASES'!C:D,2,0),IF(A44="Insumo", VLOOKUP(B44,'SINAPI INSUMOS'!B:H,6,0),VLOOKUP(B44,'SINAPI COMP'!B:H,6,0))), VLOOKUP(B44,'OUTRAS BASES'!C:D,2,0)) -> 293.47 | J44: 4.8892102 | L44: =_xlfn.ISFORMULA(I44) -> TRUE
A45: Composição Auxiliar | B45: 5930 | C45: SINAPI | D45: GUINDAUTO HIDRÁULICO, CAPACIDADE MÁXIMA DE CARGA 6200 KG, MOMENTO MÁXIMO DE CARGA 11,7 TM, ALCANCE MÁXIMO HORIZONTAL 9,70 M, INCLUSIVE CAMINHÃO TOCO PBT 16.000 KG, POTÊNCIA DE 189 CV - CHI DIURNO. AF_06/2014 | E45: Custos Horários Produtivo e Improdutivo dos Equipamentos | G45: CHI | H45: 0.01666 | I45: =IF(C45="SINAPI", IF( IF(A45="Insumo", VLOOKUP(B45,'SINAPI INSUMOS'!B:H,6,0), VLOOKUP(B45,'SINAPI COMP'!B:H,6,0))=0,VLOOKUP(B45,'OUTRAS BASES'!C:D,2,0),IF(A45="Insumo", VLOOKUP(B45,'SINAPI INSUMOS'!B:H,6,0),VLOOKUP(B45,'SINAPI COMP'!B:H,6,0))), VLOOKUP(B45,'OUTRAS BASES'!C:D,2,0)) -> 76.8 | J45: 1.279488 | L45: TRUE
A50: 2.3 | B50: Código | C50: Banco | D50: Descrição | E50: Tipo | G50: Und | H50: Quant. | I50: Valor Unit | J50: Total
A51: Composição | B51: COMPOSIÇÃO - 5 | C51: Próprio | D51: Transporte de Equipe Teste de Vazão | E51: TRAN - TRANSPORTES, CARGAS E DESCARGAS | G51: km | H51: 1 | I51: =SUM(J52:J53) -> 2.711195 | J51: =H51*I51 -> 2.711195
A52: Composição Auxiliar | B52: 73467 | C52: SINAPI | D52: CAMINHÃO TOCO, PBT 14.300 KG, CARGA ÚTIL MÁX. 9.710 KG, DIST. ENTRE EIXOS 3,56 M, POTÊNCIA 185 CV, INCLUSIVE CARROCERIA FIXA ABERTA DE MADEIRA P/ TRANSPORTE GERAL DE CARGA SECA, DIMEN. APROX. 2,50 X 6,50 X 0,50 M - CHP DIURNO. AF_06/2014 | E52: Custos Horários Produtivo e Improdutivo dos Equipamentos | G52: CHP | H52: 0.0083 | I52: =IF(C52="SINAPI", IF( IF(A52="Insumo", VLOOKUP(B52,'SINAPI INSUMOS'!B:H,6,0), VLOOKUP(B52,'SINAPI COMP'!B:H,6,0))=0,VLOOKUP(B52,'OUTRAS BASES'!C:D,2,0),IF(A52="Insumo", VLOOKUP(B52,'SINAPI INSUMOS'!B:H,6,0),VLOOKUP(B52,'SINAPI COMP'!B:H,6,0))), VLOOKUP(B52,'OUTRAS BASES'!C:D,2,0)) -> 264.24 | J52: 2.193192 | L52: =_xlfn.ISFORMULA(I52) -> TRUE
A53: Composição Auxiliar | B53: 91395 | C53: SINAPI | D53: CAMINHÃO TOCO, PBT 14.300 KG, CARGA ÚTIL MÁX. 9.710 KG, DIST. ENTRE EIXOS 3,56 M, POTÊNCIA 185 CV, INCLUSIVE CARROCERIA FIXA ABERTA DE MADEIRA P/ TRANSPORTE GERAL DE CARGA SECA, DIMEN. APROX. 2,50 X 6,50 X 0,50 M - CHI DIURNO. AF_06/2014 | E53: Custos Horários Produtivo e Improdutivo dos Equipamentos | G53: CHI | H53: 0.0083 | I53: =IF(C53="SINAPI", IF( IF(A53="Insumo", VLOOKUP(B53,'SINAPI INSUMOS'!B:H,6,0), VLOOKUP(B53,'SINAPI COMP'!B:H,6,0))=0,VLOOKUP(B53,'OUTRAS BASES'!C:D,2,0),IF(A53="Insumo", VLOOKUP(B53,'SINAPI INSUMOS'!B:H,6,0),VLOOKUP(B53,'SINAPI COMP'!B:H,6,0))), VLOOKUP(B53,'OUTRAS BASES'!C:D,2,0)) -> 62.41 | J53: 0.518003 | L53: TRUE
A58: 3 | D58: PERFURAÇÃO E COMPLETAÇÃO DE POÇO TUBULAR
